Workbook

Sheet LgMedSmCountyData (hidden)
B1: Notes on refreshing - Make sure that "AllCountiesData" worksheet is sorted by County.
B2: Update Reference points (best rates for large, medium and small counties - hard code).
B4: TARGET AND BEST REFERENCE POINTS | C4: Q4 | D4: Q1 | E4: Q2 | F4: Q3 | G4: Q4 | H4: Q1 | I4: Q2 | J4: Q3 | K4: Q4 | L4: Q1 | M4: Q2 | N4: Q3 | O4: Q4 | P4: Q1 | Q4: Q2 | R4: Q3 | S4: Q4 | T4: Q1 | U4: Q2 | V4: Q3 | W4: Q4 | X4: Q1 | Y4: Q2
C5: 2011 | D5: 2012 | H5: 2013 | L5: 2014 | P5: 2015 | T5: 2016 | X5: 2017 | AA5: Best county, most recent quarter
B6: Target - all Medi-Cal on CalFresh | C6: 0.4 | D6: 0.4 | E6: 0.4 | F6: 0.4 | G6: 0.4 | H6: 0.4 | I6: 0.4 | J6: 0.4 | K6: 0.4 | L6: 0.4 | M6: 0.4 | N6: 0.4 | O6: 0.4 | P6: 0.4 | Q6: 0.4 | R6: 0.4 | S6: 0.4 | T6: 0.4 | U6: 0.4 | V6: 0.4 | W6: 0.4 | X6: 0.4 | Y6: 0.4
B7: Target - CalFresh on Medi-Cal | C7: 0.9 | D7: 0.9 | E7: 0.9 | F7: 0.9 | G7: 0.9 | H7: 0.9 | I7: 0.9 | J7: 0.9 | K7: 0.9 | L7: 0.9 | M7: 0.9 | N7: 0.9 | O7: 0.9 | P7: 0.9 | Q7: 0.9 | R7: 0.9 | S7: 0.9 | T7: 0.9 | U7: 0.9 | V7: 0.9 | W7: 0.9 | X7: 0.9 | Y7: 0.9
B8: Best Large County - Medi-Cal on CalFresh | C8: =DualEnroll!B67 -> 0.529 | D8: =DualEnroll!I67 -> 0.5349886925 | E8: =DualEnroll!J67 -> 0.5344302311 | F8: =DualEnroll!K67 -> 0.5349587546 | G8: =DualEnroll!L67 -> 0.5310133402 | H8: =DualEnroll!M67 -> 0.5418975632 | I8: =DualEnroll!N67 -> 0.5186667751 | J8: =DualEnroll!O67 -> 0.5119764879 | K8: =DualEnroll!P67 -> 0.5107570135 | L8: =DualEnroll!Q67 -> 0.5136285278 | M8: =DualEnroll!R67 -> 0.5088367738 | N8: =DualEnroll!S67 -> 0.4982164705 | O8: =DualEnroll!T67 -> 0.4892447409 | P8: =DualEnroll!U67 -> 0.4946232127 | Q8: =DualEnroll!V67 -> 0.4848738815 | R8: =DualEnroll!W67 -> 0.4845478321 | S8: =DualEnroll!X67 -> 0.4776249667 | T8: =DualEnroll!Y67 -> 0.4751706049 | U8: =DualEnroll!Z67 -> 0.4689428784 | V8: =DualEnroll!AA67 -> 0.4584295082 | W8: =DualEnroll!AB67 -> 0.454833416 | X8: =DualEnroll!AC67 -> 0.4610486534 | AA8: =DualEnroll!AC70 -> Tulare | AC8: =CONCATENATE("Best Large County this Q"," (",AA8,")") -> Best Large County this Q (Tulare)
B9: Best Medium County - Medi-Cal on CalFresh | C9: =DualEnroll!B68 -> 0.498 | D9: =DualEnroll!I68 -> 0.4964241649 | E9: =DualEnroll!J68 -> 0.5203701419 | F9: =DualEnroll!K68 -> 0.5080539727 | G9: =DualEnroll!L68 -> 0.5125033936 | H9: =DualEnroll!M68 -> 0.5084334938 | I9: =DualEnroll!N68 -> 0.4929624361 | J9: =DualEnroll!O68 -> 0.5045276004 | K9: =DualEnroll!P68 -> 0.5062126907 | L9: =DualEnroll!Q68 -> 0.4826548944 | M9: =DualEnroll!R68 -> 0.4589066041 | N9: =DualEnroll!S68 -> 0.4663685731 | O9: =DualEnroll!T68 -> 0.4742631554 | P9: =DualEnroll!U68 -> 0.4625211113 | Q9: =DualEnroll!V68 -> 0.4531908636 | R9: =DualEnroll!W68 -> 0.4627553388 | S9: =DualEnroll!X68 -> 0.4643575419 | T9: =DualEnroll!Y68 -> 0.4459117848 | U9: =DualEnroll!Z68 -> 0.4372515317 | V9: =DualEnroll!AA68 -> 0.4391450311 | W9: =DualEnroll!AB68 -> 0.4394871096 | X9: =DualEnroll!AC68 -> 0.4283713548 | AA9: =DualEnroll!AC71 -> Imperial | AC9: =CONCATENATE("Best Medium County this Q"," (",AA9,")") -> Best Medium County this Q (Imperial)
B10: Best Small County - Medi-Cal on CalFresh | C10: =DualEnroll!B69 -> 0.492 | D10: =DualEnroll!I69 -> 0.5054945055 | E10: =DualEnroll!J69 -> 0.5062401678 | F10: =DualEnroll!K69 -> 0.506241477 | G10: =DualEnroll!L69 -> 0.4956532386 | H10: =DualEnroll!M69 -> 0.5 | I10: =DualEnroll!N69 -> 0.5215686275 | J10: =DualEnroll!O69 -> 0.5357142857 | K10: =DualEnroll!P69 -> 0.4964028777 | L10: =DualEnroll!Q69 -> 0.4790996785 | M10: =DualEnroll!R69 -> 0.4563953488 | N10: =DualEnroll!S69 -> 0.4647519582 | O10: =DualEnroll!T69 -> 0.4440571939 | P10: =DualEnroll!U69 -> 0.4307571938 | Q10: =DualEnroll!V69 -> 0.429760666 | R10: =DualEnroll!W69 -> 0.4594594595 | S10: =DualEnroll!X69 -> 0.4279392118 | T10: =DualEnroll!Y69 -> 0.4293882218 | U10: =DualEnroll!Z69 -> 0.4271087275 | V10: =DualEnroll!AA69 -> 0.4271447282 | W10: =DualEnroll!AB69 -> 0.4191122374 | X10: =DualEnroll!AC69 -> 0.4170719844 | AA10: =DualEnroll!AC72 -> Del Norte | AC10: =CONCATENATE("Best Small County this Q"," (",AA10,")") -> Best Small County this Q (Del Norte)
B11: Best Large County - CalFresh on Medi-Cal | C11: =DualEnroll!B137 -> 0.845 | D11: =DualEnroll!I137 -> 0.835685042 | E11: =DualEnroll!J137 -> 0.8275053128 | F11: =DualEnroll!K137 -> 0.8237651538 | G11: =DualEnroll!L137 -> 0.823373937 | H11: =DualEnroll!M137 -> 0.8257740057 | I11: =DualEnroll!N137 -> 0.831532889 | J11: =DualEnroll!O137 -> 0.8271394534 | K11: =DualEnroll!P137 -> 0.8218723762 | L11: =DualEnroll!Q137 -> 0.8582456833 | M11: =DualEnroll!R137 -> 0.9265961938 | N11: =DualEnroll!S137 -> 0.9394180625 | O11: =DualEnroll!T137 -> 0.9423380727 | P11: =DualEnroll!U137 -> 0.9501429126 | Q11: =DualEnroll!V137 -> 0.9512660715 | R11: =DualEnroll!W137 -> 0.9512694898 | S11: =DualEnroll!X137 -> 0.95740825 | T11: =DualEnroll!Y137 -> 0.9623410461 | U11: =DualEnroll!Z137 -> 0.9662744605 | V11: =DualEnroll!AA137 -> 0.9664996213 | W11: =DualEnroll!AB137 -> 0.9675114871 | X11: =DualEnroll!AC137 -> 0.9686018815 | AA11: =DualEnroll!AC140 -> Tulare | AC11: =CONCATENATE("Best Large County"," (",AA11,")") -> Best Large County (Tulare)
B12: Best Medium County - CalFresh on Medi-Cal | C12: =DualEnroll!B138 -> 0.913 | D12: =DualEnroll!I138 -> 0.9073052553 | E12: =DualEnroll!J138 -> 0.9035703834 | F12: =DualEnroll!K138 -> 0.900150398 | G12: =DualEnroll!L138 -> 0.8998209728 | H12: =DualEnroll!M138 -> 0.9019665287 | I12: =DualEnroll!N138 -> 0.9105170775 | J12: =DualEnroll!O138 -> 0.9109180593 | K12: =DualEnroll!P138 -> 0.9145104381 | L12: =DualEnroll!Q138 -> 0.9135335738 | M12: =DualEnroll!R138 -> 0.9470640569 | N12: =DualEnroll!S138 -> 0.95429886 | O12: =DualEnroll!T138 -> 0.959327175 | P12: =DualEnroll!U138 -> 0.9665295248 | Q12: =DualEnroll!V138 -> 0.9683096834 | R12: =DualEnroll!W138 -> 0.9657158985 | S12: =DualEnroll!X138 -> 0.9661355921 | T12: =DualEnroll!Y138 -> 0.9738036965 | U12: =DualEnroll!Z138 -> 0.9729920352 | V12: =DualEnroll!AA138 -> 0.9711106842 | W12: =DualEnroll!AB138 -> 0.9717984943 | X12: =DualEnroll!AC138 -> 0.9723169865 | AA12: =DualEnroll!AC141 -> Merced | AC12: =CONCATENATE("Best Medium County"," (",AA12,")") -> Best Medium County (Merced)
B13: Best Small County - CalFresh on Medi-Cal | C13: =DualEnroll!B139 -> 0.908 | D13: =DualEnroll!I139 -> 0.9139072848 | E13: =DualEnroll!J139 -> 0.9009402283 | F13: =DualEnroll!K139 -> 0.9129032258 | G13: =DualEnroll!L139 -> 0.9059334298 | H13: =DualEnroll!M139 -> 0.9154228856 | I13: =DualEnroll!N139 -> 0.9151614669 | J13: =DualEnroll!O139 -> 0.9074380165 | K13: =DualEnroll!P139 -> 0.9117054932 | L13: =DualEnroll!Q139 -> 0.9119463087 | M13: =DualEnroll!R139 -> 0.9519697787 | N13: =DualEnroll!S139 -> 0.9556195965 | O13: =DualEnroll!T139 -> 0.9575221239 | P13: =DualEnroll!U139 -> 0.9615754083 | Q13: =DualEnroll!V139 -> 0.9661181026 | R13: =DualEnroll!W139 -> 0.9645040606 | S13: =DualEnroll!X139 -> 0.9719222462 | T13: =DualEnroll!Y139 -> 0.9779411765 | U13: =DualEnroll!Z139 -> 0.9765258216 | V13: =DualEnroll!AA139 -> 0.9756918474 | W13: =DualEnroll!AB139 -> 0.9773160503 | X13: =DualEnroll!AC139 -> 0.9786950732 | AA13: =DualEnroll!AC142 -> Del Norte | AC13: =CONCATENATE("Best Small County"," (",AA13,")") -> Best Small County (Del Norte)
B14: Best Large County - Average Days | C14: =Timely!D393 -> 5 | D14: =Timely!E393 -> 5 | E14: =Timely!F393 -> 5 | F14: =Timely!G393 -> 5 | G14: =Timely!H393 -> 5 | H14: =Timely!I393 -> 4.7 | I14: =Timely!J393 -> 5.3 | J14: =Timely!K393 -> 5.3 | K14: =Timely!L393 -> 6 | L14: =Timely!M393 -> 5.7 | M14: =Timely!N393 -> 5.7 | N14: =Timely!O393 -> 6.7 | O14: =Timely!P393 -> 5.7 | P14: =Timely!Q393 -> 5.7 | Q14: =Timely!R393 -> 4.7 | R14: =Timely!S393 -> 5 | S14: =Timely!T393 -> 6 | T14: =Timely!U393 -> 5.3 | U14: =Timely!V393 -> 4.3 | V14: =Timely!W393 -> 5.7 | W14: =Timely!X393 -> 5.7 | AA14: =Timely!X398 -> Orange | AC14: =CONCATENATE("Best Large County this Q"," (",AA14,")") -> Best Large County this Q (Orange)
B15: Best Medium County - Average Days | C15: =Timely!D394 -> 7 | D15: =Timely!E394 -> 7 | E15: =Timely!F394 -> 6.3 | F15: =Timely!G394 -> 8 | G15: =Timely!H394 -> 7.3 | H15: =Timely!I394 -> 8.3 | I15: =Timely!J394 -> 8.7 | J15: =Timely!K394 -> 9.3 | K15: =Timely!L394 -> 10 | L15: =Timely!M394 -> 9.3 | M15: =Timely!N394 -> 9.3 | N15: =Timely!O394 -> 9 | O15: =Timely!P394 -> 8.7 | P15: =Timely!Q394 -> 8 | Q15: =Timely!R394 -> 7.3 | R15: =Timely!S394 -> 8.3 | S15: =Timely!T394 -> 8 | T15: =Timely!U394 -> 7.7 | U15: =Timely!V394 -> 7 | V15: =Timely!W394 -> 7.3 | W15: =Timely!X394 -> 7 | AA15: =Timely!X399 -> Ventura | AC15: =CONCATENATE("Best Medium County this Q"," (",AA15,")") -> Best Medium County this Q (Ventura)
B16: Best Small County - Average Days | C16: =Timely!D395 -> 4 | D16: =Timely!E395 -> 0.7 | E16: =Timely!F395 -> 3 | F16: =Timely!G395 -> 3.3 | G16: =Timely!H395 -> 3.7 | H16: =Timely!I395 -> 1.3 | I16: =Timely!J395 -> 2.3 | J16: =Timely!K395 -> 7 | K16: =Timely!L395 -> 7.3 | L16: =Timely!M395 -> 7.7 | M16: =Timely!N395 -> 5 | N16: =Timely!O395 -> 8 | O16: =Timely!P395 -> 6.7 | P16: =Timely!Q395 -> 5.7 | Q16: =Timely!R395 -> 5.7 | R16: =Timely!S395 -> 5.3 | S16: =Timely!T395 -> 5 | T16: =Timely!U395 -> 4.7 | U16: =Timely!V395 -> 6 | V16: =Timely!W395 -> 6.7 | W16: =Timely!X395 -> 7.7 | AA16: =Timely!X400 -> Inyo | AC16: =CONCATENATE("Best Small County this Q"," (",AA16,")") -> Best Small County this Q (Inyo)
B18: Column reference - DD split pivots | C18: 0 | D18: 7 | E18: 8 | F18: 9 | G18: 10 | H18: 11 | I18: 12 | J18: 13 | K18: 14 | L18: 15 | M18: 16 | N18: 17 | O18: 18 | P18: 19 | Q18: 20 | R18: 21 | S18: 22 | T18: 23 | U18: 24 | V18: 25 | W18: 26 | X18: 27 | Y18: 28
B19: Column reference - churn single pivots | C19: 0 | D19: 1 | E19: 2 | F19: 3 | G19: 4 | H19: 5 | I19: 6 | J19: 7 | K19: 8 | L19: 9 | M19: 10 | N19: 11 | O19: 12 | P19: 13 | Q19: 14 | R19: 15 | S19: 16 | T19: 17 | U19: 18 | V19: 19 | W19: 20 | X19: 21 | Y19: 22
B20: Column reference - ES Non-Comply | C20: 0 | D20: 7 | E20: 8 | F20: 9 | G20: 10 | H20: 11 | I20: 12 | J20: 13 | K20: 14 | L20: 15 | M20: 16 | N20: 17 | O20: 18 | P20: 19 | Q20: 20 | R20: 21 | S20: 22 | T20: 23 | U20: 24 | V20: 33 | W20: 34 | X20: 35 | Y20: 36
B21: Column reference - Unemployment | C21: 0 | D21: 0 | E21: 0 | F21: 0 | G21: 0 | H21: 1 | I21: 1 | J21: 1 | K21: 1 | L21: 2 | M21: 2 | N21: 2 | O21: 2 | P21: 3 | Q21: 3 | R21: 3 | S21: 3 | T21: 4 | U21: 4 | V21: 4 | W21: 4 | X21: 5 | Y21: 5
C23: Q4 | D23: Q1 | E23: Q2 | F23: Q3 | G23: Q4 | H23: Q1 | I23: Q2 | J23: Q3 | K23: Q4 | L23: Q1 | M23: Q2 | N23: Q3 | O23: Q4 | P23: Q1 | Q23: Q2 | R23: Q3 | S23: Q4 | T23: Q1 | U23: Q2 | V23: Q3 | W23: Q4 | X23: Q1 | Y23: Q2
B24: California | C24: 2011 | D24: 2012 | H24: 2013 | L24: 2014 | P24: 2015 | T24: 2016 | X24: 2017
B26: Persons Participating | C26: =Participation!B6 -> 3905210 | D26: =Participation!I6 -> 3956654 | E26: =Participation!J6 -> 3996483 | F26: =Participation!K6 -> 4074650 | G26: =Participation!L6 -> 4147355 | H26: =Participation!M6 -> 4194682 | I26: =Participation!N6 -> 4202850 | J26: =Participation!O6 -> 4221057 | K26: =Participation!P6 -> 4285622 | L26: =Participation!Q6 -> 4351103 | M26: =Participation!R6 -> 4393812 | N26: =Participation!S6 -> 4476030 | O26: =Participation!T6 -> 4477428 | P26: =Participation!U6 -> 4445534 | Q26: =Participation!V6 -> 4462799 | R26: =Participation!W6 -> 4480570 | S26: =Participation!X6 -> 4488298 | T26: =Participation!Y6 -> 4431693 | U26: =Participation!Z6 -> 4368561 | V26: =Participation!AA6 -> 4304439 | W26: =Participation!AB6 -> 4276281 | X26: =Participation!AC6 -> 4212342 | Y26: =Participation!AD6 -> 4117494
B27: % change over prior year (State) | G27: =(G26-C26)/C26 -> 0.06200562838 | H27: =(H26-D26)/D26 -> 0.06015891205 | I27: 0.05163715197 | J27: 0.03593118427 | K27: 0.03333859773 | L27: 0.03729031188 | M27: 0.04543631107 | N27: 0.0604050123 | O27: 0.04475569707 | P27: 0.02170277284 | Q27: 0.01570094487 | R27: 0.001014291683 | S27: =(S26-O26)/O26 -> 0.002427733065 | T27: =(T26-P26)/P26 -> -0.003113461735 | U27: =(U26-Q26)/Q26 -> -0.02111634425 | V27: =(V26-R26)/R26 -> -0.03930995387 | W27: =(W26-S26)/S26 -> -0.04723772798 | X27: =(X26-T26)/T26 -> -0.04949598269 | Y27: -0.05747132751
B28: % All Medi-Cal on CalFresh | C28: =DualEnroll!B6 -> 0.389 | D28: =DualEnroll!I6 -> 0.3910144318 | E28: =DualEnroll!J6 -> 0.397058402 | F28: =DualEnroll!K6 -> 0.3988034147 | G28: =DualEnroll!L6 -> 0.3999287562 | H28: =DualEnroll!M6 -> 0.3936771128 | I28: =DualEnroll!N6 -> 0.3669656724 | J28: =DualEnroll!O6 -> 0.3750763236 | K28: =DualEnroll!P6 -> 0.3723229729 | L28: =DualEnroll!Q6 -> 0.3609744255 | M28: =DualEnroll!R6 -> 0.3431673995 | N28: =DualEnroll!S6 -> 0.3374459146 | O28: =DualEnroll!T6 -> 0.3315379552 | P28: =DualEnroll!U6 -> 0.3263629155 | Q28: =DualEnroll!V6 -> 0.3207666104 | R28: =DualEnroll!W6 -> 0.3202729655 | S28: =DualEnroll!X6 -> 0.3142567742 | T28: =DualEnroll!Y6 -> 0.304822667 | U28: =DualEnroll!Z6 -> 0.2927312658 | V28: =DualEnroll!AA6 -> 0.2934967876 | W28: =DualEnroll!AB6 -> 0.2950204218 | X28: =DualEnroll!AC6 -> 0.2945457233
B29: % All CalFresh on Medi-Cal | C29: =DualEnroll!B76 -> 0.787 | D29: =DualEnroll!I76 -> 0.7803672702 | E29: =DualEnroll!J76 -> 0.7747820444 | F29: =DualEnroll!K76 -> 0.77013985 | G29: =DualEnroll!L76 -> 0.7660948281 | H29: =DualEnroll!M76 -> 0.770212785 | I29: =DualEnroll!N76 -> 0.7736150693 | J29: =DualEnroll!O76 -> 0.7702643618 | K29: =DualEnroll!P76 -> 0.7667233869 | L29: =DualEnroll!Q76 -> 0.8087030509 | M29: =DualEnroll!R76 -> 0.8729793758 | N29: =DualEnroll!S76 -> 0.8834100304 | O29: =DualEnroll!T76 -> 0.8907950903 | P29: =DualEnroll!U76 -> 0.9028190457 | Q29: =DualEnroll!V76 -> 0.9081863719 | R29: =DualEnroll!W76 -> 0.9086702197 | S29: =DualEnroll!X76 -> 0.9104408015 | T29: =DualEnroll!Y76 -> 0.9254163184 | U29: =DualEnroll!Z76 -> 0.9258572287 | V29: =DualEnroll!AA76 -> 0.918636676 | W29: =DualEnroll!AB76 -> 0.9204613163 | X29: =DualEnroll!AC76 -> 0.9265808468
B30: Avg Days to Approval | C30: =Timely!D330 -> 14.9 | D30: =Timely!E330 -> 14.4 | E30: =Timely!F330 -> 13.2 | F30: =Timely!G330 -> 14 | G30: =Timely!H330 -> 13.9 | H30: =Timely!I330 -> 13.3 | I30: =Timely!J330 -> 13.3 | J30: =Timely!K330 -> 14.9 | K30: =Timely!L330 -> 14.6 | L30: =Timely!M330 -> 14.1 | M30: =Timely!N330 -> 13.2 | N30: =Timely!O330 -> 13.7 | O30: =Timely!P330 -> 13.5 | P30: =Timely!Q330 -> 12.7 | Q30: =Timely!R330 -> 11.5 | R30: =Timely!S330 -> 12.1 | S30: =Timely!T330 -> 12.1 | T30: =Timely!U330 -> 11.4 | U30: =Timely!V330 -> 11.1 | V30: =Timely!W330 -> 12.5 | W30: =Timely!X330 -> 11.8
B31: % of All Approvals not timely (>30 days) | C31: =Timely!D70 -> 0.042 | D31: =Timely!K70 -> 0.0395 | E31: =Timely!L70 -> 0.0245 | F31: =Timely!M70 -> 0.0234 | G31: =Timely!N70 -> 0.0228 | H31: =Timely!O70 -> 0.0339 | I31: =Timely!P70 -> 0.0292 | J31: =Timely!Q70 -> 0.0272 | K31: =Timely!R70 -> 0.0355 | L31: =Timely!S70 -> 0.0399 | M31: =Timely!T70 -> 0.0412 | N31: =Timely!U70 -> 0.0297 | O31: =Timely!V70 -> 0.0326 | P31: =Timely!W70 -> 0.0318 | Q31: =Timely!X70 -> 0.0279 | R31: =Timely!Y70 -> 0.0316 | S31: =Timely!Z70 -> 0.0298 | T31: =Timely!AA70 -> 0.0253 | U31: =Timely!AB70 -> 0.0256 | V31: =Timely!AC70 -> 0.026 | W31: =Timely!AD70 -> 0.02279 | X31: =Timely!AE70 -> 0.02021 | Y31: =Timely!AF70 -> 0.01468
B32: % ES entitled not timely (> 3 days) | C32: =Timely!D198 -> 0.077 | D32: =Timely!K198 -> 0.0732 | E32: =Timely!L198 -> 0.0598 | F32: =Timely!M198 -> 0.0583 | G32: =Timely!N198 -> 0.0607 | H32: =Timely!O198 -> 0.0631 | I32: =Timely!P198 -> 0.057 | J32: =Timely!Q198 -> 0.0812 | K32: =Timely!R198 -> 0.0757 | L32: =Timely!S198 -> 0.0942 | M32: =Timely!T198 -> 0.0756 | N32: =Timely!U198 -> 0.0722 | O32: =Timely!V198 -> 0.0667 | P32: =Timely!W198 -> 0.0642 | Q32: =Timely!X198 -> 0.0531 | R32: =Timely!Y198 -> 0.0583 | S32: =Timely!Z198 -> 0.0635 | T32: =Timely!AA198 -> 0.0662 | U32: =Timely!AB198 -> 0.0749 | V32: =Timely!AK198 -> 0.0929 | W32: =Timely!AL198 -> 0.07486 | X32: =Timely!AM198 -> 0.06787 | Y32: =Timely!AN198 -> 0.05964
B33: % of Recerts w/o CF in next month | C33: =Churn!B5 -> 0.2185732271 | D33: =Churn!C5 -> 0.1790267473 | E33: =Churn!D5 -> 0.181392282 | F33: =Churn!E5 -> 0.187106759 | G33: =Churn!F5 -> 0.1798133402 | H33: =Churn!G5 -> 0.2046964013 | I33: =Churn!H5 -> 0.2036459206 | J33: =Churn!I5 -> 0.209233285 | K33: =Churn!J5 -> 0.2200312474 | L33: =Churn!K5 -> 0.2193337845 | M33: =Churn!L5 -> 0.2265365142 | N33: =Churn!M5 -> 0.2263320693 | O33: =Churn!N5 -> 0.2549248297 | P33: =Churn!O5 -> 0.2472258206 | Q33: =Churn!P5 -> 0.2546000826 | R33: =Churn!Q5 -> 0.2637444279 | S33: =Churn!R5 -> 0.2883930972 | T33: =Churn!S5 -> 0.3095019457 | U33: =Churn!T5 -> 0.3060542083 | V33: =Churn!U5 -> 0.2904313958 | W33: =Churn!V5 -> 0.3333245416
B34: % of Unsuccessful Recerts that Reapply within 90 Days | C34: =Churn!B70 -> 0.5705469362 | D34: =Churn!C70 -> 0.7016695385 | E34: =Churn!D70 -> 0.7034651705 | F34: =Churn!E70 -> 0.7014742737 | G34: =Churn!F70 -> 0.7175585869 | H34: =Churn!G70 -> 0.5236892915 | I34: =Churn!H70 -> 0.5371699391 | J34: =Churn!I70 -> 0.5496555152 | K34: =Churn!J70 -> 0.6609425219 | L34: =Churn!K70 -> 0.66452857 | M34: =Churn!L70 -> 0.6418631397 | N34: =Churn!M70 -> 0.6783687331 | O34: =Churn!N70 -> 0.6057260822 | P34: =Churn!O70 -> 0.5848206654 | Q34: =Churn!P70 -> 0.5677031093 | R34: =Churn!Q70 -> 0.5402430414 | S34: =Churn!R70 -> 0.6305342467 | T34: =Churn!S70 -> 0.4759850325 | U34: =Churn!T70 -> 0.4693013726 | V34: =Churn!U70 -> 0.4778687889 | W34: =Churn!V70 -> 0.5605719776
B35: Share that reapply within 90 days (est.) | C35: =C34*C33 -> 0.1247062851 | D35: 0.1256176152 | E35: 0.1276031526 | F35: 0.1312505779 | G35: 0.1290266063 | H35: 0.1071973134 | I35: 0.1093924668 | J35: 0.1150062291 | K35: 0.1454280076 | L35: 0.1457535661 | M35: 0.1454054383 | N35: 0.1535365992 | O35: 0.1544146183 | P35: 0.1445827689 | Q35: 0.1445372585 | R35: 0.1424860919 | S35: 0.1818417243 | T35: 0.1473182937 | U35: 0.1436316601 | V35: 0.1387880994 | W35: 0.1868523975
B36: % of Apps on CF in previous 90 days | C36: =Churn!B198 -> 0.1921160833 | D36: =Churn!C198 -> 0.1947388182 | E36: =Churn!D198 -> 0.1830912179 | F36: =Churn!E198 -> 0.1671994446 | G36: =Churn!F198 -> 0.18311184 | H36: =Churn!G198 -> 0.2220569342 | I36: =Churn!H198 -> 0.2176411531 | J36: =Churn!I198 -> 0.2055256978 | K36: =Churn!J198 -> 0.2241074577 | L36: =Churn!K198 -> 0.2041435009 | M36: =Churn!L198 -> 0.2004283695 | N36: =Churn!M198 -> 0.2023835198 | O36: =Churn!N198 -> 0.2341057078 | P36: =Churn!O198 -> 0.2151553167 | Q36: =Churn!P198 -> 0.2121607052 | R36: =Churn!Q198 -> 0.2102292566 | S36: =Churn!R198 -> 0.2492152654 | T36: =Churn!S198 -> 0.1979727624 | U36: =Churn!T198 -> 0.2426801702 | V36: =Churn!U198 -> 0.231253494 | W36: =Churn!V198 -> 0.2560992388
B37: % of Apps on CF in previous 30 days | C37: =Churn!B134 -> 0.09981073379 | D37: =Churn!C134 -> 0.1004822029 | E37: =Churn!D134 -> 0.09321223169 | F37: =Churn!E134 -> 0.08171194821 | G37: =Churn!F134 -> 0.08881438782 | H37: =Churn!G134 -> 0.1352827757 | I37: =Churn!H134 -> 0.1300628697 | J37: =Churn!I134 -> 0.1203081173 | K37: =Churn!J134 -> 0.1394440936 | L37: =Churn!K134 -> 0.1287009586 | M37: =Churn!L134 -> 0.1195847138 | N37: =Churn!M134 -> 0.1255389051 | O37: =Churn!N134 -> 0.1423959935 | P37: =Churn!O134 -> 0.1300503585 | Q37: =Churn!P134 -> 0.127706987 | R37: =Churn!Q134 -> 0.1280179352 | S37: =Churn!R134 -> 0.1517437405 | T37: =Churn!S134 -> 0.1166821718 | U37: =Churn!T134 -> 0.1510637355 | V37: =Churn!U134 -> 0.1415948402 | W37: =Churn!V134 -> 0.1524916831
B38: Unemployment Rate | C38: =Unemp!B6 -> 0.124 | D38: =Unemp!$E6 -> 0.105 | E38: =Unemp!$E6 -> 0.105 | F38: =Unemp!$E6 -> 0.105 | G38: =Unemp!$E6 -> 0.105 | H38: =Unemp!$F6 -> 0.089 | I38: =Unemp!$F6 -> 0.089 | J38: =Unemp!$F6 -> 0.089 | K38: =Unemp!$F6 -> 0.089 | L38: =Unemp!$G6 -> 0.075 | M38: =Unemp!$G6 -> 0.075 | N38: =Unemp!$G6 -> 0.075 | O38: =Unemp!$G6 -> 0.075 | P38: =Unemp!$H6 -> 0.062 | Q38: =Unemp!$H6 -> 0.062 | R38: =Unemp!$H6 -> 0.062 | S38: =Unemp!$H6 -> 0.062 | T38: =Unemp!$I6 -> 0.054 | U38: =Unemp!$I6 -> 0.054 | V38: =Unemp!$I6 -> 0.054 | W38: =Unemp!$I6 -> 0.054
C39: 2013 | D39: 2014 | E39: 2015
A40: State | B40: PAI | C40: ='Comp PAI 2013-14'!D2 -> 0.5801772274 | D40: ='Comp PAI 2013-14'!B2 -> 0.5827779192
A41: State | B41: PRI (State) | C41: =PRI_both_methods!K3 -> 0.59126 | D41: =PRI_both_methods!L3 -> 0.634 | E41: =PRI_both_methods!M3 -> 0.6727767723
A42: State, old method | B42: New method (State) | E42: =PRI_both_methods!N3 -> 0.69733 | AA42: Large counties
A43: State | B43: PRI with MOE 2015 | E43: NA | AA43: Alameda
AA44: Fresno
AA45: Kern
C46: Q4 | D46: Q1 | E46: Q2 | F46: Q3 | G46: Q4 | H46: Q1 | I46: Q2 | J46: Q3 | K46: Q4 | L46: Q1 | M46: Q2 | N46: Q3 | O46: Q4 | P46: Q1 | Q46: Q2 | R46: Q3 | S46: Q4 | T46: Q1 | U46: Q2 | V46: Q3 | W46: Q4 | X46: Q1 | Y46: Q2 | AA46: Los Angeles
B47: =LrgCtyDashboard!L4 -> Alameda | C47: 2011 | D47: 2012 | H47: 2013 | L47: 2014 | P47: 2015 | T47: 2016 | X47: 2017 | AA47: Orange
AA48: Riverside
A49: Persons Participating | B49: =CONCATENATE(B$26," (", B47,")") -> Persons Participating (Alameda) | C49: =VLOOKUP($B$47,Participation!$A$5:$F$64,2+LgMedSmCountyData!C$18,FALSE) -> 120874 | D49: =VLOOKUP($B$47,Participation!$5:$64,2+LgMedSmCountyData!D18,FALSE) -> 122112 | E49: =VLOOKUP($B$47,Participation!$5:$64,2+LgMedSmCountyData!E18,FALSE) -> 123210 | F49: =VLOOKUP($B$47,Participation!$5:$64,2+LgMedSmCountyData!F18,FALSE) -> 124622 | G49: =VLOOKUP($B$47,Participation!$5:$64,2+LgMedSmCountyData!G18,FALSE) -> 126571 | H49: =VLOOKUP($B$47,Participation!$5:$64,2+LgMedSmCountyData!H18,FALSE) -> 126482 | I49: =VLOOKUP($B$47,Participation!$5:$64,2+LgMedSmCountyData!I18,FALSE) -> 126214 | J49: =VLOOKUP($B$47,Participation!$5:$64,2+LgMedSmCountyData!J18,FALSE) -> 125835 | K49: =VLOOKUP($B$47,Participation!$5:$64,2+LgMedSmCountyData!K18,FALSE) -> 129167 | L49: =VLOOKUP($B$47,Participation!$5:$64,2+LgMedSmCountyData!L18,FALSE) -> 128065 | M49: =VLOOKUP($B$47,Participation!$5:$64,2+LgMedSmCountyData!M18,FALSE) -> 127457 | N49: =VLOOKUP($B$47,Participation!$5:$64,2+LgMedSmCountyData!N18,FALSE) -> 125434 | O49: =VLOOKUP($B$47,Participation!$5:$64,2+LgMedSmCountyData!O18,FALSE) -> 123955 | P49: =VLOOKUP($B$47,Participation!$5:$64,2+LgMedSmCountyData!P18,FALSE) -> 121684 | Q49: =VLOOKUP($B$47,Participation!$5:$64,2+LgMedSmCountyData!Q18,FALSE) -> 119790 | R49: =VLOOKUP($B$47,Participation!$5:$64,2+LgMedSmCountyData!R18,FALSE) -> 121577 | S49: =VLOOKUP($B$47,Participation!$5:$64,2+LgMedSmCountyData!S18,FALSE) -> 121539 | T49: =VLOOKUP($B$47,Participation!$5:$64,2+LgMedSmCountyData!T18,FALSE) -> 118228 | U49: =VLOOKUP($B$47,Participation!$5:$64,2+LgMedSmCountyData!U18,FALSE) -> 117298 | V49: =VLOOKUP($B$47,Participation!$5:$64,2+LgMedSmCountyData!V18,FALSE) -> 115631 | W49: =VLOOKUP($B$47,Participation!$5:$64,2+LgMedSmCountyData!W18,FALSE) -> 114855 | X49: =VLOOKUP($B$47,Participation!$5:$64,2+LgMedSmCountyData!X18,FALSE) -> 111820 | Y49: =VLOOKUP($B$47,Participation!$5:$64,2+LgMedSmCountyData!Y18,FALSE) -> 108049 | AA49: Sacramento
A50: Persons Participating, % change over prior year | B50: =CONCATENATE("% change over prior year", " (",B47,")") -> % change over prior year (Alameda) | G50: =(G49-C49)/C49 -> 0.04713172394 | H50: =(H49-D49)/D49 -> 0.03578681866 | I50: 0.02438113789 | J50: 0.009733433904 | K50: 0.02051022746 | L50: 0.01251561487 | M50: 0.009848352798 | N50: -0.003186712759 | O50: -0.04035086361 | P50: -0.0498262601 | Q50: -0.06015362044 | R50: -0.03074923864 | S50: =(S49-O49)/O49 -> -0.01949094429 | T50: =(T49-P49)/P49 -> -0.02840143322 | U50: =(U49-Q49)/Q49 -> -0.02080307204 | V50: =(V49-R49)/R49 -> -0.04890727687 | W50: =(W49-S49)/S49 -> -0.05499469306 | X50: =(X49-T49)/T49 -> -0.05420035863 | Y50: -0.07885044928 | AA50: San Bernardino
A51: Persons Participating, % change over prior quarter | B51: =CONCATENATE("% change over prior quarter", " (",B47,")") -> % change over prior quarter (Alameda) | D51: =(D49-C49)/C49 -> 0.01024207025 | E51: =(E49-D49)/D49 -> 0.008991745283 | F51: 0.01146010876 | G51: 0.01563929322 | H51: -0.0007031626518 | I51: -0.002118878576 | J51: -0.003002836452 | K51: 0.02647911948 | L51: =(L49-K49)/K49 -> -0.008531590886 | M51: -0.004747589115 | N51: -0.01587201958 | O51: -0.01179106143 | P51: -0.01832116494 | Q51: -0.01556490582 | R51: 0.01491777277 | S51: =(S49-R49)/R49 -> -0.0003125591189 | T51: =(T49-S49)/S49 -> -0.02724228437 | U51: =(U49-T49)/T49 -> -0.007866156917 | V51: =(V49-U49)/U49 -> -0.01421166601 | W51: =(W49-V49)/V49 -> -0.006711003105 | X51: =(X49-W49)/W49 -> -0.02642462235 | Y51: -0.03372384189 | AA51: San Diego
A52: % Medi-Cal on CalFresh | B52: =CONCATENATE(B$28," (",B47,")") -> % All Medi-Cal on CalFresh (Alameda) | C52: =VLOOKUP(LGCountySelect,DualEnroll!$6:$64,2+LgMedSmCountyData!C$18, FALSE) -> 0.361 | D52: =VLOOKUP(LGCountySelect,DualEnroll!$6:$64,2+LgMedSmCountyData!D$18, FALSE) -> 0.3637140096 | E52: =VLOOKUP(LGCountySelect,DualEnroll!$6:$64,2+LgMedSmCountyData!E$18, FALSE) -> 0.3596407997 | F52: =VLOOKUP(LGCountySelect,DualEnroll!$6:$64,2+LgMedSmCountyData!F$18, FALSE) -> 0.3666034876 | G52: =VLOOKUP(LGCountySelect,DualEnroll!$6:$64,2+LgMedSmCountyData!G$18, FALSE) -> 0.3660389025 | H52: =VLOOKUP(LGCountySelect,DualEnroll!$6:$64,2+LgMedSmCountyData!H$18, FALSE) -> 0.3575820296 | I52: =VLOOKUP(LGCountySelect,DualEnroll!$6:$64,2+LgMedSmCountyData!I$18, FALSE) -> 0.3429589956 | J52: =VLOOKUP(LGCountySelect,DualEnroll!$6:$64,2+LgMedSmCountyData!J$18, FALSE) -> 0.3437384841 | K52: =VLOOKUP(LGCountySelect,DualEnroll!$6:$64,2+LgMedSmCountyData!K$18, FALSE) -> 0.3463942732 | L52: =VLOOKUP(LGCountySelect,DualEnroll!$6:$64,2+LgMedSmCountyData!L$18, FALSE) -> 0.317502877 | M52: =VLOOKUP(LGCountySelect,DualEnroll!$6:$64,2+LgMedSmCountyData!M$18, FALSE) -> 0.2962062938 | N52: =VLOOKUP(LGCountySelect,DualEnroll!$6:$64,2+LgMedSmCountyData!N$18, FALSE) -> 0.2930184147 | O52: =VLOOKUP(LGCountySelect,DualEnroll!$6:$64,2+LgMedSmCountyData!O$18, FALSE) -> 0.2839947051 | P52: =VLOOKUP(LGCountySelect,DualEnroll!$6:$64,2+LgMedSmCountyData!P$18, FALSE) -> 0.2708231245 | Q52: =VLOOKUP(LGCountySelect,DualEnroll!$6:$64,2+LgMedSmCountyData!Q$18, FALSE) -> 0.2639655002 | R52: =VLOOKUP(LGCountySelect,DualEnroll!$6:$64,2+LgMedSmCountyData!R$18, FALSE) -> 0.2666312749 | S52: =VLOOKUP(LGCountySelect,DualEnroll!$6:$64,2+LgMedSmCountyData!S$18, FALSE) -> 0.2590378478 | T52: =VLOOKUP(LGCountySelect,DualEnroll!$6:$64,2+LgMedSmCountyData!T$18, FALSE) -> 0.2455307086 | U52: =VLOOKUP(LGCountySelect,DualEnroll!$6:$64,2+LgMedSmCountyData!U$18, FALSE) -> 0.2455275366 | V52: =VLOOKUP(LGCountySelect,DualEnroll!$6:$64,2+LgMedSmCountyData!V$18, FALSE) -> 0.2452842472 | W52: =VLOOKUP(LGCountySelect,DualEnroll!$6:$64,2+LgMedSmCountyData!W$18, FALSE) -> 0.2418948015 | X52: =VLOOKUP(LGCountySelect,DualEnroll!$6:$64,2+LgMedSmCountyData!X$18, FALSE) -> 0.2373640707 | AA52: San Joaquin
A53: % CalFresh on Medi-Cal | B53: =CONCATENATE(B$29," (",B47,")") -> % All CalFresh on Medi-Cal (Alameda) | C53: =VLOOKUP(LGCountySelect,DualEnroll!$76:$134,2+LgMedSmCountyData!C18,FALSE) -> 0.773 | D53: =VLOOKUP(LGCountySelect,DualEnroll!$76:$134,2+LgMedSmCountyData!D18,FALSE) -> 0.7650702094 | E53: =VLOOKUP(LGCountySelect,DualEnroll!$76:$134,2+LgMedSmCountyData!E18,FALSE) -> 0.7586795765 | F53: =VLOOKUP(LGCountySelect,DualEnroll!$76:$134,2+LgMedSmCountyData!F18,FALSE) -> 0.7559024285 | G53: =VLOOKUP(LGCountySelect,DualEnroll!$76:$134,2+LgMedSmCountyData!G18,FALSE) -> 0.7560840495 | H53: =VLOOKUP(LGCountySelect,DualEnroll!$76:$134,2+LgMedSmCountyData!H18,FALSE) -> 0.7599080726 | I53: =VLOOKUP(LGCountySelect,DualEnroll!$76:$134,2+LgMedSmCountyData!I18,FALSE) -> 0.7614396244 | J53: =VLOOKUP(LGCountySelect,DualEnroll!$76:$134,2+LgMedSmCountyData!J18,FALSE) -> 0.7602903521 | K53: =VLOOKUP(LGCountySelect,DualEnroll!$76:$134,2+LgMedSmCountyData!K18,FALSE) -> 0.7559709163 | L53: =VLOOKUP(LGCountySelect,DualEnroll!$76:$134,2+LgMedSmCountyData!L18,FALSE) -> 0.809170482 | M53: =VLOOKUP(LGCountySelect,DualEnroll!$76:$134,2+LgMedSmCountyData!M18,FALSE) -> 0.8629458439 | N53: =VLOOKUP(LGCountySelect,DualEnroll!$76:$134,2+LgMedSmCountyData!N18,FALSE) -> 0.8847539938 | O53: =VLOOKUP(LGCountySelect,DualEnroll!$76:$134,2+LgMedSmCountyData!O18,FALSE) -> 0.8939627159 | P53: =VLOOKUP(LGCountySelect,DualEnroll!$76:$134,2+LgMedSmCountyData!P18,FALSE) -> 0.9089591095 | Q53: =VLOOKUP(LGCountySelect,DualEnroll!$76:$134,2+LgMedSmCountyData!Q18,FALSE) -> 0.9117551209 | R53: =VLOOKUP(LGCountySelect,DualEnroll!$76:$134,2+LgMedSmCountyData!R18,FALSE) -> 0.9071993244 | S53: =VLOOKUP(LGCountySelect,DualEnroll!$76:$134,2+LgMedSmCountyData!S18,FALSE) -> 0.9112566341 | T53: =VLOOKUP(LGCountySelect,DualEnroll!$76:$134,2+LgMedSmCountyData!T18,FALSE) -> 0.925617996 | U53: =VLOOKUP(LGCountySelect,DualEnroll!$76:$134,2+LgMedSmCountyData!U18,FALSE) -> 0.9257410089 | V53: =VLOOKUP(LGCountySelect,DualEnroll!$76:$134,2+LgMedSmCountyData!V18,FALSE) -> 0.9191840168 | W53: =VLOOKUP(LGCountySelect,DualEnroll!$76:$134,2+LgMedSmCountyData!W18,FALSE) -> 0.9257544158 | X53: =VLOOKUP(LGCountySelect,DualEnroll!$76:$134,2+LgMedSmCountyData!X18,FALSE) -> 0.9260743787 | AA53: Tulare
A54: Avg Days to Approval | B54: =CONCATENATE(B$30," (",$B$47,")") -> Avg Days to Approval (Alameda) | C54: =VLOOKUP(LGCountySelect,Timely!$C$262:$BU$321,2+LgMedSmCountyData!C$19,FALSE) -> 13.7 | D54: =VLOOKUP(LGCountySelect,Timely!$C$262:$BU$321,2+LgMedSmCountyData!D$19,FALSE) -> 13.7 | E54: =VLOOKUP(LGCountySelect,Timely!$C$262:$BU$321,2+LgMedSmCountyData!E$19,FALSE) -> 14 | F54: =VLOOKUP(LGCountySelect,Timely!$C$262:$BU$321,2+LgMedSmCountyData!F$19,FALSE) -> 14 | G54: =VLOOKUP(LGCountySelect,Timely!$C$262:$BU$321,2+LgMedSmCountyData!G$19,FALSE) -> 14.3 | H54: =VLOOKUP(LGCountySelect,Timely!$C$262:$BU$321,2+LgMedSmCountyData!H$19,FALSE) -> 14.7 | I54: =VLOOKUP(LGCountySelect,Timely!$C$262:$BU$321,2+LgMedSmCountyData!I$19,FALSE) -> 14 | J54: =VLOOKUP(LGCountySelect,Timely!$C$262:$BU$321,2+LgMedSmCountyData!J$19,FALSE) -> 13.7 | K54: =VLOOKUP(LGCountySelect,Timely!$C$262:$BU$321,2+LgMedSmCountyData!K$19,FALSE) -> 16.3 | L54: =VLOOKUP(LGCountySelect,Timely!$C$262:$BU$321,2+LgMedSmCountyData!L$19,FALSE) -> 15.3 | M54: =VLOOKUP(LGCountySelect,Timely!$C$262:$BU$321,2+LgMedSmCountyData!M$19,FALSE) -> 15.3 | N54: =VLOOKUP(LGCountySelect,Timely!$C$262:$BU$321,2+LgMedSmCountyData!N$19,FALSE) -> 17.3 | O54: =VLOOKUP(LGCountySelect,Timely!$C$262:$BU$321,2+LgMedSmCountyData!O$19,FALSE) -> 16.7 | P54: =VLOOKUP(LGCountySelect,Timely!$C$262:$BU$321,2+LgMedSmCountyData!P$19,FALSE) -> 20 | Q54: =VLOOKUP(LGCountySelect,Timely!$C$262:$BU$321,2+LgMedSmCountyData!Q$19,FALSE) -> 17.3 | R54: =VLOOKUP(LGCountySelect,Timely!$C$262:$BU$321,2+LgMedSmCountyData!R$19,FALSE) -> 16 | S54: =VLOOKUP(LGCountySelect,Timely!$C$262:$BU$321,2+LgMedSmCountyData!S$19,FALSE) -> 13.7 | T54: =VLOOKUP(LGCountySelect,Timely!$C$262:$BU$321,2+LgMedSmCountyData!T$19,FALSE) -> 10.3 | U54: =VLOOKUP(LGCountySelect,Timely!$C$262:$BU$321,2+LgMedSmCountyData!U$19,FALSE) -> 8.3 | V54: =VLOOKUP(LGCountySelect,Timely!$C$262:$BU$321,2+LgMedSmCountyData!V$19,FALSE) -> 7 | W54: =VLOOKUP(LGCountySelect,Timely!$C$262:$BU$321,2+LgMedSmCountyData!W$19,FALSE) -> 6
A55: % of All Approvals not timely (>30 days) | B55: =CONCATENATE(A55," (",$B$47,")") -> % of All Approvals not timely (>30 days) (Alameda) | C55: =VLOOKUP(LGCountySelect,Timely!$C$70:$BX$128,2+LgMedSmCountyData!C$18, FALSE) -> 0.156 | D55: =VLOOKUP(LGCountySelect,Timely!$C$70:$BX$128,2+LgMedSmCountyData!D$18, FALSE) -> 0.0907 | E55: =VLOOKUP(LGCountySelect,Timely!$C$70:$BX$128,2+LgMedSmCountyData!E$18, FALSE) -> 0.0846 | F55: =VLOOKUP(LGCountySelect,Timely!$C$70:$BX$128,2+LgMedSmCountyData!F$18, FALSE) -> 0.0891 | G55: =VLOOKUP(LGCountySelect,Timely!$C$70:$BX$128,2+LgMedSmCountyData!G$18, FALSE) -> 0.0735 | H55: =VLOOKUP(LGCountySelect,Timely!$C$70:$BX$128,2+LgMedSmCountyData!H$18, FALSE) -> 0.0999 | I55: =VLOOKUP(LGCountySelect,Timely!$C$70:$BX$128,2+LgMedSmCountyData!I$18, FALSE) -> 0.0859 | J55: =VLOOKUP(LGCountySelect,Timely!$C$70:$BX$128,2+LgMedSmCountyData!J$18, FALSE) -> 0.113 | K55: =VLOOKUP(LGCountySelect,Timely!$C$70:$BX$128,2+LgMedSmCountyData!K$18, FALSE) -> 0.0943 | L55: =VLOOKUP(LGCountySelect,Timely!$C$70:$BX$128,2+LgMedSmCountyData!L$18, FALSE) -> 0.1554 | M55: =VLOOKUP(LGCountySelect,Timely!$C$70:$BX$128,2+LgMedSmCountyData!M$18, FALSE) -> 0.1422 | N55: =VLOOKUP(LGCountySelect,Timely!$C$70:$BX$128,2+LgMedSmCountyData!N$18, FALSE) -> 0.1157 | O55: =VLOOKUP(LGCountySelect,Timely!$C$70:$BX$128,2+LgMedSmCountyData!O$18, FALSE) -> 0.1363 | P55: =VLOOKUP(LGCountySelect,Timely!$C$70:$BX$128,2+LgMedSmCountyData!P$18, FALSE) -> 0.1476 | Q55: =VLOOKUP(LGCountySelect,Timely!$C$70:$BX$128,2+LgMedSmCountyData!Q$18, FALSE) -> 0.1649 | R55: =VLOOKUP(LGCountySelect,Timely!$C$70:$BX$128,2+LgMedSmCountyData!R$18, FALSE) -> 0.2154 | S55: =VLOOKUP(LGCountySelect,Timely!$C$70:$BX$128,2+LgMedSmCountyData!S$18, FALSE) -> 0.1439 | T55: =VLOOKUP(LGCountySelect,Timely!$C$70:$BX$128,2+LgMedSmCountyData!T$18, FALSE) -> 0.0789 | U55: =VLOOKUP(LGCountySelect,Timely!$C$70:$BX$128,2+LgMedSmCountyData!U$18, FALSE) -> 0.0404 | V55: =VLOOKUP(LGCountySelect,Timely!$C$70:$BX$128,2+LgMedSmCountyData!V$18, FALSE) -> 0.0115 | W55: =VLOOKUP(LGCountySelect,Timely!$C$70:$BX$128,2+LgMedSmCountyData!W$18, FALSE) -> 0.00684 | X55: =VLOOKUP(LGCountySelect,Timely!$C$70:$BX$128,2+LgMedSmCountyData!X$18, FALSE) -> 0.00549 | Y55: =VLOOKUP(LGCountySelect,Timely!$C$70:$BX$128,2+LgMedSmCountyData!Y$18, FALSE) -> 0
A56: % ES entitled not timely (> 3 days) | B56: =CONCATENATE(A56," (",$B$47,")") -> % ES entitled not timely (> 3 days) (Alameda) | C56: =VLOOKUP(LGCountySelect,Timely!$C$198:$BX$256,2+LgMedSmCountyData!C$20,FALSE) -> 0.129 | D56: =VLOOKUP(LGCountySelect,Timely!$C$198:$BX$256,2+LgMedSmCountyData!D$20,FALSE) -> 0.1304 | E56: =VLOOKUP(LGCountySelect,Timely!$C$198:$BX$256,2+LgMedSmCountyData!E$20,FALSE) -> 0.1271 | F56: =VLOOKUP(LGCountySelect,Timely!$C$198:$BX$256,2+LgMedSmCountyData!F$20,FALSE) -> 0.1229 | G56: =VLOOKUP(LGCountySelect,Timely!$C$198:$BX$256,2+LgMedSmCountyData!G$20,FALSE) -> 0.1454 | H56: =VLOOKUP(LGCountySelect,Timely!$C$198:$BX$256,2+LgMedSmCountyData!H$20,FALSE) -> 0.1338 | I56: =VLOOKUP(LGCountySelect,Timely!$C$198:$BX$256,2+LgMedSmCountyData!I$20,FALSE) -> 0.1377 | J56: =VLOOKUP(LGCountySelect,Timely!$C$198:$BX$256,2+LgMedSmCountyData!J$20,FALSE) -> 0.1286 | K56: =VLOOKUP(LGCountySelect,Timely!$C$198:$BX$256,2+LgMedSmCountyData!K$20,FALSE) -> 0.1351 | L56: =VLOOKUP(LGCountySelect,Timely!$C$198:$BX$256,2+LgMedSmCountyData!L$20,FALSE) -> 0.1227 | M56: =VLOOKUP(LGCountySelect,Timely!$C$198:$BX$256,2+LgMedSmCountyData!M$20,FALSE) -> 0.1014 | N56: =VLOOKUP(LGCountySelect,Timely!$C$198:$BX$256,2+LgMedSmCountyData!N$20,FALSE) -> 0.1305 | O56: =VLOOKUP(LGCountySelect,Timely!$C$198:$BX$256,2+LgMedSmCountyData!O$20,FALSE) -> 0.1323 | P56: =VLOOKUP(LGCountySelect,Timely!$C$198:$BX$256,2+LgMedSmCountyData!P$20,FALSE) -> 0.1461 | Q56: =VLOOKUP(LGCountySelect,Timely!$C$198:$BX$256,2+LgMedSmCountyData!Q$20,FALSE) -> 0.1044 | R56: =VLOOKUP(LGCountySelect,Timely!$C$198:$BX$256,2+LgMedSmCountyData!R$20,FALSE) -> 0.1156 | S56: =VLOOKUP(LGCountySelect,Timely!$C$198:$BX$256,2+LgMedSmCountyData!S$20,FALSE) -> 0.1701 | T56: =VLOOKUP(LGCountySelect,Timely!$C$198:$BX$256,2+LgMedSmCountyData!T$20,FALSE) -> 0.1023 | U56: =VLOOKUP(LGCountySelect,Timely!$C$198:$BX$256,2+LgMedSmCountyData!U$20,FALSE) -> 0.0677 | V56: =VLOOKUP(LGCountySelect,Timely!$C$198:$BX$256,2+LgMedSmCountyData!V$20,FALSE) -> 0.0414 | W56: =VLOOKUP(LGCountySelect,Timely!$C$198:$BX$256,2+LgMedSmCountyData!W$20,FALSE) -> 0.0119 | X56: =VLOOKUP(LGCountySelect,Timely!$C$198:$BX$256,2+LgMedSmCountyData!X$20,FALSE) -> 0.01182 | Y56: =VLOOKUP(LGCountySelect,Timely!$C$198:$BX$256,2+LgMedSmCountyData!Y$20,FALSE) -> 0
A57: % of Recerts w/o CF in next month | B57: =CONCATENATE(A57," (",$B$47,")") -> % of Recerts w/o CF in next month (Alameda) | C57: =VLOOKUP(LGCountySelect,Churn!$5:$63,2+LgMedSmCountyData!C$19,FALSE) -> 0.1565323565 | D57: =VLOOKUP(LGCountySelect,Churn!$5:$63,2+LgMedSmCountyData!D$19,FALSE) -> 0.1569365976 | E57: =VLOOKUP(LGCountySelect,Churn!$5:$63,2+LgMedSmCountyData!E$19,FALSE) -> 0.163451087 | F57: =VLOOKUP(LGCountySelect,Churn!$5:$63,2+LgMedSmCountyData!F$19,FALSE) -> 0.166831012 | G57: =VLOOKUP(LGCountySelect,Churn!$5:$63,2+LgMedSmCountyData!G$19,FALSE) -> 0.1785852838 | H57: =VLOOKUP(LGCountySelect,Churn!$5:$63,2+LgMedSmCountyData!H$19,FALSE) -> 0.1658999764 | I57: =VLOOKUP(LGCountySelect,Churn!$5:$63,2+LgMedSmCountyData!I$19,FALSE) -> 0.176127321 | J57: =VLOOKUP(LGCountySelect,Churn!$5:$63,2+LgMedSmCountyData!J$19,FALSE) -> 0.1804030409 | K57: =VLOOKUP(LGCountySelect,Churn!$5:$63,2+LgMedSmCountyData!K$19,FALSE) -> 0.2153769718 | L57: =VLOOKUP(LGCountySelect,Churn!$5:$63,2+LgMedSmCountyData!L$19,FALSE) -> 0.215325492 | M57: =VLOOKUP(LGCountySelect,Churn!$5:$63,2+LgMedSmCountyData!M$19,FALSE) -> 0.215325492 | N57: =VLOOKUP(LGCountySelect,Churn!$5:$63,2+LgMedSmCountyData!N$19,FALSE) -> 0.2592746483 | O57: =VLOOKUP(LGCountySelect,Churn!$5:$63,2+LgMedSmCountyData!O$19,FALSE) -> 0.2818103619 | P57: =VLOOKUP(LGCountySelect,Churn!$5:$63,2+LgMedSmCountyData!P$19,FALSE) -> 0.2616800096 | Q57: =VLOOKUP(LGCountySelect,Churn!$5:$63,2+LgMedSmCountyData!Q$19,FALSE) -> 0.2448155293 | R57: =VLOOKUP(LGCountySelect,Churn!$5:$63,2+LgMedSmCountyData!R$19,FALSE) -> 0.2675993069 | S57: =VLOOKUP(LGCountySelect,Churn!$5:$63,2+LgMedSmCountyData!S$19,FALSE) -> 0.2780435938 | T57: =VLOOKUP(LGCountySelect,Churn!$5:$63,2+LgMedSmCountyData!T$19,FALSE) -> 0.2604546025 | U57: =VLOOKUP(LGCountySelect,Churn!$5:$63,2+LgMedSmCountyData!U$19,FALSE) -> 0.2628823191 | V57: =VLOOKUP(LGCountySelect,Churn!$5:$63,2+LgMedSmCountyData!V$19,FALSE) -> 0.2748086432 | W57: =VLOOKUP(LGCountySelect,Churn!$5:$63,2+LgMedSmCountyData!W$19,FALSE) -> 0.2734542762
A58: % of Unsuccessful Recerts that Reapply within 90 Days | B58: =CONCATENATE(A58," (",$B$47,")") -> % of Unsuccessful Recerts that Reapply within 90 Days (Alameda) | C58: =VLOOKUP(LGCountySelect,Churn!$70:$128,2+LgMedSmCountyData!C$19, FALSE) -> 0.4981799272 | D58: =VLOOKUP(LGCountySelect,Churn!$70:$128,2+LgMedSmCountyData!D$19, FALSE) -> 0.4871111111 | E58: =VLOOKUP(LGCountySelect,Churn!$70:$128,2+LgMedSmCountyData!E$19, FALSE) -> 0.4808811305 | F58: =VLOOKUP(LGCountySelect,Churn!$70:$128,2+LgMedSmCountyData!F$19, FALSE) -> 0.4916882157 | G58: =VLOOKUP(LGCountySelect,Churn!$70:$128,2+LgMedSmCountyData!G$19, FALSE) -> 0.5018102824 | H58: =VLOOKUP(LGCountySelect,Churn!$70:$128,2+LgMedSmCountyData!H$19, FALSE) -> 0.5197298258 | I58: =VLOOKUP(LGCountySelect,Churn!$70:$128,2+LgMedSmCountyData!I$19, FALSE) -> 0.4825970549 | J58: =VLOOKUP(LGCountySelect,Churn!$70:$128,2+LgMedSmCountyData!J$19, FALSE) -> 0.4939799331 | K58: =VLOOKUP(LGCountySelect,Churn!$70:$128,2+LgMedSmCountyData!K$19, FALSE) -> 0.5132641292 | L58: =VLOOKUP(LGCountySelect,Churn!$70:$128,2+LgMedSmCountyData!L$19, FALSE) -> 0.4745808545 | M58: =VLOOKUP(LGCountySelect,Churn!$70:$128,2+LgMedSmCountyData!M$19, FALSE) -> 0.4745808545 | N58: =VLOOKUP(LGCountySelect,Churn!$70:$128,2+LgMedSmCountyData!N$19, FALSE) -> 0.4942765568 | O58: =VLOOKUP(LGCountySelect,Churn!$70:$128,2+LgMedSmCountyData!O$19, FALSE) -> 0.534162949 | P58: =VLOOKUP(LGCountySelect,Churn!$70:$128,2+LgMedSmCountyData!P$19, FALSE) -> 0.4920091324 | Q58: =VLOOKUP(LGCountySelect,Churn!$70:$128,2+LgMedSmCountyData!Q$19, FALSE) -> 0.5114503817 | R58: =VLOOKUP(LGCountySelect,Churn!$70:$128,2+LgMedSmCountyData!R$19, FALSE) -> 0.4292565947 | S58: =VLOOKUP(LGCountySelect,Churn!$70:$128,2+LgMedSmCountyData!S$19, FALSE) -> 0.4768164436 | T58: =VLOOKUP(LGCountySelect,Churn!$70:$128,2+LgMedSmCountyData!T$19, FALSE) -> 0.4650433944 | U58: =VLOOKUP(LGCountySelect,Churn!$70:$128,2+LgMedSmCountyData!U$19, FALSE) -> 0.4632013602 | V58: =VLOOKUP(LGCountySelect,Churn!$70:$128,2+LgMedSmCountyData!V$19, FALSE) -> 0.4732561006 | W58: =VLOOKUP(LGCountySelect,Churn!$70:$128,2+LgMedSmCountyData!W$19, FALSE) -> 0.520714866
A59: Share that reapply within 90 days (est.) | B59: =CONCATENATE(A59," (",$B$47,")") -> Share that reapply within 90 days (est.) (Alameda) | C59: =C58*C57 -> 0.07798127798 | D59: =D58*D57 -> 0.07644556044 | E59: 0.07860054348 | F59: 0.0820288426 | G59: 0.08961593172 | H59: 0.08622316584 | I59: 0.08499852638 | J59: 0.08911548208 | K59: 0.1105452739 | L59: 0.102189356 | M59: 0.102189356 | N59: 0.1281533804 | O59: 0.150532654 | P59: 0.1287489545 | Q59: 0.1252109959 | R59: 0.1148687672 | S59: 0.1325757576 | T59: 0.1211226925 | U59: 0.1217674478 | V59: 0.1300548669 | W59: 0.1423917068
A60: % of Apps on CF in previous 90 days | B60: =CONCATENATE("In previous 90 days"," (",B$47,")") -> In previous 90 days (Alameda) | C60: =VLOOKUP(LGCountySelect,Churn!$198:$256,2+LgMedSmCountyData!C$19, FALSE) -> 0.196829505 | D60: =VLOOKUP(LGCountySelect,Churn!$198:$256,2+LgMedSmCountyData!D$19, FALSE) -> 0.2049053089 | E60: =VLOOKUP(LGCountySelect,Churn!$198:$256,2+LgMedSmCountyData!E$19, FALSE) -> 0.1787580886 | F60: =VLOOKUP(LGCountySelect,Churn!$198:$256,2+LgMedSmCountyData!F$19, FALSE) -> 0.1614701378 | G60: =VLOOKUP(LGCountySelect,Churn!$198:$256,2+LgMedSmCountyData!G$19, FALSE) -> 0.1834126445 | H60: =VLOOKUP(LGCountySelect,Churn!$198:$256,2+LgMedSmCountyData!H$19, FALSE) -> 0.1839484476 | I60: =VLOOKUP(LGCountySelect,Churn!$198:$256,2+LgMedSmCountyData!I$19, FALSE) -> 0.202620835 | J60: =VLOOKUP(LGCountySelect,Churn!$198:$256,2+LgMedSmCountyData!J$19, FALSE) -> 0.1774324012 | K60: =VLOOKUP(LGCountySelect,Churn!$198:$256,2+LgMedSmCountyData!K$19, FALSE) -> 0.1854309261 | L60: =VLOOKUP(LGCountySelect,Churn!$198:$256,2+LgMedSmCountyData!L$19, FALSE) -> 0.1944180748 | M60: =VLOOKUP(LGCountySelect,Churn!$198:$256,2+LgMedSmCountyData!M$19, FALSE) -> 0.1961573143 | N60: =VLOOKUP(LGCountySelect,Churn!$198:$256,2+LgMedSmCountyData!N$19, FALSE) -> 0.211697507 | O60: =VLOOKUP(LGCountySelect,Churn!$198:$256,2+LgMedSmCountyData!O$19, FALSE) -> 0.2280556132 | P60: =VLOOKUP(LGCountySelect,Churn!$198:$256,2+LgMedSmCountyData!P$19, FALSE) -> 0.2236162362 | Q60: =VLOOKUP(LGCountySelect,Churn!$198:$256,2+LgMedSmCountyData!Q$19, FALSE) -> 0.1987355514 | R60: =VLOOKUP(LGCountySelect,Churn!$198:$256,2+LgMedSmCountyData!R$19, FALSE) -> 0.1965295875 | S60: =VLOOKUP(LGCountySelect,Churn!$198:$256,2+LgMedSmCountyData!S$19, FALSE) -> 0.2092321967 | T60: =VLOOKUP(LGCountySelect,Churn!$198:$256,2+LgMedSmCountyData!T$19, FALSE) -> 0.2085839811 | U60: =VLOOKUP(LGCountySelect,Churn!$198:$256,2+LgMedSmCountyData!U$19, FALSE) -> 0.2089617486 | V60: =VLOOKUP(LGCountySelect,Churn!$198:$256,2+LgMedSmCountyData!V$19, FALSE) -> 0.2075804918 | W60: =VLOOKUP(LGCountySelect,Churn!$198:$256,2+LgMedSmCountyData!W$19, FALSE) -> 0.2207672869
A61: % of Apps on CF in previous 30 days | B61: =CONCATENATE("In previous 30 days"," (",B$47,")") -> In previous 30 days (Alameda) | C61: =VLOOKUP(LGCountySelect,Churn!$134:$192,2+LgMedSmCountyData!C$19,FALSE) -> 0.1198317697 | D61: =VLOOKUP(LGCountySelect,Churn!$134:$192,2+LgMedSmCountyData!D$19,FALSE) -> 0.1154920832 | E61: =VLOOKUP(LGCountySelect,Churn!$134:$192,2+LgMedSmCountyData!E$19,FALSE) -> 0.08822797412 | F61: =VLOOKUP(LGCountySelect,Churn!$134:$192,2+LgMedSmCountyData!F$19,FALSE) -> 0.07791730475 | G61: =VLOOKUP(LGCountySelect,Churn!$134:$192,2+LgMedSmCountyData!G$19,FALSE) -> 0.08456832087 | H61: =VLOOKUP(LGCountySelect,Churn!$134:$192,2+LgMedSmCountyData!H$19,FALSE) -> 0.08227559721 | I61: =VLOOKUP(LGCountySelect,Churn!$134:$192,2+LgMedSmCountyData!I$19,FALSE) -> 0.09890688792 | J61: =VLOOKUP(LGCountySelect,Churn!$134:$192,2+LgMedSmCountyData!J$19,FALSE) -> 0.08106078114 | K61: =VLOOKUP(LGCountySelect,Churn!$134:$192,2+LgMedSmCountyData!K$19,FALSE) -> 0.1010616008 | L61: =VLOOKUP(LGCountySelect,Churn!$134:$192,2+LgMedSmCountyData!L$19,FALSE) -> 0.1067653946 | M61: =VLOOKUP(LGCountySelect,Churn!$134:$192,2+LgMedSmCountyData!M$19,FALSE) -> 0.1003676216 | N61: =VLOOKUP(LGCountySelect,Churn!$134:$192,2+LgMedSmCountyData!N$19,FALSE) -> 0.1232224668 | O61: =VLOOKUP(LGCountySelect,Churn!$134:$192,2+LgMedSmCountyData!O$19,FALSE) -> 0.116760047 | P61: =VLOOKUP(LGCountySelect,Churn!$134:$192,2+LgMedSmCountyData!P$19,FALSE) -> 0.1145756458 | Q61: =VLOOKUP(LGCountySelect,Churn!$134:$192,2+LgMedSmCountyData!Q$19,FALSE) -> 0.1035826043 | R61: =VLOOKUP(LGCountySelect,Churn!$134:$192,2+LgMedSmCountyData!R$19,FALSE) -> 0.1039216933 | S61: =VLOOKUP(LGCountySelect,Churn!$134:$192,2+LgMedSmCountyData!S$19,FALSE) -> 0.1111884327 | T61: =VLOOKUP(LGCountySelect,Churn!$134:$192,2+LgMedSmCountyData!T$19,FALSE) -> 0.1100371747 | U61: =VLOOKUP(LGCountySelect,Churn!$134:$192,2+LgMedSmCountyData!U$19,FALSE) -> 0.1090710383 | V61: =VLOOKUP(LGCountySelect,Churn!$134:$192,2+LgMedSmCountyData!V$19,FALSE) -> 0.1098356202 | W61: =VLOOKUP(LGCountySelect,Churn!$134:$192,2+LgMedSmCountyData!W$19,FALSE) -> 0.1141741328
A62: Unemployment Rate | B62: Unemployment Rate | C62: =VLOOKUP(LGCountySelect,Unemp!$A$5:$B$64,2+LgMedSmCountyData!C$21,FALSE) -> 0.113 | D62: =VLOOKUP(LGCountySelect,Unemp!$D$5:$T$64,2+D$21,FALSE) -> 0.09 | E62: =VLOOKUP(LGCountySelect,Unemp!$D$5:$T$64,2+E$21,FALSE) -> 0.09 | F62: =VLOOKUP(LGCountySelect,Unemp!$D$5:$T$64,2+F$21,FALSE) -> 0.09 | G62: =VLOOKUP(LGCountySelect,Unemp!$D$5:$T$64,2+G$21,FALSE) -> 0.09 | H62: =VLOOKUP(LGCountySelect,Unemp!$D$5:$T$64,2+H$21,FALSE) -> 0.073 | I62: =VLOOKUP(LGCountySelect,Unemp!$D$5:$T$64,2+I$21,FALSE) -> 0.073 | J62: =VLOOKUP(LGCountySelect,Unemp!$D$5:$T$64,2+J$21,FALSE) -> 0.073 | K62: =VLOOKUP(LGCountySelect,Unemp!$D$5:$T$64,2+K$21,FALSE) -> 0.073 | L62: =VLOOKUP(LGCountySelect,Unemp!$D$5:$T$64,2+L$21,FALSE) -> 0.059 | M62: =VLOOKUP(LGCountySelect,Unemp!$D$5:$T$64,2+M$21,FALSE) -> 0.059 | N62: =VLOOKUP(LGCountySelect,Unemp!$D$5:$T$64,2+N$21,FALSE) -> 0.059 | O62: =VLOOKUP(LGCountySelect,Unemp!$D$5:$T$64,2+O$21,FALSE) -> 0.059 | P62: =VLOOKUP(LGCountySelect,Unemp!$D$5:$T$64,2+P$21,FALSE) -> 0.047 | Q62: =VLOOKUP(LGCountySelect,Unemp!$D$5:$T$64,2+Q$21,FALSE) -> 0.047 | R62: =VLOOKUP(LGCountySelect,Unemp!$D$5:$T$64,2+R$21,FALSE) -> 0.047 | S62: =VLOOKUP(LGCountySelect,Unemp!$D$5:$T$64,2+S$21,FALSE) -> 0.047 | T62: =VLOOKUP(LGCountySelect,Unemp!$D$5:$T$64,2+T$21,FALSE) -> 0.042 | U62: =VLOOKUP(LGCountySelect,Unemp!$D$5:$T$64,2+U$21,FALSE) -> 0.042 | V62: =VLOOKUP(LGCountySelect,Unemp!$D$5:$T$64,2+V$21,FALSE) -> 0.042 | W62: =VLOOKUP(LGCountySelect,Unemp!$D$5:$T$64,2+W$21,FALSE) -> 0.042
C63: 2013 | D63: 2014 | E63: 2015
B64: PAI - this county | C64: =VLOOKUP(LGCountySelect,'Comp PAI 2013-14'!A1:D60,4,FALSE) -> 0.5659182255 | D64: =VLOOKUP(LGCountySelect,'Comp PAI 2013-14'!A1:D60,2,FALSE) -> 0.5324174972
B65: PAI - state | C65: =C$40 -> 0.5801772274 | D65: =D$40 -> 0.5827779192 | AA65: Medium counties
B66: =CONCATENATE("PRI (",LGCountySelect,")") -> PRI (Alameda) | C66: =VLOOKUP(LGCountySelect,PRI_both_methods!$J$3:$N$61, 2+C$19, FALSE) -> 0.57793 | D66: =VLOOKUP(LGCountySelect,PRI_both_methods!$J$3:$N$61, 2+D$19, FALSE) -> 0.58771 | E66: =VLOOKUP(LGCountySelect,PRI_both_methods!$J$3:$N$61, 2+E$19, FALSE) -> 0.6098780922 | AA66: Butte
B67: =CONCATENATE("New Method (",LGCountySelect,")") -> New Method (Alameda) | E67: =VLOOKUP(LGCountySelect,PRI_both_methods!$J$3:$N$61,5,FALSE) -> 0.63722 | AA67: Contra Costa
B68: PRI with MOE 2015 | D68: High | E68: Low | F68: Point | AA68: Humboldt
D69: =VLOOKUP(LGCountySelect,PRI_MOE!$O$9:$AI$66,19,FALSE) -> 0.6850786407 | E69: =VLOOKUP(LGCountySelect,PRI_MOE!$O$9:$AI$66,20,FALSE) -> 0.5956166207 | F69: =VLOOKUP(LGCountySelect,PRI_MOE!$O$9:$AI$66,21,FALSE) -> 0.6372229791 | AA69: Imperial
AA70: Kings
AA71: Madera
B72: MEDIUM COUNTIES | C72: Q4 | D72: Q1 | E72: Q2 | F72: Q3 | G72: Q4 | H72: Q1 | I72: Q2 | J72: Q3 | K72: Q4 | L72: Q1 | M72: Q2 | N72: Q3 | O72: Q4 | P72: Q1 | Q72: Q2 | R72: Q3 | S72: Q4 | T72: Q1 | U72: Q2 | V72: Q3 | W72: Q4 | X72: Q1 | Y72: Q2 | AA72: Merced
B73: =MedCtyDashboard!L4 -> Butte | C73: 2011 | D73: 2012 | H73: 2013 | L73: 2014 | P73: 2015 | T73: 2016 | X73: 2017 | AA73: Monterey
AA74: San Francisco
A75: Persons Participating | B75: =CONCATENATE(B$26," (", B73,")") -> Persons Participating (Butte) | C75: =VLOOKUP(MDCountySelect,Participation!$A$5:$F$64,2+LgMedSmCountyData!C$18,FALSE) -> 28120 | D75: =VLOOKUP(MDCountySelect,Participation!$5:$64,2+LgMedSmCountyData!D$18,FALSE) -> 28228 | E75: =VLOOKUP(MDCountySelect,Participation!$5:$64,2+LgMedSmCountyData!E$18,FALSE) -> 28623 | F75: =VLOOKUP(MDCountySelect,Participation!$5:$64,2+LgMedSmCountyData!F$18,FALSE) -> 29226 | G75: =VLOOKUP(MDCountySelect,Participation!$5:$64,2+LgMedSmCountyData!G$18,FALSE) -> 29899 | H75: =VLOOKUP(MDCountySelect,Participation!$5:$64,2+LgMedSmCountyData!H$18,FALSE) -> 29807 | I75: =VLOOKUP(MDCountySelect,Participation!$5:$64,2+LgMedSmCountyData!I$18,FALSE) -> 29770 | J75: =VLOOKUP(MDCountySelect,Participation!$5:$64,2+LgMedSmCountyData!J$18,FALSE) -> 30211 | K75: =VLOOKUP(MDCountySelect,Participation!$5:$64,2+LgMedSmCountyData!K$18,FALSE) -> 30365 | L75: =VLOOKUP(MDCountySelect,Participation!$5:$64,2+LgMedSmCountyData!L$18,FALSE) -> 30348 | M75: =VLOOKUP(MDCountySelect,Participation!$5:$64,2+LgMedSmCountyData!M$18,FALSE) -> 30559 | N75: =VLOOKUP(MDCountySelect,Participation!$5:$64,2+LgMedSmCountyData!N$18,FALSE) -> 31036 | O75: =VLOOKUP(MDCountySelect,Participation!$5:$64,2+LgMedSmCountyData!O$18,FALSE) -> 31231 | P75: =VLOOKUP(MDCountySelect,Participation!$5:$64,2+LgMedSmCountyData!P$18,FALSE) -> 31299 | Q75: =VLOOKUP(MDCountySelect,Participation!$5:$64,2+LgMedSmCountyData!Q$18,FALSE) -> 31927 | R75: =VLOOKUP(MDCountySelect,Participation!$5:$64,2+LgMedSmCountyData!R$18,FALSE) -> 32207 | S75: =VLOOKUP(MDCountySelect,Participation!$5:$64,2+LgMedSmCountyData!S$18,FALSE) -> 32287 | T75: =VLOOKUP(MDCountySelect,Participation!$5:$64,2+LgMedSmCountyData!T$18,FALSE) -> 32167 | U75: =VLOOKUP(MDCountySelect,Participation!$5:$64,2+LgMedSmCountyData!U$18,FALSE) -> 32218 | V75: =VLOOKUP(MDCountySelect,Participation!$5:$64,2+LgMedSmCountyData!V$18,FALSE) -> 32165 | W75: =VLOOKUP(MDCountySelect,Participation!$5:$64,2+LgMedSmCountyData!W$18,FALSE) -> 31819 | X75: =VLOOKUP(MDCountySelect,Participation!$5:$64,2+LgMedSmCountyData!X$18,FALSE) -> 31092 | Y75: =VLOOKUP(MDCountySelect,Participation!$5:$64,2+LgMedSmCountyData!Y$18,FALSE) -> 30944 | AA75: San Mateo
A76: Persons Participating, % change over prior year | B76: =CONCATENATE("% change over prior year", " (",B73,")") -> % change over prior year (Butte) | G76: =(G75-C75)/C75 -> 0.06326458037 | H76: 0.05593736715 | I76: 0.04007266883 | J76: 0.03370286731 | K76: 0.01558580555 | L76: 0.01815009897 | M76: 0.02650319113 | N76: 0.0273079342 | O76: 0.02851967726 | P76: 0.03133649664 | Q76: 0.04476586276 | R76: 0.03773037763 | S76: =(S75-O75)/O75 -> 0.03381255804 | T76: =(T75-P75)/P75 -> 0.02773251542 | U76: =(U75-Q75)/Q75 -> 0.00911454255 | V76: =(V75-R75)/R75 -> -0.001304064334 | W76: =(W75-S75)/S75 -> -0.01449499799 | X76: =(X75-T75)/T75 -> -0.0334193428 | Y76: -0.03954311255 | AA76: Santa Barbara
A77: Persons Participating, % change over prior quarter | B77: =CONCATENATE("% change over prior quarter", " (",B73,")") -> % change over prior quarter (Butte) | D77: =(D75-C75)/C75 -> 0.003840682788 | E77: =(E75-D75)/D75 -> 0.01399319824 | F77: 0.02106697411 | G77: 0.02302744132 | H77: -0.003077025987 | I77: -0.001241319153 | J77: 0.01481357071 | K77: 0.00509748105 | L77: -0.0005598550963 | M77: 0.00695268222 | N77: 0.01560914951 | O77: 0.006283026163 | P77: 0.002177323813 | Q77: 0.0200645388 | R77: 0.008770006578 | S77: 0.002483932064 | T77: -0.00371666615 | U77: 0.001585475798 | V77: =(V75-U75)/U75 -> -0.001645043144 | W77: =(W75-V75)/V75 -> -0.01075703404 | X77: =(X75-W75)/W75 -> -0.02284798391 | Y77: -0.004760066898 | AA77: Santa Clara
A78: % Medi-Cal on CalFresh | B78: =CONCATENATE(B$28," (",B73,")") -> % All Medi-Cal on CalFresh (Butte) | C78: =VLOOKUP(MDCountySelect,DualEnroll!$6:$64,2+LgMedSmCountyData!C$18,FALSE) -> 0.415 | D78: =VLOOKUP(MDCountySelect,DualEnroll!$6:$64,2+LgMedSmCountyData!D$18,FALSE) -> 0.4173955378 | E78: =VLOOKUP(MDCountySelect,DualEnroll!$6:$64,2+LgMedSmCountyData!E$18,FALSE) -> 0.4313497088 | F78: =VLOOKUP(MDCountySelect,DualEnroll!$6:$64,2+LgMedSmCountyData!F$18,FALSE) -> 0.43767105 | G78: =VLOOKUP(MDCountySelect,DualEnroll!$6:$64,2+LgMedSmCountyData!G$18,FALSE) -> 0.4401256315 | H78: =VLOOKUP(MDCountySelect,DualEnroll!$6:$64,2+LgMedSmCountyData!H$18,FALSE) -> 0.4385384806 | I78: =VLOOKUP(MDCountySelect,DualEnroll!$6:$64,2+LgMedSmCountyData!I$18,FALSE) -> 0.437945534 | J78: =VLOOKUP(MDCountySelect,DualEnroll!$6:$64,2+LgMedSmCountyData!J$18,FALSE) -> 0.4391015245 | K78: =VLOOKUP(MDCountySelect,DualEnroll!$6:$64,2+LgMedSmCountyData!K$18,FALSE) -> 0.4360205611 | L78: =VLOOKUP(MDCountySelect,DualEnroll!$6:$64,2+LgMedSmCountyData!L$18,FALSE) -> 0.4150512941 | M78: =VLOOKUP(MDCountySelect,DualEnroll!$6:$64,2+LgMedSmCountyData!M$18,FALSE) -> 0.3971444546 | N78: =VLOOKUP(MDCountySelect,DualEnroll!$6:$64,2+LgMedSmCountyData!N$18,FALSE) -> 0.391315205 | O78: =VLOOKUP(MDCountySelect,DualEnroll!$6:$64,2+LgMedSmCountyData!O$18,FALSE) -> 0.3823371784 | P78: =VLOOKUP(MDCountySelect,DualEnroll!$6:$64,2+LgMedSmCountyData!P$18,FALSE) -> 0.3799905062 | Q78: =VLOOKUP(MDCountySelect,DualEnroll!$6:$64,2+LgMedSmCountyData!Q$18,FALSE) -> 0.3757130027 | R78: =VLOOKUP(MDCountySelect,DualEnroll!$6:$64,2+LgMedSmCountyData!R$18,FALSE) -> 0.3758890768 | S78: =VLOOKUP(MDCountySelect,DualEnroll!$6:$64,2+LgMedSmCountyData!S$18,FALSE) -> 0.3713510889 | T78: =VLOOKUP(MDCountySelect,DualEnroll!$6:$64,2+LgMedSmCountyData!T$18,FALSE) -> 0.3623763755 | U78: =VLOOKUP(MDCountySelect,DualEnroll!$6:$64,2+LgMedSmCountyData!U$18,FALSE) -> 0.3655216957 | V78: =VLOOKUP(MDCountySelect,DualEnroll!$6:$64,2+LgMedSmCountyData!V$18,FALSE) -> 0.3664969101 | W78: =VLOOKUP(MDCountySelect,DualEnroll!$6:$64,2+LgMedSmCountyData!W$18,FALSE) -> 0.3650288537 | X78: =VLOOKUP(MDCountySelect,DualEnroll!$6:$64,2+LgMedSmCountyData!X$18,FALSE) -> 0.3537765312 | AA78: Santa Cruz
A79: % CalFresh on Medi-Cal | B79: =CONCATENATE(B$29," (",B73,")") -> % All CalFresh on Medi-Cal (Butte) | C79: =VLOOKUP(MDCountySelect,DualEnroll!$76:$134,2+LgMedSmCountyData!C$18,FALSE) -> 0.877 | D79: =VLOOKUP(MDCountySelect,DualEnroll!$76:$134,2+LgMedSmCountyData!D$18,FALSE) -> 0.8748108793 | E79: =VLOOKUP(MDCountySelect,DualEnroll!$76:$134,2+LgMedSmCountyData!E$18,FALSE) -> 0.8706511739 | F79: =VLOOKUP(MDCountySelect,DualEnroll!$76:$134,2+LgMedSmCountyData!F$18,FALSE) -> 0.8703169073 | G79: =VLOOKUP(MDCountySelect,DualEnroll!$76:$134,2+LgMedSmCountyData!G$18,FALSE) -> 0.8675926229 | H79: =VLOOKUP(MDCountySelect,DualEnroll!$76:$134,2+LgMedSmCountyData!H$18,FALSE) -> 0.8691591847 | I79: =VLOOKUP(MDCountySelect,DualEnroll!$76:$134,2+LgMedSmCountyData!I$18,FALSE) -> 0.872080853 | J79: =VLOOKUP(MDCountySelect,DualEnroll!$76:$134,2+LgMedSmCountyData!J$18,FALSE) -> 0.8731899249 | K79: =VLOOKUP(MDCountySelect,DualEnroll!$76:$134,2+LgMedSmCountyData!K$18,FALSE) -> 0.8695610258 | L79: =VLOOKUP(MDCountySelect,DualEnroll!$76:$134,2+LgMedSmCountyData!L$18,FALSE) -> 0.8761002679 | M79: =VLOOKUP(MDCountySelect,DualEnroll!$76:$134,2+LgMedSmCountyData!M$18,FALSE) -> 0.9265693106 | N79: =VLOOKUP(MDCountySelect,DualEnroll!$76:$134,2+LgMedSmCountyData!N$18,FALSE) -> 0.9353774622 | O79: =VLOOKUP(MDCountySelect,DualEnroll!$76:$134,2+LgMedSmCountyData!O$18,FALSE) -> 0.9374276507 | P79: =VLOOKUP(MDCountySelect,DualEnroll!$76:$134,2+LgMedSmCountyData!P$18,FALSE) -> 0.94173555 | Q79: =VLOOKUP(MDCountySelect,DualEnroll!$76:$134,2+LgMedSmCountyData!Q$18,FALSE) -> 0.9448785252 | R79: =VLOOKUP(MDCountySelect,DualEnroll!$76:$134,2+LgMedSmCountyData!R$18,FALSE) -> 0.9430084555 | S79: =VLOOKUP(MDCountySelect,DualEnroll!$76:$134,2+LgMedSmCountyData!S$18,FALSE) -> 0.9405801014 | T79: =VLOOKUP(MDCountySelect,DualEnroll!$76:$134,2+LgMedSmCountyData!T$18,FALSE) -> 0.9460573368 | U79: =VLOOKUP(MDCountySelect,DualEnroll!$76:$134,2+LgMedSmCountyData!U$18,FALSE) -> 0.9434980297 | V79: =VLOOKUP(MDCountySelect,DualEnroll!$76:$134,2+LgMedSmCountyData!V$18,FALSE) -> 0.9409641113 | W79: =VLOOKUP(MDCountySelect,DualEnroll!$76:$134,2+LgMedSmCountyData!W$18,FALSE) -> 0.9387730174 | X79: =VLOOKUP(MDCountySelect,DualEnroll!$76:$134,2+LgMedSmCountyData!X$18,FALSE) -> 0.938885935 | AA79: Shasta
A80: Avg Days to Approval | B80: =CONCATENATE(B$30," (",B73,")") -> Avg Days to Approval (Butte) | C80: =VLOOKUP(MDCountySelect,Timely!$C$263:$BU$321,2+LgMedSmCountyData!C$19,FALSE) -> 19.7 | D80: =VLOOKUP(MDCountySelect,Timely!$C$263:$BU$321,2+LgMedSmCountyData!D$19,FALSE) -> 20.3 | E80: =VLOOKUP(MDCountySelect,Timely!$C$263:$BU$321,2+LgMedSmCountyData!E$19,FALSE) -> 18.3 | F80: =VLOOKUP(MDCountySelect,Timely!$C$263:$BU$321,2+LgMedSmCountyData!F$19,FALSE) -> 18 | G80: =VLOOKUP(MDCountySelect,Timely!$C$263:$BU$321,2+LgMedSmCountyData!G$19,FALSE) -> 15.3 | H80: =VLOOKUP(MDCountySelect,Timely!$C$263:$BU$321,2+LgMedSmCountyData!H$19,FALSE) -> 15.7 | I80: =VLOOKUP(MDCountySelect,Timely!$C$263:$BU$321,2+LgMedSmCountyData!I$19,FALSE) -> 15.3 | J80: =VLOOKUP(MDCountySelect,Timely!$C$263:$BU$321,2+LgMedSmCountyData!J$19,FALSE) -> 17.7 | K80: =VLOOKUP(MDCountySelect,Timely!$C$263:$BU$321,2+LgMedSmCountyData!K$19,FALSE) -> 19 | L80: =VLOOKUP(MDCountySelect,Timely!$C$263:$BU$321,2+LgMedSmCountyData!L$19,FALSE) -> 19.7 | M80: =VLOOKUP(MDCountySelect,Timely!$C$263:$BU$321,2+LgMedSmCountyData!M$19,FALSE) -> 16 | N80: =VLOOKUP(MDCountySelect,Timely!$C$263:$BU$321,2+LgMedSmCountyData!N$19,FALSE) -> 16.3 | O80: =VLOOKUP(MDCountySelect,Timely!$C$263:$BU$321,2+LgMedSmCountyData!O$19,FALSE) -> 16.7 | P80: =VLOOKUP(MDCountySelect,Timely!$C$263:$BU$321,2+LgMedSmCountyData!P$19,FALSE) -> 17.3 | Q80: =VLOOKUP(MDCountySelect,Timely!$C$263:$BU$321,2+LgMedSmCountyData!Q$19,FALSE) -> 16 | R80: =VLOOKUP(MDCountySelect,Timely!$C$263:$BU$321,2+LgMedSmCountyData!R$19,FALSE) -> 19 | S80: =VLOOKUP(MDCountySelect,Timely!$C$263:$BU$321,2+LgMedSmCountyData!S$19,FALSE) -> 17.7 | T80: =VLOOKUP(MDCountySelect,Timely!$C$263:$BU$321,2+LgMedSmCountyData!T$19,FALSE) -> 18 | U80: =VLOOKUP(MDCountySelect,Timely!$C$263:$BU$321,2+LgMedSmCountyData!U$19,FALSE) -> 15.3 | V80: =VLOOKUP(MDCountySelect,Timely!$C$263:$BU$321,2+LgMedSmCountyData!V$19,FALSE) -> 19.7 | W80: =VLOOKUP(MDCountySelect,Timely!$C$263:$BU$321,2+LgMedSmCountyData!W$19,FALSE) -> 17.7 | AA80: Solano
A81: % of All Approvals not timely (>30 days) | B81: =CONCATENATE(A81," (",$B$73,")") -> % of All Approvals not timely (>30 days) (Butte) | C81: =VLOOKUP(MDCountySelect,Timely!$C$70:$BX$128,2+LgMedSmCountyData!C$18, FALSE) -> 0.173 | D81: =VLOOKUP(MDCountySelect,Timely!$C$70:$BX$128,2+LgMedSmCountyData!D$18, FALSE) -> 0.114 | E81: =VLOOKUP(MDCountySelect,Timely!$C$70:$BX$128,2+LgMedSmCountyData!E$18, FALSE) -> 0.1304 | F81: =VLOOKUP(MDCountySelect,Timely!$C$70:$BX$128,2+LgMedSmCountyData!F$18, FALSE) -> 0.1052 | G81: =VLOOKUP(MDCountySelect,Timely!$C$70:$BX$128,2+LgMedSmCountyData!G$18, FALSE) -> 0.0845 | H81: =VLOOKUP(MDCountySelect,Timely!$C$70:$BX$128,2+LgMedSmCountyData!H$18, FALSE) -> 0.0609 | I81: =VLOOKUP(MDCountySelect,Timely!$C$70:$BX$128,2+LgMedSmCountyData!I$18, FALSE) -> 0.0585 | J81: =VLOOKUP(MDCountySelect,Timely!$C$70:$BX$128,2+LgMedSmCountyData!J$18, FALSE) -> 0.0398 | K81: =VLOOKUP(MDCountySelect,Timely!$C$70:$BX$128,2+LgMedSmCountyData!K$18, FALSE) -> 0.0939 | L81: =VLOOKUP(MDCountySelect,Timely!$C$70:$BX$128,2+LgMedSmCountyData!L$18, FALSE) -> 0.0679 | M81: =VLOOKUP(MDCountySelect,Timely!$C$70:$BX$128,2+LgMedSmCountyData!M$18, FALSE) -> 0.1143 | N81: =VLOOKUP(MDCountySelect,Timely!$C$70:$BX$128,2+LgMedSmCountyData!N$18, FALSE) -> 0.0627 | O81: =VLOOKUP(MDCountySelect,Timely!$C$70:$BX$128,2+LgMedSmCountyData!O$18, FALSE) -> 0.0576 | P81: =VLOOKUP(MDCountySelect,Timely!$C$70:$BX$128,2+LgMedSmCountyData!P$18, FALSE) -> 0.0872 | Q81: =VLOOKUP(MDCountySelect,Timely!$C$70:$BX$128,2+LgMedSmCountyData!Q$18, FALSE) -> 0.0543 | R81: =VLOOKUP(MDCountySelect,Timely!$C$70:$BX$128,2+LgMedSmCountyData!R$18, FALSE) -> 0.0799 | S81: =VLOOKUP(MDCountySelect,Timely!$C$70:$BX$128,2+LgMedSmCountyData!S$18, FALSE) -> 0.1802 | T81: =VLOOKUP(MDCountySelect,Timely!$C$70:$BX$128,2+LgMedSmCountyData!T$18, FALSE) -> 0.0872 | U81: =VLOOKUP(MDCountySelect,Timely!$C$70:$BX$128,2+LgMedSmCountyData!U$18, FALSE) -> 0.0883 | V81: =VLOOKUP(MDCountySelect,Timely!$C$70:$BX$128,2+LgMedSmCountyData!V$18, FALSE) -> 0.0656 | W81: =VLOOKUP(MDCountySelect,Timely!$C$70:$BX$128,2+LgMedSmCountyData!W$18, FALSE) -> 0.16175 | X81: =VLOOKUP(MDCountySelect,Timely!$C$70:$BX$128,2+LgMedSmCountyData!X$18, FALSE) -> 0.09756 | Y81: =VLOOKUP(MDCountySelect,Timely!$C$70:$BX$128,2+LgMedSmCountyData!Y$18, FALSE) -> 0.12566 | AA81: Sonoma
A82: % ES entitled not timely (> 3 days) | B82: =CONCATENATE(A82," (",$B$73,")") -> % ES entitled not timely (> 3 days) (Butte) | C82: =VLOOKUP(MDCountySelect,Timely!$C$198:$BX$256,2+LgMedSmCountyData!C$20,FALSE) -> 0.064 | D82: =VLOOKUP(MDCountySelect,Timely!$C$198:$BX$256,2+LgMedSmCountyData!D$20,FALSE) -> 0.0641 | E82: =VLOOKUP(MDCountySelect,Timely!$C$198:$BX$256,2+LgMedSmCountyData!E$20,FALSE) -> 0.0775 | F82: =VLOOKUP(MDCountySelect,Timely!$C$198:$BX$256,2+LgMedSmCountyData!F$20,FALSE) -> 0.0513 | G82: =VLOOKUP(MDCountySelect,Timely!$C$198:$BX$256,2+LgMedSmCountyData!G$20,FALSE) -> 0.0445 | H82: =VLOOKUP(MDCountySelect,Timely!$C$198:$BX$256,2+LgMedSmCountyData!H$20,FALSE) -> 0.0418 | I82: =VLOOKUP(MDCountySelect,Timely!$C$198:$BX$256,2+LgMedSmCountyData!I$20,FALSE) -> 0.0471 | J82: =VLOOKUP(MDCountySelect,Timely!$C$198:$BX$256,2+LgMedSmCountyData!J$20,FALSE) -> 0.061 | K82: =VLOOKUP(MDCountySelect,Timely!$C$198:$BX$256,2+LgMedSmCountyData!K$20,FALSE) -> 0.0699 | L82: =VLOOKUP(MDCountySelect,Timely!$C$198:$BX$256,2+LgMedSmCountyData!L$20,FALSE) -> 0.1047 | M82: =VLOOKUP(MDCountySelect,Timely!$C$198:$BX$256,2+LgMedSmCountyData!M$20,FALSE) -> 0.1001 | N82: =VLOOKUP(MDCountySelect,Timely!$C$198:$BX$256,2+LgMedSmCountyData!N$20,FALSE) -> 0.0583 | O82: =VLOOKUP(MDCountySelect,Timely!$C$198:$BX$256,2+LgMedSmCountyData!O$20,FALSE) -> 0.0603 | P82: =VLOOKUP(MDCountySelect,Timely!$C$198:$BX$256,2+LgMedSmCountyData!P$20,FALSE) -> 0.0733 | Q82: =VLOOKUP(MDCountySelect,Timely!$C$198:$BX$256,2+LgMedSmCountyData!Q$20,FALSE) -> 0.065 | R82: =VLOOKUP(MDCountySelect,Timely!$C$198:$BX$256,2+LgMedSmCountyData!R$20,FALSE) -> 0.0739 | S82: =VLOOKUP(MDCountySelect,Timely!$C$198:$BX$256,2+LgMedSmCountyData!S$20,FALSE) -> 0.0807 | T82: =VLOOKUP(MDCountySelect,Timely!$C$198:$BX$256,2+LgMedSmCountyData!T$20,FALSE) -> 0.0517 | U82: =VLOOKUP(MDCountySelect,Timely!$C$198:$BX$256,2+LgMedSmCountyData!U$20,FALSE) -> 0.0614 | V82: =VLOOKUP(MDCountySelect,Timely!$C$198:$BX$256,2+LgMedSmCountyData!V$20,FALSE) -> 0.061 | W82: =VLOOKUP(MDCountySelect,Timely!$C$198:$BX$256,2+LgMedSmCountyData!W$20,FALSE) -> 0.05735 | X82: =VLOOKUP(MDCountySelect,Timely!$C$198:$BX$256,2+LgMedSmCountyData!X$20,FALSE) -> 0.0625 | Y82: =VLOOKUP(MDCountySelect,Timely!$C$198:$BX$256,2+LgMedSmCountyData!Y$20,FALSE) -> 0.04806 | AA82: Stanislaus
A83: % of Recerts without CF in Following Month | B83: =CONCATENATE(A83," (",$B$73,")") -> % of Recerts without CF in Following Month (Butte) | C83: =VLOOKUP(MDCountySelect,Churn!$5:$63,2+LgMedSmCountyData!C$19,FALSE) -> 0.613872201 | D83: =VLOOKUP(MDCountySelect,Churn!$5:$63,2+LgMedSmCountyData!D$19,FALSE) -> 0.4052337398 | E83: =VLOOKUP(MDCountySelect,Churn!$5:$63,2+LgMedSmCountyData!E$19,FALSE) -> 0.4220393233 | F83: =VLOOKUP(MDCountySelect,Churn!$5:$63,2+LgMedSmCountyData!F$19,FALSE) -> 0.4087694484 | G83: =VLOOKUP(MDCountySelect,Churn!$5:$63,2+LgMedSmCountyData!G$19,FALSE) -> 0.3894586215 | H83: =VLOOKUP(MDCountySelect,Churn!$5:$63,2+LgMedSmCountyData!H$19,FALSE) -> 0.4089709763 | I83: =VLOOKUP(MDCountySelect,Churn!$5:$63,2+LgMedSmCountyData!I$19,FALSE) -> 0.374301676 | J83: =VLOOKUP(MDCountySelect,Churn!$5:$63,2+LgMedSmCountyData!J$19,FALSE) -> 0.3992462869 | K83: =VLOOKUP(MDCountySelect,Churn!$5:$63,2+LgMedSmCountyData!K$19,FALSE) -> 0.4214517876 | L83: =VLOOKUP(MDCountySelect,Churn!$5:$63,2+LgMedSmCountyData!L$19,FALSE) -> 0.4044493882 | M83: =VLOOKUP(MDCountySelect,Churn!$5:$63,2+LgMedSmCountyData!M$19,FALSE) -> 0.4085744909 | N83: =VLOOKUP(MDCountySelect,Churn!$5:$63,2+LgMedSmCountyData!N$19,FALSE) -> 0.4236126465 | O83: =VLOOKUP(MDCountySelect,Churn!$5:$63,2+LgMedSmCountyData!O$19,FALSE) -> 0.4116567233 | P83: =VLOOKUP(MDCountySelect,Churn!$5:$63,2+LgMedSmCountyData!P$19,FALSE) -> 0.4148702156 | Q83: =VLOOKUP(MDCountySelect,Churn!$5:$63,2+LgMedSmCountyData!Q$19,FALSE) -> 0.4089577229 | R83: =VLOOKUP(MDCountySelect,Churn!$5:$63,2+LgMedSmCountyData!R$19,FALSE) -> 0.4182440596 | S83: =VLOOKUP(MDCountySelect,Churn!$5:$63,2+LgMedSmCountyData!S$19,FALSE) -> 0.4151738672 | T83: =VLOOKUP(MDCountySelect,Churn!$5:$63,2+LgMedSmCountyData!T$19,FALSE) -> 0.398538961 | U83: =VLOOKUP(MDCountySelect,Churn!$5:$63,2+LgMedSmCountyData!U$19,FALSE) -> 0.4147773279 | V83: =VLOOKUP(MDCountySelect,Churn!$5:$63,2+LgMedSmCountyData!V$19,FALSE) -> 0.429256135 | W83: =VLOOKUP(MDCountySelect,Churn!$5:$63,2+LgMedSmCountyData!W$19,FALSE) -> 0.4271489535 | AA83: Ventura
A84: % of Unsuccessful Recerts that Reapply within 90 Days | B84: =CONCATENATE(A84," (",$B$73,")") -> % of Unsuccessful Recerts that Reapply within 90 Days (Butte) | C84: =VLOOKUP(MDCountySelect,Churn!$70:$128,2+LgMedSmCountyData!C$19) -> 0.9528469751 | D84: =VLOOKUP(MDCountySelect,Churn!$70:$128,2+LgMedSmCountyData!D$19) -> 0.7510971787 | E84: =VLOOKUP(MDCountySelect,Churn!$70:$128,2+LgMedSmCountyData!E$19) -> 0.767063922 | F84: =VLOOKUP(MDCountySelect,Churn!$70:$128,2+LgMedSmCountyData!F$19) -> 0.7260668973 | G84: =VLOOKUP(MDCountySelect,Churn!$70:$128,2+LgMedSmCountyData!G$19) -> 0.7293325168 | H84: =VLOOKUP(MDCountySelect,Churn!$70:$128,2+LgMedSmCountyData!H$19) -> 0.5876832845 | I84: =VLOOKUP(MDCountySelect,Churn!$70:$128,2+LgMedSmCountyData!I$19) -> 0.6262916188 | J84: =VLOOKUP(MDCountySelect,Churn!$70:$128,2+LgMedSmCountyData!J$19) -> 0.5369239311 | K84: =VLOOKUP(MDCountySelect,Churn!$70:$128,2+LgMedSmCountyData!K$19) -> 0.6976863753 | L84: =VLOOKUP(MDCountySelect,Churn!$70:$128,2+LgMedSmCountyData!L$19) -> 0.7392739274 | M84: =VLOOKUP(MDCountySelect,Churn!$70:$128,2+LgMedSmCountyData!M$19) -> 0.704616999 | N84: =VLOOKUP(MDCountySelect,Churn!$70:$128,2+LgMedSmCountyData!N$19) -> 0.7223382046 | O84: =VLOOKUP(MDCountySelect,Churn!$70:$128,2+LgMedSmCountyData!O$19) -> 0.7742474916 | P84: =VLOOKUP(MDCountySelect,Churn!$70:$128,2+LgMedSmCountyData!P$19) -> 0.6977730647 | Q84: =VLOOKUP(MDCountySelect,Churn!$70:$128,2+LgMedSmCountyData!Q$19) -> 0.7118730809 | R84: =VLOOKUP(MDCountySelect,Churn!$70:$128,2+LgMedSmCountyData!R$19) -> 0.6076071257 | S84: =VLOOKUP(MDCountySelect,Churn!$70:$128,2+LgMedSmCountyData!S$19) -> 0.6096446701 | T84: =VLOOKUP(MDCountySelect,Churn!$70:$128,2+LgMedSmCountyData!T$19) -> 0.633910387 | U84: =VLOOKUP(MDCountySelect,Churn!$70:$128,2+LgMedSmCountyData!U$19) -> 0.5671059053 | V84: =VLOOKUP(MDCountySelect,Churn!$70:$128,2+LgMedSmCountyData!V$19) -> 0.6074140241 | W84: =VLOOKUP(MDCountySelect,Churn!$70:$128,2+LgMedSmCountyData!W$19) -> 0.5694576594 | AA84: Yolo
A85: Share that reapply within 90 days (estimate) | B85: =CONCATENATE(A85," (",$B$73,")") -> Share that reapply within 90 days (estimate) (Butte) | C85: =C84*C83 -> 0.5849262698 | D85: =D84*D83 -> 0.3043699187 | E85: 0.3237311385 | F85: 0.2967939651 | G85: 0.2840448366 | H85: 0.2403454066 | I85: 0.2344220026 | J85: 0.2143648858 | K85: 0.2940411701 | L85: 0.2989988877 | M85: 0.2878885316 | N85: 0.3059915985 | O85: 0.3187241854 | P85: 0.2894852618 | Q85: 0.2911259941 | R85: 0.2541280709 | S85: 0.2531085353 | T85: 0.252637987 | U85: 0.2352226721 | V85: 0.2607361963 | W85: 0.2432432432 | AA85: Small counties
A86: % of Apps on CF in previous 90 days | B86: =CONCATENATE("In previous 90 days"," (",B$73,")") -> In previous 90 days (Butte) | C86: =VLOOKUP(MDCountySelect,Churn!$198:$256,2+LgMedSmCountyData!C$19, FALSE) -> 0.1246851385 | D86: =VLOOKUP(MDCountySelect,Churn!$198:$256,2+LgMedSmCountyData!D$19, FALSE) -> 0.1103789127 | E86: =VLOOKUP(MDCountySelect,Churn!$198:$256,2+LgMedSmCountyData!E$19, FALSE) -> 0.1226036558 | F86: =VLOOKUP(MDCountySelect,Churn!$198:$256,2+LgMedSmCountyData!F$19, FALSE) -> 0.1160209424 | G86: =VLOOKUP(MDCountySelect,Churn!$198:$256,2+LgMedSmCountyData!G$19, FALSE) -> 0.1323308271 | H86: =VLOOKUP(MDCountySelect,Churn!$198:$256,2+LgMedSmCountyData!H$19, FALSE) -> 0.2186111761 | I86: =VLOOKUP(MDCountySelect,Churn!$198:$256,2+LgMedSmCountyData!I$19, FALSE) -> 0.2105614973 | J86: =VLOOKUP(MDCountySelect,Churn!$198:$256,2+LgMedSmCountyData!J$19, FALSE) -> 0.2008503746 | K86: =VLOOKUP(MDCountySelect,Churn!$198:$256,2+LgMedSmCountyData!K$19, FALSE) -> 0.2387081676 | L86: =VLOOKUP(MDCountySelect,Churn!$198:$256,2+LgMedSmCountyData!L$19, FALSE) -> 0.2177280551 | M86: =VLOOKUP(MDCountySelect,Churn!$198:$256,2+LgMedSmCountyData!M$19, FALSE) -> 0.212106992 | N86: =VLOOKUP(MDCountySelect,Churn!$198:$256,2+LgMedSmCountyData!N$19, FALSE) -> 0.2084891137 | O86: =VLOOKUP(MDCountySelect,Churn!$198:$256,2+LgMedSmCountyData!O$19, FALSE) -> 0.2137006701 | P86: =VLOOKUP(MDCountySelect,Churn!$198:$256,2+LgMedSmCountyData!P$19, FALSE) -> 0.2153099493 | Q86: =VLOOKUP(MDCountySelect,Churn!$198:$256,2+LgMedSmCountyData!Q$19, FALSE) -> 0.2222993292 | R86: =VLOOKUP(MDCountySelect,Churn!$198:$256,2+LgMedSmCountyData!R$19, FALSE) -> 0.2263998383 | S86: =VLOOKUP(MDCountySelect,Churn!$198:$256,2+LgMedSmCountyData!S$19, FALSE) -> 0.2414935926 | T86: =VLOOKUP(MDCountySelect,Churn!$198:$256,2+LgMedSmCountyData!T$19, FALSE) -> 0.2232238678 | U86: =VLOOKUP(MDCountySelect,Churn!$198:$256,2+LgMedSmCountyData!U$19, FALSE) -> 0.2283539486 | V86: =VLOOKUP(MDCountySelect,Churn!$198:$256,2+LgMedSmCountyData!V$19, FALSE) -> 0.2302312026 | W86: =VLOOKUP(MDCountySelect,Churn!$198:$256,2+LgMedSmCountyData!W$19, FALSE) -> 0.2506508876 | AA86: Alpine
A87: % of Apps on CF in previous 30 days | B87: =CONCATENATE("In previous 30 days"," (",B$73,")") -> In previous 30 days (Butte) | C87: =VLOOKUP(MDCountySelect,Churn!$134:$192,2+LgMedSmCountyData!C$19,FALSE) -> 0.03501259446 | D87: =VLOOKUP(MDCountySelect,Churn!$134:$192,2+LgMedSmCountyData!D$19,FALSE) -> 0.02824193928 | E87: =VLOOKUP(MDCountySelect,Churn!$134:$192,2+LgMedSmCountyData!E$19,FALSE) -> 0.02764155149 | F87: =VLOOKUP(MDCountySelect,Churn!$134:$192,2+LgMedSmCountyData!F$19,FALSE) -> 0.03560209424 | G87: =VLOOKUP(MDCountySelect,Churn!$134:$192,2+LgMedSmCountyData!G$19,FALSE) -> 0.03784461153 | H87: =VLOOKUP(MDCountySelect,Churn!$134:$192,2+LgMedSmCountyData!H$19,FALSE) -> 0.1465980828 | I87: =VLOOKUP(MDCountySelect,Churn!$134:$192,2+LgMedSmCountyData!I$19,FALSE) -> 0.1356951872 | J87: =VLOOKUP(MDCountySelect,Churn!$134:$192,2+LgMedSmCountyData!J$19,FALSE) -> 0.1318080583 | K87: =VLOOKUP(MDCountySelect,Churn!$134:$192,2+LgMedSmCountyData!K$19,FALSE) -> 0.1565644746 | L87: =VLOOKUP(MDCountySelect,Churn!$134:$192,2+LgMedSmCountyData!L$19,FALSE) -> 0.1445783133 | M87: =VLOOKUP(MDCountySelect,Churn!$134:$192,2+LgMedSmCountyData!M$19,FALSE) -> 0.1367902393 | N87: =VLOOKUP(MDCountySelect,Churn!$134:$192,2+LgMedSmCountyData!N$19,FALSE) -> 0.1359137893 | O87: =VLOOKUP(MDCountySelect,Churn!$134:$192,2+LgMedSmCountyData!O$19,FALSE) -> 0.1330354927 | P87: =VLOOKUP(MDCountySelect,Churn!$134:$192,2+LgMedSmCountyData!P$19,FALSE) -> 0.1455989411 | Q87: =VLOOKUP(MDCountySelect,Churn!$134:$192,2+LgMedSmCountyData!Q$19,FALSE) -> 0.1436502429 | R87: =VLOOKUP(MDCountySelect,Churn!$134:$192,2+LgMedSmCountyData!R$19,FALSE) -> 0.147766323 | S87: =VLOOKUP(MDCountySelect,Churn!$134:$192,2+LgMedSmCountyData!S$19,FALSE) -> 0.1520106054 | T87: =VLOOKUP(MDCountySelect,Churn!$134:$192,2+LgMedSmCountyData!T$19,FALSE) -> 0.1450955141 | U87: =VLOOKUP(MDCountySelect,Churn!$134:$192,2+LgMedSmCountyData!U$19,FALSE) -> 0.1443862988 | V87: =VLOOKUP(MDCountySelect,Churn!$134:$192,2+LgMedSmCountyData!V$19,FALSE) -> 0.1439673596 | W87: =VLOOKUP(MDCountySelect,Churn!$134:$192,2+LgMedSmCountyData!W$19,FALSE) -> 0.1583431953 | AA87: Amador
A88: Unemployment Rate | B88: Unemployment Rate | C88: =VLOOKUP(MDCountySelect,Unemp!$A$5:$B$64,2+LgMedSmCountyData!C$21,FALSE) -> 0.139 | D88: =VLOOKUP(MDCountySelect,Unemp!$D$5:$T$64,2+D$21,FALSE) -> 0.122 | E88: =VLOOKUP(MDCountySelect,Unemp!$D$5:$T$64,2+E$21,FALSE) -> 0.122 | F88: =VLOOKUP(MDCountySelect,Unemp!$D$5:$T$64,2+F$21,FALSE) -> 0.122 | G88: =VLOOKUP(MDCountySelect,Unemp!$D$5:$T$64,2+G$21,FALSE) -> 0.122 | H88: =VLOOKUP(MDCountySelect,Unemp!$D$5:$T$64,2+H$21,FALSE) -> 0.103 | I88: =VLOOKUP(MDCountySelect,Unemp!$D$5:$T$64,2+I$21,FALSE) -> 0.103 | J88: =VLOOKUP(MDCountySelect,Unemp!$D$5:$T$64,2+J$21,FALSE) -> 0.103 | K88: =VLOOKUP(MDCountySelect,Unemp!$D$5:$T$64,2+K$21,FALSE) -> 0.103 | L88: =VLOOKUP(MDCountySelect,Unemp!$D$5:$T$64,2+L$21,FALSE) -> 0.087 | M88: =VLOOKUP(MDCountySelect,Unemp!$D$5:$T$64,2+M$21,FALSE) -> 0.087 | N88: =VLOOKUP(MDCountySelect,Unemp!$D$5:$T$64,2+N$21,FALSE) -> 0.087 | O88: =VLOOKUP(MDCountySelect,Unemp!$D$5:$T$64,2+O$21,FALSE) -> 0.087 | P88: =VLOOKUP(MDCountySelect,Unemp!$D$5:$T$64,2+P$21,FALSE) -> 0.072 | Q88: =VLOOKUP(MDCountySelect,Unemp!$D$5:$T$64,2+Q$21,FALSE) -> 0.072 | R88: =VLOOKUP(MDCountySelect,Unemp!$D$5:$T$64,2+R$21,FALSE) -> 0.072 | S88: =VLOOKUP(MDCountySelect,Unemp!$D$5:$T$64,2+S$21,FALSE) -> 0.072 | T88: =VLOOKUP(MDCountySelect,Unemp!$D$5:$T$64,2+T$21,FALSE) -> 0.065 | U88: =VLOOKUP(MDCountySelect,Unemp!$D$5:$T$64,2+U$21,FALSE) -> 0.065 | V88: =VLOOKUP(MDCountySelect,Unemp!$D$5:$T$64,2+V$21,FALSE) -> 0.065 | W88: =VLOOKUP(MDCountySelect,Unemp!$D$5:$T$64,2+W$21,FALSE) -> 0.065 | AA88: Calaveras
C89: 2013 | D89: 2014 | E89: 2015 | AA89: Colusa
B90: PAI - this county | C90: =VLOOKUP(MDCountySelect,'Comp PAI 2013-14'!A27:D86,4,FALSE) ->  | D90: =VLOOKUP(MDCountySelect,'Comp PAI 2013-14'!A27:D86,2,FALSE) ->  | AA90: Del Norte
B91: PAI - state | C91: =C$40 -> 0.5801772274 | D91: =D$40 -> 0.5827779192 | AA91: El Dorado
B92: =CONCATENATE("PRI (",MDCountySelect,")") -> PRI (Butte) | C92: =VLOOKUP(MDCountySelect,PRI_both_methods!$J$3:$N$61, 2+C$19, FALSE) -> 0.52213 | D92: =VLOOKUP(MDCountySelect,PRI_both_methods!$J$3:$N$61, 2+D$19, FALSE) -> 0.56693 | E92: =VLOOKUP(MDCountySelect,PRI_both_methods!$J$3:$N$61, 2+E$19, FALSE) -> 0.5968532803 | AA92: Glenn
B93: =CONCATENATE("New Method (",MDCountySelect,")") -> New Method (Butte) | E93: =VLOOKUP(MDCountySelect,PRI_both_methods!$J$3:$N$61,5,FALSE) -> 0.60002 | AA93: Inyo
B94: PRI with MOE 2015 | D94: High | E94: Low | F94: Point | AA94: Lake
D95: =VLOOKUP(MDCountySelect,PRI_MOE!$O$9:$AI$66,19,FALSE) -> 0.6757945357 | E95: =VLOOKUP(MDCountySelect,PRI_MOE!$O$9:$AI$66,20,FALSE) -> 0.5395291404 | F95: =VLOOKUP(MDCountySelect,PRI_MOE!$O$9:$AI$66,21,FALSE) -> 0.6000226148 | AA95: Lassen
AA96: Marin
B97: SMALL COUNTIES | AA97: Mariposa
B98: =SmCtyDashboard!L4 -> Mendocino | C98: Q4 | D98: Q1 | E98: Q2 | F98: Q3 | G98: Q4 | H98: Q1 | I98: Q2 | J98: Q3 | K98: Q4 | L98: Q1 | M98: Q2 | N98: Q3 | O98: Q4 | P98: Q1 | Q98: Q2 | R98: Q3 | S98: Q4 | T98: Q1 | U98: Q2 | V98: Q3 | W98: Q4 | X98: Q1 | Y98: Q2 | AA98: Mendocino
C99: 2011 | D99: 2012 | H99: 2013 | L99: 2014 | P99: 2015 | T99: 2016 | X99: 2017 | AA99: Modoc
A100: Persons Participating | B100: =CONCATENATE(B$26," (", B98,")") -> Persons Participating (Mendocino) | C100: =VLOOKUP(SMCountySelect,Participation!$A$5:$F$64,2+LgMedSmCountyData!C$18,FALSE) -> 13222 | D100: =VLOOKUP(SMCountySelect,Participation!$5:$64,2+LgMedSmCountyData!D$18,FALSE) -> 13454 | E100: =VLOOKUP(SMCountySelect,Participation!$5:$64,2+LgMedSmCountyData!E$18,FALSE) -> 13785 | F100: =VLOOKUP(SMCountySelect,Participation!$5:$64,2+LgMedSmCountyData!F$18,FALSE) -> 13660 | G100: =VLOOKUP(SMCountySelect,Participation!$5:$64,2+LgMedSmCountyData!G$18,FALSE) -> 13612 | H100: =VLOOKUP(SMCountySelect,Participation!$5:$64,2+LgMedSmCountyData!H$18,FALSE) -> 13483 | I100: =VLOOKUP(SMCountySelect,Participation!$5:$64,2+LgMedSmCountyData!I$18,FALSE) -> 13205 | J100: =VLOOKUP(SMCountySelect,Participation!$5:$64,2+LgMedSmCountyData!J$18,FALSE) -> 13202 | K100: =VLOOKUP(SMCountySelect,Participation!$5:$64,2+LgMedSmCountyData!K$18,FALSE) -> 13061 | L100: =VLOOKUP(SMCountySelect,Participation!$5:$64,2+LgMedSmCountyData!L$18,FALSE) -> 13415 | M100: =VLOOKUP(SMCountySelect,Participation!$5:$64,2+LgMedSmCountyData!M$18,FALSE) -> 14074 | N100: =VLOOKUP(SMCountySelect,Participation!$5:$64,2+LgMedSmCountyData!N$18,FALSE) -> 14007 | O100: =VLOOKUP(SMCountySelect,Participation!$5:$64,2+LgMedSmCountyData!O$18,FALSE) -> 13591 | P100: =VLOOKUP(SMCountySelect,Participation!$5:$64,2+LgMedSmCountyData!P$18,FALSE) -> 13178 | Q100: =VLOOKUP(SMCountySelect,Participation!$5:$64,2+LgMedSmCountyData!Q$18,FALSE) -> 13008 | R100: =VLOOKUP(SMCountySelect,Participation!$5:$64,2+LgMedSmCountyData!R$18,FALSE) -> 13204 | S100: =VLOOKUP(SMCountySelect,Participation!$5:$64,2+LgMedSmCountyData!S$18,FALSE) -> 13395 | T100: =VLOOKUP(SMCountySelect,Participation!$5:$64,2+LgMedSmCountyData!T$18,FALSE) -> 13099 | U100: =VLOOKUP(SMCountySelect,Participation!$5:$64,2+LgMedSmCountyData!U$18,FALSE) -> 12720 | V100: =VLOOKUP(SMCountySelect,Participation!$5:$64,2+LgMedSmCountyData!V$18,FALSE) -> 12443 | W100: =VLOOKUP(SMCountySelect,Participation!$5:$64,2+LgMedSmCountyData!W$18,FALSE) -> 13249 | X100: =VLOOKUP(SMCountySelect,Participation!$5:$64,2+LgMedSmCountyData!X$18,FALSE) -> 11916 | Y100: =VLOOKUP(SMCountySelect,Participation!$5:$64,2+LgMedSmCountyData!Y$18,FALSE) -> 11667 | AA100: Mono
A101: Persons Participating, % change over prior year | B101: =CONCATENATE("% change over prior year", " (",B98,")") -> % change over prior year (Mendocino) | G101: =(G100-C100)/C100 -> 0.02949629406 | H101: 0.00215549279 | I101: -0.0420747189 | J101: -0.03352855051 | K101: -0.04047898913 | L101: -0.00504338797 | M101: 0.06580840591 | N101: 0.06097560976 | O101: 0.04057882245 | P101: -0.01766679091 | Q101: -0.07574250391 | R101: -0.05732847862 | S101: =(S100-O100)/O100 -> -0.01442130822 | T101: =(T100-P100)/P100 -> -0.005994839885 | U101: =(U100-Q100)/Q100 -> -0.0221402214 | V101: =(V100-R100)/R100 -> -0.05763405029 | W101: =(W100-S100)/S100 -> -0.0108995894 | X101: =(X100-T100)/T100 -> -0.09031223758 | Y101: -0.08278301887 | AA101: Napa
A102: Persons Participating, % change over prior quarter | B102: =CONCATENATE("% change over prior quarter", " (",B98,")") -> % change over prior quarter (Mendocino) | D102: =(D100-C100)/C100 -> 0.01754651339 | E102: =(E100-D100)/D100 -> 0.02460234874 | F102: -0.009067827349 | G102: -0.003513909224 | H102: -0.009476932119 | I102: -0.0206185567 | J102: -0.0002271866717 | K102: -0.01068019997 | L102: 0.02710359084 | M102: 0.0491241148 | N102: -0.004760551371 | O102: -0.029699436 | P102: -0.0303877566 | Q102: -0.01290028836 | R102: 0.01506765068 | S102: 0.01446531354 | T102: -0.02209779769 | U102: -0.02893350637 | V102: =(V100-U100)/U100 -> -0.02177672956 | W102: =(W100-V100)/V100 -> 0.06477537571 | X102: =(X100-W100)/W100 -> -0.1006113669 | Y102: -0.02089627392 | AA102: Nevada
A103: % Medi-Cal on CalFresh | B103: =CONCATENATE(B$28," (",B98,")") -> % All Medi-Cal on CalFresh (Mendocino) | C103: =VLOOKUP(SMCountySelect,DualEnroll!$6:$64,2+LgMedSmCountyData!C$18,FALSE) -> 0.389 | D103: =VLOOKUP(SMCountySelect,DualEnroll!$6:$64,2+LgMedSmCountyData!D$18,FALSE) -> 0.3859015565 | E103: =VLOOKUP(SMCountySelect,DualEnroll!$6:$64,2+LgMedSmCountyData!E$18,FALSE) -> 0.3987738758 | F103: =VLOOKUP(SMCountySelect,DualEnroll!$6:$64,2+LgMedSmCountyData!F$18,FALSE) -> 0.4025872763 | G103: =VLOOKUP(SMCountySelect,DualEnroll!$6:$64,2+LgMedSmCountyData!G$18,FALSE) -> 0.3938929119 | H103: =VLOOKUP(SMCountySelect,DualEnroll!$6:$64,2+LgMedSmCountyData!H$18,FALSE) -> 0.3918678171 | I103: =VLOOKUP(SMCountySelect,DualEnroll!$6:$64,2+LgMedSmCountyData!I$18,FALSE) -> 0.3789239205 | J103: =VLOOKUP(SMCountySelect,DualEnroll!$6:$64,2+LgMedSmCountyData!J$18,FALSE) -> 0.3798546985 | K103: =VLOOKUP(SMCountySelect,DualEnroll!$6:$64,2+LgMedSmCountyData!K$18,FALSE) -> 0.3647754061 | L103: =VLOOKUP(SMCountySelect,DualEnroll!$6:$64,2+LgMedSmCountyData!L$18,FALSE) -> 0.3671144952 | M103: =VLOOKUP(SMCountySelect,DualEnroll!$6:$64,2+LgMedSmCountyData!M$18,FALSE) -> 0.3630874766 | N103: =VLOOKUP(SMCountySelect,DualEnroll!$6:$64,2+LgMedSmCountyData!N$18,FALSE) -> 0.3526564734 | O103: =VLOOKUP(SMCountySelect,DualEnroll!$6:$64,2+LgMedSmCountyData!O$18,FALSE) -> 0.3372220003 | P103: =VLOOKUP(SMCountySelect,DualEnroll!$6:$64,2+LgMedSmCountyData!P$18,FALSE) -> 0.3271620593 | Q103: =VLOOKUP(SMCountySelect,DualEnroll!$6:$64,2+LgMedSmCountyData!Q$18,FALSE) -> 0.3190457335 | R103: =VLOOKUP(SMCountySelect,DualEnroll!$6:$64,2+LgMedSmCountyData!R$18,FALSE) -> 0.316348091 | S103: =VLOOKUP(SMCountySelect,DualEnroll!$6:$64,2+LgMedSmCountyData!S$18,FALSE) -> 0.3126814399 | T103: =VLOOKUP(SMCountySelect,DualEnroll!$6:$64,2+LgMedSmCountyData!T$18,FALSE) -> 0.2997765495 | U103: =VLOOKUP(SMCountySelect,DualEnroll!$6:$64,2+LgMedSmCountyData!U$18,FALSE) -> 0.2871727626 | V103: =VLOOKUP(SMCountySelect,DualEnroll!$6:$64,2+LgMedSmCountyData!V$18,FALSE) -> 0.2832277363 | W103: =VLOOKUP(SMCountySelect,DualEnroll!$6:$64,2+LgMedSmCountyData!W$18,FALSE) -> 0.2858215462 | X103: =VLOOKUP(SMCountySelect,DualEnroll!$6:$64,2+LgMedSmCountyData!X$18,FALSE) -> 0.2819867137 | AA103: Placer
A104: % CalFresh on Medi-Cal | B104: =CONCATENATE(B$29," (",B98,")") -> % All CalFresh on Medi-Cal (Mendocino) | C104: =VLOOKUP(SMCountySelect,DualEnroll!$76:$134,2+LgMedSmCountyData!C$18,FALSE) -> 0.833 | D104: =VLOOKUP(SMCountySelect,DualEnroll!$76:$134,2+LgMedSmCountyData!D$18,FALSE) -> 0.8246006636 | E104: =VLOOKUP(SMCountySelect,DualEnroll!$76:$134,2+LgMedSmCountyData!E$18,FALSE) -> 0.8323224852 | F104: =VLOOKUP(SMCountySelect,DualEnroll!$76:$134,2+LgMedSmCountyData!F$18,FALSE) -> 0.8300328827 | G104: =VLOOKUP(SMCountySelect,DualEnroll!$76:$134,2+LgMedSmCountyData!G$18,FALSE) -> 0.8199910887 | H104: =VLOOKUP(SMCountySelect,DualEnroll!$76:$134,2+LgMedSmCountyData!H$18,FALSE) -> 0.8340520446 | I104: =VLOOKUP(SMCountySelect,DualEnroll!$76:$134,2+LgMedSmCountyData!I$18,FALSE) -> 0.8409644052 | J104: =VLOOKUP(SMCountySelect,DualEnroll!$76:$134,2+LgMedSmCountyData!J$18,FALSE) -> 0.8491310617 | K104: =VLOOKUP(SMCountySelect,DualEnroll!$76:$134,2+LgMedSmCountyData!K$18,FALSE) -> 0.8499623777 | L104: =VLOOKUP(SMCountySelect,DualEnroll!$76:$134,2+LgMedSmCountyData!L$18,FALSE) -> 0.8395452583 | M104: =VLOOKUP(SMCountySelect,DualEnroll!$76:$134,2+LgMedSmCountyData!M$18,FALSE) -> 0.8974915919 | N104: =VLOOKUP(SMCountySelect,DualEnroll!$76:$134,2+LgMedSmCountyData!N$18,FALSE) -> 0.9018284107 | O104: =VLOOKUP(SMCountySelect,DualEnroll!$76:$134,2+LgMedSmCountyData!O$18,FALSE) -> 0.9144817624 | P104: =VLOOKUP(SMCountySelect,DualEnroll!$76:$134,2+LgMedSmCountyData!P$18,FALSE) -> 0.930131949 | Q104: =VLOOKUP(SMCountySelect,DualEnroll!$76:$134,2+LgMedSmCountyData!Q$18,FALSE) -> 0.9365102426 | R104: =VLOOKUP(SMCountySelect,DualEnroll!$76:$134,2+LgMedSmCountyData!R$18,FALSE) -> 0.9363001745 | S104: =VLOOKUP(SMCountySelect,DualEnroll!$76:$134,2+LgMedSmCountyData!S$18,FALSE) -> 0.9338872832 | T104: =VLOOKUP(SMCountySelect,DualEnroll!$76:$134,2+LgMedSmCountyData!T$18,FALSE) -> 0.9477245687 | U104: =VLOOKUP(SMCountySelect,DualEnroll!$76:$134,2+LgMedSmCountyData!U$18,FALSE) -> 0.9472464664 | V104: =VLOOKUP(SMCountySelect,DualEnroll!$76:$134,2+LgMedSmCountyData!V$18,FALSE) -> 0.9455103004 | W104: =VLOOKUP(SMCountySelect,DualEnroll!$76:$134,2+LgMedSmCountyData!W$18,FALSE) -> 0.9452899712 | X104: =VLOOKUP(SMCountySelect,DualEnroll!$76:$134,2+LgMedSmCountyData!X$18,FALSE) -> 0.9512944984 | AA104: Plumas
A105: Avg Days to Approval | B105: =CONCATENATE(B$30," (",B98,")") -> Avg Days to Approval (Mendocino) | C105: =VLOOKUP(SMCountySelect,Timely!$C$263:$BU$321,2+LgMedSmCountyData!C$19,FALSE) -> 7.7 | D105: =VLOOKUP(SMCountySelect,Timely!$C$263:$BU$321,2+LgMedSmCountyData!D$19,FALSE) -> 10 | E105: =VLOOKUP(SMCountySelect,Timely!$C$263:$BU$321,2+LgMedSmCountyData!E$19,FALSE) -> 8 | F105: =VLOOKUP(SMCountySelect,Timely!$C$263:$BU$321,2+LgMedSmCountyData!F$19,FALSE) -> 10 | G105: =VLOOKUP(SMCountySelect,Timely!$C$263:$BU$321,2+LgMedSmCountyData!G$19,FALSE) -> 10 | H105: =VLOOKUP(SMCountySelect,Timely!$C$263:$BU$321,2+LgMedSmCountyData!H$19,FALSE) -> 10.7 | I105: =VLOOKUP(SMCountySelect,Timely!$C$263:$BU$321,2+LgMedSmCountyData!I$19,FALSE) -> 9.7 | J105: =VLOOKUP(SMCountySelect,Timely!$C$263:$BU$321,2+LgMedSmCountyData!J$19,FALSE) -> 13.7 | K105: =VLOOKUP(SMCountySelect,Timely!$C$263:$BU$321,2+LgMedSmCountyData!K$19,FALSE) -> 12.7 | L105: =VLOOKUP(SMCountySelect,Timely!$C$263:$BU$321,2+LgMedSmCountyData!L$19,FALSE) -> 10 | M105: =VLOOKUP(SMCountySelect,Timely!$C$263:$BU$321,2+LgMedSmCountyData!M$19,FALSE) -> 8.3 | N105: =VLOOKUP(SMCountySelect,Timely!$C$263:$BU$321,2+LgMedSmCountyData!N$19,FALSE) -> 10.3 | O105: =VLOOKUP(SMCountySelect,Timely!$C$263:$BU$321,2+LgMedSmCountyData!O$19,FALSE) -> 10.7 | P105: =VLOOKUP(SMCountySelect,Timely!$C$263:$BU$321,2+LgMedSmCountyData!P$19,FALSE) -> 14 | Q105: =VLOOKUP(SMCountySelect,Timely!$C$263:$BU$321,2+LgMedSmCountyData!Q$19,FALSE) -> 12.3 | R105: =VLOOKUP(SMCountySelect,Timely!$C$263:$BU$321,2+LgMedSmCountyData!R$19,FALSE) -> 9.3 | S105: =VLOOKUP(SMCountySelect,Timely!$C$263:$BU$321,2+LgMedSmCountyData!S$19,FALSE) -> 10.7 | T105: =VLOOKUP(SMCountySelect,Timely!$C$263:$BU$321,2+LgMedSmCountyData!T$19,FALSE) -> 10.7 | U105: =VLOOKUP(SMCountySelect,Timely!$C$263:$BU$321,2+LgMedSmCountyData!U$19,FALSE) -> 11 | V105: =VLOOKUP(SMCountySelect,Timely!$C$263:$BU$321,2+LgMedSmCountyData!V$19,FALSE) -> 11.7 | W105: =VLOOKUP(SMCountySelect,Timely!$C$263:$BU$321,2+LgMedSmCountyData!W$19,FALSE) -> 11.7 | AA105: San Benito
A106: % of All Approvals not timely (>30 days) | B106: =CONCATENATE(A106," (",$B$98,")") -> % of All Approvals not timely (>30 days) (Mendocino) | C106: =VLOOKUP(SMCountySelect,Timely!$C$70:$BX$128,2+LgMedSmCountyData!C$18, FALSE) -> 0.002 | D106: =VLOOKUP(SMCountySelect,Timely!$C$70:$BX$128,2+LgMedSmCountyData!D$18, FALSE) -> 0.008 | E106: =VLOOKUP(SMCountySelect,Timely!$C$70:$BX$128,2+LgMedSmCountyData!E$18, FALSE) -> 0.0057 | F106: =VLOOKUP(SMCountySelect,Timely!$C$70:$BX$128,2+LgMedSmCountyData!F$18, FALSE) -> 0.0088 | G106: =VLOOKUP(SMCountySelect,Timely!$C$70:$BX$128,2+LgMedSmCountyData!G$18, FALSE) -> 0.0056 | H106: =VLOOKUP(SMCountySelect,Timely!$C$70:$BX$128,2+LgMedSmCountyData!H$18, FALSE) -> 0.006 | I106: =VLOOKUP(SMCountySelect,Timely!$C$70:$BX$128,2+LgMedSmCountyData!I$18, FALSE) -> 0 | J106: =VLOOKUP(SMCountySelect,Timely!$C$70:$BX$128,2+LgMedSmCountyData!J$18, FALSE) -> 0.0044 | K106: =VLOOKUP(SMCountySelect,Timely!$C$70:$BX$128,2+LgMedSmCountyData!K$18, FALSE) -> 0.0089 | L106: =VLOOKUP(SMCountySelect,Timely!$C$70:$BX$128,2+LgMedSmCountyData!L$18, FALSE) -> 0.0059 | M106: =VLOOKUP(SMCountySelect,Timely!$C$70:$BX$128,2+LgMedSmCountyData!M$18, FALSE) -> 0.0028 | N106: =VLOOKUP(SMCountySelect,Timely!$C$70:$BX$128,2+LgMedSmCountyData!N$18, FALSE) -> 0.0054 | O106: =VLOOKUP(SMCountySelect,Timely!$C$70:$BX$128,2+LgMedSmCountyData!O$18, FALSE) -> 0.0192 | P106: =VLOOKUP(SMCountySelect,Timely!$C$70:$BX$128,2+LgMedSmCountyData!P$18, FALSE) -> 0.0134 | Q106: =VLOOKUP(SMCountySelect,Timely!$C$70:$BX$128,2+LgMedSmCountyData!Q$18, FALSE) -> 0 | R106: =VLOOKUP(SMCountySelect,Timely!$C$70:$BX$128,2+LgMedSmCountyData!R$18, FALSE) -> 0.0049 | S106: =VLOOKUP(SMCountySelect,Timely!$C$70:$BX$128,2+LgMedSmCountyData!S$18, FALSE) -> 0.0093 | T106: =VLOOKUP(SMCountySelect,Timely!$C$70:$BX$128,2+LgMedSmCountyData!T$18, FALSE) -> 0.0027 | U106: =VLOOKUP(SMCountySelect,Timely!$C$70:$BX$128,2+LgMedSmCountyData!U$18, FALSE) -> 0.0701 | V106: =VLOOKUP(SMCountySelect,Timely!$C$70:$BX$128,2+LgMedSmCountyData!V$18, FALSE) -> 0.0594 | W106: =VLOOKUP(SMCountySelect,Timely!$C$70:$BX$128,2+LgMedSmCountyData!W$18, FALSE) -> 0.07102 | X106: =VLOOKUP(SMCountySelect,Timely!$C$70:$BX$128,2+LgMedSmCountyData!X$18, FALSE) -> 0.02821 | Y106: =VLOOKUP(SMCountySelect,Timely!$C$70:$BX$128,2+LgMedSmCountyData!Y$18, FALSE) -> 0.07692 | AA106: San Luis Obispo
A107: % ES entitled not timely (> 3 days) | B107: =CONCATENATE(A107," (",$B$98,")") -> % ES entitled not timely (> 3 days) (Mendocino) | C107: =VLOOKUP(SMCountySelect,Timely!$C$198:$BX$256,2+LgMedSmCountyData!C$20,FALSE) -> 0.007 | D107: =VLOOKUP(SMCountySelect,Timely!$C$198:$BX$256,2+LgMedSmCountyData!D$20,FALSE) -> 0.0054 | E107: =VLOOKUP(SMCountySelect,Timely!$C$198:$BX$256,2+LgMedSmCountyData!E$20,FALSE) -> 0.0022 | F107: =VLOOKUP(SMCountySelect,Timely!$C$198:$BX$256,2+LgMedSmCountyData!F$20,FALSE) -> 0.0135 | G107: =VLOOKUP(SMCountySelect,Timely!$C$198:$BX$256,2+LgMedSmCountyData!G$20,FALSE) -> 0.0094 | H107: =VLOOKUP(SMCountySelect,Timely!$C$198:$BX$256,2+LgMedSmCountyData!H$20,FALSE) -> 0.0114 | I107: =VLOOKUP(SMCountySelect,Timely!$C$198:$BX$256,2+LgMedSmCountyData!I$20,FALSE) -> 0.0111 | J107: =VLOOKUP(SMCountySelect,Timely!$C$198:$BX$256,2+LgMedSmCountyData!J$20,FALSE) -> 0.0054 | K107: =VLOOKUP(SMCountySelect,Timely!$C$198:$BX$256,2+LgMedSmCountyData!K$20,FALSE) -> 0.0062 | L107: =VLOOKUP(SMCountySelect,Timely!$C$198:$BX$256,2+LgMedSmCountyData!L$20,FALSE) -> 0.0455 | M107: =VLOOKUP(SMCountySelect,Timely!$C$198:$BX$256,2+LgMedSmCountyData!M$20,FALSE) -> 0.0198 | N107: =VLOOKUP(SMCountySelect,Timely!$C$198:$BX$256,2+LgMedSmCountyData!N$20,FALSE) -> 0.0354 | O107: =VLOOKUP(SMCountySelect,Timely!$C$198:$BX$256,2+LgMedSmCountyData!O$20,FALSE) -> 0.0348 | P107: =VLOOKUP(SMCountySelect,Timely!$C$198:$BX$256,2+LgMedSmCountyData!P$20,FALSE) -> 0.0269 | Q107: =VLOOKUP(SMCountySelect,Timely!$C$198:$BX$256,2+LgMedSmCountyData!Q$20,FALSE) -> 0.028 | R107: =VLOOKUP(SMCountySelect,Timely!$C$198:$BX$256,2+LgMedSmCountyData!R$20,FALSE) -> 0.023 | S107: =VLOOKUP(SMCountySelect,Timely!$C$198:$BX$256,2+LgMedSmCountyData!S$20,FALSE) -> 0.0375 | T107: =VLOOKUP(SMCountySelect,Timely!$C$198:$BX$256,2+LgMedSmCountyData!T$20,FALSE) -> 0.0433 | U107: =VLOOKUP(SMCountySelect,Timely!$C$198:$BX$256,2+LgMedSmCountyData!U$20,FALSE) -> 0.0259 | V107: =VLOOKUP(SMCountySelect,Timely!$C$198:$BX$256,2+LgMedSmCountyData!V$20,FALSE) -> 0.0091 | W107: =VLOOKUP(SMCountySelect,Timely!$C$198:$BX$256,2+LgMedSmCountyData!W$20,FALSE) -> 0.04858 | X107: =VLOOKUP(SMCountySelect,Timely!$C$198:$BX$256,2+LgMedSmCountyData!X$20,FALSE) -> 0.05965 | Y107: =VLOOKUP(SMCountySelect,Timely!$C$198:$BX$256,2+LgMedSmCountyData!Y$20,FALSE) -> 0.06087 | AA107: Sierra
A108: % of Recerts without CF in Following Month | B108: =CONCATENATE(A108," (",$B$98,")") -> % of Recerts without CF in Following Month (Mendocino) | C108: =VLOOKUP(SMCountySelect,Churn!$5:$63,2+LgMedSmCountyData!C$19,FALSE) -> 0.294205052 | D108: =VLOOKUP(SMCountySelect,Churn!$5:$63,2+LgMedSmCountyData!D$19,FALSE) -> 0.3258373206 | E108: =VLOOKUP(SMCountySelect,Churn!$5:$63,2+LgMedSmCountyData!E$19,FALSE) -> 0.3193236715 | F108: =VLOOKUP(SMCountySelect,Churn!$5:$63,2+LgMedSmCountyData!F$19,FALSE) -> 0.3506809339 | G108: =VLOOKUP(SMCountySelect,Churn!$5:$63,2+LgMedSmCountyData!G$19,FALSE) -> 0.4038135593 | H108: =VLOOKUP(SMCountySelect,Churn!$5:$63,2+LgMedSmCountyData!H$19,FALSE) -> 0.4469007369 | I108: =VLOOKUP(SMCountySelect,Churn!$5:$63,2+LgMedSmCountyData!I$19,FALSE) -> 0.4509803922 | J108: =VLOOKUP(SMCountySelect,Churn!$5:$63,2+LgMedSmCountyData!J$19,FALSE) -> 0.4492167761 | K108: =VLOOKUP(SMCountySelect,Churn!$5:$63,2+LgMedSmCountyData!K$19,FALSE) -> 0.3964737794 | L108: =VLOOKUP(SMCountySelect,Churn!$5:$63,2+LgMedSmCountyData!L$19,FALSE) -> 0.2222654729 | M108: =VLOOKUP(SMCountySelect,Churn!$5:$63,2+LgMedSmCountyData!M$19,FALSE) -> 0.4020028612 | N108: =VLOOKUP(SMCountySelect,Churn!$5:$63,2+LgMedSmCountyData!N$19,FALSE) -> 0.490605428 | O108: =VLOOKUP(SMCountySelect,Churn!$5:$63,2+LgMedSmCountyData!O$19,FALSE) -> 0.440653532 | P108: =VLOOKUP(SMCountySelect,Churn!$5:$63,2+LgMedSmCountyData!P$19,FALSE) -> 0.5010334849 | Q108: =VLOOKUP(SMCountySelect,Churn!$5:$63,2+LgMedSmCountyData!Q$19,FALSE) -> 0.475394171 | R108: =VLOOKUP(SMCountySelect,Churn!$5:$63,2+LgMedSmCountyData!R$19,FALSE) -> 0.4933135215 | S108: =VLOOKUP(SMCountySelect,Churn!$5:$63,2+LgMedSmCountyData!S$19,FALSE) -> 0.4332096475 | T108: =VLOOKUP(SMCountySelect,Churn!$5:$63,2+LgMedSmCountyData!T$19,FALSE) -> 0.4421392347 | U108: =VLOOKUP(SMCountySelect,Churn!$5:$63,2+LgMedSmCountyData!U$19,FALSE) -> 0.4611553785 | V108: =VLOOKUP(SMCountySelect,Churn!$5:$63,2+LgMedSmCountyData!V$19,FALSE) -> 0.496426608 | W108: =VLOOKUP(SMCountySelect,Churn!$5:$63,2+LgMedSmCountyData!W$19,FALSE) -> 0.4528101803 | AA108: Siskiyou
A109: % of Unsuccessful Recerts that Reapply within 90 Days | B109: =CONCATENATE(A109," (",$B$98,")") -> % of Unsuccessful Recerts that Reapply within 90 Days (Mendocino) | C109: =VLOOKUP(SMCountySelect,Churn!$70:$128,2+LgMedSmCountyData!C$19) -> 0.9494949495 | D109: =VLOOKUP(SMCountySelect,Churn!$70:$128,2+LgMedSmCountyData!D$19) -> 0.610866373 | E109: =VLOOKUP(SMCountySelect,Churn!$70:$128,2+LgMedSmCountyData!E$19) -> 0.5340393343 | F109: =VLOOKUP(SMCountySelect,Churn!$70:$128,2+LgMedSmCountyData!F$19) -> 0.53259362 | G109: =VLOOKUP(SMCountySelect,Churn!$70:$128,2+LgMedSmCountyData!G$19) -> 0.5949632739 | H109: =VLOOKUP(SMCountySelect,Churn!$70:$128,2+LgMedSmCountyData!H$19) -> 0.3879728419 | I109: =VLOOKUP(SMCountySelect,Churn!$70:$128,2+LgMedSmCountyData!I$19) -> 0.4096618357 | J109: =VLOOKUP(SMCountySelect,Churn!$70:$128,2+LgMedSmCountyData!J$19) -> 0.4746906637 | K109: =VLOOKUP(SMCountySelect,Churn!$70:$128,2+LgMedSmCountyData!K$19) -> 0.5997719498 | L109: =VLOOKUP(SMCountySelect,Churn!$70:$128,2+LgMedSmCountyData!L$19) -> 0.1208406305 | M109: =VLOOKUP(SMCountySelect,Churn!$70:$128,2+LgMedSmCountyData!M$19) -> 0.4270462633 | N109: =VLOOKUP(SMCountySelect,Churn!$70:$128,2+LgMedSmCountyData!N$19) -> 0.4946808511 | O109: =VLOOKUP(SMCountySelect,Churn!$70:$128,2+LgMedSmCountyData!O$19) -> 0.7011995638 | P109: =VLOOKUP(SMCountySelect,Churn!$70:$128,2+LgMedSmCountyData!P$19) -> 0.5767326733 | Q109: =VLOOKUP(SMCountySelect,Churn!$70:$128,2+LgMedSmCountyData!Q$19) -> 0.4884422111 | R109: =VLOOKUP(SMCountySelect,Churn!$70:$128,2+LgMedSmCountyData!R$19) -> 0.468875502 | S109: =VLOOKUP(SMCountySelect,Churn!$70:$128,2+LgMedSmCountyData!S$19) -> 0.6145610278 | T109: =VLOOKUP(SMCountySelect,Churn!$70:$128,2+LgMedSmCountyData!T$19) -> 0.598540146 | U109: =VLOOKUP(SMCountySelect,Churn!$70:$128,2+LgMedSmCountyData!U$19) -> 0.5485961123 | V109: =VLOOKUP(SMCountySelect,Churn!$70:$128,2+LgMedSmCountyData!V$19) -> 0.4606866002 | W109: =VLOOKUP(SMCountySelect,Churn!$70:$128,2+LgMedSmCountyData!W$19) -> 0.5948477752 | AA109: Sutter
A110: Share that reapply within 90 days (estimate) | B110: =CONCATENATE(A110," (",$B$98,")") -> Share that reapply within 90 days (estimate) (Mendocino) | C110: =C109*C108 -> 0.279346211 | D110: =D109*D108 -> 0.1990430622 | E110: 0.170531401 | F110: 0.186770428 | G110: 0.2402542373 | H110: 0.1733853489 | I110: 0.1847494553 | J110: 0.2132390096 | K110: 0.2377938517 | L110: 0.02685869988 | M110: 0.1716738197 | N110: 0.2426931106 | O110: 0.3089860644 | P110: 0.2889623811 | Q110: 0.23220258 | R110: 0.2313026251 | S110: 0.2662337662 | T110: 0.2646380821 | U110: 0.2529880478 | V110: 0.2286970863 | W110: 0.2693531283 | AA110: Tehama
A111: % of Apps on CF in previous 90 days | B111: =CONCATENATE("In previous 90 days"," (",B$98,")") -> In previous 90 days (Mendocino) | C111: =VLOOKUP(SMCountySelect,Churn!$198:$256,2+LgMedSmCountyData!C$19, FALSE) -> 0.1843294827 | D111: =VLOOKUP(SMCountySelect,Churn!$198:$256,2+LgMedSmCountyData!D$19, FALSE) -> 0.1562203229 | E111: =VLOOKUP(SMCountySelect,Churn!$198:$256,2+LgMedSmCountyData!E$19, FALSE) -> 0.1528471528 | F111: =VLOOKUP(SMCountySelect,Churn!$198:$256,2+LgMedSmCountyData!F$19, FALSE) -> 0.132444021 | G111: =VLOOKUP(SMCountySelect,Churn!$198:$256,2+LgMedSmCountyData!G$19, FALSE) -> 0.1898323418 | H111: =VLOOKUP(SMCountySelect,Churn!$198:$256,2+LgMedSmCountyData!H$19, FALSE) -> 0.3220338983 | I111: =VLOOKUP(SMCountySelect,Churn!$198:$256,2+LgMedSmCountyData!I$19, FALSE) -> 0.2861702128 | J111: =VLOOKUP(SMCountySelect,Churn!$198:$256,2+LgMedSmCountyData!J$19, FALSE) -> 0.2573566085 | K111: =VLOOKUP(SMCountySelect,Churn!$198:$256,2+LgMedSmCountyData!K$19, FALSE) -> 0.2698898409 | L111: =VLOOKUP(SMCountySelect,Churn!$198:$256,2+LgMedSmCountyData!L$19, FALSE) -> 0.1905339806 | M111: =VLOOKUP(SMCountySelect,Churn!$198:$256,2+LgMedSmCountyData!M$19, FALSE) -> 0.1567679558 | N111: =VLOOKUP(SMCountySelect,Churn!$198:$256,2+LgMedSmCountyData!N$19, FALSE) -> 0.2323232323 | O111: =VLOOKUP(SMCountySelect,Churn!$198:$256,2+LgMedSmCountyData!O$19, FALSE) -> 0.2915838304 | P111: =VLOOKUP(SMCountySelect,Churn!$198:$256,2+LgMedSmCountyData!P$19, FALSE) -> 0.2680798005 | Q111: =VLOOKUP(SMCountySelect,Churn!$198:$256,2+LgMedSmCountyData!Q$19, FALSE) -> 0.2734324499 | R111: =VLOOKUP(SMCountySelect,Churn!$198:$256,2+LgMedSmCountyData!R$19, FALSE) -> 0.2871853547 | S111: =VLOOKUP(SMCountySelect,Churn!$198:$256,2+LgMedSmCountyData!S$19, FALSE) -> 0.294283698 | T111: =VLOOKUP(SMCountySelect,Churn!$198:$256,2+LgMedSmCountyData!T$19, FALSE) -> 0.3282582217 | U111: =VLOOKUP(SMCountySelect,Churn!$198:$256,2+LgMedSmCountyData!U$19, FALSE) -> 0.2893533638 | V111: =VLOOKUP(SMCountySelect,Churn!$198:$256,2+LgMedSmCountyData!V$19, FALSE) -> 0.2652804033 | W111: =VLOOKUP(SMCountySelect,Churn!$198:$256,2+LgMedSmCountyData!W$19, FALSE) -> 0.2813432836 | AA111: Trinity
A112: % of Apps on CF in previous 30 days | B112: =CONCATENATE("In previous 30 days"," (",B$98,")") -> In previous 30 days (Mendocino) | C112: =VLOOKUP(SMCountySelect,Churn!$134:$192,2+LgMedSmCountyData!C$19,FALSE) -> 0.06629834254 | D112: =VLOOKUP(SMCountySelect,Churn!$134:$192,2+LgMedSmCountyData!D$19,FALSE) -> 0.04131054131 | E112: =VLOOKUP(SMCountySelect,Churn!$134:$192,2+LgMedSmCountyData!E$19,FALSE) -> 0.04345654346 | F112: =VLOOKUP(SMCountySelect,Churn!$134:$192,2+LgMedSmCountyData!F$19,FALSE) -> 0.03382563125 | G112: =VLOOKUP(SMCountySelect,Churn!$134:$192,2+LgMedSmCountyData!G$19,FALSE) -> 0.06652244456 | H112: =VLOOKUP(SMCountySelect,Churn!$134:$192,2+LgMedSmCountyData!H$19,FALSE) -> 0.2158524427 | I112: =VLOOKUP(SMCountySelect,Churn!$134:$192,2+LgMedSmCountyData!I$19,FALSE) -> 0.1824468085 | J112: =VLOOKUP(SMCountySelect,Churn!$134:$192,2+LgMedSmCountyData!J$19,FALSE) -> 0.1596009975 | K112: =VLOOKUP(SMCountySelect,Churn!$134:$192,2+LgMedSmCountyData!K$19,FALSE) -> 0.1799265606 | L112: =VLOOKUP(SMCountySelect,Churn!$134:$192,2+LgMedSmCountyData!L$19,FALSE) -> 0.1067961165 | M112: =VLOOKUP(SMCountySelect,Churn!$134:$192,2+LgMedSmCountyData!M$19,FALSE) -> 0.1077348066 | N112: =VLOOKUP(SMCountySelect,Churn!$134:$192,2+LgMedSmCountyData!N$19,FALSE) -> 0.1366607249 | O112: =VLOOKUP(SMCountySelect,Churn!$134:$192,2+LgMedSmCountyData!O$19,FALSE) -> 0.1716368456 | P112: =VLOOKUP(SMCountySelect,Churn!$134:$192,2+LgMedSmCountyData!P$19,FALSE) -> 0.1502493766 | Q112: =VLOOKUP(SMCountySelect,Churn!$134:$192,2+LgMedSmCountyData!Q$19,FALSE) -> 0.1570782159 | R112: =VLOOKUP(SMCountySelect,Churn!$134:$192,2+LgMedSmCountyData!R$19,FALSE) -> 0.1756292906 | S112: =VLOOKUP(SMCountySelect,Churn!$134:$192,2+LgMedSmCountyData!S$19,FALSE) -> 0.1841919548 | T112: =VLOOKUP(SMCountySelect,Churn!$134:$192,2+LgMedSmCountyData!T$19,FALSE) -> 0.2137637028 | U112: =VLOOKUP(SMCountySelect,Churn!$134:$192,2+LgMedSmCountyData!U$19,FALSE) -> 0.1757021555 | V112: =VLOOKUP(SMCountySelect,Churn!$134:$192,2+LgMedSmCountyData!V$19,FALSE) -> 0.1644612476 | W112: =VLOOKUP(SMCountySelect,Churn!$134:$192,2+LgMedSmCountyData!W$19,FALSE) -> 0.1671641791 | AA112: Tuolumne
A113: Unemployment Rate | B113: Unemployment Rate | C113: =VLOOKUP(SMCountySelect,Unemp!$A$5:$B$64,2+LgMedSmCountyData!C$21,FALSE) -> 0.113 | D113: =VLOOKUP(SMCountySelect,Unemp!$D$5:$T$64,2+D$21,FALSE) -> 0.097 | E113: =VLOOKUP(SMCountySelect,Unemp!$D$5:$T$64,2+E$21,FALSE) -> 0.097 | F113: =VLOOKUP(SMCountySelect,Unemp!$D$5:$T$64,2+F$21,FALSE) -> 0.097 | G113: =VLOOKUP(SMCountySelect,Unemp!$D$5:$T$64,2+G$21,FALSE) -> 0.097 | H113: =VLOOKUP(SMCountySelect,Unemp!$D$5:$T$64,2+H$21,FALSE) -> 0.082 | I113: =VLOOKUP(SMCountySelect,Unemp!$D$5:$T$64,2+I$21,FALSE) -> 0.082 | J113: =VLOOKUP(SMCountySelect,Unemp!$D$5:$T$64,2+J$21,FALSE) -> 0.082 | K113: =VLOOKUP(SMCountySelect,Unemp!$D$5:$T$64,2+K$21,FALSE) -> 0.082 | L113: =VLOOKUP(SMCountySelect,Unemp!$D$5:$T$64,2+L$21,FALSE) -> 0.069 | M113: =VLOOKUP(SMCountySelect,Unemp!$D$5:$T$64,2+M$21,FALSE) -> 0.069 | N113: =VLOOKUP(SMCountySelect,Unemp!$D$5:$T$64,2+N$21,FALSE) -> 0.069 | O113: =VLOOKUP(SMCountySelect,Unemp!$D$5:$T$64,2+O$21,FALSE) -> 0.069 | P113: =VLOOKUP(SMCountySelect,Unemp!$D$5:$T$64,2+P$21,FALSE) -> 0.059 | Q113: =VLOOKUP(SMCountySelect,Unemp!$D$5:$T$64,2+Q$21,FALSE) -> 0.059 | R113: =VLOOKUP(SMCountySelect,Unemp!$D$5:$T$64,2+R$21,FALSE) -> 0.059 | S113: =VLOOKUP(SMCountySelect,Unemp!$D$5:$T$64,2+S$21,FALSE) -> 0.059 | T113: =VLOOKUP(SMCountySelect,Unemp!$D$5:$T$64,2+T$21,FALSE) -> 0.052 | U113: =VLOOKUP(SMCountySelect,Unemp!$D$5:$T$64,2+U$21,FALSE) -> 0.052 | V113: =VLOOKUP(SMCountySelect,Unemp!$D$5:$T$64,2+V$21,FALSE) -> 0.052 | W113: =VLOOKUP(SMCountySelect,Unemp!$D$5:$T$64,2+W$21,FALSE) -> 0.052 | AA113: Yuba
C114: 2013 | D114: 2014 | E114: 2015
B115: PAI - this county | C115: =VLOOKUP(SMCountySelect,'Comp PAI 2013-14'!A1:D60,4,FALSE) -> 0.682640161 | D115: =VLOOKUP(SMCountySelect,'Comp PAI 2013-14'!A1:D60,2,FALSE) -> 0.661074539
B116: PAI - state | C116: =C$40 -> 0.5801772274 | D116: =D$40 -> 0.5827779192
B117: =CONCATENATE("PRI (",SMCountySelect,")") -> PRI (Mendocino) | C117: =VLOOKUP(SMCountySelect,PRI_both_methods!$J$3:$N$61, 2+C$19, FALSE) -> 0.59035 | D117: =VLOOKUP(SMCountySelect,PRI_both_methods!$J$3:$N$61, 2+D$19, FALSE) -> 0.69491 | E117: =VLOOKUP(SMCountySelect,PRI_both_methods!$J$3:$N$61, 2+E$19, FALSE) -> 0.6648515259
B118: =CONCATENATE("New Method (",SMCountySelect,")") -> New Method (Mendocino) | E118: =VLOOKUP(SMCountySelect,PRI_both_methods!$J$3:$N$61,5,FALSE) -> 0.68801
B119: PRI with MOE 2015 | D119: High | E119: Low | F119: Point
D120: =VLOOKUP(SMCountySelect,PRI_MOE!$O$9:$AI$66,19,FALSE) -> 0.8462657753 | E120: =VLOOKUP(SMCountySelect,PRI_MOE!$O$9:$AI$66,20,FALSE) -> 0.5796250849 | F120: =VLOOKUP(SMCountySelect,PRI_MOE!$O$9:$AI$66,21,FALSE) -> 0.6880146098

Sheet Participation (hidden)
H1: 1 | I1: 2 | J1: 3 | K1: 4 | L1: 5 | M1: 6 | N1: 7 | O1: 8 | P1: 9 | Q1: 10 | R1: 11 | S1: 12 | T1: 13 | U1: 14 | V1: 15 | W1: 16 | X1: 17 | Y1: 18 | Z1: 19 | AA1: 20 | AB1: 21 | AC1: 22 | AD1: 23
B2: PRIOR YEAR | H2: CURRENT Quarter
A3: Sum of qtr_calfresh_pers_ly | B3: Column Labels | H3: Sum of mth_calfresh_persons | I3: Column Labels
B4: 2012 | I4: 2012 | M4: 2013 | Q4: 2014 | U4: 2015 | Y4: 2016 | AC4: 2017
A5: Row Labels | B5: 4 | H5: Row Labels | I5: JAN | J5: APR | K5: JUL | L5: OCT | M5: JAN | N5: APR | O5: JUL | P5: OCT | Q5: JAN | R5: APR | S5: JUL | T5: OCT | U5: JAN | V5: APR | W5: JUL | X5: OCT | Y5: JAN | Z5: APR | AA5: JUL | AB5: OCT | AC5: JAN | AD5: APR
A6: California | B6: 3905210 | H6: California | I6: 3956654 | J6: 3996483 | K6: 4074650 | L6: 4147355 | M6: 4194682 | N6: 4202850 | O6: 4221057 | P6: 4285622 | Q6: 4351103 | R6: 4393812 | S6: 4476030 | T6: 4477428 | U6: 4445534 | V6: 4462799 | W6: 4480570 | X6: 4488298 | Y6: 4431693 | Z6: 4368561 | AA6: 4304439 | AB6: 4276281 | AC6: 4212342 | AD6: 4117494
A7: Alameda | B7: 120874 | H7: Alameda | I7: 122112 | J7: 123210 | K7: 124622 | L7: 126571 | M7: 126482 | N7: 126214 | O7: 125835 | P7: 129167 | Q7: 128065 | R7: 127457 | S7: 125434 | T7: 123955 | U7: 121684 | V7: 119790 | W7: 121577 | X7: 121539 | Y7: 118228 | Z7: 117298 | AA7: 115631 | AB7: 114855 | AC7: 111820 | AD7: 108049
A8: Alpine | B8: 144 | H8: Alpine | I8: 152 | J8: 145 | K8: 147 | L8: 137 | M8: 151 | N8: 153 | O8: 171 | P8: 154 | Q8: 176 | R8: 180 | S8: 194 | T8: 185 | U8: 171 | V8: 163 | W8: 171 | X8: 164 | Y8: 158 | Z8: 155 | AA8: 154 | AB8: 143 | AC8: 141 | AD8: 143
A9: Amador | B9: 3032 | H9: Amador | I9: 3081 | J9: 3214 | K9: 3287 | L9: 3340 | M9: 3319 | N9: 3262 | O9: 3280 | P9: 3261 | Q9: 3428 | R9: 3411 | S9: 3373 | T9: 3308 | U9: 3278 | V9: 3438 | W9: 3445 | X9: 3440 | Y9: 3384 | Z9: 3415 | AA9: 3324 | AB9: 3268 | AC9: 3162 | AD9: 3078
A10: Butte | B10: 28120 | H10: Butte | I10: 28228 | J10: 28623 | K10: 29226 | L10: 29899 | M10: 29807 | N10: 29770 | O10: 30211 | P10: 30365 | Q10: 30348 | R10: 30559 | S10: 31036 | T10: 31231 | U10: 31299 | V10: 31927 | W10: 32207 | X10: 32287 | Y10: 32167 | Z10: 32218 | AA10: 32165 | AB10: 31819 | AC10: 31092 | AD10: 30944
A11: Calaveras | B11: 4774 | H11: Calaveras | I11: 4875 | J11: 5000 | K11: 4998 | L11: 4951 | M11: 5004 | N11: 5023 | O11: 4969 | P11: 4866 | Q11: 5060 | R11: 5094 | S11: 5231 | T11: 5378 | U11: 5421 | V11: 5509 | W11: 5498 | X11: 5406 | Y11: 5246 | Z11: 5156 | AA11: 5147 | AB11: 5216 | AC11: 5094 | AD11: 5089
A12: Colusa | B12: 1628 | H12: Colusa | I12: 1707 | J12: 1810 | K12: 1728 | L12: 1600 | M12: 1820 | N12: 1840 | O12: 1710 | P12: 1624 | Q12: 1749 | R12: 1810 | S12: 1722 | T12: 1540 | U12: 1627 | V12: 1725 | W12: 1563 | X12: 1319 | Y12: 1325 | Z12: 1434 | AA12: 1410 | AB12: 1438 | AC12: 1588 | AD12: 1649
A13: Contra Costa | B13: 66920 | H13: Contra Costa | I13: 67029 | J13: 67462 | K13: 68789 | L13: 70227 | M13: 68857 | N13: 68625 | O13: 67763 | P13: 70212 | Q13: 71039 | R13: 71884 | S13: 76061 | T13: 77345 | U13: 72012 | V13: 71323 | W13: 72362 | X13: 71977 | Y13: 70493 | Z13: 69736 | AA13: 67647 | AB13: 65866 | AC13: 63918 | AD13: 62475
A14: Del Norte | B14: 5203 | H14: Del Norte | I14: 5366 | J14: 5423 | K14: 5445 | L14: 5247 | M14: 5251 | N14: 5149 | O14: 5132 | P14: 5032 | Q14: 5205 | R14: 5175 | S14: 5227 | T14: 5167 | U14: 5136 | V14: 5146 | W14: 5205 | X14: 5281 | Y14: 5361 | Z14: 5369 | AA14: 5300 | AB14: 5226 | AC14: 5198 | AD14: 5269
A15: El Dorado | B15: 11284 | H15: El Dorado | I15: 11341 | J15: 11522 | K15: 11620 | L15: 11772 | M15: 11975 | N15: 11947 | O15: 11765 | P15: 11497 | Q15: 11899 | R15: 12431 | S15: 12479 | T15: 12578 | U15: 13063 | V15: 13261 | W15: 13278 | X15: 13063 | Y15: 12975 | Z15: 12850 | AA15: 12890 | AB15: 12467 | AC15: 12387 | AD15: 12170
A16: Fresno | B16: 208200 | H16: Fresno | I16: 211602 | J16: 213832 | K16: 215016 | L16: 215286 | M16: 219915 | N16: 220493 | O16: 217757 | P16: 220916 | Q16: 226573 | R16: 230446 | S16: 224430 | T16: 223686 | U16: 227846 | V16: 229388 | W16: 227770 | X16: 227643 | Y16: 226870 | Z16: 224870 | AA16: 218671 | AB16: 214920 | AC16: 211698 | AD16: 207862
A17: Glenn | B17: 3253 | H17: Glenn | I17: 3384 | J17: 3422 | K17: 3419 | L17: 3436 | M17: 3555 | N17: 3606 | O17: 3549 | P17: 3412 | Q17: 3606 | R17: 3735 | S17: 3697 | T17: 3565 | U17: 3684 | V17: 3682 | W17: 3645 | X17: 3551 | Y17: 3581 | Z17: 3655 | AA17: 3699 | AB17: 3522 | AC17: 3524 | AD17: 3459
A18: Humboldt | B18: 14973 | H18: Humboldt | I18: 15105 | J18: 15302 | K18: 15495 | L18: 15547 | M18: 15689 | N18: 15819 | O18: 16507 | P18: 16624 | Q18: 17196 | R18: 18257 | S18: 19098 | T18: 19813 | U18: 20309 | V18: 20875 | W18: 21066 | X18: 21435 | Y18: 21226 | Z18: 21361 | AA18: 21148 | AB18: 21049 | AC18: 20875 | AD18: 20525
A19: Imperial | B19: 35463 | H19: Imperial | I19: 35317 | J19: 35099 | K19: 36091 | L19: 37524 | M19: 36983 | N19: 36277 | O19: 37083 | P19: 38207 | Q19: 38782 | R19: 38209 | S19: 40394 | T19: 42202 | U19: 42073 | V19: 42432 | W19: 43485 | X19: 44547 | Y19: 43457 | Z19: 42432 | AA19: 42490 | AB19: 43062 | AC19: 42423 | AD19: 41323
A20: Inyo | B20: 1838 | H20: Inyo | I20: 1954 | J20: 1945 | K20: 1951 | L20: 1967 | M20: 1992 | N20: 2058 | O20: 2132 | P20: 2028 | Q20: 2152 | R20: 2198 | S20: 2149 | T20: 2093 | U20: 2064 | V20: 2073 | W20: 2076 | X20: 2138 | Y20: 2104 | Z20: 2089 | AA20: 2072 | AB20: 1956 | AC20: 1923 | AD20: 1988
A21: Kern | B21: 134045 | H21: Kern | I21: 136622 | J21: 138799 | K21: 140798 | L21: 140403 | M21: 144045 | N21: 144678 | O21: 144653 | P21: 142748 | Q21: 147170 | R21: 147731 | S21: 148150 | T21: 147285 | U21: 149749 | V21: 157116 | W21: 160254 | X21: 161315 | Y21: 163371 | Z21: 165582 | AA21: 163720 | AB21: 162909 | AC21: 162758 | AD21: 160813
A22: Kings | B22: 22197 | H22: Kings | I22: 22772 | J22: 23029 | K22: 22949 | L22: 22594 | M22: 23337 | N22: 23729 | O22: 23543 | P22: 22985 | Q22: 23815 | R22: 24396 | S22: 24002 | T22: 23550 | U22: 24051 | V22: 24693 | W22: 24942 | X22: 24665 | Y22: 25133 | Z22: 24891 | AA22: 24414 | AB22: 24267 | AC22: 24565 | AD22: 24293
A23: Lake | B23: 9863 | H23: Lake | I23: 9935 | J23: 10174 | K23: 10039 | L23: 10118 | M23: 10232 | N23: 10263 | O23: 10453 | P23: 10290 | Q23: 10622 | R23: 10896 | S23: 11036 | T23: 11283 | U23: 11629 | V23: 11957 | W23: 12127 | X23: 14694 | Y23: 12618 | Z23: 12649 | AA23: 12378 | AB23: 12267 | AC23: 12239 | AD23: 12001
A24: Lassen | B24: 2980 | H24: Lassen | I24: 2931 | J24: 2948 | K24: 2933 | L24: 2956 | M24: 2939 | N24: 2954 | O24: 2971 | P24: 3015 | Q24: 3149 | R24: 3235 | S24: 3168 | T24: 3216 | U24: 3182 | V24: 3212 | W24: 3205 | X24: 3144 | Y24: 3164 | Z24: 3154 | AA24: 3147 | AB24: 3120 | AC24: 3148 | AD24: 3123
A25: Los Angeles | B25: 1055754 | H25: Los Angeles | I25: 1058962 | J25: 1059973 | K25: 1093422 | L25: 1124832 | M25: 1133944 | N25: 1134472 | O25: 1148512 | P25: 1169214 | Q25: 1177757 | R25: 1180079 | S25: 1193453 | T25: 1190842 | U25: 1185400 | V25: 1178282 | W25: 1183107 | X25: 1176870 | Y25: 1148302 | Z25: 1114522 | AA25: 1099674 | AB25: 1108041 | AC25: 1091333 | AD25: 1067896
A26: Madera | B26: 25548 | H26: Madera | I26: 26172 | J26: 26783 | K26: 26670 | L26: 25845 | M26: 26692 | N26: 27189 | O26: 26856 | P26: 26658 | Q26: 28263 | R26: 29027 | S26: 28885 | T26: 28701 | U26: 29310 | V26: 29932 | W26: 29699 | X26: 29653 | Y26: 30164 | Z26: 29647 | AA26: 28999 | AB26: 28637 | AC26: 31792 | AD26: 28309
A27: Marin | B27: 8995 | H27: Marin | I27: 8957 | J27: 9221 | K27: 9408 | L27: 9538 | M27: 9420 | N27: 9542 | O27: 9774 | P27: 9846 | Q27: 9998 | R27: 10224 | S27: 10397 | T27: 10475 | U27: 10403 | V27: 10485 | W27: 10687 | X27: 10717 | Y27: 10420 | Z27: 10351 | AA27: 10235 | AB27: 10185 | AC27: 10165 | AD27: 9827
A28: Mariposa | B28: 1704 | H28: Mariposa | I28: 1730 | J28: 1783 | K28: 1804 | L28: 1746 | M28: 1837 | N28: 1828 | O28: 1855 | P28: 1905 | Q28: 2034 | R28: 2059 | S28: 1974 | T28: 1972 | U28: 2033 | V28: 2127 | W28: 2152 | X28: 2075 | Y28: 2098 | Z28: 2101 | AA28: 1997 | AB28: 1935 | AC28: 1859 | AD28: 1834
A29: Mendocino | B29: 13222 | H29: Mendocino | I29: 13454 | J29: 13785 | K29: 13660 | L29: 13612 | M29: 13483 | N29: 13205 | O29: 13202 | P29: 13061 | Q29: 13415 | R29: 14074 | S29: 14007 | T29: 13591 | U29: 13178 | V29: 13008 | W29: 13204 | X29: 13395 | Y29: 13099 | Z29: 12720 | AA29: 12443 | AB29: 13249 | AC29: 11916 | AD29: 11667
A30: Merced | B30: 51481 | H30: Merced | I30: 52771 | J30: 53475 | K30: 53940 | L30: 53540 | M30: 55147 | N30: 55780 | O30: 55568 | P30: 54349 | Q30: 55842 | R30: 57288 | S30: 57733 | T30: 57128 | U30: 57836 | V30: 58981 | W30: 58778 | X30: 57934 | Y30: 58122 | Z30: 57715 | AA30: 56347 | AB30: 55112 | AC30: 55292 | AD30: 54979
A31: Modoc | B31: 1000 | H31: Modoc | I31: 1021 | J31: 1046 | K31: 997 | L31: 959 | M31: 965 | N31: 955 | O31: 935 | P31: 952 | Q31: 963 | R31: 997 | S31: 1001 | T31: 1033 | U31: 1023 | V31: 1012 | W31: 966 | X31: 972 | Y31: 1061 | Z31: 1050 | AA31: 1088 | AB31: 1109 | AC31: 1172 | AD31: 1180
A32: Mono | B32: 570 | H32: Mono | I32: 698 | J32: 709 | K32: 709 | L32: 619 | M32: 703 | N32: 606 | O32: 656 | P32: 644 | Q32: 823 | R32: 920 | S32: 855 | T32: 778 | U32: 849 | V32: 852 | W32: 856 | X32: 768 | Y32: 797 | Z32: 790 | AA32: 784 | AB32: 818 | AC32: 774 | AD32: 668
A33: Monterey | B33: 39133 | H33: Monterey | I33: 44819 | J33: 47110 | K33: 44518 | L33: 41994 | M33: 48096 | N33: 50064 | O33: 46145 | P33: 43325 | Q33: 51281 | R33: 53709 | S33: 49132 | T33: 45843 | U33: 52560 | V33: 54990 | W33: 50601 | X33: 48021 | Y33: 54487 | Z33: 55488 | AA33: 47811 | AB33: 44720 | AC33: 51274 | AD33: 51364
A34: Napa | B34: 6993 | H34: Napa | I34: 7073 | J34: 7209 | K34: 7287 | L34: 7181 | M34: 7165 | N34: 7097 | O34: 6710 | P34: 6599 | Q34: 7164 | R34: 7455 | S34: 7324 | T34: 7124 | U34: 7421 | V34: 7653 | W34: 7444 | X34: 7414 | Y34: 7533 | Z34: 7533 | AA34: 7246 | AB34: 7049 | AC34: 6879 | AD34: 6648
A35: Nevada | B35: 6345 | H35: Nevada | I35: 6509 | J35: 6919 | K35: 7105 | L35: 7339 | M35: 7389 | N35: 7327 | O35: 7452 | P35: 7422 | Q35: 7593 | R35: 7813 | S35: 7804 | T35: 7687 | U35: 7705 | V35: 7675 | W35: 7776 | X35: 7833 | Y35: 7694 | Z35: 7768 | AA35: 7684 | AB35: 7543 | AC35: 7336 | AD35: 7204
A36: Orange | B36: 205059 | H36: Orange | I36: 209924 | J36: 213200 | K36: 218827 | L36: 225212 | M36: 227792 | N36: 230478 | O36: 232862 | P36: 240817 | Q36: 245759 | R36: 248563 | S36: 270245 | T36: 273208 | U36: 253714 | V36: 254662 | W36: 257750 | X36: 260178 | Y36: 257551 | Z36: 254598 | AA36: 252962 | AB36: 250730 | AC36: 245723 | AD36: 237017
A37: Placer | B37: 17899 | H37: Placer | I37: 17900 | J37: 18082 | K37: 17815 | L37: 17834 | M37: 17706 | N37: 17632 | O37: 17673 | P37: 18178 | Q37: 18465 | R37: 18437 | S37: 18455 | T37: 18731 | U37: 18407 | V37: 18325 | W37: 18190 | X37: 18090 | Y37: 17969 | Z37: 17795 | AA37: 17692 | AB37: 17322 | AC37: 16652 | AD37: 16262
A38: Plumas | B38: 1514 | H38: Plumas | I38: 1564 | J38: 1662 | K38: 1654 | L38: 1612 | M38: 1759 | N38: 1729 | O38: 1604 | P38: 1660 | Q38: 1844 | R38: 1951 | S38: 1793 | T38: 1888 | U38: 2030 | V38: 2151 | W38: 1993 | X38: 2010 | Y38: 2208 | Z38: 2239 | AA38: 2025 | AB38: 2030 | AC38: 2143 | AD38: 2111
A39: Riverside | B39: 253780 | H39: Riverside | I39: 259798 | J39: 259750 | K39: 267997 | L39: 276481 | M39: 276891 | N39: 274951 | O39: 278117 | P39: 284797 | Q39: 287272 | R39: 285410 | S39: 289618 | T39: 296194 | U39: 292785 | V39: 290231 | W39: 295239 | X39: 299730 | Y39: 293265 | Z39: 287669 | AA39: 286427 | AB39: 286308 | AC39: 278710 | AD39: 269828
A40: Sacramento | B40: 199285 | H40: Sacramento | I40: 200011 | J40: 200900 | K40: 204104 | L40: 208709 | M40: 210145 | N40: 209287 | O40: 210033 | P40: 213386 | Q40: 213072 | R40: 215919 | S40: 217077 | T40: 220147 | U40: 219747 | V40: 219096 | W40: 219932 | X40: 220373 | Y40: 218604 | Z40: 215894 | AA40: 213173 | AB40: 211464 | AC40: 208408 | AD40: 207187
A41: San Benito | B41: 6125 | H41: San Benito | I41: 6211 | J41: 6186 | K41: 6114 | L41: 6053 | M41: 6390 | N41: 6339 | O41: 6232 | P41: 5979 | Q41: 6378 | R41: 6390 | S41: 6169 | T41: 5905 | U41: 6193 | V41: 6283 | W41: 5988 | X41: 5936 | Y41: 5967 | Z41: 5850 | AA41: 5527 | AB41: 5281 | AC41: 5225 | AD41: 5186
A42: San Bernardino | B42: 342917 | H42: San Bernardino | I42: 346744 | J42: 350194 | K42: 361404 | L42: 368935 | M42: 368618 | N42: 369163 | O42: 373620 | P42: 378592 | Q42: 382585 | R42: 385964 | S42: 392265 | T42: 399898 | U42: 398410 | V42: 398523 | W42: 403228 | X42: 405834 | Y42: 396730 | Z42: 392070 | AA42: 391714 | AB42: 387537 | AC42: 374387 | AD42: 363995
A43: San Diego | B43: 235332 | H43: San Diego | I43: 240771 | J43: 243130 | K43: 246971 | L43: 253631 | M43: 253991 | N43: 256921 | O43: 260576 | P43: 270406 | Q43: 272951 | R43: 276963 | S43: 300896 | T43: 285499 | U43: 287399 | V43: 289089 | W43: 291188 | X43: 293435 | Y43: 291088 | Z43: 287392 | AA43: 286685 | AB43: 284723 | AC43: 277364 | AD43: 269370
A44: San Francisco | B44: 51367 | H44: San Francisco | I44: 50905 | J44: 50876 | K44: 50894 | L44: 50994 | M44: 50440 | N44: 50482 | O44: 50124 | P44: 50731 | Q44: 50484 | R44: 51155 | S44: 53900 | T44: 54246 | U44: 50987 | V44: 51449 | W44: 52180 | X44: 52684 | Y44: 52672 | Z44: 52749 | AA44: 53215 | AB44: 52717 | AC44: 52106 | AD44: 50721
A45: San Joaquin | B45: 102770 | H45: San Joaquin | I45: 104725 | J45: 106481 | K45: 107532 | L45: 108719 | M45: 110995 | N45: 112172 | O45: 113230 | P45: 113328 | Q45: 114754 | R45: 116685 | S45: 118029 | T45: 119161 | U45: 120014 | V45: 122470 | W45: 122077 | X45: 121228 | Y45: 119261 | Z45: 118036 | AA45: 115760 | AB45: 113445 | AC45: 111431 | AD45: 108793
A46: San Luis Obispo | B46: 17122 | H46: San Luis Obispo | I46: 17679 | J46: 17630 | K46: 17269 | L46: 17603 | M46: 17743 | N46: 17852 | O46: 17319 | P46: 17380 | Q46: 17988 | R46: 18502 | S46: 17983 | T46: 17677 | U46: 18402 | V46: 18578 | W46: 18642 | X46: 18677 | Y46: 18697 | Z46: 18513 | AA46: 18104 | AB46: 17687 | AC46: 17379 | AD46: 17301
A47: San Mateo | B47: 25111 | H47: San Mateo | I47: 26275 | J47: 27156 | K47: 28106 | L47: 28900 | M47: 28487 | N47: 28842 | O47: 29339 | P47: 31071 | Q47: 32181 | R47: 32354 | S47: 32208 | T47: 32074 | U47: 31880 | V47: 31947 | W47: 31752 | X47: 31527 | Y47: 30873 | Z47: 30014 | AA47: 29256 | AB47: 28610 | AC47: 27623 | AD47: 26516
A48: Santa Barbara | B48: 30550 | H48: Santa Barbara | I48: 31120 | J48: 33118 | K48: 32030 | L48: 31696 | M48: 33164 | N48: 34310 | O48: 32221 | P48: 32271 | Q48: 34841 | R48: 36132 | S48: 34497 | T48: 34829 | U48: 37090 | V48: 37966 | W48: 36443 | X48: 36809 | Y48: 39696 | Z48: 40218 | AA48: 37874 | AB48: 37019 | AC48: 39357 | AD48: 39691
A49: Santa Clara | B49: 99799 | H49: Santa Clara | I49: 100983 | J49: 103487 | K49: 105676 | L49: 108071 | M49: 108748 | N49: 110071 | O49: 110622 | P49: 112280 | Q49: 112246 | R49: 113186 | S49: 113439 | T49: 113741 | U49: 112449 | V49: 111985 | W49: 110974 | X49: 109453 | Y49: 106496 | Z49: 105301 | AA49: 103430 | AB49: 101253 | AC49: 98291 | AD49: 93542
A50: Santa Cruz | B50: 19790 | H50: Santa Cruz | I50: 20577 | J50: 22588 | K50: 22390 | L50: 21161 | M50: 23021 | N50: 24017 | O50: 22732 | P50: 22237 | Q50: 23647 | R50: 24910 | S50: 23719 | T50: 23430 | U50: 25385 | V50: 26274 | W50: 25934 | X50: 25930 | Y50: 27374 | Z50: 27613 | AA50: 26340 | AB50: 25530 | AC50: 26869 | AD50: 26905
A51: Shasta | B51: 24418 | H51: Shasta | I51: 24418 | J51: 24673 | K51: 25025 | L51: 24689 | M51: 23749 | N51: 23665 | O51: 23709 | P51: 22949 | Q51: 23916 | R51: 24283 | S51: 24671 | T51: 24856 | U51: 24775 | V51: 25180 | W51: 25293 | X51: 25247 | Y51: 24753 | Z51: 24569 | AA51: 24222 | AB51: 24243 | AC51: 23707 | AD51: 23176
A52: Sierra | B52: 239 | H52: Sierra | I52: 262 | J52: 266 | K52: 302 | L52: 292 | M52: 314 | N52: 306 | O52: 305 | P52: 293 | Q52: 299 | R52: 306 | S52: 294 | T52: 298 | U52: 320 | V52: 324 | W52: 317 | X52: 307 | Y52: 297 | Z52: 271 | AA52: 265 | AB52: 279 | AC52: 295 | AD52: 275
A53: Siskiyou | B53: 5784 | H53: Siskiyou | I53: 5978 | J53: 6089 | K53: 6100 | L53: 6114 | M53: 6426 | N53: 6527 | O53: 6486 | P53: 6523 | Q53: 6927 | R53: 7024 | S53: 6907 | T53: 6911 | U53: 6993 | V53: 7132 | W53: 6992 | X53: 7026 | Y53: 7116 | Z53: 6942 | AA53: 6702 | AB53: 6544 | AC53: 6605 | AD53: 6553
A54: Solano | B54: 38995 | H54: Solano | I54: 39019 | J54: 39399 | K54: 40161 | L54: 41119 | M54: 41335 | N54: 41065 | O54: 41287 | P54: 41998 | Q54: 42499 | R54: 43407 | S54: 43531 | T54: 43554 | U54: 43385 | V54: 43830 | W54: 44119 | X54: 44388 | Y54: 43644 | Z54: 42828 | AA54: 42303 | AB54: 41617 | AC54: 40381 | AD54: 39724
A55: Sonoma | B55: 31820 | H55: Sonoma | I55: 31838 | J55: 33291 | K55: 34447 | L55: 34288 | M55: 40348 | N55: 34800 | O55: 34451 | P55: 34664 | Q55: 34735 | R55: 35221 | S55: 34951 | T55: 35567 | U55: 35677 | V55: 36090 | W55: 36183 | X55: 35691 | Y55: 35037 | Z55: 34425 | AA55: 33804 | AB55: 32490 | AC55: 31271 | AD55: 30719
A56: Stanislaus | B56: 84867 | H56: Stanislaus | I56: 85530 | J56: 86863 | K56: 88848 | L56: 89458 | M56: 90507 | N56: 90467 | O56: 91048 | P56: 90962 | Q56: 92065 | R56: 92163 | S56: 92778 | T56: 91500 | U56: 91585 | V56: 92704 | W56: 92572 | X56: 92379 | Y56: 90153 | Z56: 89096 | AA56: 87686 | AB56: 86397 | AC56: 84966 | AD56: 83375
A57: Sutter | B57: 11259 | H57: Sutter | I57: 11667 | J57: 11972 | K57: 11946 | L57: 11901 | M57: 12365 | N57: 12460 | O57: 12440 | P57: 12119 | Q57: 12740 | R57: 12986 | S57: 13083 | T57: 12903 | U57: 13047 | V57: 13160 | W57: 13236 | X57: 13230 | Y57: 13253 | Z57: 13467 | AA57: 13127 | AB57: 12653 | AC57: 12912 | AD57: 12998
A58: Tehama | B58: 9262 | H58: Tehama | I58: 9410 | J58: 9592 | K58: 9899 | L58: 9693 | M58: 9737 | N58: 9682 | O58: 9916 | P58: 10181 | Q58: 10409 | R58: 10963 | S58: 11155 | T58: 10646 | U58: 10255 | V58: 10371 | W58: 10543 | X58: 10600 | Y58: 10136 | Z58: 10196 | AA58: 9981 | AB58: 9600 | AC58: 9381 | AD58: 9341
A59: Trinity | B59: 1463 | H59: Trinity | I59: 1531 | J59: 1513 | K59: 1557 | L59: 1638 | M59: 1613 | N59: 1548 | O59: 1516 | P59: 1561 | Q59: 1609 | R59: 1775 | S59: 1838 | T59: 1880 | U59: 1829 | V59: 1808 | W59: 1867 | X59: 1862 | Y59: 1796 | Z59: 1757 | AA59: 1708 | AB59: 1721 | AC59: 1711 | AD59: 1742
A60: Tulare | B60: 105927 | H60: Tulare | I60: 108269 | J60: 109820 | K60: 110086 | L60: 110559 | M60: 114115 | N60: 115236 | O60: 114774 | P60: 116505 | Q60: 120087 | R60: 123505 | S60: 132774 | T60: 133499 | U60: 123898 | V60: 125269 | W60: 123955 | X60: 125031 | Y60: 125618 | Z60: 125132 | AA60: 120959 | AB60: 119982 | AC60: 120968 | AD60: 120321
A61: Tuolumne | B61: 5073 | H61: Tuolumne | I61: 5211 | J61: 5167 | K61: 5103 | L61: 5153 | M61: 5253 | N61: 5227 | O61: 5153 | P61: 5192 | Q61: 5409 | R61: 5567 | S61: 5556 | T61: 5465 | U61: 5414 | V61: 5559 | W61: 5603 | X61: 5707 | Y61: 5609 | Z61: 5493 | AA61: 5414 | AB61: 5358 | AC61: 5276 | AD61: 5112
A62: Ventura | B62: 62970 | H62: Ventura | I62: 63349 | J62: 64668 | K62: 64382 | L62: 66179 | M62: 66999 | N62: 67793 | O62: 66971 | P62: 69194 | Q62: 69753 | R62: 71740 | S62: 77031 | T62: 78777 | U62: 74220 | V62: 75528 | W62: 75003 | X62: 76720 | Y62: 76144 | Z62: 75635 | AA62: 74297 | AB62: 74515 | AC62: 73321 | AD62: 71562
A63: Yolo | B63: 16160 | H63: Yolo | I63: 16466 | J63: 16835 | K63: 16880 | L63: 16929 | M63: 16966 | N63: 16990 | O63: 16629 | P63: 17295 | Q63: 17981 | R63: 18353 | S63: 18273 | T63: 18981 | U63: 20044 | V63: 20591 | W63: 20610 | X63: 21088 | Y63: 21479 | Z63: 21293 | AA63: 20820 | AB63: 20333 | AC63: 19633 | AD63: 19513
A64: Yuba | B64: 13017 | H64: Yuba | I64: 12840 | J64: 12923 | K64: 13058 | L64: 12952 | M64: 12871 | N64: 12913 | O64: 12919 | P64: 12695 | Q64: 13040 | R64: 13249 | S64: 13449 | T64: 13409 | U64: 13204 | V64: 13517 | W64: 13621 | X64: 13868 | Y64: 13569 | Z64: 13507 | AA64: 13252 | AB64: 13125 | AC64: 12902 | AD64: 12829

Sheet Timely (hidden)
C2: 30 DAY 2011 | J2: 30 DAY 2012 to current
C3: Sum of qtr_timeliness_30d_ly | D3: Column Labels | J3: Sum of mth_timeliness_30d_pct | K3: Column Labels
D4: 2012 | K4: 2012 | O4: 2013 | S4: 2014 | W4: 2015 | AA4: 2016 | AE4: 2017
C5: Row Labels | D5: 4 | J5: Row Labels | K5: JAN | L5: APR | M5: JUL | N5: OCT | O5: JAN | P5: APR | Q5: JUL | R5: OCT | S5: JAN | T5: APR | U5: JUL | V5: OCT | W5: JAN | X5: APR | Y5: JUL | Z5: OCT | AA5: JAN | AB5: APR | AC5: JUL | AD5: OCT | AE5: JAN | AF5: APR
C6: California | D6: 0.958 | J6: California | K6: 0.9605 | L6: 0.9755 | M6: 0.9766 | N6: 0.9772 | O6: 0.9661 | P6: 0.9708 | Q6: 0.9728 | R6: 0.9645 | S6: 0.9601 | T6: 0.9588 | U6: 0.9703 | V6: 0.9674 | W6: 0.9682 | X6: 0.9721 | Y6: 0.9684 | Z6: 0.9702 | AA6: 0.9747 | AB6: 0.9744 | AC6: 0.974 | AD6: 0.97721 | AE6: 0.97979 | AF6: 0.98532
C7: Alameda | D7: 0.844 | J7: Alameda | K7: 0.9093 | L7: 0.9154 | M7: 0.9109 | N7: 0.9265 | O7: 0.9001 | P7: 0.9141 | Q7: 0.887 | R7: 0.9057 | S7: 0.8446 | T7: 0.8578 | U7: 0.8843 | V7: 0.8637 | W7: 0.8524 | X7: 0.8351 | Y7: 0.7846 | Z7: 0.8561 | AA7: 0.9211 | AB7: 0.9596 | AC7: 0.9885 | AD7: 0.99316 | AE7: 0.99451
C8: Alpine | D8: 1 | J8: Alpine | K8: 1 | L8: 1 | M8: 1 | N8: 1 | O8: 1 | P8: 1 | Q8: 1 | R8: 1 | S8: 1 | T8: 1 | U8: 1 | V8: 1 | W8: 1 | X8: 1 | Y8: 1 | Z8: 1 | AA8: 1 | AB8: 1 | AC8: 1 | AD8: 1 | AE8: 1 | AF8: 1
C9: Amador | D9: 0.774 | J9: Amador | K9: 0.8707 | L9: 0.8963 | M9: 0.9562 | N9: 0.973 | O9: 0.9143 | P9: 0.9732 | Q9: 0.9725 | R9: 0.9314 | S9: 0.937 | T9: 0.9663 | U9: 1 | V9: 0.9565 | W9: 0.963 | X9: 1 | Y9: 1 | Z9: 0.9765 | AA9: 0.9583 | AB9: 0.9886 | AC9: 1 | AD9: 0.9878 | AE9: 0.96203 | AF9: 1
C10: Butte | D10: 0.827 | J10: Butte | K10: 0.886 | L10: 0.8696 | M10: 0.8948 | N10: 0.9155 | O10: 0.9391 | P10: 0.9415 | Q10: 0.9602 | R10: 0.9061 | S10: 0.9321 | T10: 0.8857 | U10: 0.9373 | V10: 0.9424 | W10: 0.9128 | X10: 0.9457 | Y10: 0.9201 | Z10: 0.8198 | AA10: 0.9128 | AB10: 0.9117 | AC10: 0.9344 | AD10: 0.83825 | AE10: 0.90244 | AF10: 0.87434
C11: Calaveras | D11: 0.992 | J11: Calaveras | K11: 0.9595 | L11: 0.9648 | M11: 1 | N11: 0.9872 | O11: 0.9699 | P11: 0.9817 | Q11: 0.98 | R11: 1 | S11: 0.993 | T11: 0.9583 | U11: 1 | V11: 1 | W11: 0.9933 | X11: 1 | Y11: 1 | Z11: 1 | AA11: 0.9912 | AB11: 0.9915 | AC11: 0.9857 | AD11: 0.99237 | AE11: 0.96324 | AF11: 1
C12: Colusa | D12: 1 | J12: Colusa | K12: 1 | L12: 0.9811 | M12: 0.9375 | N12: 1 | O12: 0.9342 | P12: 0.9804 | Q12: 1 | R12: 0.9167 | S12: 0.9565 | T12: 0.6765 | U12: 0.8182 | V12: 0.6087 | W12: 0.8871 | X12: 0.875 | Y12: 1 | Z12: 1 | AA12: 0.9143 | AB12: 0.8333 | AC12: 0.8846 | AD12: 0.7619 | AE12: 0.8871 | AF12: 1
C13: Contra Costa | D13: 0.865 | J13: Contra Costa | K13: 0.9637 | L13: 0.9602 | M13: 0.9652 | N13: 0.9413 | O13: 0.9465 | P13: 0.9496 | Q13: 0.9499 | R13: 0.9219 | S13: 0.9101 | T13: 0.952 | U13: 0.9346 | V13: 0.9253 | W13: 0.9344 | X13: 0.9684 | Y13: 0.9657 | Z13: 0.9543 | AA13: 0.958 | AB13: 0.9648 | AC13: 0.9692 | AD13: 0.96454 | AE13: 0.95804 | AF13: 0.96963
C14: Del Norte | D14: 1 | J14: Del Norte | K14: 1 | L14: 1 | M14: 1 | N14: 1 | O14: 1 | P14: 1 | Q14: 1 | R14: 1 | S14: 1 | T14: 1 | U14: 0.991 | V14: 1 | W14: 0.9889 | X14: 1 | Y14: 1 | Z14: 1 | AA14: 0.9909 | AB14: 0.9886 | AC14: 0 | AD14: 1 | AE14: 1 | AF14: 0.9798
C15: El Dorado | D15: 1 | J15: El Dorado | K15: 0.9981 | L15: 1 | M15: 1 | N15: 1 | O15: 0.9795 | P15: 0.9924 | Q15: 0.9954 | R15: 0.9879 | S15: 0.988 | T15: 0.9885 | U15: 0.9951 | V15: 1 | W15: 1 | X15: 0.995 | Y15: 1 | Z15: 0.9973 | AA15: 1 | AB15: 0.9852 | AC15: 0.971 | AD15: 0.98542 | AE15: 0.97619 | AF15: 1
C16: Fresno | D16: 1 | J16: Fresno | K16: 1 | L16: 1 | M16: 0.9677 | N16: 0.9843 | O16: 0.9694 | P16: 0.9598 | Q16: 0.9186 | R16: 0.9246 | S16: 0.9046 | T16: 0.9131 | U16: 0.948 | V16: 0.9571 | W16: 0.9575 | X16: 0.941 | Y16: 0.9442 | Z16: 0.935 | AA16: 0.9591 | AB16: 0.9494 | AC16: 0.9546 | AD16: 0.95947 | AE16: 0.96692 | AF16: 0.97844
C17: Glenn | D17: 1 | J17: Glenn | K17: 0 | L17: 1 | M17: 1 | N17: 1 | O17: 1 | P17: 1 | Q17: 1 | R17: 1 | S17: 1 | T17: 0.9875 | U17: 1 | V17: 1 | W17: 1 | X17: 1 | Y17: 1 | Z17: 1 | AA17: 0.9885 | AB17: 1 | AC17: 1 | AD17: 0.98113 | AE17: 0.96203 | AF17: 0.94737
C18: Humboldt | D18: 0.939 | J18: Humboldt | K18: 0.9551 | L18: 0.9915 | M18: 0.9788 | N18: 0.988 | O18: 0.9651 | P18: 0.9892 | Q18: 0.9507 | R18: 0.9041 | S18: 0.9569 | T18: 0.9865 | U18: 0.9934 | V18: 0.994 | W18: 0.997 | X18: 0.9983 | Y18: 1 | Z18: 0.9986 | AA18: 0.9964 | AB18: 0.9876 | AC18: 0.9961 | AD18: 0.96143 | AE18: 0.99071 | AF18: 0.99821
C19: Imperial | D19: 1 | J19: Imperial | K19: 1 | L19: 1 | M19: 1 | N19: 0.9976 | O19: 1 | P19: 1 | Q19: 0.9307 | R19: 0.8821 | S19: 0.9535 | T19: 0.9447 | U19: 0.9148 | V19: 0.9151 | W19: 0.9399 | X19: 0.9486 | Y19: 0.9763 | Z19: 0.9762 | AA19: 0.9791 | AB19: 0.9702 | AC19: 0.98 | AD19: 0.98045 | AE19: 0.97956 | AF19: 0.98561
C20: Inyo | D20: 0.986 | J20: Inyo | K20: 1 | L20: 0.9855 | M20: 1 | N20: 0.9828 | O20: 0.9878 | P20: 1 | Q20: 1 | R20: 1 | S20: 0.9914 | T20: 1 | U20: 0.9839 | V20: 1 | W20: 0.9855 | X20: 1 | Y20: 1 | Z20: 1 | AA20: 1 | AB20: 0.9808 | AC20: 1 | AD20: 1 | AE20: 0.92727 | AF20: 0.98361
C21: Kern | D21: 0.987 | J21: Kern | K21: 0.9879 | L21: 0.9867 | M21: 0.9895 | N21: 0.9857 | O21: 0.9747 | P21: 0.9914 | Q21: 0.9922 | R21: 0.9839 | S21: 0.9768 | T21: 0.9836 | U21: 0.9945 | V21: 0.9951 | W21: 0.9935 | X21: 0.9938 | Y21: 0.9916 | Z21: 0.9962 | AA21: 0.9946 | AB21: 0.9856 | AC21: 0.98 | AD21: 0.98747 | AE21: 0.97985 | AF21: 0.98847
C22: Kings | D22: 1 | J22: Kings | K22: 1 | L22: 1 | M22: 0.9962 | N22: 0.9935 | O22: 0.9883 | P22: 0.9836 | Q22: 0.9959 | R22: 0.9828 | S22: 0.9685 | T22: 0.9912 | U22: 0.994 | V22: 0.9982 | W22: 0.9968 | X22: 0.998 | Y22: 0.9981 | Z22: 1 | AA22: 0.9969 | AB22: 0.9892 | AC22: 0.9864 | AD22: 0.99677 | AE22: 0.99045 | AF22: 0.99389
C23: Lake | D23: 0.97 | J23: Lake | K23: 0.9466 | L23: 0.9793 | M23: 0.9554 | N23: 0.9826 | O23: 0.9414 | P23: 0.9609 | Q23: 0.9474 | R23: 0.7655 | S23: 0.8646 | T23: 0.8726 | U23: 0.8826 | V23: 0.9514 | W23: 0.975 | X23: 0.9803 | Y23: 0.9902 | Z23: 0.9889 | AA23: 0.971 | AB23: 0.9529 | AC23: 0.959 | AD23: 0.91575 | AE23: 0.93294 | AF23: 0.95364
C24: Lassen | D24: 0.949 | J24: Lassen | K24: 0.943 | L24: 0.992 | M24: 0.9573 | N24: 0.9779 | O24: 0.9706 | P24: 0.9892 | Q24: 0.9789 | R24: 0.9574 | S24: 0.9018 | T24: 0.9615 | U24: 0.9383 | V24: 0.8316 | W24: 0.8675 | X24: 0.9437 | Y24: 0.8852 | Z24: 0.7705 | AA24: 0.831 | AB24: 0.9385 | AC24: 0.9014 | AD24: 0.87654 | AE24: 0.95 | AF24: 0.91139
C25: Los Angeles | D25: 0.968 | J25: Los Angeles | K25: 0.9623 | L25: 0.9749 | M25: 0.9774 | N25: 0.9717 | O25: 0.9573 | P25: 0.9671 | Q25: 0.9752 | R25: 0.9636 | S25: 0.9693 | T25: 0.9632 | U25: 0.9724 | V25: 0.9648 | W25: 0.9669 | X25: 0.9708 | Y25: 0.9598 | Z25: 0.9652 | AA25: 0.9682 | AB25: 0.9644 | AC25: 0.9532 | AD25: 0.97428 | AE25: 0.98537 | AF25: 0.98908
C26: Madera | D26: 0.964 | J26: Madera | K26: 0.976 | L26: 0.9836 | M26: 0.9914 | N26: 0.9845 | O26: 0.9614 | P26: 0.9782 | Q26: 0.9752 | R26: 0.9832 | S26: 0.9708 | T26: 0.9788 | U26: 0.9956 | V26: 0.9981 | W26: 0.9868 | X26: 1 | Y26: 0.9881 | Z26: 1 | AA26: 0.9979 | AB26: 0.9858 | AC26: 0.9914 | AD26: 0.98 | AE26: 0.98699 | AF26: 0.99679
C27: Marin | D27: 0.997 | J27: Marin | K27: 0.9749 | L27: 0.968 | M27: 0.9942 | N27: 0.9707 | O27: 0.9446 | P27: 0.9506 | Q27: 0.9755 | R27: 0.9377 | S27: 0.9468 | T27: 0.9604 | U27: 0.9778 | V27: 0.9693 | W27: 0.9823 | X27: 0.9693 | Y27: 0.9942 | Z27: 1 | AA27: 0.9926 | AB27: 0.9856 | AC27: 0.9522 | AD27: 0.98193 | AE27: 1 | AF27: 0.98921
C28: Mariposa | D28: 0.83 | J28: Mariposa | K28: 0.9403 | L28: 0.9063 | M28: 1 | N28: 0.8727 | O28: 0.8966 | P28: 0.9111 | Q28: 0.9362 | R28: 0.9265 | S28: 0.9118 | T28: 0.8723 | U28: 0.8649 | V28: 0.8043 | W28: 0.8478 | X28: 1 | Y28: 1 | Z28: 0.9762 | AA28: 0.9792 | AB28: 0.975 | AC28: 1 | AD28: 0.97143 | AE28: 0.85106 | AF28: 0.79545
C29: Mendocino | D29: 0.998 | J29: Mendocino | K29: 0.992 | L29: 0.9943 | M29: 0.9912 | N29: 0.9944 | O29: 0.994 | P29: 1 | Q29: 0.9956 | R29: 0.9911 | S29: 0.9941 | T29: 0.9972 | U29: 0.9946 | V29: 0.9808 | W29: 0.9866 | X29: 1 | Y29: 0.9951 | Z29: 0.9907 | AA29: 0.9973 | AB29: 0.9299 | AC29: 0.9406 | AD29: 0.92898 | AE29: 0.97179 | AF29: 0.92308
C30: Merced | D30: 0.993 | J30: Merced | K30: 0.9742 | L30: 0.9935 | M30: 0.9974 | N30: 0.996 | O30: 0.9864 | P30: 0.9978 | Q30: 0.9968 | R30: 0.9844 | S30: 0.9614 | T30: 0.972 | U30: 0.9828 | V30: 0.989 | W30: 0.9769 | X30: 0.9966 | Y30: 0.9977 | Z30: 0.9963 | AA30: 0.9955 | AB30: 0.9856 | AC30: 0.9715 | AD30: 0.9522 | AE30: 0.92204 | AF30: 0.98429
C31: Modoc | D31: 1 | J31: Modoc | K31: 0.9783 | L31: 1 | M31: 0.9545 | N31: 1 | O31: 1 | P31: 1 | Q31: 1 | R31: 1 | S31: 0.9667 | T31: 1 | U31: 1 | V31: 1 | W31: 1 | X31: 0.8947 | Y31: 1 | Z31: 0.9231 | AA31: 0.9459 | AB31: 1 | AC31: 1 | AD31: 0.97059 | AE31: 0.97727 | AF31: 0.96
C32: Mono | D32: 0.958 | J32: Mono | K32: 0.9778 | L32: 0.9348 | M32: 0.9091 | N32: 0.9672 | O32: 0.9118 | P32: 1 | Q32: 0.9714 | R32: 0.9206 | S32: 0.9344 | T32: 1 | U32: 0.9063 | V32: 1 | W32: 0.9394 | X32: 0.963 | Y32: 0.9615 | Z32: 1 | AA32: 1 | AB32: 0.9667 | AC32: 0.95 | AD32: 0.98113 | AE32: 1 | AF32: 1
C33: Monterey | D33: 1 | J33: Monterey | K33: 0.9995 | L33: 1 | M33: 1 | N33: 1 | O33: 0.9985 | P33: 1 | Q33: 1 | R33: 1 | S33: 1 | T33: 1 | U33: 1 | V33: 1 | W33: 1 | X33: 1 | Y33: 1 | Z33: 1 | AA33: 0.9983 | AB33: 0.9979 | AC33: 0.9912 | AD33: 0.9649 | AE33: 0.97734 | AF33: 0.99861
C34: Napa | D34: 0.966 | J34: Napa | K34: 1 | L34: 0.991 | M34: 0.9952 | N34: 0.9298 | O34: 0.7327 | P34: 0.6341 | Q34: 0.75 | R34: 0.7671 | S34: 0.72 | T34: 0.9722 | U34: 0.9831 | V34: 0.8817 | W34: 0.942 | X34: 0.9881 | Y34: 0.9699 | Z34: 0.9716 | AA34: 0.9704 | AB34: 0.9869 | AC34: 0.9669 | AD34: 0.96503 | AE34: 0.97605 | AF34: 0.94776
C35: Nevada | D35: 0.98 | J35: Nevada | K35: 0.9748 | L35: 0.9932 | M35: 1 | N35: 1 | O35: 0.9926 | P35: 1 | Q35: 0.9961 | R35: 0.9962 | S35: 0.9957 | T35: 0.9758 | U35: 0.99 | V35: 1 | W35: 0.9652 | X35: 0.9889 | Y35: 1 | Z35: 1 | AA35: 1 | AB35: 0.9381 | AC35: 0 | AD35: 0.83186 | AE35: 0.8836 | AF35: 0.7561
C36: Orange | D36: 0.997 | J36: Orange | K36: 0.9961 | L36: 0.9987 | M36: 0.9985 | N36: 0.9965 | O36: 0.9978 | P36: 0.9975 | Q36: 0.9976 | R36: 0.9948 | S36: 0.984 | T36: 0.9769 | U36: 0.9816 | V36: 0.985 | W36: 0.9864 | X36: 0.9878 | Y36: 0.9867 | Z36: 0.9872 | AA36: 0.9793 | AB36: 0.9867 | AC36: 0.9879 | AD36: 0.98992 | AE36: 0.98636 | AF36: 0.9917
C37: Placer | D37: 0.915 | J37: Placer | K37: 0.9536 | L37: 0.9795 | M37: 0.9664 | N37: 0.9814 | O37: 0.989 | P37: 0.9945 | Q37: 0.9972 | R37: 0.9769 | S37: 0.9975 | T37: 0.9879 | U37: 0.9808 | V37: 0.9926 | W37: 0.982 | X37: 0.9822 | Y37: 0.9466 | Z37: 0.967 | AA37: 0.981 | AB37: 0.9764 | AC37: 0 | AD37: 1 | AE37: 1 | AF37: 1
C38: Plumas | D38: 0.957 | J38: Plumas | K38: 0.7736 | L38: 0.9792 | M38: 0.9474 | N38: 0.859 | O38: 0.9189 | P38: 1 | Q38: 1 | R38: 0.9634 | S38: 0.987 | T38: 1 | U38: 1 | V38: 0.9636 | W38: 1 | X38: 1 | Y38: 1 | Z38: 0.9767 | AA38: 1 | AB38: 1 | AC38: 1 | AD38: 1 | AE38: 1 | AF38: 0.95918
C39: Riverside | D39: 0.999 | J39: Riverside | K39: 0.9989 | L39: 0.9998 | M39: 0.9996 | N39: 0.9992 | O39: 0.9969 | P39: 0.9986 | Q39: 0.9956 | R39: 0.9967 | S39: 0.9971 | T39: 0.9956 | U39: 0.9968 | V39: 0.9941 | W39: 0.9955 | X39: 0.9969 | Y39: 0.9985 | Z39: 0.9948 | AA39: 0.9967 | AB39: 0.9942 | AC39: 0.9941 | AD39: 0.99388 | AE39: 0.9935 | AF39: 0.99618
C40: Sacramento | D40: 0.965 | J40: Sacramento | K40: 0.9097 | L40: 0.9915 | M40: 0.9698 | N40: 0.9874 | O40: 0.99 | P40: 0.9886 | Q40: 0.9885 | R40: 0.9788 | S40: 0.9759 | T40: 0.9754 | U40: 0.9894 | V40: 0.9862 | W40: 0.9893 | X40: 0.9919 | Y40: 0.9894 | Z40: 0.9816 | AA40: 0.9917 | AB40: 0.9926 | AC40: 0.9897 | AD40: 0.99122 | AE40: 0.98607 | AF40: 0.9929
C41: San Benito | D41: 0.973 | J41: San Benito | K41: 0.9904 | L41: 0.9781 | M41: 0.9873 | N41: 1 | O41: 0.9842 | P41: 0.944 | Q41: 1 | R41: 0.9944 | S41: 1 | T41: 1 | U41: 1 | V41: 0.9 | W41: 0.9811 | X41: 0.9921 | Y41: 0.9908 | Z41: 1 | AA41: 1 | AB41: 0.9667 | AC41: 0.9891 | AD41: 0.94845 | AE41: 0.89247 | AF41: 0.98958
C42: San Bernardino | D42: 1 | J42: San Bernardino | K42: 0.9993 | L42: 0.9992 | M42: 0.9994 | N42: 0.9989 | O42: 0.9994 | P42: 0.9999 | Q42: 0.9975 | R42: 0.9977 | S42: 0.9974 | T42: 0.9993 | U42: 0.9998 | V42: 0.9999 | W42: 0.9999 | X42: 0.9998 | Y42: 0.9995 | Z42: 0.9995 | AA42: 0.9993 | AB42: 0.9947 | AC42: 0.9945 | AD42: 0.99196 | AE42: 0.99344 | AF42: 0.99462
C43: San Diego | D43: 0.952 | J43: San Diego | K43: 0.9767 | L43: 0.9827 | M43: 0.9718 | N43: 0.9786 | O43: 0.9688 | P43: 0.9651 | Q43: 0.9634 | R43: 0.9789 | S43: 0.9745 | T43: 0.902 | U43: 0.9353 | V43: 0.9337 | W43: 0.9356 | X43: 0.9383 | Y43: 0.9515 | Z43: 0.9593 | AA43: 0.9611 | AB43: 0.9558 | AC43: 0.985 | AD43: 0.98499 | AE43: 0.97713 | AF43: 0.98116
C44: San Francisco | D44: 0.974 | J44: San Francisco | K44: 0.9876 | L44: 0.989 | M44: 0.9763 | N44: 0.9825 | O44: 0.976 | P44: 0.9771 | Q44: 0.9746 | R44: 0.9698 | S44: 0.9663 | T44: 0.9709 | U44: 0.9772 | V44: 0.9732 | W44: 0.9728 | X44: 0.9696 | Y44: 0.9668 | Z44: 0.9541 | AA44: 0.973 | AB44: 0.9822 | AC44: 0 | AD44: 0.98205 | AE44: 0.98156 | AF44: 0.98405
C45: San Joaquin | D45: 0.991 | J45: San Joaquin | K45: 0.9853 | L45: 0.9805 | M45: 0.9815 | N45: 0.9862 | O45: 0.9873 | P45: 0.983 | Q45: 0.978 | R45: 0.9818 | S45: 0.9913 | T45: 0.9829 | U45: 0.9796 | V45: 0.9777 | W45: 0.9865 | X45: 0.994 | Y45: 0.992 | Z45: 0.9936 | AA45: 0.9966 | AB45: 0.9841 | AC45: 0.9675 | AD45: 0.97522 | AE45: 0.96914 | AF45: 0.97859
C46: San Luis Obispo | D46: 0.957 | J46: San Luis Obispo | K46: 0.9555 | L46: 0.9702 | M46: 0.9745 | N46: 0.9463 | O46: 0.9835 | P46: 0.9635 | Q46: 0.9619 | R46: 0.935 | S46: 0.9342 | T46: 0.9716 | U46: 0.9737 | V46: 0.9854 | W46: 0.9529 | X46: 0.9805 | Y46: 0.9646 | Z46: 0.9568 | AA46: 0.9553 | AB46: 0.9749 | AC46: 0 | AD46: 0.95946 | AE46: 0.96134 | AF46: 0.97514
C47: San Mateo | D47: 0.889 | J47: San Mateo | K47: 0.9467 | L47: 0.9381 | M47: 0.9523 | N47: 0.9415 | O47: 0.6218 | P47: 0.7766 | Q47: 0.8314 | R47: 0.9677 | S47: 0.9843 | T47: 0.9769 | U47: 0.9727 | V47: 0.9696 | W47: 0.9755 | X47: 0.9728 | Y47: 0.988 | Z47: 0.9653 | AA47: 0.9715 | AB47: 0.9813 | AC47: 0.9519 | AD47: 0.97048 | AE47: 0.98346 | AF47: 0.98563
C48: Santa Barbara | D48: 0.74 | J48: Santa Barbara | K48: 0.6332 | L48: 0.8819 | M48: 0.9601 | N48: 0.9508 | O48: 0.9538 | P48: 0.9302 | Q48: 0.9444 | R48: 0.9244 | S48: 0.6259 | T48: 0.7959 | U48: 0.8747 | V48: 0.8888 | W48: 0.8551 | X48: 0.9529 | Y48: 0.9645 | Z48: 0.9578 | AA48: 0.895 | AB48: 0.9878 | AC48: 0.9666 | AD48: 0.96512 | AE48: 0.90698 | AF48: 0.98901
C49: Santa Clara | D49: 0.667 | J49: Santa Clara | K49: 0.7492 | L49: 0.7936 | M49: 0.8087 | N49: 0.8748 | O49: 0.8783 | P49: 0.9767 | Q49: 0.9604 | R49: 0.8861 | S49: 0.9449 | T49: 0.9685 | U49: 0.9722 | V49: 0.9722 | W49: 0.9604 | X49: 0.9674 | Y49: 0.98 | Z49: 0.9821 | AA49: 0.9834 | AB49: 0.9864 | AC49: 0.9827 | AD49: 0.98876 | AE49: 0.99413 | AF49: 0.98988
C50: Santa Cruz | D50: 0.839 | J50: Santa Cruz | K50: 0.6253 | L50: 0.9404 | M50: 0.9625 | N50: 0.9544 | O50: 0.8153 | P50: 0.9559 | Q50: 0.933 | R50: 0.9294 | S50: 0.7205 | T50: 0.8075 | U50: 0.8724 | V50: 0.8305 | W50: 0.9272 | X50: 0.9704 | Y50: 0.9731 | Z50: 0.9594 | AA50: 0.9617 | AB50: 0.9568 | AC50: 0.9659 | AD50: 0.94747 | AE50: 0.97456 | AF50: 0.96982
C51: Shasta | D51: 0.978 | J51: Shasta | K51: 0.9875 | L51: 0.9714 | M51: 0.9788 | N51: 0.9758 | O51: 0.9336 | P51: 0.9519 | Q51: 0.9397 | R51: 0.82 | S51: 0.9638 | T51: 0.955 | U51: 0.972 | V51: 0.9381 | W51: 0.9655 | X51: 0.9669 | Y51: 0.9668 | Z51: 0.98 | AA51: 0.9813 | AB51: 0.9696 | AC51: 0.9069 | AD51: 0.94107 | AE51: 0.95292 | AF51: 0.95652
C52: Sierra | D52: 1 | J52: Sierra | K52: 1 | L52: 1 | M52: 1 | N52: 1 | O52: 0.9167 | P52: 1 | Q52: 1 | R52: 1 | S52: 1 | T52: 0.9 | U52: 1 | V52: 1 | W52: 1 | X52: 1 | Y52: 1 | Z52: 1 | AA52: 1 | AB52: 1 | AC52: 1 | AD52: 1 | AE52: 1 | AF52: 1
C53: Siskiyou | D53: 0.994 | J53: Siskiyou | K53: 1 | L53: 1 | M53: 1 | N53: 1 | O53: 1 | P53: 0.992 | Q53: 1 | R53: 0.9939 | S53: 1 | T53: 1 | U53: 1 | V53: 1 | W53: 1 | X53: 0.9848 | Y53: 0.9854 | Z53: 1 | AA53: 0.9921 | AB53: 0.9266 | AC53: 0.9217 | AD53: 0.92763 | AE53: 0.90625 | AF53: 0.99038
C54: Solano | D54: 0.851 | J54: Solano | K54: 0.9227 | L54: 0.9286 | M54: 0.9349 | N54: 0.9495 | O54: 0.9261 | P54: 0.9357 | Q54: 0.9417 | R54: 0.9102 | S54: 0.9397 | T54: 0.9454 | U54: 0.9405 | V54: 0.9319 | W54: 0.9309 | X54: 0.9451 | Y54: 0.9752 | Z54: 0.9584 | AA54: 0.9484 | AB54: 0.9877 | AC54: 0.9714 | AD54: 0.95448 | AE54: 0.97721 | AF54: 0.97901
C55: Sonoma | D55: 0.775 | J55: Sonoma | K55: 0.8625 | L55: 0.8773 | M55: 0.8992 | N55: 0.9499 | O55: 0.9405 | P55: 0.9226 | Q55: 0.8674 | R55: 0.861 | S55: 0.8408 | T55: 0.8382 | U55: 0.8969 | V55: 0.9593 | W55: 0.9582 | X55: 0.9183 | Y55: 0.925 | Z55: 0.8905 | AA55: 0.8925 | AB55: 0.8622 | AC55: 0.9477 | AD55: 0.9563 | AE55: 0.96806 | AF55: 0.98473
C56: Stanislaus | D56: 1 | J56: Stanislaus | K56: 1 | L56: 1 | M56: 0.9996 | N56: 1 | O56: 0.986 | P56: 0.9936 | Q56: 0.9842 | R56: 0.9615 | S56: 0.953 | T56: 0.9149 | U56: 0.9649 | V56: 0.9849 | W56: 0.9627 | X56: 0.9859 | Y56: 0.9917 | Z56: 0.9905 | AA56: 0.9978 | AB56: 0.9898 | AC56: 0.976 | AD56: 0.97635 | AE56: 0.97494 | AF56: 0.96558
C57: Sutter | D57: 0.916 | J57: Sutter | K57: 0.9256 | L57: 0.9503 | M57: 0.9511 | N57: 0.9517 | O57: 0.9639 | P57: 0.9574 | Q57: 0.981 | R57: 0.9894 | S57: 0.9439 | T57: 0.972 | U57: 0.9889 | V57: 0.9879 | W57: 1 | X57: 0.9682 | Y57: 0.9787 | Z57: 0.9905 | AA57: 0.9756 | AB57: 0.9581 | AC57: 0.9904 | AD57: 0.9726 | AE57: 0.99315 | AF57: 0.99556
C58: Tehama | D58: 0.862 | J58: Tehama | K58: 0.8938 | L58: 0.8972 | M58: 0.9129 | N58: 0.9344 | O58: 0.9611 | P58: 0.9531 | Q58: 0.9429 | R58: 0.917 | S58: 0.9671 | T58: 0.944 | U58: 0.9361 | V58: 0.9703 | W58: 0.9793 | X58: 0.9649 | Y58: 0.9548 | Z58: 0.9752 | AA58: 0.9524 | AB58: 0.9773 | AC58: 0.9756 | AD58: 0.9 | AE58: 0.9469 | AF58: 0.96
C59: Trinity | D59: 0.974 | J59: Trinity | K59: 0.9643 | L59: 1 | M59: 0.9792 | N59: 0.9153 | O59: 0.9423 | P59: 0.9762 | Q59: 1 | R59: 1 | S59: 0.9583 | T59: 1 | U59: 1 | V59: 0.9683 | W59: 0.9245 | X59: 0.9388 | Y59: 0.9836 | Z59: 0.9245 | AA59: 0.9362 | AB59: 0.9831 | AC59: 0.9714 | AD59: 0.95522 | AE59: 0.93182 | AF59: 0.92727
C60: Tulare | D60: 1 | J60: Tulare | K60: 1 | L60: 1 | M60: 1 | N60: 1 | O60: 1 | P60: 1 | Q60: 1 | R60: 1 | S60: 1 | T60: 1 | U60: 0.9911 | V60: 0.9825 | W60: 0.9774 | X60: 0.9853 | Y60: 0.991 | Z60: 0.9821 | AA60: 0.9663 | AB60: 0.9907 | AC60: 0.9903 | AD60: 0.96123 | AE60: 0.96412 | AF60: 0.98872
C61: Tuolumne | D61: 0.988 | J61: Tuolumne | K61: 0.9898 | L61: 0.9655 | M61: 0.9784 | N61: 0.9703 | O61: 0.9543 | P61: 0.951 | Q61: 0.9231 | R61: 0.8859 | S61: 0.934 | T61: 0.9387 | U61: 0.9542 | V61: 0.9648 | W61: 0.8926 | X61: 0.9509 | Y61: 0.8767 | Z61: 0.9712 | AA61: 0.9935 | AB61: 0.984 | AC61: 0.9924 | AD61: 0.97872 | AE61: 0.93478 | AF61: 0.96875
C62: Ventura | D62: 0.986 | J62: Ventura | K62: 0.9797 | L62: 0.9904 | M62: 0.987 | N62: 0.9867 | O62: 0.9808 | P62: 0.993 | Q62: 0.9843 | R62: 0.9451 | S62: 0.9253 | T62: 0.9646 | U62: 0.9766 | V62: 0.9768 | W62: 0.9436 | X62: 0.9842 | Y62: 0.9783 | Z62: 0.9861 | AA62: 0.9757 | AB62: 0.9869 | AC62: 0 | AD62: 0.99384 | AE62: 0.99018 | AF62: 0.9891
C63: Yolo | D63: 0.821 | J63: Yolo | K63: 0.8884 | L63: 0.9327 | M63: 0.8733 | N63: 0.9064 | O63: 0.7671 | P63: 0.1733 | Q63: 0.8429 | R63: 0.88 | S63: 0.8528 | T63: 0.8423 | U63: 0.8159 | V63: 0.8986 | W63: 0.9122 | X63: 0.9536 | Y63: 0.9476 | Z63: 0.9492 | AA63: 0.9365 | AB63: 0.97 | AC63: 0.9612 | AD63: 0.95238 | AE63: 0.88834 | AF63: 0.94324
C64: Yuba | D64: 0.996 | J64: Yuba | K64: 0.9855 | L64: 1 | M64: 1 | N64: 1 | O64: 0.9701 | P64: 1 | Q64: 0.9864 | R64: 0.9688 | S64: 0.9944 | T64: 1 | U64: 1 | V64: 1 | W64: 1 | X64: 1 | Y64: 1 | Z64: 1 | AA64: 1 | AB64: 0.9956 | AC64: 0.9918 | AD64: 0.99567 | AE64: 0.99662 | AF64: 0.98913
C66: 30-DAY NON-COMPLIANCE | K66: CURRENT YEAR
C67: =C3 -> Sum of qtr_timeliness_30d_ly | D67: PRIOR YEAR FROM: | J67: =J3 -> Sum of mth_timeliness_30d_pct | K67: Column Labels | L67: 0 | M67: 0 | N67: 0 | O67: 0 | P67: 0 | Q67: 0 | R67: 0 | S67: 0 | T67: 0 | U67: 0 | V67: 0 | W67: 0 | X67: 0 | Y67: 0 | Z67: 0 | AA67: =AA3 -> 0 | AB67: 0 | AC67: 0 | AD67: 0 | AE67: =AE3 -> 0 | AF67: =AF3 -> 0
C68: 0 | D68: =D4 -> 2012 | J68: =J4 -> 0 | K68: 2012 | L68: 0 | M68: 0 | N68: 0 | O68: 2013 | P68: 0 | Q68: 0 | R68: 0 | S68: 2014 | T68: 0 | U68: 0 | V68: 0 | W68: 2015 | X68: 0 | Y68: 0 | Z68: 0 | AA68: =AA4 -> 2016 | AB68: 0 | AC68: 0 | AD68: 0 | AE68: =AE4 -> 2017 | AF68: =AF4 -> 0
C69: Row Labels | D69: 4 | J69: =J5 -> Row Labels | K69: JAN | L69: APR | M69: JUL | N69: OCT | O69: JAN | P69: APR | Q69: JUL | R69: OCT | S69: JAN | T69: APR | U69: JUL | V69: OCT | W69: JAN | X69: APR | Y69: JUL | Z69: OCT | AA69: =AA5 -> JAN | AB69: APR | AC69: JUL | AD69: OCT | AE69: =AE5 -> JAN | AF69: =AF5 -> APR
C70: California | D70: =1-D6 -> 0.042 | J70: =J6 -> California | K70: =1-K6 -> 0.0395 | L70: =1-L6 -> 0.0245 | M70: 0.0234 | N70: 0.0228 | O70: 0.0339 | P70: 0.0292 | Q70: 0.0272 | R70: 0.0355 | S70: 0.0399 | T70: 0.0412 | U70: 0.0297 | V70: 0.0326 | W70: 0.0318 | X70: 0.0279 | Y70: 0.0316 | Z70: 0.0298 | AA70: =1-AA6 -> 0.0253 | AB70: 0.0256 | AC70: 0.026 | AD70: 0.02279 | AE70: 0.02021 | AF70: =1-AF6 -> 0.01468
C71: Alameda | D71: 0.156 | J71: Alameda | K71: =1-K7 -> 0.0907 | L71: 0.0846 | M71: 0.0891 | N71: 0.0735 | O71: 0.0999 | P71: 0.0859 | Q71: 0.113 | R71: 0.0943 | S71: 0.1554 | T71: 0.1422 | U71: 0.1157 | V71: 0.1363 | W71: 0.1476 | X71: 0.1649 | Y71: 0.2154 | Z71: 0.1439 | AA71: =1-AA7 -> 0.0789 | AB71: 0.0404 | AC71: 0.0115 | AD71: 0.00684 | AE71: 0.00549
C72: Alpine | D72: 0 | J72: Alpine | K72: =1-K8 -> 0 | L72: 0 | M72: 0 | N72: 0 | O72: 0 | P72: 0 | Q72: 0 | R72: 0 | S72: 0 | T72: 0 | U72: 0 | V72: 0 | W72: 0 | X72: 0 | Y72: 0 | Z72: 0 | AA72: =1-AA8 -> 0 | AB72: 0 | AC72: 0 | AD72: 0 | AE72: 0 | AF72: =1-AF8 -> 0
C73: Amador | D73: 0.226 | J73: Amador | K73: =1-K9 -> 0.1293 | L73: 0.1037 | M73: 0.0438 | N73: 0.027 | O73: 0.0857 | P73: 0.0268 | Q73: 0.0275 | R73: 0.0686 | S73: 0.063 | T73: 0.0337 | U73: 0 | V73: 0.0435 | W73: 0.037 | X73: 0 | Y73: 0 | Z73: 0.0235 | AA73: =1-AA9 -> 0.0417 | AB73: 0.0114 | AC73: 0 | AD73: 0.0122 | AE73: 0.03797 | AF73: =1-AF9 -> 0
C74: Butte | D74: 0.173 | J74: Butte | K74: =1-K10 -> 0.114 | L74: 0.1304 | M74: 0.1052 | N74: 0.0845 | O74: 0.0609 | P74: 0.0585 | Q74: 0.0398 | R74: 0.0939 | S74: 0.0679 | T74: 0.1143 | U74: 0.0627 | V74: 0.0576 | W74: 0.0872 | X74: 0.0543 | Y74: 0.0799 | Z74: 0.1802 | AA74: =1-AA10 -> 0.0872 | AB74: 0.0883 | AC74: 0.0656 | AD74: 0.16175 | AE74: 0.09756 | AF74: =1-AF10 -> 0.12566
C75: Calaveras | D75: 0.008 | J75: Calaveras | K75: =1-K11 -> 0.0405 | L75: 0.0352 | M75: 0 | N75: 0.0128 | O75: 0.0301 | P75: 0.0183 | Q75: 0.02 | R75: 0 | S75: 0.007 | T75: 0.0417 | U75: 0 | V75: 0 | W75: 0.0067 | X75: 0 | Y75: 0 | Z75: 0 | AA75: =1-AA11 -> 0.0088 | AB75: 0.0085 | AC75: 0.0143 | AD75: 0.00763 | AE75: 0.03676 | AF75: =1-AF11 -> 0
C76: Colusa | D76: 0 | J76: Colusa | K76: =1-K12 -> 0 | L76: 0.0189 | M76: 0.0625 | N76: 0 | O76: 0.0658 | P76: 0.0196 | Q76: 0 | R76: 0.0833 | S76: 0.0435 | T76: 0.3235 | U76: 0.1818 | V76: 0.3913 | W76: 0.1129 | X76: 0.125 | Y76: 0 | Z76: 0 | AA76: =1-AA12 -> 0.0857 | AB76: 0.1667 | AC76: 0.1154 | AD76: 0.2381 | AE76: 0.1129 | AF76: =1-AF12 -> 0
C77: Contra Costa | D77: 0.135 | J77: Contra Costa | K77: =1-K13 -> 0.0363 | L77: 0.0398 | M77: 0.0348 | N77: 0.0587 | O77: 0.0535 | P77: 0.0504 | Q77: 0.0501 | R77: 0.0781 | S77: 0.0899 | T77: 0.048 | U77: 0.0654 | V77: 0.0747 | W77: 0.0656 | X77: 0.0316 | Y77: 0.0343 | Z77: 0.0457 | AA77: =1-AA13 -> 0.042 | AB77: 0.0352 | AC77: 0.0308 | AD77: 0.03546 | AE77: 0.04196 | AF77: =1-AF13 -> 0.03037
C78: Del Norte | D78: 0 | J78: Del Norte | K78: =1-K14 -> 0 | L78: 0 | M78: 0 | N78: 0 | O78: 0 | P78: 0 | Q78: 0 | R78: 0 | S78: 0 | T78: 0 | U78: 0.009 | V78: 0 | W78: 0.0111 | X78: 0 | Y78: 0 | Z78: 0 | AA78: =1-AA14 -> 0.0091 | AB78: 0.0114 | AD78: 0 | AE78: 0 | AF78: =1-AF14 -> 0.0202
C79: El Dorado | D79: 0 | J79: El Dorado | K79: =1-K15 -> 0.0019 | L79: 0 | M79: 0 | N79: 0 | O79: 0.0205 | P79: 0.0076 | Q79: 0.0046 | R79: 0.0121 | S79: 0.012 | T79: 0.0115 | U79: 0.0049 | V79: 0 | W79: 0 | X79: 0.005 | Y79: 0 | Z79: 0.0027 | AA79: =1-AA15 -> 0 | AB79: 0.0148 | AC79: 0.029 | AD79: 0.01458 | AE79: 0.02381 | AF79: =1-AF15 -> 0
C80: Fresno | D80: =1-D16 -> 0 | J80: Fresno | K80: =1-K16 -> 0 | L80: 0 | M80: 0.0323 | N80: 0.0157 | O80: 0.0306 | P80: 0.0402 | Q80: 0.0814 | R80: 0.0754 | S80: 0.0954 | T80: 0.0869 | U80: 0.052 | V80: 0.0429 | W80: 0.0425 | X80: 0.059 | Y80: 0.0558 | Z80: 0.065 | AA80: =1-AA16 -> 0.0409 | AB80: 0.0506 | AC80: 0.0454 | AD80: 0.04053 | AE80: 0.03308 | AF80: =1-AF16 -> 0.02156
C81: Glenn | D81: 0 | J81: Glenn | L81: =1-L17 -> 0 | M81: 0 | N81: 0 | O81: 0 | P81: 0 | Q81: 0 | R81: 0 | S81: 0 | T81: 0.0125 | U81: 0 | V81: 0 | W81: 0 | X81: 0 | Y81: 0 | Z81: 0 | AA81: =1-AA17 -> 0.0115 | AB81: 0 | AC81: 0 | AD81: 0.01887 | AE81: 0.03797 | AF81: =1-AF17 -> 0.05263
C82: Humboldt | D82: 0.061 | J82: Humboldt | K82: =1-K18 -> 0.0449 | L82: 0.0085 | M82: 0.0212 | N82: 0.012 | O82: 0.0349 | P82: 0.0108 | Q82: 0.0493 | R82: 0.0959 | S82: 0.0431 | T82: 0.0135 | U82: 0.0066 | V82: 0.006 | W82: 0.003 | X82: 0.0017 | Y82: 0 | Z82: 0.0014 | AA82: =1-AA18 -> 0.0036 | AB82: 0.0124 | AC82: 0.0039 | AD82: 0.03857 | AE82: 0.00929 | AF82: =1-AF18 -> 0.00179
C83: Imperial | D83: 0 | J83: Imperial | K83: =1-K19 -> 0 | L83: 0 | M83: 0 | N83: 0.0024 | O83: 0 | P83: 0 | Q83: 0.0693 | R83: 0.1179 | S83: 0.0465 | T83: 0.0553 | U83: 0.0852 | V83: 0.0849 | W83: 0.0601 | X83: 0.0514 | Y83: 0.0237 | Z83: 0.0238 | AA83: =1-AA19 -> 0.0209 | AB83: 0.0298 | AC83: 0.02 | AD83: 0.01955 | AE83: 0.02044 | AF83: =1-AF19 -> 0.01439
C84: Inyo | D84: 0.014 | J84: Inyo | K84: =1-K20 -> 0 | L84: 0.0145 | M84: 0 | N84: 0.0172 | O84: 0.0122 | P84: 0 | Q84: 0 | R84: 0 | S84: 0.0086 | T84: 0 | U84: 0.0161 | V84: 0 | W84: 0.0145 | X84: 0 | Y84: 0 | Z84: 0 | AA84: =1-AA20 -> 0 | AB84: 0.0192 | AC84: 0 | AD84: 0 | AE84: 0.07273 | AF84: =1-AF20 -> 0.01639
C85: Kern | D85: 0.013 | J85: Kern | K85: =1-K21 -> 0.0121 | L85: 0.0133 | M85: 0.0105 | N85: 0.0143 | O85: 0.0253 | P85: 0.0086 | Q85: 0.0078 | R85: 0.0161 | S85: 0.0232 | T85: 0.0164 | U85: 0.0055 | V85: 0.0049 | W85: 0.0065 | X85: 0.0062 | Y85: 0.0084 | Z85: 0.0038 | AA85: =1-AA21 -> 0.0054 | AB85: 0.0144 | AC85: 0.02 | AD85: 0.01253 | AE85: 0.02015 | AF85: =1-AF21 -> 0.01153
C86: Kings | D86: 0 | J86: Kings | K86: =1-K22 -> 0 | L86: 0 | M86: 0.0038 | N86: 0.0065 | O86: 0.0117 | P86: 0.0164 | Q86: 0.0041 | R86: 0.0172 | S86: 0.0315 | T86: 0.0088 | U86: 0.006 | V86: 0.0018 | W86: 0.0032 | X86: 0.002 | Y86: 0.0019 | Z86: 0 | AA86: =1-AA22 -> 0.0031 | AB86: 0.0108 | AC86: 0.0136 | AD86: 0.00323 | AE86: 0.00955 | AF86: =1-AF22 -> 0.00611
C87: Lake | D87: 0.03 | J87: Lake | K87: =1-K23 -> 0.0534 | L87: 0.0207 | M87: 0.0446 | N87: 0.0174 | O87: 0.0586 | P87: 0.0391 | Q87: 0.0526 | R87: 0.2345 | S87: 0.1354 | T87: 0.1274 | U87: 0.1174 | V87: 0.0486 | W87: 0.025 | X87: 0.0197 | Y87: 0.0098 | Z87: 0.0111 | AA87: =1-AA23 -> 0.029 | AB87: 0.0471 | AC87: 0.041 | AD87: 0.08425 | AE87: 0.06706 | AF87: =1-AF23 -> 0.04636
C88: Lassen | D88: 0.051 | J88: Lassen | K88: =1-K24 -> 0.057 | L88: 0.008 | M88: 0.0427 | N88: 0.0221 | O88: 0.0294 | P88: 0.0108 | Q88: 0.0211 | R88: 0.0426 | S88: 0.0982 | T88: 0.0385 | U88: 0.0617 | V88: 0.1684 | W88: 0.1325 | X88: 0.0563 | Y88: 0.1148 | Z88: 0.2295 | AA88: =1-AA24 -> 0.169 | AB88: 0.0615 | AC88: 0.0986 | AD88: 0.12346 | AE88: 0.05 | AF88: =1-AF24 -> 0.08861
C89: Los Angeles | D89: 0.032 | J89: Los Angeles | K89: =1-K25 -> 0.0377 | L89: 0.0251 | M89: 0.0226 | N89: 0.0283 | O89: 0.0427 | P89: 0.0329 | Q89: 0.0248 | R89: 0.0364 | S89: 0.0307 | T89: 0.0368 | U89: 0.0276 | V89: 0.0352 | W89: 0.0331 | X89: 0.0292 | Y89: 0.0402 | Z89: 0.0348 | AA89: =1-AA25 -> 0.0318 | AB89: 0.0356 | AC89: 0.0468 | AD89: 0.02572 | AE89: 0.01463 | AF89: =1-AF25 -> 0.01092
C90: Madera | D90: =1-D26 -> 0.036 | J90: Madera | K90: =1-K26 -> 0.024 | L90: 0.0164 | M90: 0.0086 | N90: 0.0155 | O90: 0.0386 | P90: 0.0218 | Q90: 0.0248 | R90: 0.0168 | S90: 0.0292 | T90: 0.0212 | U90: 0.0044 | V90: 0.0019 | W90: 0.0132 | X90: 0 | Y90: 0.0119 | Z90: 0 | AA90: =1-AA26 -> 0.0021 | AB90: 0.0142 | AC90: 0.0086 | AD90: 0.02 | AE90: 0.01301 | AF90: =1-AF26 -> 0.00321
C91: Marin | D91: 0.003 | J91: Marin | K91: =1-K27 -> 0.0251 | L91: 0.032 | M91: 0.0058 | N91: 0.0293 | O91: 0.0554 | P91: 0.0494 | Q91: 0.0245 | R91: 0.0623 | S91: 0.0532 | T91: 0.0396 | U91: 0.0222 | V91: 0.0307 | W91: 0.0177 | X91: 0.0307 | Y91: 0.0058 | Z91: 0 | AA91: =1-AA27 -> 0.0074 | AB91: 0.0144 | AC91: 0.0478 | AD91: 0.01807 | AE91: 0 | AF91: =1-AF27 -> 0.01079
C92: Mariposa | D92: 0.17 | J92: Mariposa | K92: =1-K28 -> 0.0597 | L92: 0.0937 | M92: 0 | N92: 0.1273 | O92: 0.1034 | P92: 0.0889 | Q92: 0.0638 | R92: 0.0735 | S92: 0.0882 | T92: 0.1277 | U92: 0.1351 | V92: 0.1957 | W92: 0.1522 | X92: 0 | Y92: 0 | Z92: 0.0238 | AA92: =1-AA28 -> 0.0208 | AB92: 0.025 | AC92: 0 | AD92: 0.02857 | AE92: 0.14894 | AF92: =1-AF28 -> 0.20455
C93: Mendocino | D93: 0.002 | J93: Mendocino | K93: =1-K29 -> 0.008 | L93: 0.0057 | M93: 0.0088 | N93: 0.0056 | O93: 0.006 | P93: 0 | Q93: 0.0044 | R93: 0.0089 | S93: 0.0059 | T93: 0.0028 | U93: 0.0054 | V93: 0.0192 | W93: 0.0134 | X93: 0 | Y93: 0.0049 | Z93: 0.0093 | AA93: =1-AA29 -> 0.0027 | AB93: 0.0701 | AC93: 0.0594 | AD93: 0.07102 | AE93: 0.02821 | AF93: =1-AF29 -> 0.07692
C94: Merced | D94: 0.007 | J94: Merced | K94: =1-K30 -> 0.0258 | L94: 0.0065 | M94: 0.0026 | N94: 0.004 | O94: 0.0136 | P94: 0.0022 | Q94: 0.0032 | R94: 0.0156 | S94: 0.0386 | T94: 0.028 | U94: 0.0172 | V94: 0.011 | W94: 0.0231 | X94: 0.0034 | Y94: 0.0023 | Z94: 0.0037 | AA94: =1-AA30 -> 0.0045 | AB94: 0.0144 | AC94: 0.0285 | AD94: 0.0478 | AE94: 0.07796 | AF94: =1-AF30 -> 0.01571
C95: Modoc | D95: 0 | J95: Modoc | K95: =1-K31 -> 0.0217 | L95: 0 | M95: 0.0455 | N95: 0 | O95: 0 | P95: 0 | Q95: 0 | R95: 0 | S95: 0.0333 | T95: 0 | U95: 0 | V95: 0 | W95: 0 | X95: 0.1053 | Y95: 0 | Z95: 0.0769 | AA95: =1-AA31 -> 0.0541 | AB95: 0 | AC95: 0 | AD95: 0.02941 | AE95: 0.02273 | AF95: =1-AF31 -> 0.04
C96: Mono | D96: 0.042 | J96: Mono | K96: =1-K32 -> 0.0222 | L96: 0.0652 | M96: 0.0909 | N96: 0.0328 | O96: 0.0882 | P96: 0 | Q96: 0.0286 | R96: 0.0794 | S96: 0.0656 | T96: 0 | U96: 0.0937 | V96: 0 | W96: 0.0606 | X96: 0.037 | Y96: 0.0385 | Z96: 0 | AA96: =1-AA32 -> 0 | AB96: 0.0333 | AC96: 0.05 | AD96: 0.01887 | AE96: 0 | AF96: =1-AF32 -> 0
C97: Monterey | D97: 0 | J97: Monterey | K97: =1-K33 -> 0.0005 | L97: 0 | M97: 0 | N97: 0 | O97: 0.0015 | P97: 0 | Q97: 0 | R97: 0 | S97: 0 | T97: 0 | U97: 0 | V97: 0 | W97: 0 | X97: 0 | Y97: 0 | Z97: 0 | AA97: =1-AA33 -> 0.0017 | AB97: 0.0021 | AC97: 0.0088 | AD97: 0.0351 | AE97: 0.02266 | AF97: =1-AF33 -> 0.00139
C98: Napa | D98: 0.034 | J98: Napa | K98: =1-K34 -> 0 | L98: 0.009 | M98: 0.0048 | N98: 0.0702 | O98: 0.2673 | P98: 0.3659 | Q98: 0.25 | R98: 0.2329 | S98: 0.28 | T98: 0.0278 | U98: 0.0169 | V98: 0.1183 | W98: 0.058 | X98: 0.0119 | Y98: 0.0301 | Z98: 0.0284 | AA98: =1-AA34 -> 0.0296 | AB98: 0.0131 | AC98: 0.0331 | AD98: 0.03497 | AE98: 0.02395 | AF98: =1-AF34 -> 0.05224
C99: =C35 -> Nevada | D99: 0.02 | J99: Nevada | K99: =1-K35 -> 0.0252 | L99: 0.0068 | M99: 0 | N99: 0 | O99: 0.0074 | P99: 0 | Q99: 0.0039 | R99: 0.0038 | S99: 0.0043 | T99: 0.0242 | U99: 0.01 | V99: 0 | W99: 0.0348 | X99: 0.0111 | Y99: 0 | Z99: 0 | AA99: =1-AA35 -> 0 | AB99: 0.0619 | AD99: 0.16814 | AE99: 0.1164 | AF99: =1-AF35 -> 0.2439
C100: Orange | D100: =1-D36 -> 0.003 | J100: Orange | K100: =1-K36 -> 0.0039 | L100: 0.0013 | M100: 0.0015 | N100: 0.0035 | O100: 0.0022 | P100: 0.0025 | Q100: 0.0024 | R100: 0.0052 | S100: 0.016 | T100: 0.0231 | U100: 0.0184 | V100: 0.015 | W100: 0.0136 | X100: 0.0122 | Y100: 0.0133 | Z100: 0.0128 | AA100: =1-AA36 -> 0.0207 | AB100: 0.0133 | AC100: 0.0121 | AD100: 0.01008 | AE100: 0.01364 | AF100: =1-AF36 -> 0.0083
C101: Placer | D101: 0.085 | J101: Placer | K101: =1-K37 -> 0.0464 | L101: 0.0205 | M101: 0.0336 | N101: 0.0186 | O101: 0.011 | P101: 0.0055 | Q101: 0.0028 | R101: 0.0231 | S101: 0.0025 | T101: 0.0121 | U101: 0.0192 | V101: 0.0074 | W101: 0.018 | X101: 0.0178 | Y101: 0.0534 | Z101: 0.033 | AA101: =1-AA37 -> 0.019 | AB101: 0.0236 | AD101: 0 | AE101: 0 | AF101: =1-AF37 -> 0
C102: Plumas | D102: 0.043 | J102: Plumas | K102: =1-K38 -> 0.2264 | L102: 0.0208 | M102: 0.0526 | N102: 0.141 | O102: 0.0811 | P102: 0 | Q102: 0 | R102: 0.0366 | S102: 0.013 | T102: 0 | U102: 0 | V102: 0.0364 | W102: 0 | X102: 0 | Y102: 0 | Z102: 0.0233 | AA102: =1-AA38 -> 0 | AB102: 0 | AC102: 0 | AD102: 0 | AE102: 0 | AF102: =1-AF38 -> 0.04082
C103: Riverside | D103: 0.001 | J103: Riverside | K103: =1-K39 -> 0.0011 | L103: 0.0002 | M103: 0.0004 | N103: 0.0008 | O103: 0.0031 | P103: 0.0014 | Q103: 0.0044 | R103: 0.0033 | S103: 0.0029 | T103: 0.0044 | U103: 0.0032 | V103: 0.0059 | W103: 0.0045 | X103: 0.0031 | Y103: 0.0015 | Z103: 0.0052 | AA103: =1-AA39 -> 0.0033 | AB103: 0.0058 | AC103: 0.0059 | AD103: 0.00612 | AE103: 0.0065 | AF103: =1-AF39 -> 0.00382
C104: Sacramento | D104: 0.035 | J104: Sacramento | K104: =1-K40 -> 0.0903 | L104: 0.0085 | M104: 0.0302 | N104: 0.0126 | O104: 0.01 | P104: 0.0114 | Q104: 0.0115 | R104: 0.0212 | S104: 0.0241 | T104: 0.0246 | U104: 0.0106 | V104: 0.0138 | W104: 0.0107 | X104: 0.0081 | Y104: 0.0106 | Z104: 0.0184 | AA104: =1-AA40 -> 0.0083 | AB104: 0.0074 | AC104: 0.0103 | AD104: 0.00878 | AE104: 0.01393 | AF104: =1-AF40 -> 0.0071
C105: San Benito | D105: 0.027 | J105: San Benito | K105: =1-K41 -> 0.0096 | L105: 0.0219 | M105: 0.0127 | N105: 0 | O105: 0.0158 | P105: 0.056 | Q105: 0 | R105: 0.0056 | S105: 0 | T105: 0 | U105: 0 | V105: 0.1 | W105: 0.0189 | X105: 0.0079 | Y105: 0.0092 | Z105: 0 | AA105: =1-AA41 -> 0 | AB105: 0.0333 | AC105: 0.0109 | AD105: 0.05155 | AE105: 0.10753 | AF105: =1-AF41 -> 0.01042
C106: San Bernardino | D106: 0 | J106: San Bernardino | K106: =1-K42 -> 0.0007 | L106: 0.0008 | M106: 0.0006 | N106: 0.0011 | O106: 0.0006 | P106: 0.0001 | Q106: 0.0025 | R106: 0.0023 | S106: 0.0026 | T106: 0.0007 | U106: 0.0002 | V106: 0.0001 | W106: 0.0001 | X106: 0.0002 | Y106: 0.0005 | Z106: 0.0005 | AA106: =1-AA42 -> 0.0007 | AB106: 0.0053 | AC106: 0.0055 | AD106: 0.00804 | AE106: 0.00656 | AF106: =1-AF42 -> 0.00538
C107: San Diego | D107: 0.048 | J107: San Diego | K107: =1-K43 -> 0.0233 | L107: 0.0173 | M107: 0.0282 | N107: 0.0214 | O107: 0.0312 | P107: 0.0349 | Q107: 0.0366 | R107: 0.0211 | S107: 0.0255 | T107: 0.098 | U107: 0.0647 | V107: 0.0663 | W107: 0.0644 | X107: 0.0617 | Y107: 0.0485 | Z107: 0.0407 | AA107: =1-AA43 -> 0.0389 | AB107: 0.0442 | AC107: 0.015 | AD107: 0.01501 | AE107: 0.02287 | AF107: =1-AF43 -> 0.01884
C108: San Francisco | D108: 0.026 | J108: San Francisco | K108: =1-K44 -> 0.0124 | L108: 0.011 | M108: 0.0237 | N108: 0.0175 | O108: 0.024 | P108: 0.0229 | Q108: 0.0254 | R108: 0.0302 | S108: 0.0337 | T108: 0.0291 | U108: 0.0228 | V108: 0.0268 | W108: 0.0272 | X108: 0.0304 | Y108: 0.0332 | Z108: 0.0459 | AA108: =1-AA44 -> 0.027 | AB108: 0.0178 | AD108: 0.01795 | AE108: 0.01844 | AF108: =1-AF44 -> 0.01595
C109: San Joaquin | D109: 0.009 | J109: San Joaquin | K109: =1-K45 -> 0.0147 | L109: 0.0195 | M109: 0.0185 | N109: 0.0138 | O109: 0.0127 | P109: 0.017 | Q109: 0.022 | R109: 0.0182 | S109: 0.0087 | T109: 0.0171 | U109: 0.0204 | V109: 0.0223 | W109: 0.0135 | X109: 0.006 | Y109: 0.008 | Z109: 0.0064 | AA109: =1-AA45 -> 0.0034 | AB109: 0.0159 | AC109: 0.0325 | AD109: 0.02478 | AE109: 0.03086 | AF109: =1-AF45 -> 0.02141
C110: San Luis Obispo | D110: =1-D46 -> 0.043 | J110: San Luis Obispo | K110: =1-K46 -> 0.0445 | L110: 0.0298 | M110: 0.0255 | N110: 0.0537 | O110: 0.0165 | P110: 0.0365 | Q110: 0.0381 | R110: 0.065 | S110: 0.0658 | T110: 0.0284 | U110: 0.0263 | V110: 0.0146 | W110: 0.0471 | X110: 0.0195 | Y110: 0.0354 | Z110: 0.0432 | AA110: =1-AA46 -> 0.0447 | AB110: 0.0251 | AD110: 0.04054 | AE110: 0.03866 | AF110: =1-AF46 -> 0.02486
C111: San Mateo | D111: 0.111 | J111: San Mateo | K111: =1-K47 -> 0.0533 | L111: 0.0619 | M111: 0.0477 | N111: 0.0585 | O111: 0.3782 | P111: 0.2234 | Q111: 0.1686 | R111: 0.0323 | S111: 0.0157 | T111: 0.0231 | U111: 0.0273 | V111: 0.0304 | W111: 0.0245 | X111: 0.0272 | Y111: 0.012 | Z111: 0.0347 | AA111: =1-AA47 -> 0.0285 | AB111: 0.0187 | AC111: 0.0481 | AD111: 0.02952 | AE111: 0.01654 | AF111: =1-AF47 -> 0.01437
C112: Santa Barbara | D112: 0.26 | J112: Santa Barbara | K112: =1-K48 -> 0.3668 | L112: 0.1181 | M112: 0.0399 | N112: 0.0492 | O112: 0.0462 | P112: 0.0698 | Q112: 0.0556 | R112: 0.0756 | S112: 0.3741 | T112: 0.2041 | U112: 0.1253 | V112: 0.1112 | W112: 0.1449 | X112: 0.0471 | Y112: 0.0355 | Z112: 0.0422 | AA112: =1-AA48 -> 0.105 | AB112: 0.0122 | AC112: 0.0334 | AD112: 0.03488 | AE112: 0.09302 | AF112: =1-AF48 -> 0.01099
C113: Santa Clara | D113: 0.333 | J113: Santa Clara | K113: =1-K49 -> 0.2508 | L113: 0.2064 | M113: 0.1913 | N113: 0.1252 | O113: 0.1217 | P113: 0.0233 | Q113: 0.0396 | R113: 0.1139 | S113: 0.0551 | T113: 0.0315 | U113: 0.0278 | V113: 0.0278 | W113: 0.0396 | X113: 0.0326 | Y113: 0.02 | Z113: 0.0179 | AA113: =1-AA49 -> 0.0166 | AB113: 0.0136 | AC113: 0.0173 | AD113: 0.01124 | AE113: 0.00587 | AF113: =1-AF49 -> 0.01012
C114: Santa Cruz | D114: 0.161 | J114: Santa Cruz | K114: =1-K50 -> 0.3747 | L114: 0.0596 | M114: 0.0375 | N114: 0.0456 | O114: 0.1847 | P114: 0.0441 | Q114: 0.067 | R114: 0.0706 | S114: 0.2795 | T114: 0.1925 | U114: 0.1276 | V114: 0.1695 | W114: 0.0728 | X114: 0.0296 | Y114: 0.0269 | Z114: 0.0406 | AA114: =1-AA50 -> 0.0383 | AB114: 0.0432 | AC114: 0.0341 | AD114: 0.05253 | AE114: 0.02544 | AF114: =1-AF50 -> 0.03018
C115: Shasta | D115: 0.022 | J115: Shasta | K115: =1-K51 -> 0.0125 | L115: 0.0286 | M115: 0.0212 | N115: 0.0242 | O115: 0.0664 | P115: 0.0481 | Q115: 0.0603 | R115: 0.18 | S115: 0.0362 | T115: 0.045 | U115: 0.028 | V115: 0.0619 | W115: 0.0345 | X115: 0.0331 | Y115: 0.0332 | Z115: 0.02 | AA115: =1-AA51 -> 0.0187 | AB115: 0.0304 | AC115: 0.0931 | AD115: 0.05893 | AE115: 0.04708 | AF115: =1-AF51 -> 0.04348
C116: Sierra | D116: 0 | J116: Sierra | K116: =1-K52 -> 0 | L116: 0 | M116: 0 | N116: 0 | O116: 0.0833 | P116: 0 | Q116: 0 | R116: 0 | S116: 0 | T116: 0.1 | U116: 0 | V116: 0 | W116: 0 | X116: 0 | Y116: 0 | Z116: 0 | AA116: =1-AA52 -> 0 | AB116: 0 | AC116: 0 | AD116: 0 | AE116: 0 | AF116: =1-AF52 -> 0
C117: Siskiyou | D117: 0.006 | J117: Siskiyou | K117: =1-K53 -> 0 | L117: 0 | M117: 0 | N117: 0 | O117: 0 | P117: 0.008 | Q117: 0 | R117: 0.0061 | S117: 0 | T117: 0 | U117: 0 | V117: 0 | W117: 0 | X117: 0.0152 | Y117: 0.0146 | Z117: 0 | AA117: =1-AA53 -> 0.0079 | AB117: 0.0734 | AC117: 0.0783 | AD117: 0.07237 | AE117: 0.09375 | AF117: =1-AF53 -> 0.00962
C118: Solano | D118: 0.149 | J118: Solano | K118: =1-K54 -> 0.0773 | L118: 0.0714 | M118: 0.0651 | N118: 0.0505 | O118: 0.0739 | P118: 0.0643 | Q118: 0.0583 | R118: 0.0898 | S118: 0.0603 | T118: 0.0546 | U118: 0.0595 | V118: 0.0681 | W118: 0.0691 | X118: 0.0549 | Y118: 0.0248 | Z118: 0.0416 | AA118: =1-AA54 -> 0.0516 | AB118: 0.0123 | AC118: 0.0286 | AD118: 0.04552 | AE118: 0.02279 | AF118: =1-AF54 -> 0.02099
C119: Sonoma | D119: 0.225 | J119: Sonoma | K119: =1-K55 -> 0.1375 | L119: 0.1227 | M119: 0.1008 | N119: 0.0501 | O119: 0.0595 | P119: 0.0774 | Q119: 0.1326 | R119: 0.139 | S119: 0.1592 | T119: 0.1618 | U119: 0.1031 | V119: 0.0407 | W119: 0.0418 | X119: 0.0817 | Y119: 0.075 | Z119: 0.1095 | AA119: =1-AA55 -> 0.1075 | AB119: 0.1378 | AC119: 0.0523 | AD119: 0.0437 | AE119: 0.03194 | AF119: =1-AF55 -> 0.01527
C120: Stanislaus | D120: =1-D56 -> 0 | J120: Stanislaus | K120: =1-K56 -> 0 | L120: 0 | M120: 0.0004 | N120: 0 | O120: 0.014 | P120: 0.0064 | Q120: 0.0158 | R120: 0.0385 | S120: 0.047 | T120: 0.0851 | U120: 0.0351 | V120: 0.0151 | W120: 0.0373 | X120: 0.0141 | Y120: 0.0083 | Z120: 0.0095 | AA120: =1-AA56 -> 0.0022 | AB120: 0.0102 | AC120: 0.024 | AD120: 0.02365 | AE120: 0.02506 | AF120: =1-AF56 -> 0.03442
C121: Sutter | D121: 0.084 | J121: Sutter | K121: =1-K57 -> 0.0744 | L121: 0.0497 | M121: 0.0489 | N121: 0.0483 | O121: 0.0361 | P121: 0.0426 | Q121: 0.019 | R121: 0.0106 | S121: 0.0561 | T121: 0.028 | U121: 0.0111 | V121: 0.0121 | W121: 0 | X121: 0.0318 | Y121: 0.0213 | Z121: 0.0095 | AA121: =1-AA57 -> 0.0244 | AB121: 0.0419 | AC121: 0.0096 | AD121: 0.0274 | AE121: 0.00685 | AF121: =1-AF57 -> 0.00444
C122: Tehama | D122: 0.138 | J122: Tehama | K122: =1-K58 -> 0.1062 | L122: 0.1028 | M122: 0.0871 | N122: 0.0656 | O122: 0.0389 | P122: 0.0469 | Q122: 0.0571 | R122: 0.083 | S122: 0.0329 | T122: 0.056 | U122: 0.0639 | V122: 0.0297 | W122: 0.0207 | X122: 0.0351 | Y122: 0.0452 | Z122: 0.0248 | AA122: =1-AA58 -> 0.0476 | AB122: 0.0227 | AC122: 0.0244 | AD122: 0.1 | AE122: 0.0531 | AF122: =1-AF58 -> 0.04
C123: Trinity | D123: 0.026 | J123: Trinity | K123: =1-K59 -> 0.0357 | L123: 0 | M123: 0.0208 | N123: 0.0847 | O123: 0.0577 | P123: 0.0238 | Q123: 0 | R123: 0 | S123: 0.0417 | T123: 0 | U123: 0 | V123: 0.0317 | W123: 0.0755 | X123: 0.0612 | Y123: 0.0164 | Z123: 0.0755 | AA123: =1-AA59 -> 0.0638 | AB123: 0.0169 | AC123: 0.0286 | AD123: 0.04478 | AE123: 0.06818 | AF123: =1-AF59 -> 0.07273
C124: Tulare | D124: 0 | J124: Tulare | K124: =1-K60 -> 0 | L124: 0 | M124: 0 | N124: 0 | O124: 0 | P124: 0 | Q124: 0 | R124: 0 | S124: 0 | T124: 0 | U124: 0.0089 | V124: 0.0175 | W124: 0.0226 | X124: 0.0147 | Y124: 0.009 | Z124: 0.0179 | AA124: =1-AA60 -> 0.0337 | AB124: 0.0093 | AC124: 0.0097 | AD124: 0.03877 | AE124: 0.03588 | AF124: =1-AF60 -> 0.01128
C125: Tuolumne | D125: 0.012 | J125: Tuolumne | K125: =1-K61 -> 0.0102 | L125: 0.0345 | M125: 0.0216 | N125: 0.0297 | O125: 0.0457 | P125: 0.049 | Q125: 0.0769 | R125: 0.1141 | S125: 0.066 | T125: 0.0613 | U125: 0.0458 | V125: 0.0352 | W125: 0.1074 | X125: 0.0491 | Y125: 0.1233 | Z125: 0.0288 | AA125: =1-AA61 -> 0.0065 | AB125: 0.016 | AC125: 0.0076 | AD125: 0.02128 | AE125: 0.06522 | AF125: =1-AF61 -> 0.03125
C126: Ventura | D126: 0.014 | J126: Ventura | K126: =1-K62 -> 0.0203 | L126: 0.0096 | M126: 0.013 | N126: 0.0133 | O126: 0.0192 | P126: 0.007 | Q126: 0.0157 | R126: 0.0549 | S126: 0.0747 | T126: 0.0354 | U126: 0.0234 | V126: 0.0232 | W126: 0.0564 | X126: 0.0158 | Y126: 0.0217 | Z126: 0.0139 | AA126: =1-AA62 -> 0.0243 | AB126: 0.0131 | AD126: 0.00616 | AE126: 0.00982 | AF126: =1-AF62 -> 0.0109
C127: Yolo | D127: 0.179 | J127: Yolo | K127: =1-K63 -> 0.1116 | L127: 0.0673 | M127: 0.1267 | N127: 0.0936 | O127: 0.2329 | P127: 0.8267 | Q127: 0.1571 | R127: 0.12 | S127: 0.1472 | T127: 0.1577 | U127: 0.1841 | V127: 0.1014 | W127: 0.0878 | X127: 0.0464 | Y127: 0.0524 | Z127: 0.0508 | AA127: =1-AA63 -> 0.0635 | AB127: 0.03 | AC127: 0.0388 | AD127: 0.04762 | AE127: 0.11166 | AF127: =1-AF63 -> 0.05676
C128: Yuba | D128: 0.004 | J128: Yuba | K128: =1-K64 -> 0.0145 | L128: 0 | M128: 0 | N128: 0 | O128: 0.0299 | P128: 0 | Q128: 0.0136 | R128: 0.0312 | S128: 0.0056 | T128: 0 | U128: 0 | V128: 0 | W128: 0 | X128: 0 | Y128: 0 | Z128: 0 | AA128: =1-AA64 -> 0 | AB128: 0.0044 | AC128: 0.0082 | AD128: 0.00433 | AE128: 0.00338 | AF128: =1-AF64 -> 0.01087
C130: EXPEDITED 2011 | D130: 2 | E130: 3 | F130: 4 | G130: 5 | H130: 6 | I130: 7 | J130: 8 | K130: 9 | L130: 10 | M130: 11 | N130: 12 | O130: 13 | P130: 14 | Q130: 15 | R130: 16 | S130: 17 | T130: 18 | U130: 19 | V130: 20 | W130: 21 | X130: 22 | Y130: 23 | Z130: 24 | AA130: 25 | AB130: 26 | AI130: 33 | AJ130: 34 | AK130: 35 | AL130: 36 | AM130: 37 | AN130: 38
C131: Sum of qtr_timeliness_exp_ly | D131: Column Labels | J131: Sum of qtr_timeliness_exp_pct | K131: Column Labels | AH131: Sum of mth_timeliness_exp_pct | AI131: Column Labels
D132: 2012 | K132: 2012 | O132: 2013 | S132: 2014 | W132: 2015 | AA132: 2016 | AI132: 2016 | AM132: 2017
C133: Row Labels | D133: 4 | J133: Row Labels | K133: JAN | L133: APR | M133: JUL | N133: OCT | O133: JAN | P133: APR | Q133: JUL | R133: OCT | S133: JAN | T133: APR | U133: JUL | V133: OCT | W133: JAN | X133: APR | Y133: JUL | Z133: OCT | AA133: JAN | AB133: APR | AC133: JUL | AD133: OCT | AH133: Row Labels | AI133: JAN | AJ133: APR | AK133: JUL | AL133: OCT | AM133: JAN | AN133: APR
C134: California | D134: 0.923 | J134: California | K134: 0.9268 | L134: 0.9402 | M134: 0.9417 | N134: 0.9393 | O134: 0.9369 | P134: 0.943 | Q134: 0.9188 | R134: 0.9243 | S134: 0.9058 | T134: 0.9244 | U134: 0.9278 | V134: 0.9333 | W134: 0.9358 | X134: 0.9469 | Y134: 0.9417 | Z134: 0.9365 | AA134: 0.9338 | AB134: 0.9251 | AC134: 0 | AD134: 0 | AH134: California | AI134: 0 | AJ134: 0 | AK134: 0.9071 | AL134: 0.92514 | AM134: 0.93213 | AN134: 0.94036
C135: Alameda | D135: 0.871 | J135: Alameda | K135: 0.8696 | L135: 0.8729 | M135: 0.8771 | N135: 0.8546 | O135: 0.8662 | P135: 0.8623 | Q135: 0.8714 | R135: 0.8649 | S135: 0.8773 | T135: 0.8986 | U135: 0.8695 | V135: 0.8677 | W135: 0.8539 | X135: 0.8956 | Y135: 0.8844 | Z135: 0.8299 | AA135: 0.8977 | AB135: 0.9323 | AC135: 0 | AD135: 0 | AH135: Alameda | AI135: 0 | AJ135: 0 | AK135: 0.9586 | AL135: 0.9881 | AM135: 0.98818
C136: Alpine | D136: 1 | J136: Alpine | K136: 1 | L136: 1 | M136: 1 | N136: 0.9375 | O136: 0.9286 | P136: 0.95 | Q136: 0.7273 | R136: 0.6471 | S136: 0.7895 | T136: 0.9167 | U136: 0.7895 | V136: 0.7778 | W136: 0.4286 | X136: 0.625 | Y136: 0.75 | Z136: 0.6667 | AA136: 0.4444 | AB136: 0.6364 | AC136: 0 | AD136: 0 | AH136: Alpine | AI136: 0 | AJ136: 0 | AK136: 1 | AL136: 0.07 | AM136: 1 | AN136: 1
C137: Amador | D137: 0.893 | J137: Amador | K137: 0.9476 | L137: 0.8607 | M137: 0.9276 | N137: 0.9363 | O137: 0.9312 | P137: 0.9556 | Q137: 0.9442 | R137: 0.986 | S137: 0.971 | T137: 0.9569 | U137: 0.9532 | V137: 0.9405 | W137: 0.9417 | X137: 0.9401 | Y137: 0.9617 | Z137: 0.9592 | AA137: 0.9745 | AB137: 0.959 | AC137: 0 | AD137: 0 | AH137: Amador | AI137: 0 | AJ137: 0 | AK137: 0 | AL137: 1 | AM137: 1 | AN137: 0.97222
C138: Butte | D138: 0.936 | J138: Butte | K138: 0.9359 | L138: 0.9225 | M138: 0.9487 | N138: 0.9555 | O138: 0.9582 | P138: 0.9529 | Q138: 0.939 | R138: 0.9301 | S138: 0.8953 | T138: 0.8999 | U138: 0.9417 | V138: 0.9397 | W138: 0.9267 | X138: 0.935 | Y138: 0.9261 | Z138: 0.9193 | AA138: 0.9483 | AB138: 0.9386 | AC138: 0 | AD138: 0 | AH138: Butte | AI138: 0 | AJ138: 0 | AK138: 0.939 | AL138: 0.94265 | AM138: 0.9375 | AN138: 0.95194
C139: Calaveras | D139: 0.98 | J139: Calaveras | K139: 0.9893 | L139: 0.9924 | M139: 0.9923 | N139: 0.9884 | O139: 0.9644 | P139: 0.9797 | Q139: 0.9864 | R139: 0.9822 | S139: 0.9519 | T139: 0.9637 | U139: 0.9685 | V139: 0.9567 | W139: 0.9562 | X139: 0.9515 | Y139: 0.9414 | Z139: 0.9397 | AA139: 0.9274 | AB139: 0.964 | AC139: 0 | AD139: 0 | AH139: Calaveras | AI139: 0 | AJ139: 0 | AK139: 0.8866 | AL139: 0.91667 | AM139: 0.93939 | AN139: 0.94048
C140: Colusa | D140: 1 | J140: Colusa | K140: 1 | L140: 0.9722 | M140: 1 | N140: 1 | O140: 1 | P140: 1 | Q140: 0.9577 | R140: 0.9494 | S140: 0.95 | T140: 0.9595 | U140: 0.9375 | V140: 0.8966 | W140: 0.9028 | X140: 0.918 | Y140: 0.9474 | Z140: 0.9538 | AA140: 0.9706 | AB140: 0.9873 | AC140: 0 | AD140: 0 | AH140: Colusa | AI140: 0 | AJ140: 0 | AK140: 0.8947 | AL140: 0.92308 | AM140: 0.97222 | AN140: 0.94444
C141: Contra Costa | D141: 0.831 | J141: Contra Costa | K141: 0.8209 | L141: 0.8911 | M141: 0.8465 | N141: 0.8748 | O141: 0.9068 | P141: 0.9367 | Q141: 0.7922 | R141: 0.7159 | S141: 0.855 | T141: 0.858 | U141: 0.8271 | V141: 0.9407 | W141: 0.9252 | X141: 0.9697 | Y141: 0.9685 | Z141: 0.9688 | AA141: 0.9786 | AB141: 0.9838 | AC141: 0 | AD141: 0 | AH141: Contra Costa | AI141: 0 | AJ141: 0 | AK141: 0.9785 | AL141: 0.91534 | AM141: 0.96573 | AN141: 0.99129
C142: Del Norte | D142: 0.99 | J142: Del Norte | K142: 0.9797 | L142: 0.9918 | M142: 0.988 | N142: 0.978 | O142: 0.9881 | P142: 0.9744 | Q142: 0.9837 | R142: 0.9817 | S142: 0.9773 | T142: 0.9524 | U142: 0.9567 | V142: 0.9896 | W142: 0.9607 | X142: 0.9292 | Y142: 0.9452 | Z142: 0.9364 | AA142: 0.9442 | AB142: 0.9355 | AC142: 0 | AD142: 0 | AH142: Del Norte | AI142: 0 | AJ142: 0 | AK142: 0 | AL142: 0.92424 | AM142: 0.86765 | AN142: 0.88235
C143: El Dorado | D143: 0.926 | J143: El Dorado | K143: 0.9312 | L143: 0.963 | M143: 0.9589 | N143: 0.9725 | O143: 0.9882 | P143: 0.9636 | Q143: 0.9771 | R143: 0.8776 | S143: 0.7883 | T143: 0.8252 | U143: 0.9541 | V143: 0.9429 | W143: 0.9612 | X143: 0.9493 | Y143: 0.9462 | Z143: 0.9623 | AA143: 0.9558 | AB143: 0.9855 | AC143: 0 | AD143: 0 | AH143: El Dorado | AI143: 0 | AJ143: 0 | AK143: 0.9882 | AL143: 0.98868 | AM143: 0.98319 | AN143: 0.98734
C144: Fresno | D144: 0.952 | J144: Fresno | K144: 0.95 | L144: 0.9709 | M144: 0.9728 | N144: 0.9704 | O144: 0.9715 | P144: 0.9327 | Q144: 0.8348 | R144: 0.9124 | S144: 0.9226 | T144: 0.9695 | U144: 0.9773 | V144: 0.9639 | W144: 0.9256 | X144: 0.973 | Y144: 0.9235 | Z144: 0.9501 | AA144: 0.9102 | AB144: 0.9687 | AC144: 0 | AD144: 0 | AH144: Fresno | AI144: 0 | AJ144: 0 | AK144: 0.9577 | AL144: 0.96524 | AM144: 0.95532 | AN144: 0.96781
C145: Glenn | D145: 0.991 | J145: Glenn | K145: 1 | L145: 1 | M145: 0.9817 | N145: 0.9919 | O145: 1 | P145: 0.9931 | Q145: 0.9921 | R145: 1 | S145: 0.9441 | T145: 1 | U145: 0.9754 | V145: 0.9852 | W145: 0.9854 | X145: 0.9861 | Y145: 0.9903 | Z145: 0.9907 | AA145: 0.9779 | AB145: 0.9865 | AC145: 0 | AD145: 0 | AH145: Glenn | AI145: 0 | AJ145: 0 | AK145: 1 | AL145: 0.92105 | AM145: 0.87273 | AN145: 0.93333
C146: Humboldt | D146: 0.896 | J146: Humboldt | K146: 0.8911 | L146: 0.9284 | M146: 0.9441 | N146: 0.8967 | O146: 0.8998 | P146: 0.933 | Q146: 0.8975 | R146: 0.88 | S146: 0.748 | T146: 0.863 | U146: 0.8662 | V146: 0.9052 | W146: 0.9194 | X146: 0.9362 | Y146: 0.9173 | Z146: 0.9584 | AA146: 0.9657 | AB146: 0.9853 | AC146: 0 | AD146: 0 | AH146: Humboldt | AI146: 0 | AJ146: 0 | AK146: 0.9623 | AL146: 0.9636 | AM146: 0.96923 | AN146: 0.9708
C147: Imperial | D147: 0.991 | J147: Imperial | K147: 0.977 | L147: 0.9867 | M147: 0.9838 | N147: 0.9885 | O147: 0.9866 | P147: 0.9889 | Q147: 0.9144 | R147: 0.9822 | S147: 0.8939 | T147: 0.8831 | U147: 0.826 | V147: 0.895 | W147: 0.8807 | X147: 0.8359 | Y147: 0.9012 | Z147: 0.9432 | AA147: 0.9371 | AB147: 0.9357 | AC147: 0 | AD147: 0 | AH147: Imperial | AI147: 0 | AJ147: 0 | AK147: 0.9113 | AL147: 0.92671 | AM147: 0.92276 | AN147: 0.94209
C148: Inyo | D148: 0.991 | J148: Inyo | K148: 1 | L148: 0.9912 | M148: 0.9928 | N148: 0.9903 | O148: 0.984 | P148: 0.9776 | Q148: 0.9924 | R148: 0.9579 | S148: 0.9548 | T148: 0.9619 | U148: 0.9596 | V148: 0.9293 | W148: 0.9492 | X148: 0.9052 | Y148: 0.9318 | Z148: 0.9483 | AA148: 0.9 | AB148: 0.8917 | AC148: 0 | AD148: 0 | AH148: Inyo | AI148: 0 | AJ148: 0 | AK148: 0.9091 | AL148: 0.89286 | AM148: 0.88889 | AN148: 0.92683
C149: Kern | D149: 0.982 | J149: Kern | K149: 0.9766 | L149: 0.9695 | M149: 0.9514 | N149: 0.9633 | O149: 0.9556 | P149: 0.9517 | Q149: 0.9016 | R149: 0.9035 | S149: 0.8838 | T149: 0.9075 | U149: 0.9205 | V149: 0.9203 | W149: 0.9154 | X149: 0.9474 | Y149: 0.9376 | Z149: 0.9468 | AA149: 0.9398 | AB149: 0.9446 | AC149: 0 | AD149: 0 | AH149: Kern | AI149: 0 | AJ149: 0 | AK149: 0.9262 | AL149: 0.92181 | AM149: 0.89551 | AN149: 0.93028
C150: Kings | D150: 0.911 | J150: Kings | K150: 0.8973 | L150: 0.8651 | M150: 0.8821 | N150: 0.9076 | O150: 0.9535 | P150: 0.9693 | Q150: 0.9615 | R150: 0.9441 | S150: 0.8873 | T150: 0.8454 | U150: 0.8055 | V150: 0.9345 | W150: 0.9636 | X150: 0.9678 | Y150: 0.9727 | Z150: 0.9602 | AA150: 0.9713 | AB150: 0.9665 | AC150: 0 | AD150: 0 | AH150: Kings | AI150: 0 | AJ150: 0 | AK150: 0.9456 | AL150: 0.97304 | AM150: 0.93582 | AN150: 0.9587
C151: Lake | D151: 0.971 | J151: Lake | K151: 0.9686 | L151: 0.9347 | M151: 0.94 | N151: 0.9546 | O151: 0.9518 | P151: 0.9519 | Q151: 0.8716 | R151: 0.903 | S151: 0.8548 | T151: 0.8163 | U151: 0.8901 | V151: 0.9234 | W151: 0.9458 | X151: 0.9566 | Y151: 0.945 | Z151: 0.9208 | AA151: 0.9309 | AB151: 0.9338 | AC151: 0 | AD151: 0 | AH151: Lake | AI151: 0 | AJ151: 0 | AK151: 0.9426 | AL151: 0.94611 | AM151: 0.92661 | AN151: 0.93367
C152: Lassen | D152: 0.975 | J152: Lassen | K152: 0.9704 | L152: 0.9364 | M152: 0.9298 | N152: 0.9014 | O152: 0.9212 | P152: 0.9585 | Q152: 0.9124 | R152: 0.9122 | S152: 0.8268 | T152: 0.875 | U152: 0.8492 | V152: 0.7758 | W152: 0.7838 | X152: 0.7337 | Y152: 0.7468 | Z152: 0.8054 | AA152: 0.9031 | AB152: 0.7532 | AC152: 0 | AD152: 0 | AH152: Lassen | AI152: 0 | AJ152: 0 | AK152: 0.7451 | AL152: 0.85714 | AM152: 0.88462 | AN152: 0.89474
C153: Los Angeles | D153: 0.914 | J153: Los Angeles | K153: 0.9298 | L153: 0.9483 | M153: 0.9586 | N153: 0.9494 | O153: 0.9514 | P153: 0.9613 | Q153: 0.9571 | R153: 0.9486 | S153: 0.9392 | T153: 0.9449 | U153: 0.9345 | V153: 0.9294 | W153: 0.948 | X153: 0.9494 | Y153: 0.9417 | Z153: 0.9223 | AA153: 0.8946 | AB153: 0.8286 | AC153: 0 | AD153: 0 | AH153: Los Angeles | AI153: 0 | AJ153: 0 | AK153: 0.8247 | AL153: 0.86521 | AM153: 0.90629 | AN153: 0.90664
C154: Madera | D154: 0.981 | J154: Madera | K154: 0.9801 | L154: 0.9905 | M154: 0.9916 | N154: 0.9849 | O154: 0.9832 | P154: 0.9815 | Q154: 0.9719 | R154: 0.9753 | S154: 0.8866 | T154: 0.9131 | U154: 0.9248 | V154: 0.8844 | W154: 0.8765 | X154: 0.8496 | Y154: 0.9338 | Z154: 0.9671 | AA154: 0.9683 | AB154: 0.9684 | AC154: 0 | AD154: 0 | AH154: Madera | AI154: 0 | AJ154: 0 | AK154: 0.9709 | AL154: 0.95584 | AM154: 0.96629 | AN154: 0.99535
C155: Marin | D155: 0.975 | J155: Marin | K155: 0.9165 | L155: 0.9401 | M155: 0.9435 | N155: 0.9461 | O155: 0.9328 | P155: 0.9507 | Q155: 0.9545 | R155: 0.9494 | S155: 0.9006 | T155: 0.9303 | U155: 0.9259 | V155: 0.9396 | W155: 0.9306 | X155: 0.9209 | Y155: 0.9319 | Z155: 0.9599 | AA155: 0.9244 | AB155: 0.9324 | AC155: 0 | AD155: 0 | AH155: Marin | AI155: 0 | AJ155: 0 | AK155: 0.8913 | AL155: 0.95089 | AM155: 0.92823 | AN155: 0.95429
C156: Mariposa | D156: 0.988 | J156: Mariposa | K156: 0.9811 | L156: 0.967 | M156: 0.9886 | N156: 0.9634 | O156: 0.9381 | P156: 0.9432 | Q156: 0.9872 | R156: 0.8681 | S156: 0.9153 | T156: 0.9247 | U156: 0.9767 | V156: 0.9259 | W156: 0.9759 | X156: 0.9639 | Y156: 0.9651 | Z156: 0.9778 | AA156: 0.931 | AB156: 0.9651 | AC156: 0 | AD156: 0 | AH156: Mariposa | AI156: 0 | AJ156: 0 | AK156: 0.9412 | AL156: 0.82609 | AM156: 0.4 | AN156: 0.60714
C157: Mendocino | D157: 0.993 | J157: Mendocino | K157: 0.9946 | L157: 0.9978 | M157: 0.9865 | N157: 0.9906 | O157: 0.9886 | P157: 0.9889 | Q157: 0.9946 | R157: 0.9938 | S157: 0.9545 | T157: 0.9802 | U157: 0.9646 | V157: 0.9652 | W157: 0.9731 | X157: 0.972 | Y157: 0.977 | Z157: 0.9625 | AA157: 0.9567 | AB157: 0.9741 | AC157: 0 | AD157: 0 | AH157: Mendocino | AI157: 0 | AJ157: 0 | AK157: 0.9909 | AL157: 0.95142 | AM157: 0.94035 | AN157: 0.93913
C158: Merced | D158: 0.972 | J158: Merced | K158: 0.9744 | L158: 0.9836 | M158: 0.9773 | N158: 0.986 | O158: 0.9908 | P158: 0.9924 | Q158: 0.9482 | R158: 0.9478 | S158: 0.923 | T158: 0.9436 | U158: 0.9502 | V158: 0.9503 | W158: 0.9476 | X158: 0.9655 | Y158: 0.9533 | Z158: 0.9535 | AA158: 0.9635 | AB158: 0.9582 | AC158: 0 | AD158: 0 | AH158: Merced | AI158: 0 | AJ158: 0 | AK158: 0.9668 | AL158: 0.95856 | AM158: 0.96409 | AN158: 0.9588
C159: Modoc | D159: 0.951 | J159: Modoc | K159: 0.9556 | L159: 0.9412 | M159: 1 | N159: 1 | O159: 0.9455 | P159: 0.9231 | Q159: 1 | R159: 0.9615 | S159: 0.9444 | T159: 0.873 | U159: 0.8444 | V159: 0.8913 | W159: 0.8125 | X159: 0.94 | Y159: 0.92 | Z159: 1 | AA159: 0.9268 | AB159: 0.8667 | AC159: 0 | AD159: 0 | AH159: Modoc | AI159: 0 | AJ159: 0 | AK159: 0.9444 | AL159: 0.89286 | AM159: 0.91892 | AN159: 1
C160: Mono | D160: 0.947 | J160: Mono | K160: 0.9259 | L160: 0.8881 | M160: 0.95 | N160: 0.945 | O160: 0.8909 | P160: 0.9576 | Q160: 0.8485 | R160: 0.9662 | S160: 0.9032 | T160: 0.8559 | U160: 0.8929 | V160: 0.9237 | W160: 0.9571 | X160: 0.9806 | Y160: 1 | Z160: 0.9872 | AA160: 0.9189 | AB160: 0.9868 | AC160: 0 | AD160: 0 | AH160: Mono | AI160: 0 | AJ160: 0 | AK160: 0.9231 | AL160: 1 | AM160: 0.90909 | AN160: 1
C161: Monterey | D161: 0.994 | J161: Monterey | K161: 0.9938 | L161: 0.9913 | M161: 0.9939 | N161: 0.9926 | O161: 0.9954 | P161: 0.9953 | Q161: 0.9919 | R161: 0.9782 | S161: 0.9558 | T161: 0.971 | U161: 0.9584 | V161: 0.9541 | W161: 0.9496 | X161: 0.9601 | Y161: 0.9723 | Z161: 0.9619 | AA161: 0.9595 | AB161: 0.971 | AC161: 0 | AD161: 0 | AH161: Monterey | AI161: 0 | AJ161: 0 | AK161: 0.9475 | AL161: 0.96899 | AM161: 0.9581 | AN161: 0.96854
C162: Napa | D162: 0.955 | J162: Napa | K162: 0.9641 | L162: 0.9816 | M162: 0.9849 | N162: 0.9623 | O162: 0.9695 | P162: 0.9656 | Q162: 0.8991 | R162: 0.9063 | S162: 0.9621 | T162: 0.9786 | U162: 0.9637 | V162: 0.9538 | W162: 0.9555 | X162: 0.9738 | Y162: 0.9683 | Z162: 0.9694 | AA162: 0.9391 | AB162: 0.9607 | AC162: 0 | AD162: 0 | AH162: Napa | AI162: 0 | AJ162: 0 | AK162: 0.9041 | AL162: 0.92632 | AM162: 0.88462 | AN162: 0.98765
C163: Nevada | D163: 0.964 | J163: Nevada | K163: 0.9843 | L163: 0.9919 | M163: 0.988 | N163: 0.9692 | O163: 0.9446 | P163: 0.9741 | Q163: 0.9517 | R163: 0.8584 | S163: 0.8099 | T163: 0.7658 | U163: 0.7941 | V163: 0.8589 | W163: 0.8462 | X163: 0.8252 | Y163: 0.9026 | Z163: 0.92 | AA163: 0.8592 | AB163: 0.871 | AC163: 0 | AD163: 0 | AH163: Nevada | AI163: 0 | AJ163: 0 | AK163: 0 | AL163: 0.86 | AM163: 0.70149 | AN163: 0.83824
C164: Orange | D164: 0.995 | J164: Orange | K164: 0.9945 | L164: 0.9946 | M164: 0.9955 | N164: 0.9935 | O164: 0.9928 | P164: 0.9957 | Q164: 0.996 | R164: 0.9954 | S164: 0.9884 | T164: 0.9945 | U164: 0.9953 | V164: 0.9962 | W164: 0.9951 | X164: 0.9971 | Y164: 0.9941 | Z164: 0.9876 | AA164: 0.9938 | AB164: 0.995 | AC164: 0 | AD164: 0 | AH164: Orange | AI164: 0 | AJ164: 0 | AK164: 1 | AL164: 1 | AM164: 0.98964 | AN164: 0.99256
C165: Placer | D165: 0.702 | J165: Placer | K165: 0.8333 | L165: 0.9581 | M165: 0.963 | N165: 0.9482 | O165: 0.9668 | P165: 0.9741 | Q165: 0.9742 | R165: 0.9475 | S165: 0.9736 | T165: 0.9748 | U165: 0.9712 | V165: 0.9704 | W165: 0.9502 | X165: 0.9377 | Y165: 0 | Z165: 0 | AA165: 0 | AB165: 0.9153 | AC165: 0 | AD165: 0 | AH165: Placer | AI165: 0 | AJ165: 0 | AK165: 0 | AL165: 0.95833 | AM165: 0.93953 | AN165: 0.91257
C166: Plumas | D166: 1 | J166: Plumas | K166: 0.9608 | L166: 0.9694 | M166: 0.9375 | N166: 0.9541 | O166: 0.9811 | P166: 0.978 | Q166: 0.9697 | R166: 0.8154 | S166: 0.551 | T166: 0.5327 | U166: 0.8742 | V166: 0.8739 | W166: 0.8075 | X166: 0.9028 | Y166: 0.9028 | Z166: 0.8293 | AA166: 0.8217 | AB166: 0.8851 | AC166: 0 | AD166: 0 | AH166: Plumas | AI166: 0 | AJ166: 0 | AK166: 0.9444 | AL166: 0.775 | AM166: 0.84444 | AN166: 0.78571
C167: Riverside | D167: 0.914 | J167: Riverside | K167: 0.9388 | L167: 0.9484 | M167: 0.9468 | N167: 0.9416 | O167: 0.958 | P167: 0.9584 | Q167: 0.9434 | R167: 0.9515 | S167: 0.8791 | T167: 0.8835 | U167: 0.8739 | V167: 0.8864 | W167: 0.903 | X167: 0.9207 | Y167: 0.92 | Z167: 0.932 | AA167: 0.9421 | AB167: 0.9456 | AC167: 0 | AD167: 0 | AH167: Riverside | AI167: 0 | AJ167: 0 | AK167: 0.9337 | AL167: 0.94361 | AM167: 0.93916 | AN167: 0.95569
C168: Sacramento | D168: 0.866 | J168: Sacramento | K168: 0.9231 | L168: 0.9647 | M168: 0.985 | N168: 0.9735 | O168: 0.9557 | P168: 0.984 | Q168: 0.9842 | R168: 0.9803 | S168: 0.9715 | T168: 0.9815 | U168: 0.9816 | V168: 0.984 | W168: 0.9748 | X168: 0.9868 | Y168: 0.987 | Z168: 0.9883 | AA168: 0.9898 | AB168: 0.9921 | AC168: 0 | AD168: 0 | AH168: Sacramento | AI168: 0 | AJ168: 0 | AK168: 0.9915 | AL168: 0.98664 | AM168: 0.99334 | AN168: 0.99618
C169: San Benito | D169: 0.988 | J169: San Benito | K169: 0.9865 | L169: 0.9952 | M169: 0.9751 | N169: 0.9962 | O169: 0.9775 | P169: 0.9757 | Q169: 0.9727 | R169: 0.9668 | S169: 0.9503 | T169: 0.9464 | U169: 0.9644 | V169: 0.9519 | W169: 0.9462 | X169: 0.9298 | Y169: 0.9851 | Z169: 0.9535 | AA169: 0.953 | AB169: 0.9326 | AC169: 0 | AD169: 0 | AH169: San Benito | AI169: 0 | AJ169: 0 | AK169: 0.9394 | AL169: 0.94643 | AM169: 0.93548 | AN169: 0.94444
C170: San Bernardino | D170: 0.935 | J170: San Bernardino | K170: 0.9343 | L170: 0.9534 | M170: 0.932 | N170: 0.9358 | O170: 0.9268 | P170: 0.9316 | Q170: 0.8616 | R170: 0.8954 | S170: 0.8644 | T170: 0.9061 | U170: 0.9479 | V170: 0.9631 | W170: 0.9573 | X170: 0.9617 | Y170: 0.9573 | Z170: 0.9519 | AA170: 0.95 | AB170: 0.9611 | AC170: 0 | AD170: 0 | AH170: San Bernardino | AI170: 0 | AJ170: 0 | AK170: 0.9557 | AL170: 0.95956 | AM170: 0.93876 | AN170: 0.95651
C171: San Diego | D171: 0.943 | J171: San Diego | K171: 0.9482 | L171: 0.9387 | M171: 0.8848 | N171: 0.8916 | O171: 0.9143 | P171: 0.8963 | Q171: 0.9112 | R171: 0.9518 | S171: 0.9636 | T171: 0.968 | U171: 0.9744 | V171: 0.9762 | W171: 0.9783 | X171: 0.9829 | Y171: 0.9789 | Z171: 0.9822 | AA171: 0.9824 | AB171: 0.9804 | AC171: 0 | AD171: 0 | AH171: San Diego | AI171: 0 | AJ171: 0 | AK171: 0.9905 | AL171: 0.98267 | AM171: 0.97354 | AN171: 0.96995
C172: San Francisco | D172: 0.958 | J172: San Francisco | K172: 0.921 | L172: 0.9666 | M172: 0.9317 | N172: 0.9129 | O172: 0.7528 | P172: 0.8979 | Q172: 0.8174 | R172: 0.6942 | S172: 0.756 | T172: 0.8997 | U172: 0.8341 | V172: 0.8647 | W172: 0.8616 | X172: 0.8941 | Y172: 0.864 | Z172: 0.8389 | AA172: 0.8757 | AB172: 0.8996 | AC172: 0 | AD172: 0 | AH172: San Francisco | AI172: 0 | AJ172: 0 | AK172: 0 | AL172: 0.94477 | AM172: 0.93267 | AN172: 0.95198
C173: San Joaquin | D173: 0.937 | J173: San Joaquin | K173: 0.9538 | L173: 0.9421 | M173: 0.9273 | N173: 0.9626 | O173: 0.9746 | P173: 0.9744 | Q173: 0.9172 | R173: 0.9368 | S173: 0.8831 | T173: 0.8862 | U173: 0.8895 | V173: 0.8917 | W173: 0.8889 | X173: 0.9026 | Y173: 0.9144 | Z173: 0.9106 | AA173: 0.906 | AB173: 0.9066 | AC173: 0 | AD173: 0 | AH173: San Joaquin | AI173: 0 | AJ173: 0 | AK173: 0.8482 | AL173: 0.92041 | AM173: 0.92176 | AN173: 0.92981
C174: San Luis Obispo | D174: 0.815 | J174: San Luis Obispo | K174: 0.8649 | L174: 0.8425 | M174: 0.8355 | N174: 0.8978 | O174: 0.8981 | P174: 0.8899 | Q174: 0.9103 | R174: 0.908 | S174: 0.9005 | T174: 0.9053 | U174: 0.9041 | V174: 0.9291 | W174: 0.9331 | X174: 0.9324 | Y174: 0.9591 | Z174: 0.945 | AA174: 0.9622 | AB174: 0.9776 | AC174: 0 | AD174: 0 | AH174: San Luis Obispo | AI174: 0 | AJ174: 0 | AK174: 0 | AL174: 0.96954 | AM174: 0.98031 | AN174: 0.98636
C175: San Mateo | D175: 0.839 | J175: San Mateo | K175: 0.842 | L175: 0.8595 | M175: 0.8656 | N175: 0.8265 | O175: 0.8113 | P175: 0.7536 | Q175: 0.8035 | R175: 0.8298 | S175: 0.8753 | T175: 0.8886 | U175: 0.9107 | V175: 0.8892 | W175: 0.9327 | X175: 0.9204 | Y175: 0.9241 | Z175: 0.8997 | AA175: 0.9022 | AB175: 0.8855 | AC175: 0 | AD175: 0 | AH175: San Mateo | AI175: 0 | AJ175: 0 | AK175: 0.9027 | AL175: 0.90274 | AM175: 0.90274 | AN175: 0.87688
C176: Santa Barbara | D176: 0.835 | J176: Santa Barbara | K176: 0.8384 | L176: 0.8893 | M176: 0.9452 | N176: 0.9329 | O176: 0.9216 | P176: 0.9405 | Q176: 0.8654 | R176: 0.8466 | S176: 0.817 | T176: 0.8863 | U176: 0.9134 | V176: 0.8641 | W176: 0.9044 | X176: 0.9206 | Y176: 0.9199 | Z176: 0.9237 | AA176: 0.9279 | AB176: 0.9315 | AC176: 0 | AD176: 0 | AH176: Santa Barbara | AI176: 0 | AJ176: 0 | AK176: 0.884 | AL176: 0.89308 | AM176: 0.89607 | AN176: 0.93559
C177: Santa Clara | D177: 0.397 | J177: Santa Clara | K177: 0.255 | L177: 0.4774 | M177: 0.8638 | N177: 0.8511 | O177: 0.8704 | P177: 0.8879 | Q177: 0.842 | R177: 0.9216 | S177: 0.8836 | T177: 0.9338 | U177: 0.9647 | V177: 0.9439 | W177: 0.9717 | X177: 0.9728 | Y177: 0.9841 | Z177: 0.9839 | AA177: 0.9744 | AB177: 0.9883 | AC177: 0 | AD177: 0 | AH177: Santa Clara | AI177: 0 | AJ177: 0 | AK177: 0.9876 | AL177: 0.97034 | AM177: 0.97688 | AN177: 0.96396
C178: Santa Cruz | D178: 0.667 | J178: Santa Cruz | K178: 0.8651 | L178: 0.9033 | M178: 0.9458 | N178: 0.8895 | O178: 0.9228 | P178: 0.9602 | Q178: 0.7891 | R178: 0.6856 | S178: 0.6933 | T178: 0.9383 | U178: 0.9729 | V178: 0.9732 | W178: 0.9846 | X178: 0.9708 | Y178: 0.986 | Z178: 0.9654 | AA178: 0.9469 | AB178: 0.9718 | AC178: 0 | AD178: 0 | AH178: Santa Cruz | AI178: 0 | AJ178: 0 | AK178: 0.9832 | AL178: 0.99048 | AM178: 0.96739 | AN178: 0.99078
C179: Shasta | D179: 0.921 | J179: Shasta | K179: 0.9335 | L179: 0.9007 | M179: 0.8814 | N179: 0.896 | O179: 0.85 | P179: 0.869 | Q179: 0.8488 | R179: 0.875 | S179: 0.9327 | T179: 0.9553 | U179: 0.9582 | V179: 0.962 | W179: 0.9635 | X179: 0.9786 | Y179: 0.965 | Z179: 0.9774 | AA179: 0.9834 | AB179: 0.9803 | AC179: 0 | AD179: 0 | AH179: Shasta | AI179: 0 | AJ179: 0 | AK179: 0.959 | AL179: 0.9771 | AM179: 0.95329 | AN179: 0.9771
C180: Sierra | D180: 1 | J180: Sierra | K180: 0.9231 | L180: 1 | M180: 1 | N180: 0.9583 | O180: 0.9615 | P180: 1 | Q180: 1 | R180: 1 | S180: 0.913 | T180: 1 | U180: 1 | V180: 0.8696 | W180: 1 | X180: 0.9 | Y180: 1 | Z180: 0.9231 | AA180: 0.8824 | AB180: 1 | AC180: 0 | AD180: 0 | AH180: Sierra | AI180: 0 | AJ180: 0 | AK180: 1 | AL180: 0.71429 | AM180: 0.8 | AN180: 1
C181: Siskiyou | D181: 0.738 | J181: Siskiyou | K181: 0.9504 | L181: 0.9094 | M181: 0.9704 | N181: 0.9502 | O181: 0.9503 | P181: 0.9632 | Q181: 0.961 | R181: 0.8832 | S181: 0.8692 | T181: 0.8536 | U181: 0.8958 | V181: 0.9202 | W181: 0.8809 | X181: 0.8605 | Y181: 0.9091 | Z181: 0.9091 | AA181: 0.8889 | AB181: 0.8809 | AC181: 0 | AD181: 0 | AH181: Siskiyou | AI181: 0 | AJ181: 0 | AK181: 0.8831 | AL181: 0.83636 | AM181: 0.7875 | AN181: 0.82143
C182: Solano | D182: 0.96 | J182: Solano | K182: 0.9469 | L182: 0.9596 | M182: 0.9563 | N182: 0.9635 | O182: 0.9508 | P182: 0.9621 | Q182: 0.9484 | R182: 0.9608 | S182: 0.9592 | T182: 0.9723 | U182: 0.974 | V182: 0.9717 | W182: 0.9718 | X182: 0.9854 | Y182: 0.9767 | Z182: 0.9669 | AA182: 0.9718 | AB182: 0 | AC182: 0 | AD182: 0 | AH182: Solano | AI182: 0 | AJ182: 0 | AK182: 0.9638 | AL182: 0.97826 | AM182: 0.97521 | AN182: 0.98352
C183: Sonoma | D183: 0.553 | J183: Sonoma | K183: 0.4607 | L183: 0.6167 | M183: 0.6995 | N183: 0.6225 | O183: 0.4026 | P183: 0.4675 | Q183: 0.4717 | R183: 0.4848 | S183: 0.4588 | T183: 0.7174 | U183: 0.7337 | V183: 0.7587 | W183: 0.7051 | X183: 0.7561 | Y183: 0.6102 | Z183: 0.5146 | AA183: 0.5092 | AB183: 0.5867 | AC183: 0 | AD183: 0 | AH183: Sonoma | AI183: 0 | AJ183: 0 | AK183: 0.4963 | AL183: 0.69497 | AM183: 0.55873 | AN183: 0.89444
C184: Stanislaus | D184: 0.978 | J184: Stanislaus | K184: 0.9711 | L184: 0.9666 | M184: 0.9601 | N184: 0.9573 | O184: 0.9669 | P184: 0.9701 | Q184: 0.9355 | R184: 0.9278 | S184: 0.8783 | T184: 0.8527 | U184: 0.8456 | V184: 0.8563 | W184: 0.8939 | X184: 0.9182 | Y184: 0.9007 | Z184: 0.9051 | AA184: 0.9154 | AB184: 0.9252 | AC184: 0 | AD184: 0 | AH184: Stanislaus | AI184: 0 | AJ184: 0 | AK184: 0.9006 | AL184: 0.92063 | AM184: 0.93551 | AN184: 0.94781
C185: Sutter | D185: 0.95 | J185: Sutter | K185: 0.9607 | L185: 0.9446 | M185: 0.9431 | N185: 0.9592 | O185: 0.9615 | P185: 0.9547 | Q185: 0.8762 | R185: 0.9181 | S185: 0.9036 | T185: 0.9059 | U185: 0.9078 | V185: 0.9163 | W185: 0.8891 | X185: 0.9149 | Y185: 0.8901 | Z185: 0.8776 | AA185: 0.8807 | AB185: 0.8996 | AC185: 0 | AD185: 0 | AH185: Sutter | AI185: 0 | AJ185: 0 | AK185: 0.8623 | AL185: 0.90541 | AM185: 0.94805 | AN185: 0.95652
C186: Tehama | D186: 0.997 | J186: Tehama | K186: 0.9952 | L186: 0.9914 | M186: 0.9977 | N186: 0.9879 | O186: 0.99 | P186: 0.9878 | Q186: 0.9821 | R186: 0.9918 | S186: 0.9098 | T186: 0.922 | U186: 0.932 | V186: 0.9482 | W186: 0.9593 | X186: 0.9737 | Y186: 0.9774 | Z186: 0.9592 | AA186: 0.9695 | AB186: 0.954 | AC186: 0 | AD186: 0 | AH186: Tehama | AI186: 0 | AJ186: 0 | AK186: 0.9571 | AL186: 0.97345 | AM186: 0.91329 | AN186: 0.96154
C187: Trinity | D187: 0.968 | J187: Trinity | K187: 0.9889 | L187: 0.9828 | M187: 0.9217 | N187: 0.8913 | O187: 0.9419 | P187: 0.6729 | Q187: 0.6522 | R187: 0.9189 | S187: 0.72 | T187: 0.8939 | U187: 0.8739 | V187: 0.6983 | W187: 0.6693 | X187: 0.8361 | Y187: 0.9021 | Z187: 0.9189 | AA187: 0.812 | AB187: 0.7217 | AC187: 0 | AD187: 0 | AH187: Trinity | AI187: 0 | AJ187: 0 | AK187: 0.5161 | AL187: 0.4386 | AM187: 0.82353 | AN187: 0.65116
C188: Tulare | D188: 0.955 | J188: Tulare | K188: 0.9393 | L188: 0.9719 | M188: 0.9699 | N188: 0.9784 | O188: 0.9831 | P188: 0.9769 | Q188: 0.955 | R188: 0.9792 | S188: 0.9739 | T188: 0.9823 | U188: 0.9673 | V188: 0.9831 | W188: 0.9782 | X188: 0.9862 | Y188: 0.9825 | Z188: 0.9792 | AA188: 0.9802 | AB188: 0.9869 | AC188: 0 | AD188: 0 | AH188: Tulare | AI188: 0 | AJ188: 0 | AK188: 0.9286 | AL188: 0.94671 | AM188: 0.9097 | AN188: 0.92736
C189: Tuolumne | D189: 0.983 | J189: Tuolumne | K189: 0.9371 | L189: 0.9271 | M189: 0.9465 | N189: 0.9601 | O189: 0.9713 | P189: 0.9732 | Q189: 0.9551 | R189: 0.959 | S189: 0.9142 | T189: 0.8881 | U189: 0.9116 | V189: 0.858 | W189: 0.7531 | X189: 0.7869 | Y189: 0.9624 | Z189: 0.9828 | AA189: 0.9688 | AB189: 0.985 | AC189: 0 | AD189: 0 | AH189: Tuolumne | AI189: 0 | AJ189: 0 | AK189: 0.9859 | AL189: 0.98864 | AM189: 0.95604 | AN189: 0.94505
C190: Ventura | D190: 0.952 | J190: Ventura | K190: 0.9563 | L190: 0.9696 | M190: 0.9644 | N190: 0.9537 | O190: 0.9409 | P190: 0.9531 | Q190: 0.9382 | R190: 0.9325 | S190: 0.9209 | T190: 0.9465 | U190: 0.9354 | V190: 0.9405 | W190: 0.9569 | X190: 0.9545 | Y190: 0.9636 | Z190: 0.9612 | AA190: 0.9674 | AB190: 0.9679 | AC190: 0 | AD190: 0 | AH190: Ventura | AI190: 0 | AJ190: 0 | AK190: 0 | AL190: 0.9766 | AM190: 0.96564 | AN190: 0.96825
C191: Yolo | D191: 0.924 | J191: Yolo | K191: 0.9119 | L191: 0.914 | M191: 0.9172 | N191: 0.9055 | O191: 0.8749 | P191: 0.9151 | Q191: 0.9069 | R191: 0.9148 | S191: 0.9108 | T191: 0.8949 | U191: 0.8941 | V191: 0.8719 | W191: 0.8598 | X191: 0.8497 | Y191: 0.8496 | Z191: 0.9028 | AA191: 0.9563 | AB191: 0.933 | AC191: 0 | AD191: 0 | AH191: Yolo | AI191: 0 | AJ191: 0 | AK191: 0.9407 | AL191: 0.96121 | AM191: 0.95181 | AN191: 0.92857
C192: Yuba | D192: 0.961 | J192: Yuba | K192: 0.9447 | L192: 0.9469 | M192: 0.9842 | N192: 0.9568 | O192: 0.9625 | P192: 0.9678 | Q192: 0.9524 | R192: 0.9278 | S192: 0.9401 | T192: 0.9617 | U192: 0.951 | V192: 0.9668 | W192: 0.964 | X192: 0.9657 | Y192: 0.9614 | Z192: 0.9659 | AA192: 0.9677 | AB192: 0.9802 | AC192: 0 | AD192: 0 | AH192: Yuba | AI192: 0 | AJ192: 0 | AK192: 0.9652 | AL192: 0.96757 | AM192: 0.95473 | AN192: 0.97297
C194: ES NON-COMPLIANCE | J194: ES NON-COMPLIANCE
C195: =C131 -> Sum of qtr_timeliness_exp_ly | D195: PRIOR YEAR FROM: | J195: =J131 -> Sum of qtr_timeliness_exp_pct | K195: =K131 -> Column Labels | L195: 0 | M195: 0 | N195: 0 | O195: 0 | P195: 0 | Q195: 0 | R195: 0 | S195: 0 | T195: 0 | U195: 0 | V195: 0 | W195: 0 | X195: 0 | Y195: 0 | Z195: 0 | AA195: 0 | AB195: 0 | AH195: =AH131 -> Sum of mth_timeliness_exp_pct | AI195: Column Labels | AJ195: 0 | AK195: 0 | AL195: 0 | AM195: 0 | AN195: 0
C196: =C132 -> 0 | D196: 2012 | J196: =J132 -> 0 | K196: 2012 | L196: 0 | M196: 0 | N196: 0 | O196: 2013 | P196: 0 | Q196: 0 | R196: 0 | S196: 2014 | T196: 0 | U196: 0 | V196: 0 | W196: 2015 | X196: 0 | Y196: 0 | Z196: 0 | AA196: 2016 | AB196: 0 | AH196: 0 | AI196: 2016 | AJ196: 0 | AK196: 0 | AL196: 0 | AM196: 2017 | AN196: 0
C197: =C133 -> Row Labels | D197: 4 | J197: Row Labels | K197: JAN | L197: APR | M197: JUL | N197: OCT | O197: JAN | P197: APR | Q197: JUL | R197: OCT | S197: JAN | T197: APR | U197: JUL | V197: OCT | W197: JAN | X197: APR | Y197: JUL | Z197: OCT | AA197: JAN | AB197: APR | AH197: Row Labels | AI197: JAN | AJ197: APR | AK197: JUL | AL197: OCT | AM197: JAN | AN197: APR
C198: =C134 -> California | D198: =1-D134 -> 0.077 | J198: California | K198: =1-K134 -> 0.0732 | L198: =1-L134 -> 0.0598 | M198: 0.0583 | N198: 0.0607 | O198: 0.0631 | P198: 0.057 | Q198: 0.0812 | R198: 0.0757 | S198: 0.0942 | T198: 0.0756 | U198: 0.0722 | V198: 0.0667 | W198: 0.0642 | X198: 0.0531 | Y198: 0.0583 | Z198: 0.0635 | AA198: 0.0662 | AB198: 0.0749 | AH198: =AH134 -> California | AK198: =1-AK134 -> 0.0929 | AL198: =1-AL134 -> 0.07486 | AM198: 0.06787 | AN198: 0.05964
C199: Alameda | D199: =1-D135 -> 0.129 | J199: Alameda | K199: =1-K135 -> 0.1304 | L199: 0.1271 | M199: 0.1229 | N199: 0.1454 | O199: 0.1338 | P199: 0.1377 | Q199: 0.1286 | R199: 0.1351 | S199: 0.1227 | T199: 0.1014 | U199: 0.1305 | V199: 0.1323 | W199: 0.1461 | X199: 0.1044 | Y199: 0.1156 | Z199: 0.1701 | AA199: 0.1023 | AB199: 0.0677 | AH199: Alameda | AK199: =1-AK135 -> 0.0414 | AL199: 0.0119 | AM199: 0.01182
C200: Alpine | D200: 0 | J200: Alpine | K200: 0 | L200: 0 | M200: 0 | N200: 0.0625 | O200: 0.0714 | P200: 0.05 | Q200: 0.2727 | R200: 0.3529 | S200: 0.2105 | T200: 0.0833 | U200: 0.2105 | V200: 0.2222 | W200: 0.5714 | X200: 0.375 | Y200: 0.25 | Z200: 0.3333 | AA200: 0.5556 | AB200: 0.3636 | AH200: Alpine | AK200: =1-AK136 -> 0 | AL200: 0.93 | AM200: 0 | AN200: 0
C201: Amador | D201: 0.107 | J201: Amador | K201: 0.0524 | L201: 0.1393 | M201: 0.0724 | N201: 0.0637 | O201: 0.0688 | P201: 0.0444 | Q201: 0.0558 | R201: 0.014 | S201: 0.029 | T201: 0.0431 | U201: 0.0468 | V201: 0.0595 | W201: 0.0583 | X201: 0.0599 | Y201: 0.0383 | Z201: 0.0408 | AA201: 0.0255 | AB201: 0.041 | AH201: Amador | AL201: =1-AL137 -> 0 | AM201: 0 | AN201: 0.02778
C202: Butte | D202: 0.064 | J202: Butte | K202: 0.0641 | L202: 0.0775 | M202: 0.0513 | N202: 0.0445 | O202: 0.0418 | P202: 0.0471 | Q202: 0.061 | R202: 0.0699 | S202: 0.1047 | T202: 0.1001 | U202: 0.0583 | V202: 0.0603 | W202: 0.0733 | X202: 0.065 | Y202: 0.0739 | Z202: 0.0807 | AA202: 0.0517 | AB202: 0.0614 | AH202: Butte | AK202: =1-AK138 -> 0.061 | AL202: 0.05735 | AM202: 0.0625 | AN202: 0.04806
C203: Calaveras | D203: 0.02 | J203: Calaveras | K203: 0.0107 | L203: 0.0076 | M203: 0.0077 | N203: 0.0116 | O203: 0.0356 | P203: 0.0203 | Q203: 0.0136 | R203: 0.0178 | S203: 0.0481 | T203: 0.0363 | U203: 0.0315 | V203: 0.0433 | W203: 0.0438 | X203: 0.0485 | Y203: 0.0586 | Z203: 0.0603 | AA203: 0.0726 | AB203: 0.036 | AH203: Calaveras | AK203: =1-AK139 -> 0.1134 | AL203: 0.08333 | AM203: 0.06061 | AN203: 0.05952
C204: Colusa | D204: 0 | J204: Colusa | K204: 0 | L204: 0.0278 | M204: 0 | N204: 0 | O204: 0 | P204: 0 | Q204: 0.0423 | R204: 0.0506 | S204: 0.05 | T204: 0.0405 | U204: 0.0625 | V204: 0.1034 | W204: 0.0972 | X204: 0.082 | Y204: 0.0526 | Z204: 0.0462 | AA204: 0.0294 | AB204: 0.0127 | AH204: Colusa | AK204: =1-AK140 -> 0.1053 | AL204: 0.07692 | AM204: 0.02778 | AN204: 0.05556
... 186 more rows

Sheet DualEnroll (hidden)
A2: ALL MC ON CF | B2: PRIOR YEAR | H2: CURRENT Quarter
A3: Sum of qtr_medical_rcv_calfresh_ly | B3: Column Labels | H3: Sum of qtr_medical_rcv_calfresh_pct
B4: 2012 | I4: 2012 | M4: 2013 | Q4: 2014 | U4: 2015 | Y4: 2016 | AC4: 2017
A5: Row Labels | B5: 4 | G5: Current size - references Timely sheet | I5: January | J5: April | K5: July | L5: October | M5: January | N5: April | O5: July | P5: October | Q5: January | R5: April | S5: July | T5: October | U5: January | V5: April | W5: July | X5: October | Y5: January | Z5: April | AA5: July | AB5: October | AC5: January
A6: California | B6: 0.389 | G6: =Timely!A330 -> State | H6: California | I6: 0.3910144318 | J6: 0.397058402 | K6: 0.3988034147 | L6: 0.3999287562 | M6: 0.3936771128 | N6: 0.3669656724 | O6: 0.3750763236 | P6: 0.3723229729 | Q6: 0.3609744255 | R6: 0.3431673995 | S6: 0.3374459146 | T6: 0.3315379552 | U6: 0.3263629155 | V6: 0.3207666104 | W6: 0.3202729655 | X6: 0.3142567742 | Y6: 0.304822667 | Z6: 0.2927312658 | AA6: 0.2934967876 | AB6: 0.2950204218 | AC6: 0.2945457233
A7: Alameda | B7: 0.361 | G7: =Timely!A331 -> Large | H7: Alameda | I7: 0.3637140096 | J7: 0.3596407997 | K7: 0.3666034876 | L7: 0.3660389025 | M7: 0.3575820296 | N7: 0.3429589956 | O7: 0.3437384841 | P7: 0.3463942732 | Q7: 0.317502877 | R7: 0.2962062938 | S7: 0.2930184147 | T7: 0.2839947051 | U7: 0.2708231245 | V7: 0.2639655002 | W7: 0.2666312749 | X7: 0.2590378478 | Y7: 0.2455307086 | Z7: 0.2455275366 | AA7: 0.2452842472 | AB7: 0.2418948015 | AC7: 0.2373640707
A8: Alpine | B8: 0.492 | G8: =Timely!A332 -> Small | H8: Alpine | I8: 0.5054945055 | J8: 0.472027972 | K8: 0.4498141264 | L8: 0.4900398406 | M8: 0.5 | N8: 0.5215686275 | O8: 0.5357142857 | P8: 0.4964028777 | Q8: 0.4790996785 | R8: 0.4563953488 | S8: 0.4647519582 | T8: 0.432642487 | U8: 0.4046391753 | V8: 0.4285714286 | W8: 0.4594594595 | X8: 0.4216216216 | Y8: 0.4093406593 | Z8: 0.3891891892 | AA8: 0.4028169014 | AB8: 0.412462908 | AC8: 0.385915493
A9: Amador | B9: 0.475 | G9: =Timely!A333 -> Small | H9: Amador | I9: 0.4654512306 | J9: 0.4885550787 | K9: 0.4836344124 | L9: 0.4922084901 | M9: 0.482648158 | N9: 0.4709734513 | O9: 0.4834855938 | P9: 0.4749698951 | Q9: 0.450140669 | R9: 0.4259000837 | S9: 0.4109552078 | T9: 0.4090485695 | U9: 0.3955752212 | V9: 0.4002244949 | W9: 0.3921808186 | X9: 0.3865372953 | Y9: 0.3756899589 | Z9: 0.3762539832 | AA9: 0.3640216623 | AB9: 0.3632478632 | AC9: 0.3540737262
A10: Butte | B10: 0.415 | G10: =Timely!A334 -> Medium | H10: Butte | I10: 0.4173955378 | J10: 0.4313497088 | K10: 0.43767105 | L10: 0.4401256315 | M10: 0.4385384806 | N10: 0.437945534 | O10: 0.4391015245 | P10: 0.4360205611 | Q10: 0.4150512941 | R10: 0.3971444546 | S10: 0.391315205 | T10: 0.3823371784 | U10: 0.3799905062 | V10: 0.3757130027 | W10: 0.3758890768 | X10: 0.3713510889 | Y10: 0.3623763755 | Z10: 0.3655216957 | AA10: 0.3664969101 | AB10: 0.3650288537 | AC10: 0.3537765312
A11: Calaveras | B11: 0.484 | G11: =Timely!A335 -> Small | H11: Calaveras | I11: 0.4942811462 | J11: 0.4987733072 | K11: 0.4977777778 | L11: 0.4956532386 | M11: 0.4958372978 | N11: 0.4779506375 | O11: 0.4769105502 | P11: 0.4698165777 | Q11: 0.4497167896 | R11: 0.4387182657 | S11: 0.4386745347 | T11: 0.4324702589 | U11: 0.4241248418 | V11: 0.4245486169 | W11: 0.4272530762 | X11: 0.4157349556 | Y11: 0.3997122072 | Z11: 0.389262282 | AA11: 0.3949187972 | AB11: 0.3897791597 | AC11: 0.383626469
A12: Colusa | B12: 0.27 | G12: =Timely!A336 -> Small | H12: Colusa | I12: 0.2991310778 | J12: 0.3050250324 | K12: 0.284846253 | L12: 0.2767295597 | M12: 0.3111398008 | N12: 0.304269501 | O12: 0.2804401846 | P12: 0.2633501479 | Q12: 0.2355864811 | R12: 0.2242562929 | S12: 0.2132525652 | T12: 0.1964177659 | U12: 0.2068644561 | V12: 0.196812749 | W12: 0.1736197009 | X12: 0.1502504174 | Y12: 0.1577188443 | Z12: 0.1552569844 | AA12: 0.1538788072 | AB12: 0.1545483494 | AC12: 0.1671238658
A13: Contra Costa | B13: 0.35 | G13: =Timely!A337 -> Medium | H13: Contra Costa | I13: 0.3518632378 | J13: 0.3519046944 | K13: 0.3562907014 | L13: 0.3560832628 | M13: 0.3483765544 | N13: 0.3260882668 | O13: 0.3226506067 | P13: 0.3217907683 | Q13: 0.3010341888 | R13: 0.2817497648 | S13: 0.2783964837 | T13: 0.2719059053 | U13: 0.2609532448 | V13: 0.2519971927 | W13: 0.2557958862 | X13: 0.2498598372 | Y13: 0.2401299607 | Z13: 0.2365764567 | AA13: 0.2329369645 | AB13: 0.2264371753 | AC13: 0.2216015633
A14: Del Norte | B14: 0.484 | G14: =Timely!A338 -> Small | H14: Del Norte | I14: 0.4839820515 | J14: 0.5062401678 | K14: 0.506241477 | L14: 0.4946133333 | M14: 0.4940681622 | N14: 0.4835434922 | O14: 0.4843632456 | P14: 0.466330313 | Q14: 0.4695029741 | R14: 0.4552420108 | S14: 0.4512383199 | T14: 0.4440571939 | U14: 0.4307571938 | V14: 0.429760666 | W14: 0.4305543655 | X14: 0.4279392118 | Y14: 0.4293882218 | Z14: 0.4271087275 | AA14: 0.4271447282 | AB14: 0.4191122374 | AC14: 0.4170719844
A15: El Dorado | B15: 0.406 | G15: =Timely!A339 -> Small | H15: El Dorado | I15: 0.4164705882 | J15: 0.4188461373 | K15: 0.4213507251 | L15: 0.4187107324 | M15: 0.4246413502 | N15: 0.415128003 | O15: 0.4031570316 | P15: 0.393537265 | Q15: 0.3601109005 | R15: 0.3456967841 | S15: 0.3408212277 | T15: 0.3370420158 | U15: 0.3356747265 | V15: 0.3320348485 | W15: 0.3313776047 | X15: 0.323821854 | Y15: 0.3105970789 | Z15: 0.3114349033 | AA15: 0.3156750039 | AB15: 0.3047694794 | AC15: 0.2990637697
A16: Fresno | B16: 0.529 | G16: =Timely!A340 -> Large | H16: Fresno | I16: 0.5349886925 | J16: 0.5344302311 | K16: 0.5349587546 | L16: 0.5310133402 | M16: 0.5378725764 | N16: 0.5186667751 | O16: 0.5119346386 | P16: 0.5107570135 | Q16: 0.5093554248 | R16: 0.4968658347 | S16: 0.4906751238 | T16: 0.4804460496 | U16: 0.4805882645 | V16: 0.4737108771 | W16: 0.4727636192 | X16: 0.4653520986 | Y16: 0.4610102565 | Z16: 0.4586236476 | AA16: 0.4517898471 | AB16: 0.4469579003 | AC16: 0.4440343046
A17: Glenn | B17: 0.376 | G17: =Timely!A341 -> Small | H17: Glenn | I17: 0.3895442692 | J17: 0.3930693069 | K17: 0.3912291538 | L17: 0.3813352827 | M17: 0.3944735588 | N17: 0.3882503193 | O17: 0.3801500289 | P17: 0.3615832098 | Q17: 0.3478038292 | R17: 0.3384513316 | S17: 0.3262203498 | T17: 0.3148677627 | U17: 0.3188793103 | V17: 0.312621853 | W17: 0.3065486134 | X17: 0.296237854 | Y17: 0.291458903 | Z17: 0.2945288021 | AA17: 0.2967623017 | AB17: 0.2778440258 | AC17: 0.2770349519
A18: Humboldt | B18: 0.399 | G18: =Timely!A342 -> Medium | H18: Humboldt | I18: 0.3925063776 | J18: 0.4071268504 | K18: 0.4160902349 | L18: 0.4171555862 | M18: 0.416093009 | N18: 0.4105149117 | O18: 0.4212232867 | P18: 0.403511232 | Q18: 0.3998457939 | R18: 0.3897727803 | S18: 0.3918188491 | T18: 0.3958670377 | U18: 0.3873916244 | V18: 0.385681156 | W18: 0.3859173203 | X18: 0.379425454 | Y18: 0.3657716888 | Z18: 0.3633466135 | AA18: 0.3557285192 | AB18: 0.3531343069 | AC18: 0.3455339686
A19: Imperial | B19: 0.498 | G19: =Timely!A343 -> Medium | H19: Imperial | I19: 0.4925140938 | J19: 0.4975315499 | K19: 0.5034332992 | L19: 0.5125033936 | M19: 0.5064468942 | N19: 0.4929624361 | O19: 0.5045276004 | P19: 0.5062126907 | Q19: 0.4826548944 | R19: 0.4547453921 | S19: 0.4663685731 | T19: 0.4742631554 | U19: 0.4625211113 | V19: 0.4531908636 | W19: 0.4627553388 | X19: 0.4643575419 | Y19: 0.4459117848 | Z19: 0.4372515317 | AA19: 0.4391450311 | AB19: 0.4394871096 | AC19: 0.4283713548
A20: Inyo | B20: 0.371 | G20: =Timely!A344 -> Small | H20: Inyo | I20: 0.3871484107 | J20: 0.4005014817 | K20: 0.3910198556 | L20: 0.3896809233 | M20: 0.3893626571 | N20: 0.3567639257 | O20: 0.4128010705 | P20: 0.3888888889 | Q20: 0.3846955796 | R20: 0.3814651029 | S20: 0.363854976 | T20: 0.3505819158 | U20: 0.3394415358 | V20: 0.3521276596 | W20: 0.3494755245 | X20: 0.3530622748 | Y20: 0.3461339762 | Z20: 0.3419143055 | AA20: 0.3357228196 | AB20: 0.3157626254 | AC20: 0.3151598017
A21: Kern | B21: 0.461 | G21: =Timely!A345 -> Large | H21: Kern | I21: 0.4647155626 | J21: 0.4803990214 | K21: 0.4714217022 | L21: 0.4645639142 | M21: 0.4673833998 | N21: 0.3754315572 | O21: 0.4396848206 | P21: 0.4256539071 | Q21: 0.4326883505 | R21: 0.4109373309 | S21: 0.4020190949 | T21: 0.3948143634 | U21: 0.3984902554 | V21: 0.3968167724 | W21: 0.3999417794 | X21: 0.3960380325 | Y21: 0.4004055379 | Z21: 0.3922669701 | AA21: 0.3881629011 | AB21: 0.3843541517 | AC21: 0.3851982527
A22: Kings | B22: 0.491 | G22: =Timely!A346 -> Medium | H22: Kings | I22: 0.4900589102 | J22: 0.5203701419 | K22: 0.5080539727 | L22: 0.5046169757 | M22: 0.5070579675 | N22: 0.4258190133 | O22: 0.475739162 | P22: 0.4663965953 | Q22: 0.4747869318 | R22: 0.4589066041 | S22: 0.4437945066 | T22: 0.430929726 | U22: 0.4297500963 | V22: 0.4263089448 | W22: 0.4285334844 | X22: 0.4215202543 | Y22: 0.4277362668 | Z22: 0.4172451905 | AA22: 0.4111625977 | AB22: 0.411536048 | AC22: 0.4089944191
A23: Lake | B23: 0.41 | G23: =Timely!A347 -> Small | H23: Lake | I23: 0.4141190086 | J23: 0.4284738486 | K23: 0.4200144683 | L23: 0.4198034045 | M23: 0.4220998148 | N23: 0.4139929329 | O23: 0.4161333395 | P23: 0.4005920297 | Q23: 0.4055693175 | R23: 0.3998228316 | S23: 0.3931832465 | T23: 0.3866766042 | U23: 0.3834090527 | V23: 0.3802085035 | W23: 0.3829381126 | X23: 0.4186468752 | Y23: 0.3838041314 | Z23: 0.379386775 | AA23: 0.3760279478 | AB23: 0.3674617737 | AC23: 0.3626205281
A24: Lassen | B24: 0.451 | G24: =Timely!A348 -> Small | H24: Lassen | I24: 0.4489376285 | J24: 0.4725255372 | K24: 0.4752405949 | L24: 0.4643738977 | M24: 0.4689462666 | N24: 0.4708218232 | O24: 0.464970373 | P24: 0.4568291466 | Q24: 0.4581673307 | R24: 0.4417240874 | S24: 0.4242078219 | T24: 0.4208707671 | U24: 0.4006350886 | V24: 0.4039735099 | W24: 0.3954737246 | X24: 0.3864854756 | Y24: 0.3769516729 | Z24: 0.3763467492 | AA24: 0.3791760864 | AB24: 0.3769288203 | AC24: 0.3693550361
A25: Los Angeles | B25: 0.335 | G25: =Timely!A349 -> Large | H25: Los Angeles | I25: 0.3370461417 | J25: 0.3355970364 | K25: 0.3438670944 | L25: 0.3486895374 | M25: 0.3474757241 | N25: 0.3340076688 | O25: 0.3302206862 | P25: 0.3327618346 | Q25: 0.3145908525 | R25: 0.2939089747 | S25: 0.287956307 | T25: 0.280465507 | U25: 0.2797168823 | V25: 0.2762884974 | W25: 0.2728221857 | X25: 0.2639813917 | Y25: 0.2516409447 | Z25: 0.2226310467 | AA25: 0.2302465018 | AB25: 0.2427558767 | AC25: 0.2506301048
A26: Madera | B26: 0.474 | G26: =Timely!A350 -> Medium | H26: Madera | I26: 0.4896904106 | J26: 0.4955361621 | K26: 0.4908683563 | L26: 0.4767603786 | M26: 0.4858658986 | N26: 0.4603083635 | O26: 0.4559373561 | P26: 0.4532983549 | Q26: 0.4656001414 | R26: 0.446994412 | S26: 0.4341435221 | T26: 0.4214035141 | U26: 0.42011219 | V26: 0.4195498005 | W26: 0.4199179831 | X26: 0.4143278116 | Y26: 0.417049097 | Z26: 0.4127810247 | AA26: 0.4039080067 | AB26: 0.397495487 | AC26: 0.3997409399
A27: Marin | B27: 0.303 | G27: =Timely!A351 -> Small | H27: Marin | I27: 0.3036002149 | J27: 0.3163375501 | K27: 0.3208057269 | L27: 0.3168596873 | M27: 0.3117794112 | N27: 0.2997917623 | O27: 0.3042440594 | P27: 0.2968035016 | Q27: 0.2771226059 | R27: 0.2600111902 | S27: 0.257925072 | T27: 0.2517047139 | U27: 0.2407029877 | V27: 0.2362060686 | W27: 0.2382403785 | X27: 0.2332145179 | Y27: 0.2191667212 | Z27: 0.2167973416 | AA27: 0.2165466055 | AB27: 0.2123779622 | AC27: 0.205519169
A28: Mariposa | B28: 0.445 | G28: =Timely!A352 -> Small | H28: Mariposa | I28: 0.4598606483 | J28: 0.4690343411 | K28: 0.4569343066 | L28: 0.4542232723 | M28: 0.4706216293 | N28: 0.4462531575 | O28: 0.4635228849 | P28: 0.4764881761 | Q28: 0.4682299546 | R28: 0.4442167577 | S28: 0.418816726 | T28: 0.4170442287 | U28: 0.4280318926 | V28: 0.4266064463 | W28: 0.4317473509 | X28: 0.4144125542 | Y28: 0.4109120193 | Z28: 0.4120990662 | AA28: 0.3958545011 | AB28: 0.3803945746 | AC28: 0.3743600246
A29: Mendocino | B29: 0.389 | G29: =Timely!A353 -> Small | H29: Mendocino | I29: 0.3859015565 | J29: 0.3987738758 | K29: 0.4025872763 | L29: 0.3938929119 | M29: 0.3918678171 | N29: 0.3789239205 | O29: 0.3798546985 | P29: 0.3647754061 | Q29: 0.3671144952 | R29: 0.3630874766 | S29: 0.3526564734 | T29: 0.3372220003 | U29: 0.3271620593 | V29: 0.3190457335 | W29: 0.316348091 | X29: 0.3126814399 | Y29: 0.2997765495 | Z29: 0.2871727626 | AA29: 0.2832277363 | AB29: 0.2858215462 | AC29: 0.2819867137
A30: Merced | B30: 0.497 | G30: =Timely!A354 -> Medium | H30: Merced | I30: 0.4964241649 | J30: 0.5161103279 | K30: 0.5066329825 | L30: 0.4983953352 | M30: 0.5084334938 | N30: 0.4410942754 | O30: 0.4956159342 | P30: 0.4619659782 | Q30: 0.4723724385 | R30: 0.4585398084 | S30: 0.4501833344 | T30: 0.4349395613 | U30: 0.4303572233 | V30: 0.4262948207 | W30: 0.4227437243 | X30: 0.414365517 | Y30: 0.4084691522 | Z30: 0.4002136888 | AA30: 0.3952722878 | AB30: 0.3862919048 | AC30: 0.386990467
A31: Modoc | B31: 0.387 | G31: =Timely!A355 -> Small | H31: Modoc | I31: 0.3840640809 | J31: 0.381512605 | K31: 0.3699152542 | L31: 0.3586177834 | M31: 0.3683326333 | N31: 0.3640591966 | O31: 0.3582278481 | P31: 0.3530612245 | Q31: 0.3411479386 | R31: 0.3339304909 | S31: 0.3229238161 | T31: 0.3261589404 | U31: 0.3151763224 | V31: 0.3092655717 | W31: 0.2968454259 | X31: 0.3019693654 | Y31: 0.3249221184 | Z31: 0.3251015942 | AA31: 0.3313682904 | AB31: 0.3293431553 | AC31: 0.3536399634
A32: Mono | B32: 0.261 | G32: =Timely!A356 -> Small | H32: Mono | I32: 0.291250734 | J32: 0.3229744728 | K32: 0.3283166109 | L32: 0.303479749 | M32: 0.3047722343 | N32: 0.2518324607 | O32: 0.2677205507 | P32: 0.2716460514 | Q32: 0.2593320236 | R32: 0.2542030935 | S32: 0.2356667723 | T32: 0.2179685088 | U32: 0.2165623221 | V32: 0.2095628415 | W32: 0.2048061169 | X32: 0.1887865655 | Y32: 0.1932596103 | Z32: 0.1969417348 | AA32: 0.1994166004 | AB32: 0.1948491155 | AC32: 0.1814422331
A33: Monterey | B33: 0.338 | G33: =Timely!A357 -> Medium | H33: Monterey | I33: 0.3840358319 | J33: 0.3969035959 | K33: 0.3708694633 | L33: 0.3446878722 | M33: 0.3982886848 | N33: 0.3071514993 | O33: 0.3241177001 | P33: 0.3022176169 | Q33: 0.3550399732 | R33: 0.3455886362 | S33: 0.3062414537 | T33: 0.2885089783 | U33: 0.3178088121 | V33: 0.315118703 | W33: 0.2862578654 | X33: 0.2750014073 | Y33: 0.3023193421 | Z33: 0.2931849581 | AA33: 0.2533149276 | AB33: 0.2395117002 | AC33: 0.2712686528
A34: Napa | B34: 0.312 | G34: =Timely!A358 -> Small | H34: Napa | I34: 0.3238791373 | J34: 0.3214267359 | K34: 0.3254869713 | L34: 0.32534567 | M34: 0.32800081 | N34: 0.296348579 | O34: 0.2846620047 | P34: 0.2599337748 | Q34: 0.2625716104 | R34: 0.2483711048 | S34: 0.2410910088 | T34: 0.2313078606 | U34: 0.2358949728 | V34: 0.2303601418 | W34: 0.2227241573 | X34: 0.2235487472 | Y34: 0.221683043 | Z34: 0.2210690973 | AA34: 0.2147308265 | AB34: 0.2073787113 | AC34: 0.2025373674
A35: Nevada | B35: 0.377 | G35: =Timely!A359 -> Small | H35: Nevada | I35: 0.3884068538 | J35: 0.4183636495 | K35: 0.4202390324 | L35: 0.42320101 | M35: 0.4217358282 | N35: 0.418467183 | O35: 0.4166280839 | P35: 0.410587103 | Q35: 0.364617163 | R35: 0.3492032927 | S35: 0.3399478293 | T35: 0.328311079 | U35: 0.310375369 | V35: 0.305958528 | W35: 0.3015467056 | X35: 0.2983615751 | Y35: 0.2848661279 | Z35: 0.283746242 | AA35: 0.2814403371 | AB35: 0.2794214588 | AC35: 0.2776838047
A36: Orange | B36: 0.345 | G36: =Timely!A360 -> Large | H36: Orange | I36: 0.3490455728 | J36: 0.3530472487 | K36: 0.356281342 | L36: 0.3611023433 | M36: 0.3426746931 | N36: 0.3275739521 | O36: 0.3299214204 | P36: 0.3285073818 | Q36: 0.3152643673 | R36: 0.2931335528 | S36: 0.2877485976 | T36: 0.2837832035 | U36: 0.2736102752 | V36: 0.2696598484 | W36: 0.2721110101 | X36: 0.2687246041 | Y36: 0.2611990576 | Z36: 0.2603701809 | AA36: 0.2599859542 | AB36: 0.2584800655 | AC36: 0.2538243669
A37: Placer | B37: 0.371 | G37: =Timely!A361 -> Small | H37: Placer | I37: 0.3708004851 | J37: 0.36884796 | K37: 0.3667808531 | L37: 0.3587807097 | M37: 0.3479650989 | N37: 0.3403155127 | O37: 0.3354450337 | P37: 0.3330606949 | Q37: 0.2999470759 | R37: 0.2835806733 | S37: 0.2781843747 | T37: 0.2725415866 | U37: 0.2583013841 | V37: 0.2538276099 | W37: 0.254301921 | X37: 0.2488398619 | Y37: 0.241492766 | Z37: 0.2424721446 | AA37: 0.2441012108 | AB37: 0.2382252983 | AC37: 0.2308316303
A38: Plumas | B38: 0.348 | G38: =Timely!A362 -> Small | H38: Plumas | I38: 0.3598812095 | J38: 0.3729529847 | K38: 0.3660062565 | L38: 0.3801740047 | M38: 0.3870561571 | N38: 0.3817765335 | O38: 0.3786432809 | P38: 0.3738270353 | Q38: 0.3550741163 | R38: 0.3475634313 | S38: 0.3321011673 | T38: 0.3326457904 | U38: 0.3291475062 | V38: 0.3386790826 | W38: 0.3199384405 | X38: 0.3127620325 | Y38: 0.3277591973 | Z38: 0.3237989886 | AA38: 0.3012901196 | AB38: 0.2897593204 | AC38: 0.3074907522
A39: Riverside | B39: 0.433 | G39: =Timely!A363 -> Large | H39: Riverside | I39: 0.4222235372 | J39: 0.4487892759 | K39: 0.4449975229 | L39: 0.4480625173 | M39: 0.4165756515 | N39: 0.352002212 | O39: 0.3964449631 | P39: 0.3927476968 | Q39: 0.3836055335 | R39: 0.3644697196 | S39: 0.3618897485 | T39: 0.3600525103 | U39: 0.3435223517 | V39: 0.3329073084 | W39: 0.3368215207 | X39: 0.3366690415 | Y39: 0.3246432423 | Z39: 0.3116509168 | AA39: 0.3099493525 | AB39: 0.3076583218 | AC39: 0.3002272658
A40: Sacramento | B40: 0.471 | G40: =Timely!A364 -> Large | H40: Sacramento | I40: 0.4720827478 | J40: 0.4706631474 | K40: 0.4730297968 | L40: 0.4769709879 | M40: 0.4717779404 | N40: 0.4440784001 | O40: 0.4416503469 | P40: 0.4397289346 | Q40: 0.4236238289 | R40: 0.4087031504 | S40: 0.4045342594 | T40: 0.3992135333 | U40: 0.3862769269 | V40: 0.3764223141 | W40: 0.3813077411 | X40: 0.3748519524 | Y40: 0.3648631675 | Z40: 0.3616833682 | AA40: 0.3588472557 | AB40: 0.3579884803 | AC40: 0.3521883397
A41: San Benito | B41: 0.447 | G41: =Timely!A365 -> Small | H41: San Benito | I41: 0.4588915156 | J41: 0.4657786347 | K41: 0.450661063 | L41: 0.4467525638 | M41: 0.4568711605 | N41: 0.3961800148 | O41: 0.430671757 | P41: 0.4134706067 | Q41: 0.3897211819 | R41: 0.3636307464 | S41: 0.3487293749 | T41: 0.3379811703 | U41: 0.3422532044 | V41: 0.3316076294 | W41: 0.3206385529 | X41: 0.31476775 | Y41: 0.3100542476 | Z41: 0.2960430152 | AA41: 0.2771800972 | AB41: 0.2690703065 | AC41: 0.2653250296
A42: San Bernardino | B42: 0.504 | G42: =Timely!A366 -> Large | H42: San Bernardino | I42: 0.4792906554 | J42: 0.5184015438 | K42: 0.5096813279 | L42: 0.5099879673 | M42: 0.4801679619 | N42: 0.4047677553 | O42: 0.4718960779 | P42: 0.4657042641 | Q42: 0.4651189016 | R42: 0.449624565 | S42: 0.4504093826 | T42: 0.4472315886 | U42: 0.4367279748 | V42: 0.4261682024 | W42: 0.4303365671 | X42: 0.4272807876 | Y42: 0.4215786683 | Z42: 0.4116953522 | AA42: 0.4116125735 | AB42: 0.4032317169 | AC42: 0.3892574071
A43: San Diego | B43: 0.39 | G43: =Timely!A367 -> Large | H43: San Diego | I43: 0.3972415083 | J43: 0.397110328 | K43: 0.3989454004 | L43: 0.4013164978 | M43: 0.3736103735 | N43: 0.3665318864 | O43: 0.3597669896 | P43: 0.3619815075 | Q43: 0.3550265684 | R43: 0.3342679645 | S43: 0.3312475012 | T43: 0.3297558001 | U43: 0.3166588638 | V43: 0.3060432001 | W43: 0.3092996315 | X43: 0.3033851566 | Y43: 0.2917852124 | Z43: 0.2909188142 | AA43: 0.2911537207 | AB43: 0.2907880448 | AC43: 0.2847209485
A44: San Francisco | B44: 0.236 | G44: =Timely!A368 -> Medium | H44: San Francisco | I44: 0.2326592738 | J44: 0.2329005243 | K44: 0.2329634392 | L44: 0.2332852534 | M44: 0.2242735956 | N44: 0.2223749331 | O44: 0.2211765794 | P44: 0.2205341667 | Q44: 0.2087592492 | R44: 0.2055838791 | S44: 0.2063446912 | T44: 0.2046939689 | U44: 0.2030958466 | V44: 0.2033333773 | W44: 0.2085649623 | X44: 0.2089259356 | Y44: 0.2084369366 | Z44: 0.2139902793 | AA44: 0.2189098529 | AB44: 0.2193971569 | AC44: 0.2166718469
A45: San Joaquin | B45: 0.473 | G45: =Timely!A369 -> Large | H45: San Joaquin | I45: 0.4789003378 | J45: 0.480109527 | K45: 0.4800275994 | L45: 0.4736638634 | M45: 0.4851178892 | N45: 0.4631438371 | O45: 0.4650617278 | P45: 0.4492840407 | Q45: 0.4423092243 | R45: 0.427311018 | S45: 0.4237309788 | T45: 0.419840976 | U45: 0.4131268265 | V45: 0.4079911935 | W45: 0.4044815903 | X45: 0.396941505 | Y45: 0.3829617256 | Z45: 0.3804511927 | AA45: 0.3738616435 | AB45: 0.364379484 | AC45: 0.3576478181
A46: San Luis Obispo | B46: 0.366 | G46: =Timely!A370 -> Small | H46: San Luis Obispo | I46: 0.3741443597 | J46: 0.3669445696 | K46: 0.3616854153 | L46: 0.3626150552 | M46: 0.3694455852 | N46: 0.3526865358 | O46: 0.3421596588 | P46: 0.3254683219 | Q46: 0.3251043191 | R46: 0.3172789064 | S46: 0.3038070654 | T46: 0.2930545525 | U46: 0.2902844785 | V46: 0.2892701906 | W46: 0.2898529602 | X46: 0.2886515397 | Y46: 0.2821647753 | Z46: 0.2809396757 | AA46: 0.2787621901 | AB46: 0.2735091743 | AC46: 0.272629879
A47: San Mateo | B47: 0.256 | G47: =Timely!A371 -> Medium | H47: San Mateo | I47: 0.259223719 | J47: 0.2667149113 | K47: 0.2705251257 | L47: 0.2752150024 | M47: 0.2579207484 | N47: 0.2528546191 | O47: 0.2526433178 | P47: 0.2507039713 | Q47: 0.2323155521 | R47: 0.2182631253 | S47: 0.2100153442 | T47: 0.2040248862 | U47: 0.197561349 | V47: 0.1922416439 | W47: 0.1920831884 | X47: 0.1880827794 | Y47: 0.1807250594 | Z47: 0.1754410015 | AA47: 0.1763775627 | AB47: 0.1724852127 | AC47: 0.1679739359
A48: Santa Barbara | B48: 0.309 | G48: =Timely!A372 -> Medium | H48: Santa Barbara | I48: 0.3284720192 | J48: 0.3286232643 | K48: 0.3133314727 | L48: 0.3078901634 | M48: 0.3299665986 | N48: 0.3009093895 | O48: 0.2776982537 | P48: 0.2759968329 | Q48: 0.2956757981 | R48: 0.2864391221 | S48: 0.2690628449 | T48: 0.2682188332 | U48: 0.2783750501 | V48: 0.2741252738 | W48: 0.2617568444 | X48: 0.2612210741 | Y48: 0.2724039391 | Z48: 0.2690445306 | AA48: 0.2538296776 | AB48: 0.2504678181 | AC48: 0.2657325829
A49: Santa Clara | B49: 0.308 | G49: =Timely!A373 -> Medium | H49: Santa Clara | I49: 0.3076257138 | J49: 0.3112731726 | K49: 0.3128863004 | L49: 0.3131176122 | M49: 0.2954312772 | N49: 0.2872283237 | O49: 0.288450474 | P49: 0.288369758 | Q49: 0.2735091058 | R49: 0.2594447982 | S49: 0.2561701874 | T49: 0.2561012353 | U49: 0.248679349 | V49: 0.2409677523 | W49: 0.238718474 | X49: 0.2333832804 | Y49: 0.222619953 | Z49: 0.2205030291 | AA49: 0.2187517305 | AB49: 0.2154210603 | AC49: 0.2100761667
A50: Santa Cruz | B50: 0.343 | G50: =Timely!A374 -> Medium | H50: Santa Cruz | I50: 0.3722002193 | J50: 0.3770267236 | K50: 0.3682964419 | L50: 0.3510609663 | M50: 0.384032506 | N50: 0.3596597813 | O50: 0.3377822797 | P50: 0.3245377989 | Q50: 0.347243051 | R50: 0.3380096318 | S50: 0.3107683437 | T50: 0.3034733138 | U50: 0.316467196 | V50: 0.317797596 | W50: 0.3085942484 | X50: 0.3035932289 | Y50: 0.3154711401 | Z50: 0.3178489786 | AA50: 0.3073312693 | AB50: 0.3023860793 | AC50: 0.3217585935
A51: Shasta | B51: 0.431 | G51: =Timely!A375 -> Medium | H51: Shasta | I51: 0.4337291466 | J51: 0.4467556854 | K51: 0.451811937 | L51: 0.4473076203 | M51: 0.4395670851 | N51: 0.4349633859 | O51: 0.4342973006 | P51: 0.4079312807 | Q51: 0.4017561456 | R51: 0.3905875041 | S51: 0.3861896397 | T51: 0.3819068949 | U51: 0.3723205316 | V51: 0.3702342048 | W51: 0.3708468761 | X51: 0.3689567814 | Y51: 0.3567714891 | Z51: 0.3557007126 | AA51: 0.3571320481 | AB51: 0.360973233 | AC51: 0.3571889104
A52: Sierra | B52: 0.341 | G52: =Timely!A376 -> Small | H52: Sierra | I52: 0.3588143526 | J52: 0.3834355828 | K52: 0.4211309524 | L52: 0.3899082569 | M52: 0.4187779434 | N52: 0.3833819242 | O52: 0.3976435935 | P52: 0.3923664122 | Q52: 0.3817663818 | R52: 0.379494008 | S52: 0.3618421053 | T52: 0.3614609572 | U52: 0.377267231 | V52: 0.3540669856 | W52: 0.3568862275 | X52: 0.3384982122 | Y52: 0.3238434164 | Z52: 0.3007246377 | AA52: 0.3097238896 | AB52: 0.3125 | AC52: 0.3188571429
A53: Siskiyou | B53: 0.421 | G53: =Timely!A377 -> Small | H53: Siskiyou | I53: 0.4337044534 | J53: 0.4478816409 | K53: 0.4465971187 | L53: 0.4391007165 | M53: 0.4542188872 | N53: 0.451719007 | O53: 0.4502891981 | P53: 0.4413369714 | Q53: 0.4472260299 | R53: 0.4318772751 | S53: 0.4133836004 | T53: 0.4078164826 | U53: 0.4029241151 | V53: 0.3993043478 | W53: 0.3925845147 | X53: 0.3833751743 | Y53: 0.3779247759 | Z53: 0.3647159976 | AA53: 0.3532742228 | AB53: 0.337969767 | AC53: 0.3407873042
A54: Solano | B54: 0.43 | G54: =Timely!A378 -> Medium | H54: Solano | I54: 0.4339383973 | J54: 0.4377376305 | K54: 0.4392815454 | L54: 0.4436682966 | M54: 0.4413399595 | N54: 0.4156518687 | O54: 0.4173871613 | P54: 0.4167488802 | Q54: 0.4049782095 | R54: 0.385859582 | S54: 0.3746524667 | T54: 0.3617203304 | U54: 0.3509708984 | V54: 0.3425870498 | W54: 0.3462726762 | X54: 0.3382598138 | Y54: 0.3268918951 | Z54: 0.3215887001 | AA54: 0.3224429903 | AB54: 0.3158642014 | AC54: 0.3092946052
A55: Sonoma | B55: 0.372 | G55: =Timely!A379 -> Medium | H55: Sonoma | I55: 0.3731193856 | J55: 0.3862056747 | K55: 0.3864128836 | L55: 0.3793727542 | M55: 0.3814047878 | N55: 0.3568277185 | O55: 0.3528876278 | P55: 0.3383126049 | Q55: 0.3234938174 | R55: 0.3059393537 | S55: 0.2941786836 | T55: 0.2871270965 | U55: 0.2810626792 | V55: 0.2758863264 | W55: 0.2787550419 | X55: 0.2687279584 | Y55: 0.2567090153 | Z55: 0.2527921819 | AA55: 0.2487243614 | AB55: 0.242205733 | AC55: 0.2361930419
A56: Stanislaus | B56: 0.465 | G56: =Timely!A380 -> Medium | H56: Stanislaus | I56: 0.4586120812 | J56: 0.4760949468 | K56: 0.4724971039 | L56: 0.468601078 | M56: 0.4684984525 | N56: 0.3974482643 | O56: 0.4398966793 | P56: 0.4339407456 | Q56: 0.4372358033 | R56: 0.4237728595 | S56: 0.4160032292 | T56: 0.3996975524 | U56: 0.3982776555 | V56: 0.3902309105 | W56: 0.3857327834 | X56: 0.3731889231 | Y56: 0.3650540821 | Z56: 0.3526503416 | AA56: 0.3464302768 | AB56: 0.3386488451 | AC56: 0.329571403
A57: Sutter | B57: 0.374 | G57: =Timely!A381 -> Small | H57: Sutter | I57: 0.3898023835 | J57: 0.3978506703 | K57: 0.3978403166 | L57: 0.3954958953 | M57: 0.4057168018 | N57: 0.4003268554 | O57: 0.3935635738 | P57: 0.3789448243 | Q57: 0.3580136691 | R57: 0.3405126479 | S57: 0.3320256872 | T57: 0.3236207932 | U57: 0.3156261041 | V57: 0.3104235727 | W57: 0.3083800503 | X57: 0.3055875853 | Y57: 0.3038616931 | Z57: 0.3037086612 | AA57: 0.2971699214 | AB57: 0.2868425319 | AC57: 0.2946339656
A58: Tehama | B58: 0.418 | G58: =Timely!A382 -> Small | H58: Tehama | I58: 0.4298020716 | J58: 0.4491251475 | K58: 0.460445527 | L58: 0.4504573171 | M58: 0.447997189 | N58: 0.4399523195 | O58: 0.444417262 | P58: 0.4438944687 | Q58: 0.4273587841 | R58: 0.4209540866 | S58: 0.4098781769 | T58: 0.3906477021 | U58: 0.3728199574 | V58: 0.3734423252 | W58: 0.3833321245 | X58: 0.3724199928 | Y58: 0.3582838237 | Z58: 0.3592198582 | AA58: 0.3527084818 | AB58: 0.3442239112 | AC58: 0.3387391913
A59: Trinity | B59: 0.382 | G59: =Timely!A383 -> Small | H59: Trinity | I59: 0.3956442831 | J59: 0.4004167907 | K59: 0.4011183049 | L59: 0.4168646081 | M59: 0.4138548821 | N59: 0.4099969335 | O59: 0.4118536438 | P59: 0.3865688488 | Q59: 0.3847192225 | R59: 0.3890456041 | S59: 0.3956541421 | T59: 0.3854324734 | U59: 0.3600411946 | V59: 0.3460772601 | W59: 0.3494423792 | X59: 0.3548261039 | Y59: 0.3509083728 | Z59: 0.3400196657 | AA59: 0.3375745527 | AB59: 0.331118061 | AC59: 0.3271193093
A60: Tulare | B60: 0.511 | G60: =Timely!A384 -> Large | H60: Tulare | I60: 0.5258150782 | J60: 0.5276998558 | K60: 0.5278733032 | L60: 0.5256222878 | M60: 0.5418975632 | N60: 0.5160906848 | O60: 0.5119764879 | P60: 0.5106341911 | Q60: 0.5136285278 | R60: 0.5088367738 | S60: 0.4982164705 | T60: 0.4892447409 | U60: 0.4946232127 | V60: 0.4848738815 | W60: 0.4845478321 | X60: 0.4776249667 | Y60: 0.4751706049 | Z60: 0.4689428784 | AA60: 0.4584295082 | AB60: 0.454833416 | AC60: 0.4610486534
A61: Tuolumne | B61: 0.443 | G61: =Timely!A385 -> Small | H61: Tuolumne | I61: 0.4504829739 | J61: 0.4475387331 | K61: 0.4389483934 | L61: 0.4363304865 | M61: 0.4505442499 | N61: 0.4412476723 | O61: 0.4350102861 | P61: 0.429301375 | Q61: 0.4050750295 | R61: 0.3951009299 | S61: 0.3854699605 | T61: 0.3807110274 | U61: 0.3711753535 | V61: 0.374991426 | W61: 0.3763433546 | X61: 0.3751675154 | Y61: 0.360448157 | Z61: 0.3531461502 | AA61: 0.354476334 | AB61: 0.3548810841 | AC61: 0.3559110742
A62: Ventura | B62: 0.356 | G62: =Timely!A386 -> Medium | H62: Ventura | I62: 0.3652291207 | J62: 0.3646163795 | K62: 0.3629926692 | L62: 0.3714480306 | M62: 0.3737351157 | N62: 0.3656261135 | O62: 0.3608408868 | P62: 0.3423791698 | Q62: 0.3302957127 | R62: 0.3181621219 | S62: 0.3119609391 | T62: 0.3131851313 | U62: 0.3128076808 | V62: 0.3068948986 | W62: 0.307755912 | X62: 0.3064972474 | Y62: 0.2980548612 | Z62: 0.2943079311 | AA62: 0.2930037321 | AB62: 0.2946906725 | AC62: 0.2926530394
A63: Yolo | B63: 0.384 | G63: =Timely!A387 -> Small | H63: Yolo | I63: 0.3952655111 | J63: 0.4027961691 | K63: 0.4070972653 | L63: 0.4074506898 | M63: 0.4095541043 | N63: 0.3961033668 | O63: 0.3818308017 | P63: 0.3678354186 | Q63: 0.3675373571 | R63: 0.3476175711 | S63: 0.3388852407 | T63: 0.3384612452 | U63: 0.3415484687 | V63: 0.3353767159 | W63: 0.3340107468 | X63: 0.3315031351 | Y63: 0.334821281 | Z63: 0.3325276072 | AA63: 0.3286084846 | AB63: 0.3214482081 | AC63: 0.3128946191
A64: Yuba | B64: 0.477 | G64: =Timely!A388 -> Small | H64: Yuba | I64: 0.4862871528 | J64: 0.4887677788 | K64: 0.4956617003 | L64: 0.4893308109 | M64: 0.4910263112 | N64: 0.4869189189 | O64: 0.4903978643 | P64: 0.4792693907 | Q64: 0.4642268249 | R64: 0.4504000877 | S64: 0.445841871 | T64: 0.4419039701 | U64: 0.4225436013 | V64: 0.421281952 | W64: 0.4235955056 | X64: 0.420454902 | Y64: 0.4017324232 | Z64: 0.3997869102 | AA64: 0.393784132 | AB64: 0.3905332681 | AC64: 0.3836822362
H66: Max
B67: =MAX(IF($G6:$G64=$H67,B6:B64)) -> 0.529 | C67: =MAX(IF($G6:$G64=$H67,C6:C64)) -> 0 | D67: =MAX(IF($G6:$G64=$H67,D6:D64)) -> 0 | E67: =MAX(IF($G6:$G64=$H67,E6:E64)) -> 0 | F67: =MAX(IF($G6:$G64=$H67,F6:F64)) -> 0 | H67: Large | I67: =MAX(IF($G6:$G64=$H67,I6:I64)) -> 0.5349886925 | J67: =MAX(IF($G6:$G64=$H67,J6:J64)) -> 0.5344302311 | K67: =MAX(IF($G6:$G64=$H67,K6:K64)) -> 0.5349587546 | L67: =MAX(IF($G6:$G64=$H67,L6:L64)) -> 0.5310133402 | M67: =MAX(IF($G6:$G64=$H67,M6:M64)) -> 0.5418975632 | N67: =MAX(IF($G6:$G64=$H67,N6:N64)) -> 0.5186667751 | O67: =MAX(IF($G6:$G64=$H67,O6:O64)) -> 0.5119764879 | P67: =MAX(IF($G6:$G64=$H67,P6:P64)) -> 0.5107570135 | Q67: =MAX(IF($G6:$G64=$H67,Q6:Q64)) -> 0.5136285278 | R67: =MAX(IF($G6:$G64=$H67,R6:R64)) -> 0.5088367738 | S67: =MAX(IF($G6:$G64=$H67,S6:S64)) -> 0.4982164705 | T67: =MAX(IF($G6:$G64=$H67,T6:T64)) -> 0.4892447409 | U67: =MAX(IF($G6:$G64=$H67,U6:U64)) -> 0.4946232127 | V67: =MAX(IF($G6:$G64=$H67,V6:V64)) -> 0.4848738815 | W67: =MAX(IF($G6:$G64=$H67,W6:W64)) -> 0.4845478321 | X67: =MAX(IF($G6:$G64=$H67,X6:X64)) -> 0.4776249667 | Y67: =MAX(IF($G6:$G64=$H67,Y6:Y64)) -> 0.4751706049 | Z67: =MAX(IF($G6:$G64=$H67,Z6:Z64)) -> 0.4689428784 | AA67: =MAX(IF($G6:$G64=$H67,AA6:AA64)) -> 0.4584295082 | AB67: =MAX(IF($G6:$G64=$H67,AB6:AB64)) -> 0.454833416 | AC67: =MAX(IF($G6:$G64=$H67,AC6:AC64)) -> 0.4610486534
B68: =MAX(IF($G$6:$G$64=$H68,B$6:B$64)) -> 0.498 | C68: =MAX(IF($G$6:$G$64=$H68,C$6:C$64)) -> 0 | D68: =MAX(IF($G$6:$G$64=$H68,D$6:D$64)) -> 0 | E68: =MAX(IF($G$6:$G$64=$H68,E$6:E$64)) -> 0 | F68: =MAX(IF($G$6:$G$64=$H68,F$6:F$64)) -> 0 | H68: Medium | I68: =MAX(IF($G$6:$G$64=$H68,I$6:I$64)) -> 0.4964241649 | J68: =MAX(IF($G$6:$G$64=$H68,J$6:J$64)) -> 0.5203701419 | K68: =MAX(IF($G$6:$G$64=$H68,K$6:K$64)) -> 0.5080539727 | L68: =MAX(IF($G$6:$G$64=$H68,L$6:L$64)) -> 0.5125033936 | M68: =MAX(IF($G$6:$G$64=$H68,M$6:M$64)) -> 0.5084334938 | N68: =MAX(IF($G$6:$G$64=$H68,N$6:N$64)) -> 0.4929624361 | O68: =MAX(IF($G$6:$G$64=$H68,O$6:O$64)) -> 0.5045276004 | P68: =MAX(IF($G$6:$G$64=$H68,P$6:P$64)) -> 0.5062126907 | Q68: =MAX(IF($G$6:$G$64=$H68,Q$6:Q$64)) -> 0.4826548944 | R68: =MAX(IF($G$6:$G$64=$H68,R$6:R$64)) -> 0.4589066041 | S68: =MAX(IF($G$6:$G$64=$H68,S$6:S$64)) -> 0.4663685731 | T68: =MAX(IF($G$6:$G$64=$H68,T$6:T$64)) -> 0.4742631554 | U68: =MAX(IF($G$6:$G$64=$H68,U$6:U$64)) -> 0.4625211113 | V68: =MAX(IF($G$6:$G$64=$H68,V$6:V$64)) -> 0.4531908636 | W68: =MAX(IF($G$6:$G$64=$H68,W$6:W$64)) -> 0.4627553388 | X68: =MAX(IF($G$6:$G$64=$H68,X$6:X$64)) -> 0.4643575419 | Y68: =MAX(IF($G$6:$G$64=$H68,Y$6:Y$64)) -> 0.4459117848 | Z68: =MAX(IF($G$6:$G$64=$H68,Z$6:Z$64)) -> 0.4372515317 | AA68: =MAX(IF($G$6:$G$64=$H68,AA$6:AA$64)) -> 0.4391450311 | AB68: =MAX(IF($G$6:$G$64=$H68,AB$6:AB$64)) -> 0.4394871096 | AC68: =MAX(IF($G$6:$G$64=$H68,AC$6:AC$64)) -> 0.4283713548
B69: =MAX(IF($G$6:$G$64=$H69,B$6:B$64)) -> 0.492 | C69: =MAX(IF($G$6:$G$64=$H69,C$6:C$64)) -> 0 | D69: =MAX(IF($G$6:$G$64=$H69,D$6:D$64)) -> 0 | E69: =MAX(IF($G$6:$G$64=$H69,E$6:E$64)) -> 0 | F69: =MAX(IF($G$6:$G$64=$H69,F$6:F$64)) -> 0 | H69: Small | I69: =MAX(IF($G$6:$G$64=$H69,I$6:I$64)) -> 0.5054945055 | J69: =MAX(IF($G$6:$G$64=$H69,J$6:J$64)) -> 0.5062401678 | K69: =MAX(IF($G$6:$G$64=$H69,K$6:K$64)) -> 0.506241477 | L69: =MAX(IF($G$6:$G$64=$H69,L$6:L$64)) -> 0.4956532386 | M69: =MAX(IF($G$6:$G$64=$H69,M$6:M$64)) -> 0.5 | N69: =MAX(IF($G$6:$G$64=$H69,N$6:N$64)) -> 0.5215686275 | O69: =MAX(IF($G$6:$G$64=$H69,O$6:O$64)) -> 0.5357142857 | P69: =MAX(IF($G$6:$G$64=$H69,P$6:P$64)) -> 0.4964028777 | Q69: =MAX(IF($G$6:$G$64=$H69,Q$6:Q$64)) -> 0.4790996785 | R69: =MAX(IF($G$6:$G$64=$H69,R$6:R$64)) -> 0.4563953488 | S69: =MAX(IF($G$6:$G$64=$H69,S$6:S$64)) -> 0.4647519582 | T69: =MAX(IF($G$6:$G$64=$H69,T$6:T$64)) -> 0.4440571939 | U69: =MAX(IF($G$6:$G$64=$H69,U$6:U$64)) -> 0.4307571938 | V69: =MAX(IF($G$6:$G$64=$H69,V$6:V$64)) -> 0.429760666 | W69: =MAX(IF($G$6:$G$64=$H69,W$6:W$64)) -> 0.4594594595 | X69: =MAX(IF($G$6:$G$64=$H69,X$6:X$64)) -> 0.4279392118 | Y69: =MAX(IF($G$6:$G$64=$H69,Y$6:Y$64)) -> 0.4293882218 | Z69: =MAX(IF($G$6:$G$64=$H69,Z$6:Z$64)) -> 0.4271087275 | AA69: =MAX(IF($G$6:$G$64=$H69,AA$6:AA$64)) -> 0.4271447282 | AB69: =MAX(IF($G$6:$G$64=$H69,AB$6:AB$64)) -> 0.4191122374 | AC69: =MAX(IF($G$6:$G$64=$H69,AC$6:AC$64)) -> 0.4170719844
H70: Large | X70: Tulare | AC70: Tulare
H71: Medium | X71: Imperial | AC71: Imperial
H72: Small | X72: Del Norte | AC72: Del Norte
A73: Sum of qtr_pct_calfresh_rcv_medical_ly | B73: Column Labels | H73: Sum of qtr_calfresh_persons_rcv_medical_pct
B74: 2012 | I74: 2012 | M74: 2013 | Q74: 2014 | U74: 2015 | Y74: 2016 | AC74: 2017
A75: Row Labels | B75: 4 | G75: Current size - references Timely sheet | I75: January | J75: April | K75: July | L75: October | M75: January | N75: April | O75: July | P75: October | Q75: January | R75: April | S75: July | T75: October | U75: January | V75: April | W75: July | X75: October | Y75: January | Z75: April | AA75: July | AB75: October | AC75: January
A76: California | B76: 0.787 | G76: =Timely!A330 -> State | H76: California | I76: 0.7803672702 | J76: 0.7747820444 | K76: 0.77013985 | L76: 0.7660948281 | M76: 0.770212785 | N76: 0.7736150693 | O76: 0.7702643618 | P76: 0.7667233869 | Q76: 0.8087030509 | R76: 0.8729793758 | S76: 0.8834100304 | T76: 0.8907950903 | U76: 0.9028190457 | V76: 0.9081863719 | W76: 0.9086702197 | X76: 0.9104408015 | Y76: 0.9254163184 | Z76: 0.9258572287 | AA76: 0.918636676 | AB76: 0.9204613163 | AC76: 0.9265808468
A77: Alameda | B77: 0.773 | G77: =Timely!A331 -> Large | H77: Alameda | I77: 0.7650702094 | J77: 0.7586795765 | K77: 0.7559024285 | L77: 0.7560840495 | M77: 0.7599080726 | N77: 0.7614396244 | O77: 0.7602903521 | P77: 0.7559709163 | Q77: 0.809170482 | R77: 0.8629458439 | S77: 0.8847539938 | T77: 0.8939627159 | U77: 0.9089591095 | V77: 0.9117551209 | W77: 0.9071993244 | X77: 0.9112566341 | Y77: 0.925617996 | Z77: 0.9257410089 | AA77: 0.9191840168 | AB77: 0.9257544158 | AC77: 0.9260743787
A78: Alpine | B78: 0.908 | G78: =Timely!A332 -> Small | H78: Alpine | I78: 0.9139072848 | J78: 0.8653846154 | K78: 0.8120805369 | L78: 0.8785714286 | M78: 0.8926174497 | N78: 0.8692810458 | O78: 0.8670520231 | P78: 0.8679245283 | Q78: 0.8370786517 | R78: 0.8722222222 | S78: 0.9081632653 | T78: 0.9027027027 | U78: 0.9127906977 | V78: 0.9285714286 | W78: 0.9444444444 | X78: 0.962962963 | Y78: 0.9551282051 | Z78: 0.9536423841 | AA78: 0.9533333333 | AB78: 0.9586206897 | AC78: 0.9647887324
A79: Amador | B79: 0.857 | G79: =Timely!A333 -> Small | H79: Amador | I79: 0.8318670577 | J79: 0.8324192566 | K79: 0.8228849665 | L79: 0.8215246637 | M79: 0.8158844765 | N79: 0.8180141408 | O79: 0.8357121166 | P79: 0.8374279648 | Q79: 0.8403851765 | R79: 0.8895365783 | S79: 0.8956189356 | T79: 0.8972562755 | U79: 0.9186729301 | V79: 0.9129445235 | W79: 0.9072922555 | X79: 0.9077185987 | Y79: 0.9253688169 | Z79: 0.9197922677 | AA79: 0.9169632266 | AB79: 0.9214092141 | AC79: 0.9211973122
A80: Butte | B80: 0.877 | G80: =Timely!A334 -> Medium | H80: Butte | I80: 0.8748108793 | J80: 0.8706511739 | K80: 0.8703169073 | L80: 0.8675926229 | M80: 0.8691591847 | N80: 0.872080853 | O80: 0.8731899249 | P80: 0.8695610258 | Q80: 0.8761002679 | R80: 0.9265693106 | S80: 0.9353774622 | T80: 0.9374276507 | U80: 0.94173555 | V80: 0.9448785252 | W80: 0.9430084555 | X80: 0.9405801014 | Y80: 0.9460573368 | Z80: 0.9434980297 | AA80: 0.9409641113 | AB80: 0.9387730174 | AC80: 0.938885935
A81: Calaveras | B81: 0.828 | G81: =Timely!A335 -> Small | H81: Calaveras | I81: 0.8140571197 | J81: 0.8027640671 | K81: 0.8191342162 | L81: 0.8249439576 | M81: 0.829816879 | N81: 0.8306566375 | O81: 0.826113238 | P81: 0.8293032787 | Q81: 0.8314562339 | R81: 0.9022291748 | S81: 0.9168880455 | T81: 0.917424383 | U81: 0.920541926 | V81: 0.9226061915 | W81: 0.9231183761 | X81: 0.9196217494 | Y81: 0.935453695 | Z81: 0.9316353887 | AA81: 0.929422895 | AB81: 0.9310607503 | AC81: 0.9328730341
A82: Colusa | B82: 0.906 | G82: =Timely!A336 -> Small | H82: Colusa | I82: 0.8899889989 | J82: 0.9008762322 | K82: 0.8947368421 | L82: 0.901748041 | M82: 0.8911780243 | N82: 0.8894154818 | O82: 0.8841634024 | P82: 0.8953282082 | Q82: 0.8982133189 | R82: 0.9519697787 | S82: 0.9498898678 | T82: 0.9575221239 | U82: 0.954887218 | V82: 0.9610894942 | W82: 0.9637952559 | X82: 0.9719222462 | Y82: 0.9779411765 | Z82: 0.9765258216 | AA82: 0.9679572764 | AB82: 0.9655172414 | AC82: 0.966442953
A83: Contra Costa | B83: 0.77 | G83: =Timely!A337 -> Medium | H83: Contra Costa | I83: 0.7625682546 | J83: 0.7482214573 | K83: 0.7512908899 | L83: 0.7469499924 | M83: 0.7591863057 | N83: 0.7616714535 | O83: 0.7611201939 | P83: 0.7563102783 | Q83: 0.8090197756 | R83: 0.8852624309 | S83: 0.897334407 | T83: 0.9066974282 | U83: 0.92359884 | V83: 0.9234473324 | W83: 0.9198296935 | X83: 0.9246186182 | Y83: 0.9332856475 | Z83: 0.9341187651 | AA83: 0.9313950996 | AB83: 0.9304889671 | AC83: 0.9316046996
A84: Del Norte | B84: 0.888 | G84: =Timely!A338 -> Small | H84: Del Norte | I84: 0.8841021731 | J84: 0.8798760481 | K84: 0.8827510518 | L84: 0.878219697 | M84: 0.8737364105 | N84: 0.8723732408 | O84: 0.8739577274 | P84: 0.8901336478 | Q84: 0.8940295642 | R84: 0.94583576 | S84: 0.9556195965 | T84: 0.9570493066 | U84: 0.9613892123 | V84: 0.9619565217 | W84: 0.9620907524 | X84: 0.9635269788 | Y84: 0.9738792145 | Z84: 0.9738743747 | AA84: 0.9756918474 | AB84: 0.9773160503 | AC84: 0.9786950732
A85: El Dorado | B85: 0.818 | G85: =Timely!A339 -> Small | H85: El Dorado | I85: 0.8069908815 | J85: 0.8129285834 | K85: 0.8133178731 | L85: 0.8036672999 | M85: 0.8065395095 | N85: 0.8090732654 | O85: 0.8097002635 | P85: 0.8241813602 | Q85: 0.8259679626 | R85: 0.884977262 | S85: 0.8997912317 | T85: 0.8979654043 | U85: 0.9064711461 | V85: 0.9109618718 | W85: 0.9119542394 | X85: 0.9155197657 | Y85: 0.9301956637 | Z85: 0.9295924574 | AA85: 0.9266550125 | AB85: 0.930372807 | AC85: 0.9285434459
A86: Fresno | B86: 0.801 | G86: =Timely!A340 -> Large | H86: Fresno | I86: 0.8030806222 | J86: 0.8001547945 | K86: 0.7978904374 | L86: 0.7941757269 | M86: 0.7953217417 | N86: 0.7958759762 | O86: 0.7879735477 | P86: 0.7845794041 | Q86: 0.8184103663 | R86: 0.8983195498 | S86: 0.9095802076 | T86: 0.9174153065 | U86: 0.9285708319 | V86: 0.9326381438 | W86: 0.9353020033 | X86: 0.9355370518 | Y86: 0.9453422803 | Z86: 0.9477887132 | AA86: 0.9476373304 | AB86: 0.9502838053 | AC86: 0.9526104902
A87: Glenn | B87: 0.897 | G87: =Timely!A341 -> Small | H87: Glenn | I87: 0.9011778225 | J87: 0.899207248 | K87: 0.9043403769 | L87: 0.9059334298 | M87: 0.9154228856 | N87: 0.9151614669 | O87: 0.9074380165 | P87: 0.9117054932 | Q87: 0.9119463087 | R87: 0.9422163588 | S87: 0.9455800372 | T87: 0.9570885388 | U87: 0.9607792208 | V87: 0.9604166667 | W87: 0.9637605042 | X87: 0.9637935693 | Y87: 0.9752421959 | Z87: 0.9734466277 | AA87: 0.9719160105 | AB87: 0.9724540902 | AC87: 0.9736191261
A88: Humboldt | B88: 0.83 | G88: =Timely!A342 -> Medium | H88: Humboldt | I88: 0.8166257547 | J88: 0.8291977372 | K88: 0.8374513985 | L88: 0.8296518158 | M88: 0.8403361345 | N88: 0.839084702 | O88: 0.8375827912 | P88: 0.8369982548 | Q88: 0.841530972 | R88: 0.8983278671 | S88: 0.904678753 | T88: 0.9067193676 | U88: 0.9171669249 | V88: 0.9155413353 | W88: 0.9148608975 | X88: 0.9114277859 | Y88: 0.9145467903 | Z88: 0.9164991778 | AA88: 0.9168330625 | AB88: 0.9135762358 | AC88: 0.9131831301
A89: Imperial | B89: 0.898 | G89: =Timely!A343 -> Medium | H89: Imperial | I89: 0.8943555605 | J89: 0.8882309197 | K89: 0.8909789699 | L89: 0.8920039901 | M89: 0.887218641 | N89: 0.8852530304 | O89: 0.8819613701 | P89: 0.881745828 | Q89: 0.8870063727 | R89: 0.9334855325 | S89: 0.9407554287 | T89: 0.9425857372 | U89: 0.9497265216 | V89: 0.9566367002 | W89: 0.9585372941 | X89: 0.9571835929 | Y89: 0.9655227237 | Z89: 0.9660997204 | AA89: 0.9663061853 | AB89: 0.9656577282 | AC89: 0.9646311265
A90: Inyo | B90: 0.871 | G90: =Timely!A344 -> Small | H90: Inyo | I90: 0.86865059 | J90: 0.876746507 | K90: 0.8846350179 | L90: 0.8803680982 | M90: 0.8714213963 | N90: 0.8719611021 | O90: 0.8653576438 | P90: 0.8551724138 | Q90: 0.8637640449 | R90: 0.9080091533 | S90: 0.9123376623 | T90: 0.9235849057 | U90: 0.9341978866 | V90: 0.9390070922 | W90: 0.9442607463 | X90: 0.9479502533 | Y90: 0.9548693587 | Z90: 0.9468899522 | AA90: 0.9470389986 | AB90: 0.9537750385 | AC90: 0.9398572885
A91: Kern | B91: 0.839 | G91: =Timely!A345 -> Large | H91: Kern | I91: 0.8322450159 | J91: 0.8198762456 | K91: 0.8137956795 | L91: 0.8107176914 | M91: 0.8126691637 | N91: 0.8134993973 | O91: 0.8097201246 | P91: 0.8055959377 | Q91: 0.8508026002 | R91: 0.9128977553 | S91: 0.9243788882 | T91: 0.9315421567 | U91: 0.9399165365 | V91: 0.9458959638 | W91: 0.9435162845 | X91: 0.9446935096 | Y91: 0.9544231337 | Z91: 0.9585139061 | AA91: 0.9565628969 | AB91: 0.9578116642 | AC91: 0.9603851378
A92: Kings | B92: 0.892 | G92: =Timely!A346 -> Medium | H92: Kings | I92: 0.8920512935 | J92: 0.8862738506 | K92: 0.8863069111 | L92: 0.8864521152 | M92: 0.8817376634 | N92: 0.8813495783 | O92: 0.8834154351 | P92: 0.8826341631 | Q92: 0.8871563057 | R92: 0.9276482618 | S92: 0.9373966942 | T92: 0.9421839753 | U92: 0.9501783687 | V92: 0.9535384125 | W92: 0.9532456279 | X92: 0.9551965622 | Y92: 0.9621819314 | Z92: 0.9644339773 | AA92: 0.9627530364 | AB92: 0.961043719 | AC92: 0.9607511964
A93: Lake | B93: 0.868 | G93: =Timely!A347 -> Small | H93: Lake | I93: 0.8535930822 | J93: 0.8500629174 | K93: 0.8515693752 | L93: 0.8538964206 | M93: 0.8497275595 | N93: 0.8506292352 | O93: 0.8584726444 | P93: 0.85951275 | Q93: 0.8675315184 | R93: 0.9257178527 | S93: 0.9393270335 | T93: 0.9441074523 | U93: 0.953628526 | V93: 0.9533721216 | W93: 0.9560617075 | X93: 0.8646141701 | Y93: 0.961274739 | Z93: 0.9628877256 | AA93: 0.9619582411 | AB93: 0.9594378793 | AC93: 0.9635246229
A94: Lassen | B94: 0.887 | G94: =Timely!A348 -> Small | H94: Lassen | I94: 0.8966461328 | J94: 0.9009402283 | K94: 0.901128069 | L94: 0.8826684546 | M94: 0.8933200399 | N94: 0.8976300197 | O94: 0.8834437086 | P94: 0.886664514 | Q94: 0.898156826 | R94: 0.9293645898 | S94: 0.9313694767 | T94: 0.9357713583 | U94: 0.9371711544 | V94: 0.9387447194 | W94: 0.9358547655 | X94: 0.93401627 | Y94: 0.9397590361 | Z94: 0.9376735575 | AA94: 0.9335188621 | AB94: 0.9314268143 | AC94: 0.9332096475
A95: Los Angeles | B95: 0.792 | G95: =Timely!A349 -> Large | H95: Los Angeles | I95: 0.7892941263 | J95: 0.7889207921 | K95: 0.7779262314 | L95: 0.7683234972 | M95: 0.7679988229 | N95: 0.7700254069 | O95: 0.768576107 | P95: 0.7635785226 | Q95: 0.7861654241 | R95: 0.8283246833 | S95: 0.8365347799 | T95: 0.845848295 | U95: 0.8571562311 | V95: 0.8661261413 | W95: 0.8729472789 | X95: 0.8740066054 | Y95: 0.9025012379 | Z95: 0.8978224327 | AA95: 0.87627692 | AB95: 0.8784311384 | AC95: 0.8975991512
A96: Madera | B96: 0.913 | G96: =Timely!A350 -> Medium | H96: Madera | I96: 0.9073052553 | J96: 0.9035703834 | K96: 0.900150398 | L96: 0.8998209728 | M96: 0.9019665287 | N96: 0.9105170775 | O96: 0.9109180593 | P96: 0.9145104381 | Q96: 0.9135335738 | R96: 0.9470640569 | S96: 0.95429886 | T96: 0.9568290749 | U96: 0.9641356593 | V96: 0.9669148056 | W96: 0.9631702713 | X96: 0.9615244166 | Y96: 0.9701737674 | Z96: 0.9704466435 | AA96: 0.9680401119 | AB96: 0.9667438725 | AC96: 0.9681181164
A97: Marin | B97: 0.872 | G97: =Timely!A351 -> Small | H97: Marin | I97: 0.8666593623 | J97: 0.871440714 | K97: 0.8730569948 | L97: 0.8668827774 | M97: 0.8696014153 | N97: 0.881120332 | O97: 0.884642462 | P97: 0.8942057942 | Q97: 0.89717801 | R97: 0.9404452154 | S97: 0.9393683816 | T97: 0.944995826 | U97: 0.9469899511 | V97: 0.944068726 | W97: 0.942245412 | X97: 0.9376295629 | Y97: 0.9488802797 | Z97: 0.9484085511 | AA97: 0.9470167064 | AB97: 0.9457052571 | AC97: 0.9510617761
A98: Mariposa | B98: 0.875 | G98: =Timely!A352 -> Small | H98: Mariposa | I98: 0.8699140401 | J98: 0.8717948718 | K98: 0.8584750411 | L98: 0.8611422172 | M98: 0.8744725738 | N98: 0.8755506608 | O98: 0.8897763578 | P98: 0.8849066128 | Q98: 0.8997093023 | R98: 0.9393355802 | S98: 0.9438596491 | T98: 0.9564571994 | U98: 0.9613572102 | V98: 0.9607027277 | W98: 0.9536484626 | X98: 0.947592068 | Y98: 0.9555243446 | Z98: 0.9602649007 | AA98: 0.9549019608 | AB98: 0.9531410917 | AC98: 0.9491173416
A99: Mendocino | B99: 0.833 | G99: =Timely!A353 -> Small | H99: Mendocino | I99: 0.8246006636 | J99: 0.8323224852 | K99: 0.8300328827 | L99: 0.8199910887 | M99: 0.8340520446 | N99: 0.8409644052 | O99: 0.8491310617 | P99: 0.8499623777 | Q99: 0.8395452583 | R99: 0.8974915919 | S99: 0.9018284107 | T99: 0.9144817624 | U99: 0.930131949 | V99: 0.9365102426 | W99: 0.9363001745 | X99: 0.9338872832 | Y99: 0.9477245687 | Z99: 0.9472464664 | AA99: 0.9455103004 | AB99: 0.9452899712 | AC99: 0.9512944984
A100: Merced | B100: 0.837 | G100: =Timely!A354 -> Medium | H100: Merced | I100: 0.8282441293 | J100: 0.8233427043 | K100: 0.8181967873 | L100: 0.8179828629 | M100: 0.8207484519 | N100: 0.8205596848 | O100: 0.8218305182 | P100: 0.8212037408 | Q100: 0.8619557434 | R100: 0.9350999326 | S100: 0.9497201924 | T100: 0.959327175 | U100: 0.9665295248 | V100: 0.9683096834 | W100: 0.9657158985 | X100: 0.9661355921 | Y100: 0.9738036965 | Z100: 0.9729920352 | AA100: 0.9711106842 | AB100: 0.9717984943 | AC100: 0.9723169865
A101: Modoc | B101: 0.904 | G101: =Timely!A355 -> Small | H101: Modoc | I101: 0.8957718781 | J101: 0.8798449612 | K101: 0.8686567164 | L101: 0.8755144033 | M101: 0.8743768694 | N101: 0.8894628099 | O101: 0.8707692308 | P101: 0.8935950413 | Q101: 0.8902953586 | R101: 0.9348044132 | S101: 0.9261811024 | T101: 0.948026949 | U101: 0.9615754083 | V101: 0.9661181026 | W101: 0.9543610548 | X101: 0.9536031589 | Y101: 0.9577594123 | Z101: 0.9489051095 | AA101: 0.9501779359 | AB101: 0.9580357143 | AC101: 0.9610927152
A102: Mono | B102: 0.735 | G102: =Timely!A356 -> Small | H102: Mono | I102: 0.6595744681 | J102: 0.6953405018 | K102: 0.7235872236 | L102: 0.7881481481 | M102: 0.7773167358 | N102: 0.8138747885 | O102: 0.7675438596 | P102: 0.8335766423 | Q102: 0.7284768212 | R102: 0.7983104541 | S102: 0.8541905855 | T102: 0.8599269184 | U102: 0.8787528868 | V102: 0.8656884876 | W102: 0.8600917431 | X102: 0.8745294856 | Y102: 0.9072929543 | Z102: 0.9154411765 | AA102: 0.9104116223 | AB102: 0.897005988 | AC102: 0.8954081633
A103: Monterey | B103: 0.85 | G103: =Timely!A357 -> Medium | H103: Monterey | I103: 0.8526925863 | J103: 0.8461234506 | K103: 0.8379666402 | L103: 0.8276678545 | M103: 0.8420778179 | N103: 0.8560102069 | O103: 0.846349709 | P103: 0.8364609444 | Q103: 0.8835076306 | R103: 0.9375023113 | S103: 0.9410707071 | T103: 0.9482317942 | U103: 0.9617056887 | V103: 0.9639713046 | W103: 0.9601247536 | X103: 0.9606150579 | Y103: 0.9681916218 | Z103: 0.9700378544 | AA103: 0.9667242869 | AB103: 0.9666348904 | AC103: 0.9705949223
A104: Napa | B104: 0.857 | G104: =Timely!A358 -> Small | H104: Napa | I104: 0.8430925901 | J104: 0.8332001066 | K104: 0.8304484658 | L104: 0.8320925286 | M104: 0.8419753086 | N104: 0.8490159073 | O104: 0.8590320765 | P104: 0.8782271945 | Q104: 0.8847184987 | R104: 0.9279005159 | S104: 0.9352651868 | T104: 0.93533896 | U104: 0.9385909033 | V104: 0.9410494219 | W104: 0.9394218134 | X104: 0.9408770556 | Y104: 0.9495223341 | Z104: 0.9499741468 | AA104: 0.9459025174 | AB104: 0.9499514765 | AC104: 0.9488917126
A105: Nevada | B105: 0.827 | G105: =Timely!A359 -> Small | H105: Nevada | I105: 0.8172752378 | J105: 0.8164333192 | K105: 0.8116102281 | L105: 0.8076562709 | M105: 0.8092209857 | N105: 0.8236159401 | O105: 0.8283798001 | P105: 0.8284567582 | Q105: 0.8408225438 | R105: 0.9004468719 | S105: 0.9103155794 | T105: 0.9151263674 | U105: 0.9216030056 | V105: 0.9311549015 | W105: 0.9256074766 | X105: 0.9279840518 | Y105: 0.9348837209 | Z105: 0.9358604243 | AA105: 0.9316510271 | AB105: 0.9259830378 | AC105: 0.9305299235
A106: Orange | B106: 0.791 | G106: =Timely!A360 -> Large | H106: Orange | I106: 0.7820048112 | J106: 0.7736160124 | K106: 0.7724954455 | L106: 0.7686112688 | M106: 0.7755236703 | N106: 0.7787902512 | O106: 0.7763729601 | P106: 0.7693067287 | Q106: 0.8266843578 | R106: 0.8999854677 | S106: 0.9070638772 | T106: 0.9072533352 | U106: 0.9214304125 | V106: 0.9208749557 | W106: 0.9163228463 | X106: 0.9218434291 | Y106: 0.9271312779 | Z106: 0.9285719795 | AA106: 0.9244441185 | AB106: 0.9277502828 | AC106: 0.9302857641
A107: Placer | B107: 0.693 | G107: =Timely!A361 -> Small | H107: Placer | I107: 0.6800689578 | J107: 0.6692856748 | K107: 0.6716815633 | L107: 0.6619844423 | M107: 0.659175818 | N107: 0.6638741665 | O107: 0.6591190718 | P107: 0.6489174635 | Q107: 0.7363975962 | R107: 0.8233965175 | S107: 0.8454037471 | T107: 0.850667243 | U107: 0.8658244391 | V107: 0.8757367116 | W107: 0.8801209788 | X107: 0.8807654021 | Y107: 0.8957868926 | Z107: 0.8950260594 | AA107: 0.8877660475 | AB107: 0.8841214076 | AC107: 0.8847763693
A108: Plumas | B108: 0.86 | G108: =Timely!A362 -> Small | H108: Plumas | I108: 0.8572347267 | J108: 0.8414779499 | K108: 0.8327402135 | L108: 0.8507374631 | M108: 0.8664036077 | N108: 0.8665511265 | O108: 0.8769414576 | P108: 0.849078341 | Q108: 0.8220696938 | R108: 0.8878600823 | S108: 0.9022198732 | T108: 0.8982278481 | U108: 0.9003386551 | V108: 0.9009174312 | W108: 0.9135742188 | X108: 0.8940556088 | Y108: 0.9058098592 | Z108: 0.9090505768 | AA108: 0.9224470135 | AB108: 0.8985365854 | AC108: 0.9035326087
A109: Riverside | B109: 0.721 | G109: =Timely!A363 -> Large | H109: Riverside | I109: 0.7057690101 | J109: 0.6997357382 | K109: 0.6911625146 | L109: 0.6895152849 | M109: 0.6983814476 | N109: 0.7079149247 | O109: 0.7077250142 | P109: 0.7061908215 | Q109: 0.754772261 | R109: 0.8505830087 | S109: 0.8636501618 | T109: 0.8759157875 | U109: 0.8920036011 | V109: 0.8985210015 | W109: 0.8940357102 | X109: 0.8921090211 | Y109: 0.904018583 | Z109: 0.9067278024 | AA109: 0.9043514155 | AB109: 0.9060327869 | AC109: 0.9074560767
A110: Sacramento | B110: 0.78 | G110: =Timely!A364 -> Large | H110: Sacramento | I110: 0.7729877337 | J110: 0.7663667134 | K110: 0.7612550443 | L110: 0.75990077 | M110: 0.7647399388 | N110: 0.7682247929 | O110: 0.7629572706 | P110: 0.7603597891 | Q110: 0.8052701367 | R110: 0.8883465044 | S110: 0.8995201716 | T110: 0.9076465286 | U110: 0.9221475119 | V110: 0.9229037091 | W110: 0.9204736072 | X110: 0.924545605 | Y110: 0.9357234571 | Z110: 0.9368167144 | AA110: 0.9332720529 | AB110: 0.9353742284 | AC110: 0.9359456116
A111: San Benito | B111: 0.841 | G111: =Timely!A365 -> Small | H111: San Benito | I111: 0.8395002403 | J111: 0.8343799058 | K111: 0.8261637239 | L111: 0.8413667877 | M111: 0.8481487268 | N111: 0.8567629853 | O111: 0.8577900016 | P111: 0.8672931091 | Q111: 0.8752336449 | R111: 0.9260424862 | S111: 0.9352390181 | T111: 0.9373657247 | U111: 0.950062422 | V111: 0.9495942572 | W111: 0.9467503218 | X111: 0.9457351747 | Y111: 0.9539782855 | Z111: 0.9542318694 | AA111: 0.9569642857 | AB111: 0.9624170965 | AC111: 0.9574665676
A112: San Bernardino | B112: 0.733 | G112: =Timely!A366 -> Large | H112: San Bernardino | I112: 0.7228517398 | J112: 0.7156097642 | K112: 0.7109995333 | L112: 0.7125382179 | M112: 0.7173504767 | N112: 0.725033407 | O112: 0.7218926949 | P112: 0.7200476365 | Q112: 0.7939451631 | R112: 0.8702932707 | S112: 0.882127397 | T112: 0.8901623016 | U112: 0.9003173044 | V112: 0.9070155041 | W112: 0.904762606 | X112: 0.9052369138 | Y112: 0.9159954707 | Z112: 0.9168882304 | AA112: 0.9160940984 | AB112: 0.9187518889 | AC112: 0.9195983484
A113: San Diego | B113: 0.746 | G113: =Timely!A367 -> Large | H113: San Diego | I113: 0.7320305175 | J113: 0.7265513823 | K113: 0.7235607525 | L113: 0.7195967599 | M113: 0.7250983136 | N113: 0.7187377351 | O113: 0.7153278368 | P113: 0.7108686316 | Q113: 0.7910593582 | R113: 0.8593656234 | S113: 0.8695900254 | T113: 0.8769886266 | U113: 0.8908078277 | V113: 0.8932616879 | W113: 0.8904808571 | X113: 0.8976081574 | Y113: 0.909296715 | Z113: 0.9080745808 | AA113: 0.9066962566 | AB113: 0.9108507143 | AC113: 0.9139087468
A114: San Francisco | B114: 0.639 | G114: =Timely!A368 -> Medium | H114: San Francisco | I114: 0.6306323434 | J114: 0.6242855256 | K114: 0.6318323099 | L114: 0.6351305206 | M114: 0.6452084014 | N114: 0.6462602016 | O114: 0.6460206011 | P114: 0.6455766754 | Q114: 0.713050606 | R114: 0.820486091 | S114: 0.8475387857 | T114: 0.857186597 | U114: 0.8723767923 | V114: 0.8775231187 | W114: 0.8767619294 | X114: 0.8911690743 | Y114: 0.8985891627 | Z114: 0.9009202623 | AA114: 0.9045072574 | AB114: 0.9145694638 | AC114: 0.9218319303
A115: San Joaquin | B115: 0.845 | G115: =Timely!A369 -> Large | H115: San Joaquin | I115: 0.835685042 | J115: 0.8275053128 | K115: 0.8237651538 | L115: 0.8182550065 | M115: 0.8213796134 | N115: 0.8234155146 | O115: 0.8190905798 | P115: 0.8191972409 | Q115: 0.8559193566 | R115: 0.923289477 | S115: 0.9362889166 | T115: 0.9423380727 | U115: 0.9481760231 | V115: 0.9512660715 | W115: 0.9506970037 | X115: 0.9509810244 | Y115: 0.9600284683 | Z115: 0.9599557948 | AA115: 0.9588151272 | AB115: 0.9601554823 | AC115: 0.9602439995
A116: San Luis Obispo | B116: 0.744 | G116: =Timely!A370 -> Small | H116: San Luis Obispo | I116: 0.7318745918 | J116: 0.7206549397 | K116: 0.7224183336 | L116: 0.7236403996 | M116: 0.7370548394 | N116: 0.7347106083 | O116: 0.7365664076 | P116: 0.7336708579 | Q116: 0.8010011842 | R116: 0.895710413 | S116: 0.9106650073 | T116: 0.914422337 | U116: 0.9248423173 | V116: 0.9301680364 | W116: 0.9293836648 | X116: 0.9337477337 | Y116: 0.9370829858 | Z116: 0.9394467321 | AA116: 0.9383682884 | AB116: 0.9397985989 | AC116: 0.9399117971
A117: San Mateo | B117: 0.788 | G117: =Timely!A371 -> Medium | H117: San Mateo | I117: 0.7742136978 | J117: 0.7618063341 | K117: 0.7665985003 | L117: 0.7659906915 | M117: 0.7792554078 | N117: 0.7782050857 | O117: 0.7790429846 | P117: 0.7726135697 | Q117: 0.8363988681 | R117: 0.8934955083 | S117: 0.9047104247 | T117: 0.9045520387 | U117: 0.9115000768 | V117: 0.915655906 | W117: 0.9132512406 | X117: 0.9166019568 | Y117: 0.9277024014 | Z117: 0.9280158207 | AA117: 0.9256691444 | AB117: 0.9307164895 | AC117: 0.9338253646
A118: Santa Barbara | B118: 0.84 | G118: =Timely!A372 -> Medium | H118: Santa Barbara | I118: 0.8348244806 | J118: 0.8298434701 | K118: 0.824580732 | L118: 0.8189971338 | M118: 0.830750244 | N118: 0.8373414829 | O118: 0.8292876553 | P118: 0.8173209884 | Q118: 0.8619987899 | R118: 0.9325906806 | S118: 0.9355248307 | T118: 0.9354973182 | U118: 0.9474415017 | V118: 0.9480689002 | W118: 0.9488357358 | X118: 0.9532361999 | Y118: 0.9583162564 | Z118: 0.9594342593 | AA118: 0.954721599 | AB118: 0.9552537674 | AC118: 0.9557837032
A119: Santa Clara | B119: 0.801 | G119: =Timely!A373 -> Medium | H119: Santa Clara | I119: 0.7953766145 | J119: 0.7860744545 | K119: 0.7856780138 | L119: 0.7851668435 | M119: 0.7926037027 | N119: 0.7897961926 | O119: 0.7840710166 | P119: 0.7792077376 | Q119: 0.8299434029 | R119: 0.8903320563 | S119: 0.9016608392 | T119: 0.9048155031 | U119: 0.9247432045 | V119: 0.9339420504 | W119: 0.9379507064 | X119: 0.9407877537 | Y119: 0.9487929364 | Z119: 0.9500170784 | AA119: 0.9490298959 | AB119: 0.9522502206 | AC119: 0.9527109868
A120: Santa Cruz | B120: 0.761 | G120: =Timely!A374 -> Medium | H120: Santa Cruz | I120: 0.7509706546 | J120: 0.7399947109 | K120: 0.7357219347 | L120: 0.7223093963 | M120: 0.7365206403 | N120: 0.745930761 | O120: 0.7418862328 | P120: 0.7373977303 | Q120: 0.8075020276 | R120: 0.8953686463 | S120: 0.9078963992 | T120: 0.9150658502 | U120: 0.9291070738 | V120: 0.9292517007 | W120: 0.9273800851 | X120: 0.9262373766 | Y120: 0.936930775 | Z120: 0.9361633182 | AA120: 0.9327595279 | AB120: 0.9352839269 | AC120: 0.9391926418
A121: Shasta | B121: 0.86 | G121: =Timely!A375 -> Medium | H121: Shasta | I121: 0.8507052649 | J121: 0.8481067807 | K121: 0.8543870566 | L121: 0.8475980121 | M121: 0.8504740771 | N121: 0.8550689277 | O121: 0.8617816793 | P121: 0.859693131 | Q121: 0.8670260557 | R121: 0.913547345 | S121: 0.9247281962 | T121: 0.9352424978 | U121: 0.9388908375 | V121: 0.94489922 | W121: 0.9426997667 | X121: 0.9421618083 | Y121: 0.9511886897 | Z121: 0.951208861 | AA121: 0.9466126509 | AB121: 0.9491932578 | AC121: 0.9463922558
A122: Sierra | B122: 0.894 | G122: =Timely!A376 -> Small | H122: Sierra | I122: 0.8812260536 | J122: 0.8865248227 | K122: 0.9129032258 | L122: 0.8614864865 | M122: 0.8836477987 | N122: 0.8511326861 | O122: 0.8463949843 | P122: 0.8711864407 | Q122: 0.8758169935 | R122: 0.9283387622 | S122: 0.9259259259 | T122: 0.922829582 | U122: 0.9176470588 | V122: 0.8915662651 | W122: 0.8975903614 | X122: 0.8875 | Y122: 0.91 | Z122: 0.9222222222 | AA122: 0.9416058394 | AB122: 0.9187279152 | AC122: 0.9554794521
A123: Siskiyou | B123: 0.851 | G123: =Timely!A377 -> Small | H123: Siskiyou | I123: 0.8598662207 | J123: 0.8653565048 | K123: 0.8707021792 | L123: 0.8535296943 | M123: 0.8653992395 | N123: 0.8739393939 | O123: 0.8731433768 | P123: 0.8674214211 | Q123: 0.8763076053 | R123: 0.9386832439 | S123: 0.943902439 | T123: 0.953326713 | U123: 0.9538957399 | V123: 0.9585304759 | W123: 0.9542410714 | X123: 0.9477313474 | Y123: 0.9597389976 | Z123: 0.9626950355 | AA123: 0.9611975004 | AB123: 0.964066477 | AC123: 0.9645617617
A124: Solano | B124: 0.852 | G124: =Timely!A378 -> Medium | H124: Solano | I124: 0.8447218734 | J124: 0.8375811728 | K124: 0.8416420172 | L124: 0.8434032059 | M124: 0.8429107101 | N124: 0.8445120502 | O124: 0.8424299285 | P124: 0.8472657691 | Q124: 0.8575167 | R124: 0.9049908165 | S124: 0.9133508973 | T124: 0.9156101963 | U124: 0.9239871641 | V124: 0.9234855107 | W124: 0.9150784815 | X124: 0.917940608 | Y124: 0.9326837118 | Z124: 0.9335988167 | AA124: 0.9337559721 | AB124: 0.9334048157 | AC124: 0.9341006437
A125: Sonoma | B125: 0.827 | G125: =Timely!A379 -> Medium | H125: Sonoma | I125: 0.8129930672 | J125: 0.8066894392 | K125: 0.808853175 | L125: 0.8111459481 | M125: 0.8161927418 | N125: 0.8289374739 | O125: 0.8343769218 | P125: 0.8468922152 | Q125: 0.8521136521 | R125: 0.9106961696 | S125: 0.916629822 | T125: 0.9155593304 | U125: 0.9262191685 | V125: 0.9266707838 | W125: 0.9234093319 | X125: 0.9206173307 | Y125: 0.9278268064 | Z125: 0.9263527758 | AA125: 0.9222002124 | AB125: 0.9262839521 | AC125: 0.9313755419
A126: Stanislaus | B126: 0.775 | G126: =Timely!A380 -> Medium | H126: Stanislaus | I126: 0.7632134813 | J126: 0.7502127707 | K126: 0.7483393203 | L126: 0.7493427694 | M126: 0.7502802383 | N126: 0.756632347 | O126: 0.7472630625 | P126: 0.7481102809 | Q126: 0.8082942431 | R126: 0.8933978043 | S126: 0.9111816526 | T126: 0.9247648564 | U126: 0.9341773212 | V126: 0.9412434454 | W126: 0.9417860919 | X126: 0.9427934858 | Y126: 0.9517039358 | Z126: 0.9563673093 | AA126: 0.9562229632 | AB126: 0.9585328777 | AC126: 0.9599317493
A127: Sutter | B127: 0.894 | G127: =Timely!A381 -> Small | H127: Sutter | I127: 0.888354104 | J127: 0.8823285169 | K127: 0.884413022 | L127: 0.8786559316 | M127: 0.8767742447 | N127: 0.887873296 | O127: 0.8848341232 | P127: 0.8940208537 | Q127: 0.8947449411 | R127: 0.9299226469 | S127: 0.933660748 | T127: 0.9494446572 | U127: 0.9517540522 | V127: 0.9567849845 | W127: 0.9548821549 | X127: 0.9543135784 | Y127: 0.9593592406 | Z127: 0.965163183 | AA127: 0.9599788966 | AB127: 0.9630637636 | AC127: 0.9651039296
A128: Tehama | B128: 0.889 | G128: =Timely!A382 -> Small | H128: Tehama | I128: 0.8817588891 | J128: 0.8867389322 | K128: 0.8903061224 | L128: 0.8861455418 | M128: 0.889387145 | N128: 0.8906092902 | O128: 0.8864922897 | P128: 0.8930677753 | Q128: 0.8936802974 | R128: 0.9292003594 | S128: 0.9354236987 | T128: 0.9442698706 | U128: 0.9549454754 | V128: 0.9632649236 | W128: 0.9645040606 | X128: 0.9674918262 | Y128: 0.9700443075 | Z128: 0.9686364506 | AA128: 0.9657494145 | AB128: 0.9633064516 | AC128: 0.9654361387
A129: Trinity | B129: 0.851 | G129: =Timely!A383 -> Small | H129: Trinity | I129: 0.8395378691 | J129: 0.853968254 | K129: 0.8403205919 | L129: 0.8337292162 | M129: 0.8379685611 | N129: 0.8377192982 | O129: 0.849127182 | P129: 0.8430769231 | Q129: 0.8392226148 | R129: 0.9153761062 | S129: 0.9219409283 | T129: 0.9193381593 | U129: 0.9258474576 | V129: 0.9344086022 | W129: 0.9341004184 | X129: 0.9448491155 | Y129: 0.9437068508 | Z129: 0.9458424508 | AA129: 0.9496644295 | AB129: 0.9353948095 | AC129: 0.9318054779
A130: Tulare | B130: 0.833 | G130: =Timely!A384 -> Large | H130: Tulare | I130: 0.8289186886 | J130: 0.8240870475 | K130: 0.8229837216 | L130: 0.823373937 | M130: 0.8257740057 | N130: 0.831532889 | O130: 0.8271394534 | P130: 0.8218723762 | Q130: 0.8582456833 | R130: 0.9265961938 | S130: 0.9394180625 | T130: 0.94207091 | U130: 0.9501429126 | V130: 0.950913523 | W130: 0.9512694898 | X130: 0.95740825 | Y130: 0.9623410461 | Z130: 0.9662744605 | AA130: 0.9664996213 | AB130: 0.9675114871 | AC130: 0.9686018815
A131: Tuolumne | B131: 0.88 | G131: =Timely!A385 -> Small | H131: Tuolumne | I131: 0.8739352641 | J131: 0.8652132701 | K131: 0.8711111111 | L131: 0.8784775889 | M131: 0.8772576484 | N131: 0.8857943925 | O131: 0.8817285823 | P131: 0.877682811 | Q131: 0.8827852287 | R131: 0.9345493562 | S131: 0.9356040447 | T131: 0.9369208838 | U131: 0.9391350774 | V131: 0.9438881215 | W131: 0.9433930094 | X131: 0.9389569009 | Y131: 0.9493626681 | Z131: 0.9378893041 | AA131: 0.9326004686 | AB131: 0.9342919549 | AC131: 0.9331759579
A132: Ventura | B132: 0.734 | G132: =Timely!A386 -> Medium | H132: Ventura | I132: 0.7291231026 | J132: 0.7162156104 | K132: 0.7141237882 | L132: 0.7160257906 | M132: 0.7223550422 | N132: 0.725748019 | O132: 0.7206520329 | P132: 0.7204779299 | Q132: 0.7768288975 | R132: 0.8711697915 | S132: 0.8770103291 | T132: 0.8777395011 | U132: 0.8932121777 | V132: 0.9034985498 | W132: 0.9074554087 | X132: 0.9120417919 | Y132: 0.9239617264 | Z132: 0.9277545436 | AA132: 0.9251951093 | AB132: 0.9287720524 | AC132: 0.9314469689
A133: Yolo | B133: 0.765 | G133: =Timely!A387 -> Small | H133: Yolo | I133: 0.7566094144 | J133: 0.7540208682 | K133: 0.8001841621 | L133: 0.8216933954 | M133: 0.8281534608 | N133: 0.8355018055 | O133: 0.8403149051 | P133: 0.8415931206 | Q133: 0.8523781116 | R133: 0.9034545748 | S133: 0.9062366965 | T133: 0.9075342466 | U133: 0.917042643 | V133: 0.9204774231 | W133: 0.91649733 | X133: 0.9125769733 | Y133: 0.9226003371 | Z133: 0.9203170821 | AA133: 0.9169273873 | AB133: 0.920072488 | AC133: 0.9239540005
A134: Yuba | B134: 0.859 | G134: =Timely!A388 -> Small | H134: Yuba | I134: 0.8453742802 | J134: 0.8456113453 | K134: 0.8485371343 | L134: 0.8423205089 | M134: 0.8556896683 | N134: 0.856534307 | O134: 0.8526615258 | P134: 0.8493275587 | Q134: 0.8613536303 | R134: 0.9182122905 | S134: 0.9271912424 | T134: 0.9407773435 | U134: 0.949858652 | V134: 0.9508996867 | W134: 0.9468963043 | X134: 0.9482099901 | Y134: 0.9551706572 | Z134: 0.9579139314 | AA134: 0.9568361413 | AB134: 0.9588588589 | AC134: 0.9598153474
H136: Max
B137: =MAX(IF($G76:$G134=$H137,B76:B134)) -> 0.845 | C137: =MAX(IF($G76:$G134=$H137,C76:C134)) -> 0 | D137: =MAX(IF($G76:$G134=$H137,D76:D134)) -> 0 | E137: =MAX(IF($G76:$G134=$H137,E76:E134)) -> 0 | F137: =MAX(IF($G76:$G134=$H137,F76:F134)) -> 0 | H137: Large | I137: =MAX(IF($G76:$G134=$H137,I76:I134)) -> 0.835685042 | J137: =MAX(IF($G76:$G134=$H137,J76:J134)) -> 0.8275053128 | K137: =MAX(IF($G76:$G134=$H137,K76:K134)) -> 0.8237651538 | L137: =MAX(IF($G76:$G134=$H137,L76:L134)) -> 0.823373937 | M137: =MAX(IF($G76:$G134=$H137,M76:M134)) -> 0.8257740057 | N137: =MAX(IF($G76:$G134=$H137,N76:N134)) -> 0.831532889 | O137: =MAX(IF($G76:$G134=$H137,O76:O134)) -> 0.8271394534 | P137: =MAX(IF($G76:$G134=$H137,P76:P134)) -> 0.8218723762 | Q137: =MAX(IF($G76:$G134=$H137,Q76:Q134)) -> 0.8582456833 | R137: =MAX(IF($G76:$G134=$H137,R76:R134)) -> 0.9265961938 | S137: =MAX(IF($G76:$G134=$H137,S76:S134)) -> 0.9394180625 | T137: =MAX(IF($G76:$G134=$H137,T76:T134)) -> 0.9423380727 | U137: =MAX(IF($G76:$G134=$H137,U76:U134)) -> 0.9501429126 | V137: =MAX(IF($G76:$G134=$H137,V76:V134)) -> 0.9512660715 | W137: =MAX(IF($G76:$G134=$H137,W76:W134)) -> 0.9512694898 | X137: =MAX(IF($G76:$G134=$H137,X76:X134)) -> 0.95740825 | Y137: =MAX(IF($G76:$G134=$H137,Y76:Y134)) -> 0.9623410461 | Z137: =MAX(IF($G76:$G134=$H137,Z76:Z134)) -> 0.9662744605 | AA137: =MAX(IF($G76:$G134=$H137,AA76:AA134)) -> 0.9664996213 | AB137: =MAX(IF($G76:$G134=$H137,AB76:AB134)) -> 0.9675114871 | AC137: =MAX(IF($G76:$G134=$H137,AC76:AC134)) -> 0.9686018815
B138: =MAX(IF($G$76:$G$134=$H138,B$76:B$134)) -> 0.913 | C138: =MAX(IF($G$76:$G$134=$H138,C$76:C$134)) -> 0 | D138: =MAX(IF($G$76:$G$134=$H138,D$76:D$134)) -> 0 | E138: =MAX(IF($G$76:$G$134=$H138,E$76:E$134)) -> 0 | F138: =MAX(IF($G$76:$G$134=$H138,F$76:F$134)) -> 0 | H138: Medium | I138: =MAX(IF($G$76:$G$134=$H138,I$76:I$134)) -> 0.9073052553 | J138: =MAX(IF($G$76:$G$134=$H138,J$76:J$134)) -> 0.9035703834 | K138: =MAX(IF($G$76:$G$134=$H138,K$76:K$134)) -> 0.900150398 | L138: =MAX(IF($G$76:$G$134=$H138,L$76:L$134)) -> 0.8998209728 | M138: =MAX(IF($G$76:$G$134=$H138,M$76:M$134)) -> 0.9019665287 | N138: =MAX(IF($G$76:$G$134=$H138,N$76:N$134)) -> 0.9105170775 | O138: =MAX(IF($G$76:$G$134=$H138,O$76:O$134)) -> 0.9109180593 | P138: =MAX(IF($G$76:$G$134=$H138,P$76:P$134)) -> 0.9145104381 | Q138: =MAX(IF($G$76:$G$134=$H138,Q$76:Q$134)) -> 0.9135335738 | R138: =MAX(IF($G$76:$G$134=$H138,R$76:R$134)) -> 0.9470640569 | S138: =MAX(IF($G$76:$G$134=$H138,S$76:S$134)) -> 0.95429886 | T138: =MAX(IF($G$76:$G$134=$H138,T$76:T$134)) -> 0.959327175 | U138: =MAX(IF($G$76:$G$134=$H138,U$76:U$134)) -> 0.9665295248 | V138: =MAX(IF($G$76:$G$134=$H138,V$76:V$134)) -> 0.9683096834 | W138: =MAX(IF($G$76:$G$134=$H138,W$76:W$134)) -> 0.9657158985 | X138: =MAX(IF($G$76:$G$134=$H138,X$76:X$134)) -> 0.9661355921 | Y138: =MAX(IF($G$76:$G$134=$H138,Y$76:Y$134)) -> 0.9738036965 | Z138: =MAX(IF($G$76:$G$134=$H138,Z$76:Z$134)) -> 0.9729920352 | AA138: =MAX(IF($G$76:$G$134=$H138,AA$76:AA$134)) -> 0.9711106842 | AB138: =MAX(IF($G$76:$G$134=$H138,AB$76:AB$134)) -> 0.9717984943 | AC138: =MAX(IF($G$76:$G$134=$H138,AC$76:AC$134)) -> 0.9723169865
B139: =MAX(IF($G$76:$G$134=$H139,B$76:B$134)) -> 0.908 | C139: =MAX(IF($G$76:$G$134=$H139,C$76:C$134)) -> 0 | D139: =MAX(IF($G$76:$G$134=$H139,D$76:D$134)) -> 0 | E139: =MAX(IF($G$76:$G$134=$H139,E$76:E$134)) -> 0 | F139: =MAX(IF($G$76:$G$134=$H139,F$76:F$134)) -> 0 | H139: Small | I139: =MAX(IF($G$76:$G$134=$H139,I$76:I$134)) -> 0.9139072848 | J139: =MAX(IF($G$76:$G$134=$H139,J$76:J$134)) -> 0.9009402283 | K139: =MAX(IF($G$76:$G$134=$H139,K$76:K$134)) -> 0.9129032258 | L139: =MAX(IF($G$76:$G$134=$H139,L$76:L$134)) -> 0.9059334298 | M139: =MAX(IF($G$76:$G$134=$H139,M$76:M$134)) -> 0.9154228856 | N139: =MAX(IF($G$76:$G$134=$H139,N$76:N$134)) -> 0.9151614669 | O139: =MAX(IF($G$76:$G$134=$H139,O$76:O$134)) -> 0.9074380165 | P139: =MAX(IF($G$76:$G$134=$H139,P$76:P$134)) -> 0.9117054932 | Q139: =MAX(IF($G$76:$G$134=$H139,Q$76:Q$134)) -> 0.9119463087 | R139: =MAX(IF($G$76:$G$134=$H139,R$76:R$134)) -> 0.9519697787 | S139: =MAX(IF($G$76:$G$134=$H139,S$76:S$134)) -> 0.9556195965 | T139: =MAX(IF($G$76:$G$134=$H139,T$76:T$134)) -> 0.9575221239 | U139: =MAX(IF($G$76:$G$134=$H139,U$76:U$134)) -> 0.9615754083 | V139: =MAX(IF($G$76:$G$134=$H139,V$76:V$134)) -> 0.9661181026 | W139: =MAX(IF($G$76:$G$134=$H139,W$76:W$134)) -> 0.9645040606 | X139: =MAX(IF($G$76:$G$134=$H139,X$76:X$134)) -> 0.9719222462 | Y139: =MAX(IF($G$76:$G$134=$H139,Y$76:Y$134)) -> 0.9779411765 | Z139: =MAX(IF($G$76:$G$134=$H139,Z$76:Z$134)) -> 0.9765258216 | AA139: =MAX(IF($G$76:$G$134=$H139,AA$76:AA$134)) -> 0.9756918474 | AB139: =MAX(IF($G$76:$G$134=$H139,AB$76:AB$134)) -> 0.9773160503 | AC139: =MAX(IF($G$76:$G$134=$H139,AC$76:AC$134)) -> 0.9786950732
H140: Large | X140: Tulare | AC140: Tulare
H141: Medium | X141: Merced | AC141: Merced
H142: Small | X142: Del Norte | AC142: Del Norte

Sheet PRI (hidden)
G2: 2015 Methodology Adjusted to remove undoc children!
A3: Sum of pri_us_census_est_pct | B3: Column Labels
A4: Row Labels | B4: 2010 | C4: 2011 | D4: 2012 | E4: 2013 | F4: 2014 | G4: 2015
A5: California | B5: 0.509 | C5: 0.552 | D5: 0.57 | E5: 0.59126 | F5: 0.634 | G5: 0.69733
A6: Alameda | B6: 0.47165 | C6: 0.52525 | D6: 0.56495 | E6: 0.57793 | F6: 0.58771 | G6: 0.63722
A7: Alpine | B7: 0.01004 | C7: 0.721 | D7: 0.74897 | E7: 0.70753 | F7: 0.80293 | G7: 0.66597
A8: Amador | B8: 0.757 | C8: 0.703 | D8: 0.76675 | E8: 0.65854 | F8: 0.66466 | G8: 0.73183
A9: Butte | B9: 0.51642 | C9: 0.44294 | D9: 0.51154 | E9: 0.52213 | F9: 0.56693 | G9: 0.60002
A10: Calaveras | B10: 0.806 | C10: 0.955 | D10: 0.83065 | E10: 0.82584 | F10: 0.80294 | G10: 0.83412
A11: Colusa | B11: 0.379 | C11: 0.38 | D11: 0.38905 | E11: 0.46177 | F11: 0.39142 | G11: 0.39781
A12: Contra Costa | B12: 0.48498 | C12: 0.43229 | D12: 0.50723 | E12: 0.47548 | F12: 0.57143 | G12: 0.55604
A13: Del Norte | B13: 0.859 | C13: 0.954 | D13: 0.94447 | E13: 0.86602 | F13: 0.91508 | G13: 0.90732
A14: El Dorado | B14: 0.473 | C14: 0.435 | D14: 0.60632 | E14: 0.44243 | F14: 0.45696 | G14: 0.6541
A15: Fresno | B15: 0.78285 | C15: 0.78913 | D15: 0.75799 | E15: 0.78778 | F15: 0.80627 | G15: 0.87322
A16: Glenn | B16: 0.566 | C16: 0.544 | D16: 0.53651 | E16: 0.5704 | F16: 0.55838 | G16: 0.55588
A17: Humboldt | B17: 0.49435 | C17: 0.49959 | D17: 0.46725 | E17: 0.47657 | F17: 0.56563 | G17: 0.65878
A18: Imperial | B18: 0.70739 | C18: 0.65098 | D18: 0.80804 | E18: 0.82644 | F18: 0.89508 | G18: 0.90733
A19: Inyo | B19: 0.659 | C19: 0.688 | D19: 0.77671 | E19: 0.74202 | F19: 0.72042 | G19: 0.80303
A20: Kern | B20: 0.59595 | C20: 0.6258 | D20: 0.65421 | E20: 0.6436 | F20: 0.6561 | G20: 0.76606
A21: Kings | B21: 0.57165 | C21: 0.78334 | D21: 0.68556 | E21: 0.67322 | F21: 0.61675 | G21: 0.68601
A22: Lake | B22: 0.48514 | C22: 0.52034 | D22: 0.52276 | E22: 0.59224 | F22: 0.63177 | G22: 0.83475
A23: Lassen | B23: 0.741 | C23: 0.717 | D23: 0.65843 | E23: 0.68015 | F23: 0.78611 | G23: 0.85393
A24: Los Angeles | B24: 0.47396 | C24: 0.52103 | D24: 0.53852 | E24: 0.54976 | F24: 0.58334 | G24: 0.66276
A25: Madera | B25: 0.68301 | C25: 0.75664 | D25: 0.69334 | E25: 0.69429 | F25: 0.74121 | G25: 0.91808
A26: Marin | B26: 0.30737 | C26: 0.31055 | D26: 0.46343 | E26: 0.43149 | F26: 0.45417 | G26: 0.44651
A27: Mariposa | B27: 0.5 | C27: 0.574 | D27: 0.6231 | E27: 0.59225 | F27: 0.63584 | G27: 0.68894
A28: Mendocino | B28: 0.51958 | C28: 0.61081 | D28: 0.68662 | E28: 0.59035 | F28: 0.69491 | G28: 0.68801
A29: Merced | B29: 0.77534 | C29: 0.63248 | D29: 0.78992 | E29: 0.78723 | F29: 0.76764 | G29: 0.73587
A30: Modoc | B30: 0.494 | C30: 0.414 | D30: 0.40888 | E30: 0.3613 | F30: 0.44723 | G30: 0.49576
A31: Mono | B31: 0.229 | C31: 0.232 | D31: 0.31314 | E31: 0.32166 | F31: 0.49939 | G31: 0.69164
A32: Monterey | B32: 0.43932 | C32: 0.47568 | D32: 0.55609 | E32: 0.56823 | F32: 0.65191 | G32: 0.75962
A33: Napa | B33: 0.30937 | C33: 0.31193 | D33: 0.39325 | E33: 0.41093 | F33: 0.52161 | G33: 0.38162
A34: Nevada | B34: 0.39137 | C34: 0.39514 | D34: 0.49478 | E34: 0.44398 | F34: 0.61057 | G34: 0.428
A35: Orange | B35: 0.39478 | C35: 0.45024 | D35: 0.48162 | E35: 0.52846 | F35: 0.58263 | G35: 0.61074
A36: Placer | B36: 0.33047 | C36: 0.41649 | D36: 0.42561 | E36: 0.45306 | F36: 0.44945 | G36: 0.47372
A37: Plumas | B37: 0.388 | C37: 0.447 | D37: 0.46143 | E37: 0.44002 | F37: 0.52614 | G37: 0.59469
A38: Riverside | B38: 0.47804 | C38: 0.55424 | D38: 0.55385 | E38: 0.59614 | F38: 0.63751 | G38: 0.69484
A39: Sacramento | B39: 0.68976 | C39: 0.70337 | D39: 0.65832 | E39: 0.68932 | F39: 0.73687 | G39: 0.8326
A40: San Benito | B40: 0.743 | C40: 0.829 | D40: 0.72125 | E40: 0.73041 | F40: 0.70742 | G40: 0.78347
A41: San Bernardino | B41: 0.69668 | C41: 0.78826 | D41: 0.75629 | E41: 0.84652 | F41: 0.85481 | G41: 0.92666
A42: San Diego | B42: 0.33746 | C42: 0.41186 | D42: 0.43822 | E42: 0.47359 | F42: 0.51732 | G42: 0.57292
A43: San Francisco | B43: 0.39449 | C43: 0.42592 | D43: 0.41958 | E43: 0.42006 | F43: 0.51878 | G43: 0.50698
A44: San Joaquin | B44: 0.6299 | C44: 0.72413 | D44: 0.7757 | E44: 0.71864 | F44: 0.75448 | G44: 0.92455
A45: San Luis Obispo | B45: 0.34642 | C45: 0.345 | D45: 0.4016 | E45: 0.36847 | F45: 0.39379 | G45: 0.40873
A46: San Mateo | B46: 0.29858 | C46: 0.32624 | D46: 0.38227 | E46: 0.4368 | F46: 0.50477 | G46: 0.44254
A47: Santa Barbara | B47: 0.32863 | C47: 0.47816 | D47: 0.41814 | E47: 0.41622 | F47: 0.422 | G47: 0.5075
A48: Santa Clara | B48: 0.43287 | C48: 0.47992 | D48: 0.47746 | E48: 0.51426 | F48: 0.65195 | G48: 0.68855
A49: Santa Cruz | B49: 0.46009 | C49: 0.49903 | D49: 0.58842 | E49: 0.54647 | F49: 0.50503 | G49: 0.57954
A50: Shasta | B50: 0.58876 | C50: 0.57693 | D50: 0.73982 | E50: 0.58366 | F50: 0.83034 | G50: 0.69301
A51: Sierra | B51: 0.594 | C51: 0.409 | D51: 0.45575 | E51: 0.4352 | F51: 0.56159 | G51: 0.60385
A52: Siskiyou | B52: 0.594 | C52: 0.583 | D52: 0.59692 | E52: 0.62925 | F52: 0.60582 | G52: 0.61723
A53: Solano | B53: 0.65288 | C53: 0.65398 | D53: 0.61665 | E53: 0.67316 | F53: 0.76926 | G53: 0.67496
A54: Sonoma | B54: 0.33425 | C54: 0.4551 | D54: 0.45491 | E54: 0.49472 | F54: 0.50345 | G54: 0.61996
A55: Stanislaus | B55: 0.63149 | C55: 0.65043 | D55: 0.74978 | E55: 0.72386 | F55: 0.79498 | G55: 0.87422
A56: Sutter | B56: 0.52793 | C56: 0.53532 | D56: 0.5721 | E56: 0.5404 | F56: 0.8092 | G56: 0.59199
A57: Tehama | B57: 0.631 | C57: 0.629 | D57: 0.66594 | E57: 0.69683 | F57: 0.76327 | G57: 0.69555
A58: Trinity | B58: 0.592 | C58: 0.495 | D58: 0.50631 | E58: 0.50371 | F58: 0.59124 | G58: 0.56469
A59: Tulare | B59: 0.78322 | C59: 0.80226 | D59: 0.72719 | E59: 0.78282 | F59: 0.90359 | G59: 0.91336
A60: Tuolumne | B60: 0.704 | C60: 0.604 | D60: 0.57444 | E60: 0.53196 | F60: 0.55096 | G60: 0.61887
A61: Ventura | B61: 0.57746 | C61: 0.60111 | D61: 0.61511 | E61: 0.60714 | F61: 0.64998 | G61: 0.8311
A62: Yolo | B62: 0.38734 | C62: 0.30804 | D62: 0.38251 | E62: 0.40125 | F62: 0.37071 | G62: 0.50741
A63: Yuba | B63: 0.7766 | C63: 0.948 | D63: 0.663 | E63: 0.8986 | F63: 0.766 | G63: 0.72443

Sheet Unemp (hidden)
A3: Sum of ann_unempl_pct_2yr_prior | B3: Column Labels
B4: 2012 | D4: Sum of unemployment_pct | E4: Column Labels
A5: Row Labels | B5: 4 | D5: Row Labels | E5: 2012 | F5: 2013 | G5: 2014 | H5: 2015 | I5: 2016
A6: California | B6: 0.124 | D6: California | E6: 0.105 | F6: 0.089 | G6: 0.075 | H6: 0.062 | I6: 0.054
A7: Alameda | B7: 0.113 | D7: Alameda | E7: 0.09 | F7: 0.073 | G7: 0.059 | H7: 0.047 | I7: 0.042
A8: Alpine | B8: 0.154 | D8: Alpine | E8: 0.133 | F8: 0.098 | G8: 0.088 | H8: 0.079 | I8: 0.065
A9: Amador | B9: 0.133 | D9: Amador | E9: 0.118 | F9: 0.103 | G9: 0.083 | H9: 0.066 | I9: 0.059
A10: Butte | B10: 0.139 | D10: Butte | E10: 0.122 | F10: 0.103 | G10: 0.087 | H10: 0.072 | I10: 0.065
A11: Calaveras | B11: 0.153 | D11: Calaveras | E11: 0.13 | F11: 0.1 | G11: 0.081 | H11: 0.065 | I11: 0.056
A12: Colusa | B12: 0.202 | D12: Colusa | E12: 0.2 | F12: 0.19 | G12: 0.175 | H12: 0.153 | I12: 0.155
A13: Contra Costa | B13: 0.111 | D13: Contra Costa | E13: 0.09 | F13: 0.075 | G13: 0.062 | H13: 0.05 | I13: 0.044
A14: Del Norte | B14: 0.131 | D14: Del Norte | E14: 0.134 | F14: 0.118 | G14: 0.102 | H14: 0.086 | I14: 0.075
A15: El Dorado | B15: 0.125 | D15: El Dorado | E15: 0.104 | F15: 0.085 | G15: 0.07 | H15: 0.057 | I15: 0.051
A16: Fresno | B16: 0.169 | D16: Fresno | E16: 0.152 | F16: 0.132 | G16: 0.116 | H16: 0.102 | I16: 0.094
A17: Glenn | B17: 0.159 | D17: Glenn | E17: 0.147 | F17: 0.121 | G17: 0.107 | H17: 0.087 | I17: 0.082
A18: Humboldt | B18: 0.114 | D18: Humboldt | E18: 0.105 | F18: 0.082 | G18: 0.068 | H18: 0.056 | I18: 0.049
A19: Imperial | B19: 0.299 | D19: Imperial | E19: 0.283 | F19: 0.249 | G19: 0.236 | H19: 0.24 | I19: 0.235
A20: Inyo | B20: 0.1 | D20: Inyo | E20: 0.094 | F20: 0.079 | G20: 0.07 | H20: 0.058 | I20: 0.052
A21: Kern | B21: 0.159 | D21: Kern | E21: 0.133 | F21: 0.117 | G21: 0.104 | H21: 0.102 | I21: 0.103
A22: Kings | B22: 0.165 | D22: Kings | E22: 0.153 | F22: 0.135 | G22: 0.121 | H22: 0.105 | I22: 0.1
A23: Lake | B23: 0.177 | D23: Lake | E23: 0.15 | F23: 0.108 | G23: 0.089 | H23: 0.077 | I23: 0.066
A24: Lassen | B24: 0.14 | D24: Lassen | E24: 0.126 | F24: 0.106 | G24: 0.093 | H24: 0.073 | I24: 0.069
A25: Los Angeles | B25: 0.126 | D25: Los Angeles | E25: 0.109 | F25: 0.098 | G25: 0.083 | H25: 0.067 | I25: 0.052
A26: Madera | B26: 0.156 | D26: Madera | E26: 0.136 | F26: 0.125 | G26: 0.11 | H26: 0.105 | I26: 0.092
A27: Marin | B27: 0.08 | D27: Marin | E27: 0.063 | F27: 0.052 | G27: 0.043 | H27: 0.035 | I27: 0.032
A28: Mariposa | B28: 0.119 | D28: Mariposa | E28: 0.11 | F28: 0.105 | G28: 0.088 | H28: 0.072 | I28: 0.069
A29: Mendocino | B29: 0.113 | D29: Mendocino | E29: 0.097 | F29: 0.082 | G29: 0.069 | H29: 0.059 | I29: 0.052
A30: Merced | B30: 0.188 | D30: Merced | E30: 0.17 | F30: 0.145 | G30: 0.128 | H30: 0.114 | I30: 0.105
A31: Modoc | B31: 0.144 | D31: Modoc | E31: 0.135 | F31: 0.124 | G31: 0.105 | H31: 0.088 | I31: 0.078
A32: Mono | B32: 0.103 | D32: Mono | E32: 0.105 | F32: 0.085 | G32: 0.072 | H32: 0.061 | I32: 0.053
A33: Monterey | B33: 0.127 | D33: Monterey | E33: 0.114 | F33: 0.103 | G33: 0.091 | H33: 0.081 | I33: 0.076
A34: Napa | B34: 0.097 | D34: Napa | E34: 0.078 | F34: 0.068 | G34: 0.056 | H34: 0.046 | I34: 0.043
A35: Nevada | B35: 0.114 | D35: Nevada | E35: 0.094 | F35: 0.081 | G35: 0.066 | H35: 0.055 | I35: 0.047
A36: Orange | B36: 0.095 | D36: Orange | E36: 0.076 | F36: 0.065 | G36: 0.055 | H36: 0.045 | I36: 0.04
A37: Placer | B37: 0.115 | D37: Placer | E37: 0.094 | F37: 0.077 | G37: 0.063 | H37: 0.05 | I37: 0.044
A38: Plumas | B38: 0.167 | D38: Plumas | E38: 0.147 | F38: 0.139 | G38: 0.117 | H38: 0.104 | I38: 0.096
A39: Riverside | B39: 0.145 | D39: Riverside | E39: 0.122 | F39: 0.099 | G39: 0.082 | H39: 0.067 | I39: 0.061
A40: Sacramento | B40: 0.127 | D40: Sacramento | E40: 0.106 | F40: 0.089 | G40: 0.073 | H40: 0.06 | I40: 0.054
A41: San Benito | B41: 0.172 | D41: San Benito | E41: 0.139 | F41: 0.111 | G41: 0.093 | H41: 0.076 | I41: 0.068
A42: San Bernardino | B42: 0.142 | D42: San Bernardino | E42: 0.12 | F42: 0.098 | G42: 0.081 | H42: 0.065 | I42: 0.057
A43: San Diego | B43: 0.105 | D43: San Diego | E43: 0.089 | F43: 0.078 | G43: 0.064 | H43: 0.052 | I43: 0.047
A44: San Francisco | B44: 0.096 | D44: San Francisco | E44: 0.073 | F44: 0.055 | G44: 0.044 | H44: 0.036 | I44: 0.033
A45: San Joaquin | B45: 0.173 | D45: San Joaquin | E45: 0.152 | F45: 0.124 | G45: 0.106 | H45: 0.089 | I45: 0.081
A46: San Luis Obispo | B46: 0.099 | D46: San Luis Obispo | E46: 0.081 | F46: 0.068 | G46: 0.056 | H46: 0.046 | I46: 0.043
A47: San Mateo | B47: 0.088 | D47: San Mateo | E47: 0.067 | F47: 0.052 | G47: 0.042 | H47: 0.034 | I47: 0.03
A48: Santa Barbara | B48: 0.094 | D48: Santa Barbara | E48: 0.08 | F48: 0.071 | G48: 0.061 | H48: 0.053 | I48: 0.05
A49: Santa Clara | B49: 0.11 | D49: Santa Clara | E49: 0.084 | F49: 0.065 | G49: 0.052 | H49: 0.042 | I49: 0.038
A50: Santa Cruz | B50: 0.126 | D50: Santa Cruz | E50: 0.111 | F50: 0.103 | G50: 0.087 | H50: 0.075 | I50: 0.069
A51: Shasta | B51: 0.158 | D51: Shasta | E51: 0.134 | F51: 0.118 | G51: 0.097 | H51: 0.078 | I51: 0.069
A52: Sierra | B52: 0.154 | D52: Sierra | E52: 0.143 | F52: 0.129 | G52: 0.1 | H52: 0.09 | I52: 0.076
A53: Siskiyou | B53: 0.166 | D53: Siskiyou | E53: 0.153 | F53: 0.132 | G53: 0.113 | H53: 0.094 | I53: 0.085
A54: Solano | B54: 0.12 | D54: Solano | E54: 0.101 | F54: 0.09 | G54: 0.075 | H54: 0.061 | I54: 0.055
A55: Sonoma | B55: 0.105 | D55: Sonoma | E55: 0.086 | F55: 0.07 | G55: 0.056 | H55: 0.045 | I55: 0.04
A56: Stanislaus | B56: 0.173 | D56: Stanislaus | E56: 0.152 | F56: 0.129 | G56: 0.112 | H56: 0.095 | I56: 0.085
A57: Sutter | B57: 0.195 | D57: Sutter | E57: 0.176 | F57: 0.146 | G57: 0.127 | H57: 0.108 | I57: 0.096
A58: Tehama | B58: 0.156 | D58: Tehama | E58: 0.139 | F58: 0.117 | G58: 0.097 | H58: 0.08 | I58: 0.071
A59: Trinity | B59: 0.184 | D59: Trinity | E59: 0.158 | F59: 0.121 | G59: 0.099 | H59: 0.078 | I59: 0.071
A60: Tulare | B60: 0.169 | D60: Tulare | E60: 0.158 | F60: 0.144 | G60: 0.132 | H60: 0.117 | I60: 0.11
A61: Tuolumne | B61: 0.138 | D61: Tuolumne | E61: 0.116 | F61: 0.108 | G61: 0.087 | H61: 0.071 | I61: 0.062
A62: Ventura | B62: 0.108 | D62: Ventura | E62: 0.09 | F62: 0.079 | G62: 0.067 | H62: 0.057 | I62: 0.052
A63: Yolo | B63: 0.127 | D63: Yolo | E63: 0.115 | F63: 0.091 | G63: 0.077 | H63: 0.064 | I63: 0.058
A64: Yuba | B64: 0.192 | D64: Yuba | E64: 0.169 | F64: 0.131 | G64: 0.112 | H64: 0.092 | I64: 0.085

Sheet Churn (hidden)
A2: Sum of pct_recerts_without_CF_next_mo | B2: Column Labels
B3: 2011 | C3: 2012 | G3: 2013 | K3: 2014 | O3: 2015 | S3: 2016
A4: Row Labels | B4: 4 | C4: 1 | D4: 2 | E4: 3 | F4: 4 | G4: 1 | H4: 2 | I4: 3 | J4: 4 | K4: 1 | L4: 2 | M4: 3 | N4: 4 | O4: 1 | P4: 2 | Q4: 3 | R4: 4 | S4: 1 | T4: 2 | U4: 3 | V4: 4
A5: California | B5: 0.2185732271 | C5: 0.1790267473 | D5: 0.181392282 | E5: 0.187106759 | F5: 0.1798133402 | G5: 0.2046964013 | H5: 0.2036459206 | I5: 0.209233285 | J5: 0.2200312474 | K5: 0.2193337845 | L5: 0.2265365142 | M5: 0.2263320693 | N5: 0.2549248297 | O5: 0.2472258206 | P5: 0.2546000826 | Q5: 0.2637444279 | R5: 0.2883930972 | S5: 0.3095019457 | T5: 0.3060542083 | U5: 0.2904313958 | V5: 0.3333245416
A6: Alameda | B6: 0.1565323565 | C6: 0.1569365976 | D6: 0.163451087 | E6: 0.166831012 | F6: 0.1785852838 | G6: 0.1658999764 | H6: 0.176127321 | I6: 0.1804030409 | J6: 0.2153769718 | K6: 0.215325492 | L6: 0.215325492 | M6: 0.2592746483 | N6: 0.2818103619 | O6: 0.2616800096 | P6: 0.2448155293 | Q6: 0.2675993069 | R6: 0.2780435938 | S6: 0.2604546025 | T6: 0.2628823191 | U6: 0.2748086432 | V6: 0.2734542762
A7: Alpine | B7: 0.25 | C7: 0.1428571429 | D7: 0.1818181818 | E7: 0.1875 | F7: 0.05714285714 | G7: 0.4666666667 | H7: 0.5 | I7: 0.4482758621 | J7: 0.3793103448 | K7: 0.4 | L7: 0.5294117647 | M7: 0.6875 | N7: 0.7 | O7: 0.5161290323 | P7: 0.4857142857 | Q7: 0.4545454545 | R7: 0.3703703704 | S7: 0.7058823529 | T7: 0.5333333333 | U7: 0.6470588235 | V7: 0.48
A8: Amador | B8: 0.3611111111 | C8: 0.3117647059 | D8: 0.316091954 | E8: 0.2732142857 | F8: 0.3015873016 | G8: 0.4143356643 | H8: 0.4358578053 | I8: 0.4383333333 | J8: 0.4427350427 | K8: 0.4429752066 | L8: 0.4517766497 | M8: 0.4326750449 | N8: 0.4156928214 | O8: 0.4226086957 | P8: 0.4303571429 | Q8: 0.4209591474 | R8: 0.4180327869 | S8: 0.391509434 | T8: 0.4671280277 | U8: 0.4213381555 | V8: 0.4390681004
A9: Butte | B9: 0.613872201 | C9: 0.4052337398 | D9: 0.4220393233 | E9: 0.4087694484 | F9: 0.3894586215 | G9: 0.4089709763 | H9: 0.374301676 | I9: 0.3992462869 | J9: 0.4214517876 | K9: 0.4044493882 | L9: 0.4085744909 | M9: 0.4236126465 | N9: 0.4116567233 | O9: 0.4148702156 | P9: 0.4089577229 | Q9: 0.4182440596 | R9: 0.4151738672 | S9: 0.398538961 | T9: 0.4147773279 | U9: 0.429256135 | V9: 0.4271489535
A10: Calaveras | B10: 0.3907284768 | C10: 0.2936746988 | D10: 0.2694848085 | E10: 0.3194103194 | F10: 0.322180917 | G10: 0.3891687657 | H10: 0.4128787879 | I10: 0.4344569288 | J10: 0.4196832579 | K10: 0.4031476998 | L10: 0.3927272727 | M10: 0.4065934066 | N10: 0.3893905192 | O10: 0.3495934959 | P10: 0.3817980022 | Q10: 0.4184239734 | R10: 0.4048672566 | S10: 0.4382384533 | T10: 0.4022857143 | U10: 0.4274193548 | V10: 0.4180985109
A11: Colusa | B11: 0.3695652174 | C11: 0.2404371585 | D11: 0.3333333333 | E11: 0.3114035088 | F11: 0.2111111111 | G11: 0.4587155963 | H11: 0.436 | I11: 0.4759825328 | J11: 0.4503546099 | K11: 0.3866171004 | L11: 0.4966216216 | M11: 0.4646017699 | N11: 0.4869565217 | O11: 0.5021834061 | P11: 0.5564202335 | Q11: 0.5479452055 | R11: 0.5272727273 | S11: 0.5353535354 | T11: 0.4736842105 | U11: 0.4444444444 | V11: 0.4837209302
A12: Contra Costa | B12: 0.1917788599 | C12: 0.1922912206 | D12: 0.1536771169 | E12: 0.1333709291 | F12: 0.1796469367 | G12: 0.1777696437 | H12: 0.1730555898 | I12: 0.1739298608 | J12: 0.1915833225 | K12: 0.1827666626 | L12: 0.1827666626 | M12: 0.1962774958 | N12: 0.2193784278 | O12: 0.2349791791 | P12: 0.2279937038 | Q12: 0.2282835302 | R12: 0.255461165 | S12: 0.23366671 | T12: 0.2396788991 | U12: 0.2386613258 | V12: 0.2379750386
A13: Del Norte | B13: 0.3935018051 | C13: 0.3070652174 | D13: 0.2795275591 | E13: 0.2934782609 | F13: 0.3062953995 | G13: 0.44 | H13: 0.3820224719 | I13: 0.4117647059 | J13: 0.3530726257 | K13: 0.3549083064 | L13: 0.3598574822 | M13: 0.4163473819 | N13: 0.3921568627 | O13: 0.3643067847 | P13: 0.3414634146 | Q13: 0.3817934783 | R13: 0.3804945055 | S13: 0.3429355281 | T13: 0.365 | U13: 0.3987012987 | V13: 0.3706896552
A14: El Dorado | B14: 0.4991816694 | C14: 0.3141388175 | D14: 0.3047962867 | E14: 0.3144303797 | F14: 0.3260976813 | G14: 0.4855256475 | H14: 0.4689655172 | I14: 0.5244423351 | J14: 0.5050505051 | K14: 0.4574723691 | L14: 0.4862888483 | M14: 0.4500241429 | N14: 0.476691042 | O14: 0.4584513692 | P14: 0.4557564225 | Q14: 0.4547481052 | R14: 0.4776559865 | S14: 0.4743362832 | T14: 0.4689038031 | U14: 0.4670116429 | V14: 0.4624175824
A15: Fresno | B15: 0.1292609763 | C15: 0.1231184323 | D15: 0.1319213732 | E15: 0.1227690644 | F15: 0.09655588603 | G15: 0.07733320751 | H15: 0.1208453991 | I15: 0.1340255591 | J15: 0.1324527387 | K15: 0.1250805932 | L15: 0.1250805932 | M15: 0.1409398455 | N15: 0.140094559 | O15: 0.1340317171 | P15: 0.1422901603 | Q15: 0.150646325 | R15: 0.1480161135 | S15: 0.1487345717 | T15: 0.1537433696 | U15: 0.1646334241 | V15: 0.1584871855
A16: Glenn | B16: 0.4240506329 | C16: 0.1960352423 | D16: 0.2055674518 | E16: 0.2271662763 | F16: 0.2878151261 | G16: 0.4009009009 | H16: 0.4151329243 | I16: 0.436123348 | J16: 0.4090909091 | K16: 0.3709677419 | L16: 0.4217391304 | M16: 0.4370709382 | N16: 0.4220532319 | O16: 0.4446854664 | P16: 0.4242424242 | Q16: 0.4399185336 | R16: 0.41015625 | S16: 0.3673913043 | T16: 0.4333333333 | U16: 0.409610984 | V16: 0.4428857715
A17: Humboldt | B17: 0.4808126411 | C17: 0.4059405941 | D17: 0.394420904 | E17: 0.4099099099 | F17: 0.4353912419 | G17: 0.498797664 | H17: 0.4304452882 | I17: 0.4623545517 | J17: 0.447846568 | K17: 0.4061151079 | L17: 0.4149637442 | M17: 0.4177121771 | N17: 0.4230124119 | O17: 0.4237855946 | P17: 0.4574762051 | Q17: 0.4597090095 | R17: 0.4660818713 | S17: 0.4448285797 | T17: 0.4761629587 | U17: 0.4753802526 | V17: 0.4669503546
A18: Imperial | B18: 0.2526851328 | C18: 0.2464266808 | D18: 0.2376723534 | E18: 0.2382905245 | F18: 0.2452085682 | G18: 0.3276529822 | H18: 0.3022308022 | I18: 0.3051160879 | J18: 0.2929591334 | K18: 0.2975110491 | L18: 0.3082896118 | M18: 0.2910523127 | N18: 0.2944250871 | O18: 0.3068532132 | P18: 0.2951043495 | Q18: 0.2851838099 | R18: 0.3278345725 | S18: 0.3150535285 | T18: 0.3170594837 | U18: 0.3163984813 | V18: 0.3296629213
A19: Inyo | B19: 0.2702702703 | C19: 0.2007042254 | D19: 0.2718120805 | E19: 0.2271186441 | F19: 0.2361516035 | G19: 0.4548387097 | H19: 0.4654654655 | I19: 0.4971264368 | J19: 0.4582210243 | K19: 0.4326647564 | L19: 0.5014492754 | M19: 0.473015873 | N19: 0.4666666667 | O19: 0.4588235294 | P19: 0.4503311258 | Q19: 0.4137931034 | R19: 0.4225352113 | S19: 0.4025559105 | T19: 0.4054054054 | U19: 0.4450867052 | V19: 0.4537572254
A20: Kern | B20: 0.3034734918 | C20: 0.2446815266 | D20: 0.2426822157 | E20: 0.2746272094 | F20: 0.2807583042 | G20: 0.3525323341 | H20: 0.3247478 | I20: 0.3404073342 | J20: 0.3493204263 | K20: 0.338902148 | L20: 0.3576767948 | M20: 0.3589148572 | N20: 0.3435408212 | O20: 0.330275762 | P20: 0.3233968616 | Q20: 0.3336149987 | R20: 0.3427065026 | S20: 0.3430932094 | T20: 0.3596685615 | U20: 0.3587767994 | V20: 0.359900831
A21: Kings | B21: 0.2607709751 | C21: 0.2167857143 | D21: 0.2121103547 | E21: 0.2285429142 | F21: 0.2322770336 | G21: 0.3442800433 | H21: 0.3594793057 | I21: 0.3728923476 | J21: 0.3663943991 | K21: 0.3384757791 | L21: 0.3623716462 | M21: 0.3825503356 | N21: 0.3585083046 | O21: 0.3337874659 | P21: 0.353633218 | Q21: 0.370675453 | R21: 0.3463190184 | S21: 0.3678414097 | T21: 0.3703115067 | U21: 0.374508519 | V21: 0.3711130485
A22: Lake | B22: 0.5361890694 | C22: 0.4274755927 | D22: 0.4160331721 | E22: 0.4315651604 | F22: 0.3581514763 | G22: 0.396 | H22: 0.3548585486 | I22: 0.3743990385 | J22: 0.3601598174 | K22: 0.3435771358 | L22: 0.3938080495 | M22: 0.3644558918 | N22: 0.3806954436 | O22: 0.3540489642 | P22: 0.3691476591 | Q22: 0.3998884551 | R22: 0.3988529718 | S22: 0.4033149171 | T22: 0.3875134553 | U22: 0.5935547517 | V22: 0.4018081366
A23: Lassen | B23: 0.6069364162 | C23: 0.2713347921 | D23: 0.247311828 | E23: 0.2933579336 | F23: 0.3049792531 | G23: 0.4589473684 | H23: 0.4128630705 | I23: 0.40625 | J23: 0.423853211 | K23: 0.3846153846 | L23: 0.4058577406 | M23: 0.3975694444 | N23: 0.4561717352 | O23: 0.4572564612 | P23: 0.440087146 | Q23: 0.4550669216 | R23: 0.4530938124 | S23: 0.474012474 | T23: 0.4125 | U23: 0.3923541247 | V23: 0.4279835391
A24: Los Angeles | B24: 0.2306056535 | C24: 0.01153314268 | D24: 0.01010495485 | E24: 0.008580408466 | F24: 0.007630571676 | G24: 0.03338003503 | H24: 0.03074199093 | I24: 0.02447995299 | J24: 0.0154963192 | K24: 0.01946573067 | L24: 0.01498629302 | M24: 0.01286398343 | N24: 0.1625061877 | O24: 0.1244704148 | P24: 0.164713753 | Q24: 0.1746420419 | S24: 0.4120181823 | T24: 0.3438237895 | U24: 0.2537979007 | V24: 0.4165002262
A25: Madera | B25: 0.319210679 | C25: 0.2407097422 | D25: 0.2726597325 | E25: 0.2784889166 | F25: 0.2726019846 | G25: 0.3317551573 | H25: 0.3266621438 | I25: 0.3302561048 | J25: 0.3065222996 | K25: 0.296388543 | L25: 0.3169889503 | M25: 0.3241082411 | N25: 0.3070825876 | O25: 0.318854265 | P25: 0.3379465723 | Q25: 0.3453155958 | R25: 0.3133283321 | S25: 0.3035443805 | T25: 0.3425925926 | U25: 0.3439767779 | V25: 0.3405246384
A26: Marin | B26: 0.2051282051 | C26: 0.2922794118 | D26: 0.2898368883 | E26: 0.3099630996 | F26: 0.298088411 | G26: 0.3914067098 | H26: 0.3787356322 | I26: 0.3842925659 | J26: 0.3935406699 | K26: 0.362012987 | L26: 0.4091653028 | M26: 0.3942757009 | N26: 0.4078036501 | O26: 0.4020918071 | P26: 0.4254957507 | Q26: 0.4249044238 | R26: 0.4452354874 | S26: 0.4119960669 | T26: 0.4259356879 | U26: 0.4238592633 | V26: 0.4201045904
A27: Mariposa | B27: 0.2956521739 | C27: 0.276 | D27: 0.262295082 | E27: 0.329588015 | F27: 0.2852233677 | G27: 0.4097744361 | H27: 0.3598615917 | I27: 0.4007936508 | J27: 0.4046692607 | K27: 0.3442028986 | L27: 0.4061433447 | M27: 0.4169491525 | N27: 0.4504792332 | O27: 0.3531468531 | P27: 0.3720136519 | Q27: 0.4501607717 | R27: 0.4036697248 | S27: 0.4106583072 | T27: 0.4080996885 | U27: 0.4320987654 | V27: 0.5213675214
A28: Mendocino | B28: 0.294205052 | C28: 0.3258373206 | D28: 0.3193236715 | E28: 0.3506809339 | F28: 0.4038135593 | G28: 0.4469007369 | H28: 0.4509803922 | I28: 0.4492167761 | J28: 0.3964737794 | K28: 0.2222654729 | L28: 0.4020028612 | M28: 0.490605428 | N28: 0.440653532 | O28: 0.5010334849 | P28: 0.475394171 | Q28: 0.4933135215 | R28: 0.4332096475 | S28: 0.4421392347 | T28: 0.4611553785 | U28: 0.496426608 | V28: 0.4528101803
A29: Merced | B29: 0.3931710615 | C29: 0.2909751037 | D29: 0.3117289028 | E29: 0.3141377687 | F29: 0.2990302504 | G29: 0.3126534621 | H29: 0.2867963761 | I29: 0.3083978217 | J29: 0.3098628009 | K29: 0.2957267485 | L29: 0.3088014419 | M29: 0.3257243196 | N29: 0.3176686794 | O29: 0.311485178 | P29: 0.3153846154 | Q29: 0.326108514 | R29: 0.3296334538 | S29: 0.3318694188 | T29: 0.3495669459 | U29: 0.3445070423 | V29: 0.3401612264
A30: Modoc | B30: 0.5964912281 | C30: 0.2642857143 | D30: 0.2671755725 | E30: 0.25 | F30: 0.2808988764 | G30: 0.5147058824 | H30: 0.4895104895 | I30: 0.5125 | J30: 0.4 | K30: 0.4666666667 | L30: 0.4296875 | M30: 0.5182481752 | N30: 0.487804878 | O30: 0.4304635762 | P30: 0.4936708861 | Q30: 0.421875 | R30: 0.3961038961 | S30: 0.4452554745 | T30: 0.4341085271 | U30: 0.4675324675 | V30: 0.505952381
A31: Mono | B31: 0.4137931034 | C31: 0.09375 | D31: 0.09345794393 | E31: 0.186746988 | F31: 0.1433823529 | G31: 0.7566137566 | H31: 0.6798029557 | I31: 0.6432748538 | J31: 0.5853658537 | K31: 0.6524822695 | L31: 0.6023391813 | M31: 0.5846153846 | N31: 0.6678571429 | O31: 0.631840796 | P31: 0.6455696203 | Q31: 0.6 | R31: 0.6052631579 | S31: 0.6292134831 | T31: 0.6176470588 | U31: 0.5234899329 | V31: 0.5668789809
A32: Monterey | B32: 0.3079584775 | C32: 0.2167078374 | D32: 0.2491317435 | E32: 0.2514938489 | F32: 0.1714624038 | G32: 0.3553151654 | H32: 0.3515737503 | I32: 0.3878481013 | J32: 0.3508615898 | K32: 0.3223037024 | L32: 0.3752728716 | M32: 0.4150274105 | N32: 0.3561401685 | O32: 0.3731819794 | P32: 0.3892871366 | Q32: 0.3991603172 | R32: 0.3605107067 | S32: 0.4062865742 | T32: 0.429260152 | U32: 0.4359962986 | V32: 0.3991571343
A33: Napa | B33: 0.5694980695 | C33: 0.3646578141 | D33: 0.40625 | E33: 0.4226519337 | F33: 0.4488636364 | G33: 0.4735294118 | H33: 0.4428571429 | I33: 0.4756554307 | J33: 0.4182847896 | K33: 0.4109867752 | L33: 0.3755458515 | M33: 0.4158415842 | N33: 0.4163987138 | O33: 0.4147058824 | P33: 0.4124872057 | Q33: 0.4036199095 | R33: 0.4081796311 | S33: 0.4491129785 | T33: 0.4408817635 | U33: 0.4015611448 | V33: 0.4521452145
A34: Nevada | B34: 0.3414043584 | C34: 0.2647362978 | D34: 0.2769818529 | E34: 0.3048543689 | F34: 0.2954341987 | G34: 0.5078534031 | H34: 0.4522854852 | I34: 0.4544012688 | J34: 0.4529780564 | K34: 0.4577922078 | L34: 0.4579799537 | M34: 0.4595879556 | N34: 0.4543325527 | O34: 0.4482213439 | P34: 0.4487079092 | Q34: 0.4426605505 | R34: 0.4578125 | S34: 0.4308053167 | T34: 0.4436728395 | U34: 0.4842519685 | V34: 0.4895746455
A35: Orange | B35: 0.1130730601 | C35: 0.1340643192 | D35: 0.1319289917 | E35: 0.1297639457 | F35: 0.1342155855 | G35: 0.1289069724 | H35: 0.139160751 | I35: 0.1337412587 | J35: 0.1517365221 | K35: 0.1754297694 | L35: 0.1754297694 | M35: 0.1702233087 | N35: 0.1919414197 | O35: 0.1932450084 | P35: 0.1924335738 | Q35: 0.1932334849 | R35: 0.2015637949 | S35: 0.1988128362 | T35: 0.1918065293 | U35: 0.204142417 | V35: 0.2087799316
A36: Placer | B36: 0.1971098266 | C36: 0.1919374248 | D36: 0.1795166858 | E36: 0.18275154 | F36: 0.1897073663 | G36: 0.1689049587 | H36: 0.179698883 | I36: 0.1862037872 | J36: 0.208600183 | K36: 0.2153351699 | L36: 0.2153351699 | M36: 0.2 | N36: 0.2456140351 | O36: 0.2424003158 | P36: 0.2429227238 | Q36: 0.2591660676 | R36: 0.2512185977 | S36: 0.2282560706 | T36: 0.2062857143 | U36: 0.2368421053 | V36: 0.2794629538
A37: Plumas | B37: 0.3 | C37: 0.2365591398 | D37: 0.2256410256 | E37: 0.2966101695 | F37: 0.2903225806 | G37: 0.4782608696 | H37: 0.4710743802 | I37: 0.5 | J37: 0.4641638225 | K37: 0.4384615385 | L37: 0.4484126984 | M37: 0.4692556634 | N37: 0.4454277286 | O37: 0.4076923077 | P37: 0.4785992218 | Q37: 0.5067385445 | R37: 0.4297520661 | S37: 0.4234234234 | T37: 0.4917491749 | U37: 0.4732620321 | V37: 0.4951690821
A38: Riverside | B38: 0.3453929219 | C38: 0.3030413803 | D38: 0.3058081277 | E38: 0.3260175691 | F38: 0.3136283852 | G38: 0.3843365231 | H38: 0.3698152114 | I38: 0.3672580848 | J38: 0.3652104208 | K38: 0.3540643144 | L38: 0.3815779103 | M38: 0.3763372389 | N38: 0.371923873 | O38: 0.3858951926 | P38: 0.3838989037 | Q38: 0.3776630084 | R38: 0.3807857757 | S38: 0.3886172783 | T38: 0.3979393419 | U38: 0.3903789583 | V38: 0.4008324896
A39: Sacramento | B39: 0.1421820068 | C39: 0.1371906628 | D39: 0.1387440017 | E39: 0.1198006932 | F39: 0.1133898806 | G39: 0.1123196163 | H39: 0.1203268641 | I39: 0.122646433 | J39: 0.1456475058 | K39: 0.1536722663 | L39: 0.1536722663 | M39: 0.1620465706 | N39: 0.1872629183 | O39: 0.188660169 | P39: 0.1852048156 | Q39: 0.2002802242 | R39: 0.2073236627 | S39: 0.2037816019 | T39: 0.2075813 | U39: 0.2188480787 | V39: 0.2107912038
A40: San Benito | B40: 0.3446327684 | C40: 0.2703751617 | D40: 0.2873134328 | E40: 0.3309438471 | F40: 0.2916666667 | G40: 0.4080536913 | H40: 0.3753180662 | I40: 0.4223013049 | J40: 0.4023323615 | K40: 0.3825983313 | L40: 0.4174252276 | M40: 0.421641791 | N40: 0.4043715847 | O40: 0.436827957 | P40: 0.4195323246 | Q40: 0.4445859873 | R40: 0.4388489209 | S40: 0.4197031039 | T40: 0.418767507 | U40: 0.4403794038 | V40: 0.4429824561
A41: San Bernardino | B41: 0.3181793345 | C41: 0.2819731227 | D41: 0.2869844349 | E41: 0.3100991728 | F41: 0.2914608494 | G41: 0.3517576937 | H41: 0.3272931619 | I41: 0.3308967626 | J41: 0.3279817912 | K41: 0.3283158675 | L41: 0.348851405 | M41: 0.3366167534 | N41: 0.3513220079 | O41: 0.3522557125 | P41: 0.3548246223 | Q41: 0.3537452057 | R41: 0.3661910399 | S41: 0.3668827806 | T41: 0.3730091232 | U41: 0.3696648632 | V41: 0.3816355209
A42: San Diego | B42: 0.1936472455 | C42: 0.2007616785 | D42: 0.2001663787 | E42: 0.193823127 | F42: 0.180598099 | G42: 0.1053021392 | H42: 0.1097303343 | I42: 0.1753828557 | J42: 0.2236782784 | K42: 0.1997044023 | L42: 0.1997044023 | M42: 0.1776635165 | N42: 0.2109481371 | O42: 0.2071751778 | P42: 0.2089825563 | Q42: 0.2218946882 | R42: 0.226994612 | S42: 0.2215177775 | T42: 0.2213630077 | U42: 0.2282984285 | V42: 0.2455513724
A43: San Francisco | B43: 0.2146448774 | C43: 0.2214495441 | D43: 0.2237415477 | E43: 0.2365759863 | F43: 0.2358231707 | G43: 0.2300693241 | H43: 0.2250347705 | I43: 0.239555864 | J43: 0.2527909466 | K43: 0.2595828636 | L43: 0.2595828636 | M43: 0.2375891296 | N43: 0.2731345589 | O43: 0.2539210384 | P43: 0.2411588683 | Q43: 0.2565853659 | R43: 0.2478777589 | S43: 0.246509718 | T43: 0.2361857517 | U43: 0.2554203385 | V43: 0.2603550296
A44: San Joaquin | B44: 0.2994478727 | C44: 0.2473711429 | D44: 0.244916366 | E44: 0.2560315496 | F44: 0.2485866834 | G44: 0.3020948181 | H44: 0.2839084635 | I44: 0.2865105122 | J44: 0.3012790464 | K44: 0.2894791885 | L44: 0.3095320384 | M44: 0.3025027964 | N44: 0.3022058312 | O44: 0.3123063926 | P44: 0.3145374449 | Q44: 0.3172373616 | R44: 0.3351791531 | S44: 0.3354434597 | T44: 0.346448376 | U44: 0.3475269376 | V44: 0.3559549356
A45: San Luis Obispo | B45: 0.1441334127 | C45: 0.1636469901 | D45: 0.1831218974 | E45: 0.1639175258 | F45: 0.1778107974 | G45: 0.1505376344 | H45: 0.177444387 | I45: 0.1836734694 | J45: 0.1900744417 | K45: 0.1786612984 | L45: 0.1786612984 | M45: 0.2478438493 | N45: 0.2202519832 | O45: 0.2176684882 | P45: 0.2173302108 | Q45: 0.2299417302 | R45: 0.2349632194 | S45: 0.217853839 | T45: 0.2243381328 | U45: 0.2408424908 | V45: 0.232833106
A46: San Mateo | B46: 0.1424202709 | C46: 0.1345603272 | D46: 0.152131404 | E46: 0.1608738828 | F46: 0.1501706485 | G46: 0.1543950697 | H46: 0.1658130602 | I46: 0.1629027401 | J46: 0.2003757044 | K46: 0.2256208359 | L46: 0.2256208359 | M46: 0.2044346979 | N46: 0.2282182695 | O46: 0.2207395051 | P46: 0.2225282291 | Q46: 0.2289002558 | R46: 0.2447407407 | S46: 0.2507122507 | T46: 0.2341622262 | U46: 0.2265129683 | V46: 0.2451954937
A47: Santa Barbara | B47: 0.1317348378 | C47: 0.1565101565 | D47: 0.1691952507 | E47: 0.1817933297 | F47: 0.1564610012 | G47: 0.148474017 | H47: 0.1880640466 | I47: 0.1954666667 | J47: 0.1737426519 | K47: 0.1807168097 | L47: 0.1807168097 | M47: 0.1935135135 | N47: 0.1959214789 | O47: 0.2101865136 | P47: 0.2101863354 | Q47: 0.1859037328 | R47: 0.1684231458 | S47: 0.2109872611 | T47: 0.2204681546 | U47: 0.2452135493 | V47: 0.1919365216
A48: Santa Clara | B48: 0.1446991404 | C48: 0.1445574771 | D48: 0.1456483126 | E48: 0.12811052 | F48: 0.119847973 | G48: 0.1262781611 | H48: 0.1265642059 | I48: 0.1397806421 | J48: 0.1615838662 | K48: 0.1783419278 | L48: 0.1783419278 | M48: 0.1786173999 | N48: 0.1904142973 | O48: 0.1901887369 | P48: 0.1902634055 | Q48: 0.2024399843 | R48: 0.2053266004 | S48: 0.185033568 | T48: 0.1802764352 | U48: 0.1843090538 | V48: 0.1814135174
A49: Santa Cruz | B49: 0.1849906191 | C49: 0.1563698338 | D49: 0.1513409962 | E49: 0.1932216595 | F49: 0.1625956981 | G49: 0.1818923328 | H49: 0.2245731255 | I49: 0.2313432836 | J49: 0.2088325916 | K49: 0.1973490427 | L49: 0.1973490427 | M49: 0.2178443504 | N49: 0.1941195068 | O49: 0.210817856 | P49: 0.193131695 | Q49: 0.2233452886 | R49: 0.1764705882 | S49: 0.1825816485 | T49: 0.2059604603 | U49: 0.2349416588 | V49: 0.1948321948
A50: Shasta | B50: 0.3907649897 | C50: 0.2862811791 | D50: 0.304004215 | E50: 0.3153197819 | F50: 0.366144866 | G50: 0.4603340292 | H50: 0.4337321135 | I50: 0.4399205561 | J50: 0.4006131834 | K50: 0.3807692308 | L50: 0.4112983152 | M50: 0.3793383948 | N50: 0.4113294208 | O50: 0.418894368 | P50: 0.4220272904 | Q50: 0.4315321984 | R50: 0.4394250513 | S50: 0.4471016376 | T50: 0.4286079183 | U50: 0.4216329745 | V50: 0.4449553692
A51: Sierra | B51: 0.1538461538 | C51: 0.1612903226 | D51: 0.2325581395 | E51: 0.2121212121 | F51: 0.2093023256 | G51: 0.48 | H51: 0.3870967742 | I51: 0.4827586207 | J51: 0.4130434783 | K51: 0.2631578947 | L51: 0.46875 | M51: 0.3636363636 | N51: 0.4893617021 | O51: 0.3846153846 | P51: 0.2916666667 | Q51: 0.3818181818 | R51: 0.5789473684 | S51: 0.4745762712 | T51: 0.3962264151 | U51: 0.4035087719 | V51: 0.4090909091
A52: Siskiyou | B52: 0.379204893 | C52: 0.3057742782 | D52: 0.2873134328 | E52: 0.3099078341 | F52: 0.3058035714 | G52: 0.3948019802 | H52: 0.366704162 | I52: 0.3734177215 | J52: 0.3642921551 | K52: 0.349137931 | L52: 0.3852183651 | M52: 0.4102564103 | N52: 0.3908045977 | O52: 0.3784994401 | P52: 0.3732162459 | Q52: 0.3974854932 | R52: 0.3861082737 | S52: 0.4053156146 | T52: 0.4408713693 | U52: 0.4372623574 | V52: 0.4099009901
A53: Solano | B53: 0.2159981558 | C53: 0.2062043796 | D53: 0.197265625 | E53: 0.1825472599 | F53: 0.1978166761 | G53: 0.1816359993 | H53: 0.1821628453 | I53: 0.1985071974 | J53: 0.2302631579 | K53: 0.2102786826 | L53: 0.2102786826 | M53: 0.1966798419 | N53: 0.249958145 | O53: 0.2337345194 | P53: 0.188615837 | Q53: 0.2120967742 | R53: 0.2515369752 | S53: 0.2404502676 | T53: 0.2388361285 | U53: 0.2378660249 | V53: 0.2447257384
